{"text_format":"1","workbook":"xlsx","n_sheets":24,"sheets":["表紙","ｱ.燃え殻","ｲ.汚泥","ｳ.廃油","ｴ.廃酸","ｵ.廃ｱﾙｶﾘ","ｶ.廃ﾌﾟﾗ類","ｷ.紙くず","ｸ.木くず","ｹ.繊維くず","ｺ.動植物性残さ","ｻ.動物系固形不要物","ｼ.ｺﾞﾑくず","ｽ.金属くず","ｾ.ｶﾞﾗｽ･ｺﾝｸﾘ･陶磁器くず","ｿ.鉱さい","ﾀ.がれき類","ﾁ.動物のふん尿","ﾂ.動物の死体","ﾃ.ばいじん","ﾄ.混合廃棄物その他","別紙","印刷用表紙","業種限定"],"not_rendered":{"charts":0,"images":4,"macros":0,"external_links":0,"defined_names":24,"comments":21,"pivot_tables":0},"unopened":[],"bounds":{"document_bytes":16777216,"sheet_cells":100000,"rows_first":2000,"rows_last":500,"rows_between":2000,"halvings":0,"cell_chars":16384,"cell_head_chars":4096},"cells_cut":0,"cells_raw":0,"read":"whole","date_system":"1900"}

{"sheet":"表紙","index":0,"n_rows":313,"n_cols":24,"rows_kept":313,"cut":false,"hidden":false,"merged":[[51,2,51,4],[87,3,101,3],[51,5,51,20],[50,13,50,20],[53,5,53,10],[57,13,57,17],[60,5,60,20],[53,13,53,20],[56,9,56,12],[59,5,59,20],[55,5,55,8],[57,9,57,12],[56,5,56,8],[54,5,54,8],[55,13,55,17],[54,9,54,12],[55,9,55,12],[54,13,54,17],[62,4,65,4],[66,3,70,4],[100,21,100,25],[133,16,133,20],[87,4,101,4],[89,23,89,28],[103,10,103,12],[119,5,123,20],[89,10,89,14],[56,3,57,4],[102,3,116,3],[56,13,56,17],[57,5,57,8],[73,2,73,20],[76,3,85,20],[61,5,71,20],[88,16,89,20],[91,18,91,19],[88,10,88,12],[87,2,93,2],[93,5,101,20],[102,2,108,2],[104,10,104,14],[118,3,123,3],[103,16,104,20],[17,2,17,23],[20,2,20,3],[21,2,21,3],[22,2,22,3],[23,2,23,3],[24,2,24,3],[49,2,50,4],[47,5,48,14],[49,5,50,12],[49,16,49,20],[45,2,45,20],[47,2,48,4],[47,15,47,20],[48,15,48,20],[27,15,28,15],[28,16,28,18],[27,16,27,18],[29,2,29,20],[31,2,32,20],[36,2,36,5],[34,15,34,20],[39,11,39,20],[40,11,40,20],[42,14,42,20],[207,16,211,20],[155,3,166,3],[156,5,156,9],[124,3,129,3],[124,4,129,4],[132,3,142,3],[132,4,142,4],[146,5,153,20],[157,10,157,14],[157,16,157,20],[156,10,156,14],[125,5,129,20],[130,2,130,20],[143,3,153,3],[143,4,153,4],[156,16,156,20],[207,5,207,9],[211,6,211,9],[196,5,204,20],[210,6,210,9],[141,21,141,25],[106,18,106,19],[108,5,116,20],[135,5,142,20],[133,10,133,14],[133,5,133,9],[115,21,115,25],[122,21,122,26],[167,4,178,4],[169,10,169,14],[144,10,144,14],[144,5,144,9],[144,16,144,20],[168,5,168,9],[168,10,168,14],[152,21,152,26],[165,21,165,25],[128,21,128,26],[118,4,123,4],[102,4,116,4],[191,21,191,25],[169,5,169,9],[194,16,194,20],[194,10,194,14],[171,5,178,20],[179,2,179,20],[168,16,168,20],[169,16,169,20],[159,5,166,20],[155,4,166,4],[157,5,157,9],[182,16,182,20],[184,5,192,20],[230,5,238,20],[223,3,238,3],[223,4,238,4],[228,6,228,9],[224,10,224,14],[227,6,227,9],[225,6,225,9],[226,6,226,9],[226,10,226,14],[224,5,224,9],[224,16,228,20],[228,10,228,14],[225,10,225,14],[237,21,237,26],[177,21,177,26],[227,10,227,14],[220,21,220,25],[222,2,222,20],[193,3,204,3],[193,4,204,4],[213,5,221,20],[208,6,208,9],[203,21,203,26],[167,3,178,3],[207,10,207,14],[181,3,192,3],[181,4,192,4],[206,3,221,3],[206,4,221,4],[182,5,182,9],[182,10,182,14],[194,5,194,9],[208,10,208,14],[209,6,209,9],[211,10,211,14],[209,10,209,14],[210,10,210,14],[253,3,253,20],[241,2,241,20],[249,4,249,20],[250,4,250,20],[245,3,245,20],[244,3,244,20],[252,3,252,20],[251,3,251,20],[239,2,239,4]]}
[]
[null,null,"【注　意】"]
[null,null,"　①　このファイルは、産業廃棄物用の法定と自主管理の共通様式です。"]
[null,null,"　　　「法定」「自主」は昨年度の実績により、自動入力されます。"]
[null,null,"　②　様式２と様式３の両方を提出する場合は、先に様式３を入力してください。様式３の情報を様式２へ反映させることができます。"]
[]
[null,null,"【手　順】"]
[null,null,"　①　様式１及び様式３の情報を反映させることができます。"]
[null,null,null,null,"本ファイルは閉じ、2024form6.xlsmを開き、①又は②の「事業場情報等の反映」及び「③実績値等の反映」をクリックして下さい。"]
[null,null,null,null,"（様式１又は３から反映→提出先、提出者情報、事業場情報、事業の種類、事業規模。様式３から反映→連絡先、令和５年度実績。）"]
[null,null,"　②　表紙シートの黄色、水色のセルで、入力されていないセルを入力あるいは選択してください。"]
[null,null,"　③　次に、廃棄物の種類ごとの処理フローを、シート「ア.燃え殻」から順番に各シートに記載してください。"]
[null,null,"　④　記載したデータに誤りがないか、別紙（一括表）などを見て再確認をお願いいたします。"]
[]
[null,null,"　＊　印刷を行いたい場合は、本ファイルを閉じ、2024form6.xlsmを開き「印刷ボタン（様式２）」をクリックしてください。"]
[null,null,"　　　提出に必要な表紙、別紙(一括表）および各フロー図が自動的にプリントされます。"]
[]
[null,null,"※マクロが使用できない場合は、本ファイルのシート名「印刷用表紙」「別紙」及び該当する廃棄物のシートを　「ファイル」→「印刷」の手順で印刷をしてください。"]
[]
[null,null,"【セル色の説明】"]
[null,null,null,null,"：セルの右上に▼がある場合、ポインタをそのセルにあわせると、説明文が表示されます"]
[null,null,"薄黄色",null,"：プルダウン・メニューから選択してください。セルを選択して右側に現れる▼をクリックすると選択肢のリストが出てきます。"]
[null,null,"薄水色",null,"：内容・データ等を入力してください"]
[null,null,"薄橙色",null,"：自動処理されるので、変更できません。"]
[null,null,"薄黄緑",null,"：他様式の情報を反映させることができます。"]
[null,null,null,null,"　直接入力することも可能です。"]
[]
[14,null,null,null,null,null,null,null,null,null,null,null,null,null,null,"２","法定",null,null,"自主"]
[{"$f":"+X256","v":0},null,"様式第二号の八（第八条の四の五関係）",null,null,null,null,null,null,null,null,null,null,null,null,null,{"$f":"IF($K$90+1E-25>=1000,\"〇\",\"\")","v":"〇"},null,null,{"$f":"IF($K$90+1E-28<1000,\"〇\",\"\")","v":""}]
[null,null,"（第１面）"]
[]
[null,null,"産業廃棄物処理計画書"]
[]
[]
[null,null,null,null,null,null,null,null,null,null,null,null,null,null,null,"令和    6年    6月    24日"]
[]
[null,null,"横浜市長",null,null,null,"殿"]
[]
[3,null,null,null,null,null,null,null,null,"提出者"]
[null,null,null,null,null,null,null,null,null,"　住　所",null,"神奈川県大和市中央林間6-10-7"]
[null,null,null,null,null,null,null,null,null,"　氏　名",null,"中井エンジニアリング株式会社　所長　大野　勝文"]
[null,null,null,null,null,null,null,null,null,null,null,"（法人にあっては、名称及び代表者の氏名）"]
[null,null,null,null,null,null,null,null,null,null,null,null,"電話番号",null," (046)275-8681"]
[]
[]
[4,null,"　廃棄物の処理及び清掃に関する法律第12条第９項の規定に基づき、産業廃棄物の減量その他その処理に関する計画を作成したので、提出します。"]
[]
[null,null,"事業場の名称",null,null,"横浜市各工事現場",null,null,null,null,null,null,null,null,null,"自主管理事業登録番号"]
[null,null,null,null,null,null,null,null,null,null,null,null,null,null,null,"新規"]
[null,null,"事業場の所在地",null,null,"市内各所",null,null,null,null,null,null,null,"ＴＥＬ（連絡先）：",null,null,"048-949-7155"]
[]
[null,null,"計画期間",null,null,"令和 ６ 年 ４ 月 １ 日 ～ 令和 ７ 年 ３ 月 31 日（ １ 年間）"]
[null,null,"当該事業場に関する事項"]
[null,null,null,"①","事業の種類","Ｄ－建設業",null,null,null,null,null,"(具体的には）",null,"総合工事業"]
[null,null,null,"②","事業の規模","製造業",null,null,null,"製造品出荷額",null,null,null,null,null,null,null,null,"百万円"]
[null,null,null,null,null,"建設業",null,null,null,"エリア内元請完成工事高",null,null,null,590,null,null,null,null,"百万円"]
[null,null,null,"※　前年度実績を記入、医療機関は前年度末時点の病床数を記入。",null,"医療機関",null,null,null,"病床数",null,null,null,null,null,null,null,null,"床"]
[null,null,null,null,null,"その他の業種",null,null,null,"売上高",null,null,null,null,null,null,null,null,"百万円"]
[null,null,null,null,null,"（上記項目に該当しない場合にはこちらに記載をしてください。）"]
[]
[null,null,null,"③","従業員数",441]
[null,null,null,null,null,"汚泥　→　脱水　→　再資源化\n\nがれき類　→　破砕　→　再資源化\n\n混合廃棄物　→　破砕・選別　→　再資源化・埋立"]
[null,null,null,"④","産業廃棄物の一連の処理の工程"]
[]
[]
[]
[null,null,null,"※　産業廃棄物の種類ごとに記入"]
[]
[]
[]
[]
[]
[]
[null,null,"（第２面）"]
[null,null,"産業廃棄物の処理に係る管理体制に関する事項"]
[null,null,null,"（管理体制図）"]
[null,null,null,"本社　　代表取締役\n　　　　　↑↓\n本社　　安全品質管理室長\n　　　　　↑↓\n営業所　所長・管理課長\n　　　　　↑↓\n現場　　工務課長　"]
[]
[]
[]
[]
[]
[]
[]
[]
[]
[null,null,"産業廃棄物の排出の抑制に関する事項"]
[null,null,null,"①","現状","【前年度（令和 ５ 年度）実績】"]
[5,null,null,null,null,"産業廃棄物の種類数",null,null,null,null,{"$f":"+COUNTIF(別紙!G9:Z9,\">0\")","v":3},null,null,"種類",null,null,"*　種類ごとの前年度排出量は、別紙のとおり。"]
[6,null,null,null,null,"①　排出量",null,null,null,null,{"$f":"+別紙!AA9","v":1088.8999999999999},null,null,null,null,"ｔ"]
[]
[null,null,null,null,null,null,null,null,null,null,null,null,null,null,null,null,null,null,null,null,null,{"$f":"+IF($F$54=\"Ｄ－建設業\",IF($T$29=\"○\",\"←　（建設業の場合は行政区毎の排出量内訳も記入してください）\",\"\"),\"\")","v":""}]
[null,null,null,null,null,"（これまでに実施した取組）"]
[null,null,null,null,null,"・非開削工法の推進\n・堀削幅　本復旧範囲の縮小"]
[]
[]
[]
[]
[]
[]
[]
[]
[null,null,null,"②","計画","【（令和 ６ 年度）目標】"]
[7,null,null,null,null,"産業廃棄物の種類数",null,null,null,null,{"$f":"+COUNTIF(別紙!G19:Z19,\">0\")","v":3},null,null,"種類",null,null,"*　種類ごとの本年度排出目標量は、別紙のとおり。"]
[8,null,null,null,null,"①　排出量",null,null,null,null,{"$f":"+別紙!AA19","v":1009.8},null,null,null,null,"ｔ"]
[]
[9,null,null,null,null,null,null,null,null,null,null,null,null,null,null,null,null,null,null,null,null,{"$f":"+IF($F$54=\"Ｄ－建設業\",IF($T$29=\"○\",\"←　（建設業の場合は行政区毎の排出量内訳も記入してください）\",\"\"),\"\")","v":""}]
[null,null,null,null,null,"（今後実施する予定の取組）"]
[null,null,null,null,null,"上記の項目に加え、下記取り組みを実施予定\n・本復旧範囲の縮小\n　　　　　　（幅員5ｍ以上の現場において全面復旧範囲の見直し）"]
[]
[]
[]
[]
[]
[]
[]
[]
[null,null,"産業廃棄物の分別に関する事項"]
[null,null,null,"①","現状","（分別している産業廃棄物の種類及び分別に関する取組）"]
[null,null,null,null,null,"・再生利用しやすいようにアスファルト・コンクリート等と木くず等を分別"]
[]
[]
[]
[]
[null,null,null,"②","計画","（今後分別する予定の産業廃棄物の種類及び分別に関する取組）"]
[null,null,null,null,null,"現状維持"]
[]
[]
[]
[]
[null,null,"（第３面）"]
[null,null,"自ら行う産業廃棄物の再生利用に関する事項"]
[null,null,null,"①","現状","【前年度（令和 ５ 年度）実績】"]
[null,null,null,null,null,"②＋⑧　自ら再生利用を行った産業廃棄物の量",null,null,null,null,{"$f":"+別紙!AA10","v":"0"},null,null,null,null,"ｔ","*　種類ごとの前年度自ら再生利用量は、別紙のとおり。"]
[null,null,null,null,null,"（これまでに実施した取組）"]
[]
[]
[]
[]
[]
[]
[]
[]
[null,null,null,"②","計画","【（令和 ６ 年度）目標】"]
[null,null,null,null,null,"②＋⑧　自ら再生利用を行う産業廃棄物の量",null,null,null,null,{"$f":"+別紙!AA21+別紙!AA28","v":0},null,null,null,null,"ｔ","*　種類ごとの本年度自ら再生利用量は、別紙のとおり。"]
[null,null,null,null,null,"（今後実施する予定の取組）"]
[]
[]
[]
[]
[]
[]
[]
[]
[null,null,"自ら行う産業廃棄物の中間処理に関する事項"]
[null,null,null,"①","現状","【前年度（令和 ５ 年度）実績】"]
[null,null,null,null,null,"⑤　自ら熱回収を行った産業廃棄物の量",null,null,null,null,{"$f":"+別紙!AA11","v":"0"},null,null,null,null,"ｔ","*　種類ごとの前年度自ら熱回収を行った量は、別紙のとおり。"]
[null,null,null,null,null,"⑦　自ら中間処理により減量した産業廃棄物の量",null,null,null,null,{"$f":"+別紙!AA12","v":"0"},null,null,null,null,"ｔ","*　種類ごとの前年度自ら中間処理により減量した量は、別紙のとおり。"]
[null,null,null,null,null,"（これまでに実施した取組）"]
[]
[]
[]
[]
[]
[]
[]
[]
[null,null,null,"②","計画","【（令和 ６ 年度）目標】"]
[null,null,null,null,null,"⑤　自ら熱回収を行う産業廃棄物の量",null,null,null,null,{"$f":"+別紙!AA24","v":0},null,null,null,null,"ｔ","*　種類ごとの本年度自ら熱回収を行う量は、別紙のとおり。"]
[null,null,null,null,null,"⑦　自ら中間処理により減量する産業廃棄物の量",null,null,null,null,{"$f":"+別紙!AA27","v":0},null,null,null,null,"ｔ","*　種類ごとの本年度自ら中間処理により減量する量は、別紙のとおり。"]
[null,null,null,null,null,"（今後実施する予定の取組）"]
[]
[]
[]
[]
[]
[]
[]
[]
[null,null,"（第４面）"]
[null,null,"自ら行う産業廃棄物の埋立処分又は海洋投入処分に関する事項"]
[null,null,null,"①","現状","【前年度（令和 ５ 年度）実績】"]
[null,null,null,null,null,"③＋⑨　自ら埋立処分又は海洋投入処分を行った産業廃棄物の量",null,null,null,null,{"$f":"+別紙!AA13","v":"0"},null,null,null,null,"ｔ","*　種類ごとの前年度自ら埋立処分又は海洋投入処分を行った量は、別紙のとおり。"]
[null,null,null,null,null,"（これまでに実施した取組）"]
[]
[]
[]
[]
[]
[]
[]
[]
[]
[null,null,null,"②","計画","【（令和 ６ 年度）目標】"]
[null,null,null,null,null,"③＋⑨　自ら埋立処分又は海洋投入処分を行う産業廃棄物の量",null,null,null,null,{"$f":"+別紙!AA22+別紙!AA29","v":0},null,null,null,null,"ｔ","*　種類ごとの本年度自ら埋立処分又は海洋投入処分を行う量は、別紙のとおり。"]
[null,null,null,null,null,"（今後実施する予定の取組）"]
[]
[]
[]
[]
[]
[]
[]
[]
[]
[null,null,"産業廃棄物の処理の委託に関する事項"]
[null,null,null,"①","現状","【前年度（令和 ５ 年度）実績】"]
[null,null,null,null,null,"⑩　全処理委託量",null,null,null,null,{"$f":"+別紙!AA14","v":1088.8999999999999},null,null,null,null,"ｔ","*　種類ごとの前年度処理委託量は、別紙のとおり。"]
[null,null,null,null,null,null,"⑪　優良認定処理業者への処理委託量",null,null,null,{"$f":"+別紙!AA15","v":"0"},null,null,null,null,"ｔ"]
[null,null,null,null,null,null,"⑫　再生利用業者への処理委託量",null,null,null,{"$f":"+別紙!AA16","v":9.8000000000000007},null,null,null,null,"ｔ"]
[null,null,null,null,null,null,"⑬　認定熱回収業者への処理委託量",null,null,null,{"$f":"+別紙!AA17","v":"0"},null,null,null,null,"ｔ"]
[null,null,null,null,null,null,"⑭　認定熱回収業者以外の熱回収を行う業者への処理委託量",null,null,null,{"$f":"+別紙!AA18","v":"0"},null,null,null,null,"ｔ"]
[null,null,null,null,null,"（これまでに実施した取組）"]
[]
[]
[]
[]
[]
[]
[]
[]
[]
[null,null,"（第５面）"]
[null,null,null,"②","計画","【（令和 ６ 年度）目標】"]
[null,null,null,null,null,"⑩　全処理委託量",null,null,null,null,{"$f":"+別紙!AA43","v":1009.8},null,null,null,null,"ｔ","*　種類ごとの本年度処理委託量は、別紙のとおり。"]
[null,null,null,null,null,null,"⑪　優良認定処理業者への処理委託量",null,null,null,{"$f":"+別紙!AA44","v":0},null,null,null,null,"ｔ"]
[null,null,null,null,null,null,"⑫　再生利用業者への処理委託量",null,null,null,{"$f":"+別紙!AA45","v":1009.8},null,null,null,null,"ｔ"]
[null,null,null,null,null,null,"⑬　認定熱回収業者への処理委託量",null,null,null,{"$f":"+別紙!AA46","v":0},null,null,null,null,"ｔ"]
[null,null,null,null,null,null,"⑭　認定熱回収業者以外の熱回収を行う業者への処理委託量",null,null,null,{"$f":"+別紙!AA47","v":0},null,null,null,null,"ｔ"]
[null,null,null,null,null,"（今後実施する予定の取組）"]
[]
[]
[]
[]
[]
[]
[]
[]
[]
[null,null,"※　事務処理欄"]
[]
[null,null,"（第６面）"]
[null,null,"備考"]
[11]
[null,null,1,"　この様式は、前年度（令和５年度）の産業廃棄物の発生量が1,000トン以上の事業場ごとに１枚作成し、提出してください。"]
[null,null,null,"　また、前年度（令和５年度）の産業廃棄物の発生量が1,000トン未満の事業場にあっては、神奈川県・横浜市・川崎市・相模原市・横須賀市が推進する廃棄物自主管理事業へ参加するにあたり、事業場ごとに１枚作成し、提出してください。"]
[null,null,2,"　当該年度（令和６年度）の６月30日までに提出してください。"]
[null,null,3,"　「当該事業場において現に行っている事業に関する事項」の欄は、以下に従って記入してください。"]
[null,null,null,"(1)","　①欄には、日本標準産業分類（中分類）の区分を記入してください。"]
[null,null,null,"(2)","　②欄には、製造業の場合における製造品出荷額（前年度実績）、建設業の場合における元請完成工事高（前年度実績）、医療機関の場合における病床数（前年度末時点）等の業種に応じ事業規模が分かるような前年度の実績を記入してください。",null,null,null,null,null,null,null,null,null,null,null,null,null,null,null,null,null,"神奈川県知事"]
[null,null,null,"(3)","　④欄には、当該事業場において生ずる産業廃棄物についての発生から最終処分が終了するまでの一連の処理の工程（当該処理を委託する場合は、委託の内容を含む。）を記入してください。",null,null,null,null,null,null,null,null,null,null,null,null,null,null,null,null,null,"横浜市長"]
[null,null,4,"　「自ら行う産業廃棄物の中間処理に関する事項」の欄には、産業廃棄物の種類ごとに、自ら中間処理を行うに際して熱回収を行った場合における熱回収を行った産業廃棄物の量と、自ら中間処理を行うことによって減量した量について、前年度の実績、目標及び取組を記入してください。",null,null,null,null,null,null,null,null,null,null,null,null,null,null,null,null,null,null,"川崎市長"]
[null,null,5,"　「産業廃棄物の処理の委託に関する事項」の欄には、産業廃棄物の種類ごとに、全処理委託量を記入するほか、その内数として、優良認定処理業者（廃棄物の処理及び清掃に関する法律施行令第６条の11第２号に該当する者）への処理委託量、処理業者への再生利用委託量、認定熱回収施設設置者（廃棄物の処理及び清掃に関する法律第15条の３の３第１項の認定を受けた者）である処理業者への焼却処理委託量及び認定熱回収施設設置者以外の熱回収を行っている処理業者への焼却処理委託量について、前年度実績、目標及び取組を記入してください。",null,null,null,null,null,null,null,null,null,null,null,null,null,null,null,null,null,null,"相模原市長"]
[null,null,6,"　それぞれの欄に記入すべき事項の全てを記入することができないときは、当該欄に「別紙のとおり」と記入し、当該欄に記入すべき内容を記入した別紙を添付してください。また、それぞれの欄に記入すべき事項がないときは、「―」を記入してください。",null,null,null,null,null,null,null,null,null,null,null,null,null,null,null,null,null,null,"横須賀市長"]
[null,null,7,"　第５面の※欄には、何も記入しないでください。"]
[]
[]
[]
[]
[]
[]
[]
[]
[]
[null,null,null,null,null,null,null,null,null,null,null,null,null,null,null,null,null,null,null,null,null,null,"フロー様式","産業廃棄物処理計画書"]
[null,null,null,null,null,null,null,null,null,null,null,null,null,null,null,null,null,null,null,null,null,null,"フローアラビア数字","2-1"]
[]
[null,null,null,null,null,null,null,null,null,null,null,null,null,null,null,null,null,null,null,null,null,null,"Ａ－農業、林業"]
[null,null,null,null,null,null,null,null,null,null,null,null,null,null,null,null,null,null,null,null,null,null,"Ｂ－漁業"]
[null,null,null,null,null,null,null,null,null,null,null,null,null,null,null,null,null,null,null,null,null,null,"Ｃ－鉱業、採石業、砂利採取業"]
[null,null,null,null,null,null,null,null,null,null,null,null,null,null,null,null,null,null,null,null,null,null,"Ｄ－建設業"]
[null,null,null,null,null,null,null,null,null,null,null,null,null,null,null,null,null,null,null,null,null,null,"Ｅ09－食料品製造業"]
[null,null,null,null,null,null,null,null,null,null,null,null,null,null,null,null,null,null,null,null,null,null,"Ｅ10－飲料・たばこ・飼料製造業"]
[null,null,null,null,null,null,null,null,null,null,null,null,null,null,null,null,null,null,null,null,null,null,"Ｅ11－繊維工業"]
[null,null,null,null,null,null,null,null,null,null,null,null,null,null,null,null,null,null,null,null,null,null,"Ｅ12－木材・木製品製造業（家具を除く）"]
[null,null,null,null,null,null,null,null,null,null,null,null,null,null,null,null,null,null,null,null,null,null,"Ｅ13－家具・装備品製造業"]
[null,null,null,null,null,null,null,null,null,null,null,null,null,null,null,null,null,null,null,null,null,null,"Ｅ14－パルプ・紙・紙加工品製造業"]
[null,null,null,null,null,null,null,null,null,null,null,null,null,null,null,null,null,null,null,null,null,null,"Ｅ15－印刷・同関連業"]
[null,null,null,null,null,null,null,null,null,null,null,null,null,null,null,null,null,null,null,null,null,null,"Ｅ16－化学工業"]
[null,null,null,null,null,null,null,null,null,null,null,null,null,null,null,null,null,null,null,null,null,null,"Ｅ17－石油製品・石炭製品製造業"]
[null,null,null,null,null,null,null,null,null,null,null,null,null,null,null,null,null,null,null,null,null,null,"Ｅ18－プラスチック製品製造業"]
[null,null,null,null,null,null,null,null,null,null,null,null,null,null,null,null,null,null,null,null,null,null,"Ｅ19－ゴム製品製造業"]
[null,null,null,null,null,null,null,null,null,null,null,null,null,null,null,null,null,null,null,null,null,null,"Ｅ20－なめし革・同製品・毛皮製造業"]
[null,null,null,null,null,null,null,null,null,null,null,null,null,null,null,null,null,null,null,null,null,null,"Ｅ21－窯業・土石製品製造業"]
[null,null,null,null,null,null,null,null,null,null,null,null,null,null,null,null,null,null,null,null,null,null,"Ｅ22－鉄鋼業"]
[null,null,null,null,null,null,null,null,null,null,null,null,null,null,null,null,null,null,null,null,null,null,"Ｅ23－非鉄金属製造業"]
[null,null,null,null,null,null,null,null,null,null,null,null,null,null,null,null,null,null,null,null,null,null,"Ｅ24－金属製品製造業"]
[null,null,null,null,null,null,null,null,null,null,null,null,null,null,null,null,null,null,null,null,null,null,"Ｅ25－はん用機械器具製造業"]
[null,null,null,null,null,null,null,null,null,null,null,null,null,null,null,null,null,null,null,null,null,null,"Ｅ26－生産用機械器具製造業"]
[null,null,null,null,null,null,null,null,null,null,null,null,null,null,null,null,null,null,null,null,null,null,"Ｅ27－業務用機械器具製造業"]
[null,null,null,null,null,null,null,null,null,null,null,null,null,null,null,null,null,null,null,null,null,null,"Ｅ28－電子部品・デバイス・電子回路製造業"]
[null,null,null,null,null,null,null,null,null,null,null,null,null,null,null,null,null,null,null,null,null,null,"Ｅ29－電気機械器具製造業"]
[null,null,null,null,null,null,null,null,null,null,null,null,null,null,null,null,null,null,null,null,null,null,"Ｅ30－情報通信機械器具製造業"]
[null,null,null,null,null,null,null,null,null,null,null,null,null,null,null,null,null,null,null,null,null,null,"Ｅ31－輸送用機械器具製造業"]
[null,null,null,null,null,null,null,null,null,null,null,null,null,null,null,null,null,null,null,null,null,null,"Ｅ32－その他の製造業"]
[null,null,null,null,null,null,null,null,null,null,null,null,null,null,null,null,null,null,null,null,null,null,"Ｆ－電気・ガス・熱供給・水道業"]
[null,null,null,null,null,null,null,null,null,null,null,null,null,null,null,null,null,null,null,null,null,null,"Ｇ－情報通信業"]
[null,null,null,null,null,null,null,null,null,null,null,null,null,null,null,null,null,null,null,null,null,null,"Ｈ－運輸業、郵便業"]
[null,null,null,null,null,null,null,null,null,null,null,null,null,null,null,null,null,null,null,null,null,null,"Ｉ－卸売業・小売業"]
[null,null,null,null,null,null,null,null,null,null,null,null,null,null,null,null,null,null,null,null,null,null,"Ｊ－金融業、保険業"]
[null,null,null,null,null,null,null,null,null,null,null,null,null,null,null,null,null,null,null,null,null,null,"Ｋ－不動産業、物品賃貸業"]
[null,null,null,null,null,null,null,null,null,null,null,null,null,null,null,null,null,null,null,null,null,null,"Ｌ－学術研究、専門・技術サービス業"]
[null,null,null,null,null,null,null,null,null,null,null,null,null,null,null,null,null,null,null,null,null,null,"Ｍ－宿泊業、飲食サービス業"]
[null,null,null,null,null,null,null,null,null,null,null,null,null,null,null,null,null,null,null,null,null,null,"Ｎ－生活関連サービス業、娯楽業"]
[null,null,null,null,null,null,null,null,null,null,null,null,null,null,null,null,null,null,null,null,null,null,"O－教育、学習支援業"]
[null,null,null,null,null,null,null,null,null,null,null,null,null,null,null,null,null,null,null,null,null,null,"Ｐ－医療、福祉"]
[null,null,null,null,null,null,null,null,null,null,null,null,null,null,null,null,null,null,null,null,null,null,"Ｑ－複合サービス業"]
[null,null,null,null,null,null,null,null,null,null,null,null,null,null,null,null,null,null,null,null,null,null,"Ｒ－サービス業（他に分類されないもの）"]
[null,null,null,null,null,null,null,null,null,null,null,null,null,null,null,null,null,null,null,null,null,null,"Ｓ－公務（他に分類されるものを除く）"]
[null,null,null,null,null,null,null,null,null,null,null,null,null,null,null,null,null,null,null,null,null,null,"Ｔ－分類不能の産業"]
[null,null,null,null,null,null,null,null,null,null,null,null,null,null,null,null,null,null,null,null,null,null,"様式選択"]
[null,null,null,null,null,null,null,null,null,null,null,null,null,null,null,null,null,null,null,null,null,null,"○"]
[null,null,null,null,null,null,null,null,null,null,null,null,null,null,null,null,null,null,null,null,null,null,"　"]

{"sheet":"ｱ.燃え殻","index":1,"n_rows":37,"n_cols":47,"rows_kept":37,"cut":false,"hidden":false,"merged":[[2,43,2,44],[3,43,3,44],[11,32,11,37],[4,30,4,46],[7,33,7,38],[14,5,14,6],[13,15,13,18],[15,14,15,26],[16,15,16,18],[2,26,2,28],[14,14,14,17],[4,24,4,28],[11,14,11,17],[2,40,3,42],[11,5,11,6],[7,2,7,9],[13,6,13,7],[13,33,13,38],[10,33,10,38],[8,32,8,37],[8,29,13,29],[16,39,16,40],[1,1,2,6],[6,17,6,20],[31,30,33,35],[29,25,29,29],[31,17,31,20],[31,25,33,29],[29,23,29,24],[25,15,25,18],[29,16,29,19],[28,17,28,20],[27,25,27,29],[28,23,28,24],[28,25,28,29],[27,23,27,24],[10,6,10,7],[10,15,10,18],[8,5,8,7],[16,19,16,22],[25,11,32,11],[31,5,31,6],[32,5,32,6],[6,1,6,2],[6,3,6,7],[10,11,23,11],[22,15,22,18],[22,19,22,22],[23,1,23,4],[32,1,32,4],[30,5,30,6],[26,14,26,17],[17,14,17,17],[20,14,20,17],[19,15,19,18],[29,5,29,6],[32,16,32,19],[27,1,27,4],[27,5,27,6],[31,1,31,4],[28,5,28,6],[30,1,30,4],[28,1,28,4],[29,1,29,4],[25,5,25,6],[26,5,26,6],[24,1,24,4],[26,1,26,4],[22,5,22,7],[25,1,25,4],[15,43,15,44],[16,43,16,44],[14,32,14,37],[21,14,21,20],[23,5,23,6],[24,5,24,6],[23,14,23,17],[22,1,22,4],[16,33,16,36],[16,29,20,29],[19,24,19,26],[20,23,20,25],[16,24,16,26],[17,32,17,35],[17,23,17,25],[19,1,21,7],[22,44,22,46],[19,39,19,40],[31,36,33,39],[28,37,28,40],[29,36,29,39],[25,44,25,46],[26,43,26,45],[25,37,25,40],[17,43,17,44],[30,36,30,41],[30,43,30,45],[28,44,29,46],[28,43,29,43],[23,43,23,45],[26,36,26,39]]}
[null,null,null,null,null,null,null,null,null,null,null,null,null,null,null,null,null,"↓","注意：前年度の排出量のみでフロー図のデータ①がない場合にも、前年度データを該当欄に入力してください"]
[null,"産業廃棄物処理計画書"]
[null,null,null,null,null,null,null,null,null,null,null,null,null,null,null,null,null,null,null,null,null,null,null,null,null,null,null,null,null,null,null,null,null,null,null,null,null,null,null,null,"２－２",null,null,"法定",null,"自主"]
[null,null,null,null,null,null,null,null,null,null,null,null,null,null,null,null,null,null,null,null,null,null,null,null,null,null,null,null,null,null,null,null,null,null,null,null,null,null,null,null,null,null,null,{"$f":"+表紙!Q29","v":"〇"},null,{"$f":"+表紙!T29","v":""}]
[null,"別紙処理フロー",null,null,null,null,null,null,null,null,null,null,null,null,null,null,null,null,null,null,null,null,null,null,"事業場名称",null,null,null,null,"：",{"$f":"+表紙!F48","v":"横浜市各工事現場"}]
[null,"令和６年度発生する産業廃棄物ごとの目標量と処理計画"]
[null,"フローに記載した産業廃棄物の種類",null,"ア.　燃え殻"]
[null,"※","本用紙は廃棄物の種類ごとに1枚の記載となります。異なる廃棄物の処理フローは別シートに記載してください。　　　　　　　　　　　　　　　　　　　　　　　　　　　　　　　　　　　　　　　　　　　　　　　　　　　　　　　　　　　　　　　　　　　　　",null,null,null,null,null,null,null,null,null,null,null,null,null,null,null,null,null,null,null,null,null,null,null,null,null,null,null,null,null,"⑧","自ら中間処理後に再生利用する量"]
[null,"（単位：t/年）",null,null,null,"有償物量",null,null,null,null,null,null,null,null,null,null,null,null,null,null,null,null,null,null,null,null,null,null,null,"ａ残さ物の自己処理",null,null,null,null,null,null,null,null,"ｔ"]
[]
[null,null,"不要物等発生量",null,null,"①","当該事業場における排出量",null,null,null,null,"Ａ　自己処理",null,null,"②","自ら直接再生利用する量",null,null,null,null,null,null,null,null,null,null,null,null,null,null,null,null,"⑨","自ら中間処理後に自ら埋立処分又は海洋投入処分する量"]
[null,null,null,null,null,{"$f":"+ROUND(O12,1)+ROUND(O15,1)+ROUND(O18,1)+ROUND(O24,1)+O27-ROUND(F15,1)","v":0},null,"ｔ",null,null,null,null,null,null,null,null,null,null,"ｔ",null,null,null,null,null,null,null,null,null,null,null,null,null,null,null,null,null,null,null,"ｔ"]
[]
[null,null,null,null,null,"※１","自社の他事業場からの搬入量",null,null,null,null,null,null,null,"③","自ら直接埋立処分又は海洋投入処分する量",null,null,null,null,null,null,null,null,null,null,null,null,null,null,null,null,"※3","自ら中間処理後に自社の他事業場での処理量"]
[null,null,null,null,null,null,null,"ｔ",null,null,null,null,null,null,null,null,null,null,"ｔ",null,null,null,null,null,null,null,null,null,null,null,null,null,null,null,null,null,null,null,"ｔ",null,null,null,null,"（目的別内訳）"]
[null,null,null,null,null,null,null,null,null,null,null,null,null,null,{"$f":"+IF(X18=0,\"\",IF(X18-O18=X18,\"エラー！：⑥残さ物量があるのに、④自ら中間処理した量がゼロになっています\",\"\"))","v":""},null,null,null,null,null,null,null,null,null,null,null,null,null,null,null,null,null,null,null,null,null,null,null,null,null,null,null,null,"再生利用前\n委託量",null,null,"ｔ"]
[null,null,null,null,null,null,null,null,null,null,null,null,null,null,"④","自ら中間処理する量",null,null,null,null,null,null,null,"⑥","自ら中間処理後の残さ量",null,null,null,null,"ｂ残さ物の委託処理",null,null,"ｂ","自ら中間処理後の処理委託量",null,null,null,null,null,"ｂ-1　中間処理委託量",null,null,null,"最終処分前\n委託量",null,null,"ｔ"]
[null,null,null,null,null,null,null,null,null,null,null,null,null,null,null,null,null,null,"ｔ",null,null,null,null,{"$f":"+ROUND(AG9,1)+ROUND(AG12,1)+ROUND(AG15,1)+AG18","v":0},null,null,"ｔ",null,null,null,null,null,{"$f":"+ROUND(AN18,1)+ROUND(AN21,1)","v":0},null,null,null,"ｔ",null,null,{"$f":"+ROUND(AT16,1)+ROUND(AT17,1)+ROUND(AT18,1)","v":0},"ｔ",null,null,"下水等放流前委託量",null,null,"ｔ"]
[]
[null,"注）右上のフローには、令和６年度の目標量を記載してください。下の表には、令和５年度実績を記載してください。　なお、様式３をあわせて提出する場合には、先に様式３を入力し、データ反映・印刷ツールを使用するとこちらに数値が反映されます。",null,null,null,null,null,null,null,null,null,null,null,null,"⑤","④のうち熱回収を行う量",null,null,null,null,null,null,null,"⑦","自ら中間処理により減量する量",null,null,null,null,null,null,null,null,null,null,null,null,null,null,"ｂ-2　最終処分委託量"]
[null,null,null,null,null,null,null,null,null,null,null,null,null,null,null,null,null,null,"ｔ",null,null,null,null,{"$f":"+O18-X18","v":0},null,null,"ｔ",null,null,null,null,null,null,null,null,null,null,null,null,null,"ｔ"]
[null,null,null,null,null,null,null,null,null,null,null,null,null,null,{"$f":"+IF(O21=0,\"\",IF(O18<O21,\"エラー !：④の内数である⑤の量が④を超えています\",\"\"))","v":""}]
[null,"項　目",null,null,null,"令和５年度実績",null,null,null,null,null,null,null,null,"※２","自社の他事業場での処理量",null,null,null,null,null,null,null,null,null,null,null,null,null,null,null,null,null,null,null,null,null,null,null,null,null,null,null,"⑫","⑩のうち再生利用業者への処理委託量"]
[null,"①　排出量",null,null,null,0,null,"t",null,null,null,null,null,null,null,null,null,null,"ｔ",null,null,null,null,null,null,null,null,null,null,null,null,null,null,null,null,null,null,null,null,null,null,null,null,{"$f":"+ROUND(AT16,1)+ROUND(Z28,1)","v":0},null,null,"ｔ"]
[null,"②＋⑧　自ら再生利用を行った量",null,null,null,0,null,"t"]
[null,"⑤　自ら熱回収を行った量",null,null,null,0,null,"t",null,null,null,"Ｂ　直接委託処理",null,null,"Ｂ","直接処理委託量",null,null,null,null,null,null,null,null,null,null,null,null,null,null,null,null,null,null,null,null,"⑩","直接及び自ら中間処理後の処理委託量",null,null,null,null,null,"⑬","⑩のうち認定熱回収業者への処理委託量"]
[null,"⑦　自ら中間処理により減量した量",null,null,null,0,null,"t",null,null,null,null,null,null,{"$f":"+Q30+ROUND(Q33,1)","v":0},null,null,null,"ｔ",null,null,null,null,"（目的別内訳）",null,null,null,null,null,null,null,null,null,null,null,null,{"$f":"+AG18+O27","v":0},null,null,null,"ｔ",null,null,null,null,null,"ｔ"]
[null,"③＋⑨　自ら埋立処分又は海洋投入処分を行った量",null,null,null,0,null,"t",null,null,null,null,null,null,null,null,null,null,null,null,null,null,null,"再生利用前委託量",null,null,null,null,null,null,"ｔ",null,null,null,null,null,null,null,null,null,null,null,null,{"$f":"+IF(AR27=0,\"\",IF(AK27<(AR24+AR27+AR31),\"エラー !：⑩の内数である（⑫+⑬＋⑭）の量が⑩を超えています\",\"\"))","v":""}]
[null,"⑩　全処理委託量",null,null,null,0,null,"t",null,null,null,null,null,null,null,null,"B-1","中間処理委託量",null,null,null,null,null,"最終処分前委託量",null,null,null,null,null,null,"ｔ",null,null,null,null,null,"⑪","⑩のうち優良認定処理業者への処理委託量",null,null,null,null,null,"⑭","⑩のうち認定熱回収業者以外の熱回収を行う業者への処理委託量"]
[null,"⑪　優良認定処理業者への処理委託量",null,null,null,0,null,"t",null,null,null,null,null,null,null,null,{"$f":"+ROUND(Z28,1)+ROUND(Z29,1)+ROUND(Z30,1)","v":0},null,null,null,"ｔ",null,null,"下水等放流前委託量",null,null,null,null,null,null,"ｔ",null,null,null,null,null,null,null,null,null,"ｔ"]
[null,"⑫　再生利用業者への処理委託量",null,null,null,0,null,"t",null,null,null,null,null,null,null,null,null,null,null,null,null,null,null,null,null,"【産業廃棄物の種類　（ア～ト）】",null,null,null,null,null,null,null,null,null,null,{"$f":"+IF(AK30=0,\"\",IF(AK27<AK30,\"エラー !：⑩の内数である⑪の量が⑩を超えています\",\"\"))","v":""},null,null,null,null,null,null,null,null,null,"ｔ"]
[null,"⑬　認定熱回収業者への処理委託量",null,null,null,0,null,"t",null,null,null,null,null,null,null,null,"B-2","最終処分委託量",null,null,null,null,null,null,null,"ｱ.　燃え殻\nｲ.　汚泥\nｳ.　廃油\nｴ.　廃酸\nｵ.　廃アルカリ\nｶ.　廃ﾌﾟﾗｽﾁｯｸ類\nｷ.　紙くず",null,null,null,null,"ｸ.　木くず\nｹ.　繊維くず\nｺ.　動植物性残さ\nｻ.　動物系固形不要物\nｼ.　ゴムくず\nｽ.　金属くず\nｾ.　ｶﾞﾗｽ・ｺﾝｸﾘｰﾄ・陶磁器くず",null,null,null,null,null,"ｿ.　鉱さい\nﾀ.　がれき類\nﾁ.　動物のふん尿\nﾂ.　動物の死体\nﾃ.　ばいじん\nト.　混合廃棄物その他",null,null,null,null,null,null,{"$f":"+IF(AR31=0,\"\",IF(AK27<(AR24+AR27+AR31),\"エラー !：⑩の内数である（⑫+⑬＋⑭）の量が⑩を超えています\",\"\"))","v":""}]
[null,"⑭　認定熱回収業者以外の熱回収を行う業者への処理委託量",null,null,null,0,null,"t",null,null,null,null,null,null,null,null,null,null,null,null,"ｔ"]
[null,null,{"$f":"+IF(F30=0,\"\",IF(F29<F30,\"エラー !：上の表は、⑩の内数である⑪の量が⑩を超えています\",\"\"))","v":""}]
[null,null,{"$f":"+IF(F31=0,\"\",IF(F29<F31,\"エラー !：上の表は、⑩の内数である⑫の量が⑩を超えています\",\"\"))","v":""}]
[null,null,{"$f":"+IF(F32=0,\"\",IF(F29<F32,\"エラー !：上の表は、⑩の内数である⑬の量が⑩を超えています\",\"\"))","v":""}]
[null,null,{"$f":"+IF(F33=0,\"\",IF(F29<F33,\"エラー !：上の表は、⑩の内数である⑭の量が⑩を超えています\",\"\"))","v":""}]

{"sheet":"ｲ.汚泥","index":2,"n_rows":37,"n_cols":47,"rows_kept":37,"cut":false,"hidden":false,"merged":[[32,16,32,19],[28,23,28,24],[2,26,2,28],[4,30,4,46],[2,40,3,42],[2,43,2,44],[3,43,3,44],[4,24,4,28],[16,33,16,36],[17,23,17,25],[31,17,31,20],[19,15,19,18],[7,33,7,38],[23,43,23,45],[31,36,33,39],[25,15,25,18],[30,36,30,41],[31,30,33,35],[28,17,28,20],[31,25,33,29],[8,29,13,29],[26,14,26,17],[26,36,26,39],[16,24,16,26],[31,1,31,4],[32,1,32,4],[25,11,32,11],[26,1,26,4],[27,1,27,4],[28,1,28,4],[31,5,31,6],[32,5,32,6],[30,1,30,4],[30,5,30,6],[29,5,29,6],[27,5,27,6],[28,5,28,6],[29,16,29,19],[29,1,29,4],[23,5,23,6],[24,5,24,6],[24,1,24,4],[26,5,26,6],[16,39,16,40],[23,14,23,17],[30,43,30,45],[25,1,25,4],[19,1,21,7],[16,43,16,44],[22,44,22,46],[25,37,25,40],[19,39,19,40],[15,43,15,44],[14,32,14,37],[28,37,28,40],[29,36,29,39],[26,43,26,45],[17,43,17,44],[27,23,27,24],[20,23,20,25],[15,14,15,26],[16,19,16,22],[19,24,19,26],[22,19,22,22],[16,29,20,29],[29,25,29,29],[17,32,17,35],[28,44,29,46],[28,43,29,43],[14,14,14,17],[20,14,20,17],[27,25,27,29],[28,25,28,29],[21,14,21,20],[29,23,29,24],[25,44,25,46],[1,1,2,6],[6,1,6,2],[22,1,22,4],[7,2,7,9],[23,1,23,4],[11,5,11,6],[6,3,6,7],[6,17,6,20],[8,5,8,7],[22,15,22,18],[16,15,16,18],[10,15,10,18],[11,14,11,17],[17,14,17,17],[10,11,23,11],[13,33,13,38],[8,32,8,37],[10,6,10,7],[13,6,13,7],[25,5,25,6],[22,5,22,7],[14,5,14,6],[11,32,11,37],[10,33,10,38],[13,15,13,18]]}
[null,null,null,null,null,null,null,null,null,null,null,null,null,null,null,null,null,"↓","注意：前年度の排出量のみでフロー図のデータ①がない場合にも、前年度データを該当欄に入力してください"]
[null,"産業廃棄物処理計画書"]
[null,null,null,null,null,null,null,null,null,null,null,null,null,null,null,null,null,null,null,null,null,null,null,null,null,null,null,null,null,null,null,null,null,null,null,null,null,null,null,null,"２－２",null,null,"法定",null,"自主"]
[null,null,null,null,null,null,null,null,null,null,null,null,null,null,null,null,null,null,null,null,null,null,null,null,null,null,null,null,null,null,null,null,null,null,null,null,null,null,null,null,null,null,null,{"$f":"+表紙!Q29","v":"〇"},null,{"$f":"+表紙!T29","v":""}]
[null,"別紙処理フロー",null,null,null,null,null,null,null,null,null,null,null,null,null,null,null,null,null,null,null,null,null,null,"事業場名称",null,null,null,null,"：",{"$f":"+表紙!F48","v":"横浜市各工事現場"}]
[null,"令和６年度発生する産業廃棄物ごとの目標量と処理計画"]
[null,"フローに記載した産業廃棄物の種類",null,"イ.　汚泥"]
[null,"※","本用紙は廃棄物の種類ごとに1枚の記載となります。異なる廃棄物の処理フローは別シートに記載してください。　　　　　　　　　　　　　　　　　　　　　　　　　　　　　　　　　　　　　　　　　　　　　　　　　　　　　　　　　　　　　　　　　　　　　",null,null,null,null,null,null,null,null,null,null,null,null,null,null,null,null,null,null,null,null,null,null,null,null,null,null,null,null,null,"⑧","自ら中間処理後に再生利用する量"]
[null,"（単位：t/年）",null,null,null,"有償物量",null,null,null,null,null,null,null,null,null,null,null,null,null,null,null,null,null,null,null,null,null,null,null,"ａ残さ物の自己処理",null,null,null,null,null,null,null,null,"ｔ"]
[]
[null,null,"不要物等発生量",null,null,"①","当該事業場における排出量",null,null,null,null,"Ａ　自己処理",null,null,"②","自ら直接再生利用する量",null,null,null,null,null,null,null,null,null,null,null,null,null,null,null,null,"⑨","自ら中間処理後に自ら埋立処分又は海洋投入処分する量"]
[null,null,null,null,null,{"$f":"+ROUND(O12,1)+ROUND(O15,1)+ROUND(O18,1)+ROUND(O24,1)+O27-ROUND(F15,1)","v":0.8},null,"ｔ",null,null,null,null,null,null,null,null,null,null,"ｔ",null,null,null,null,null,null,null,null,null,null,null,null,null,null,null,null,null,null,null,"ｔ"]
[]
[null,null,null,null,null,"※１","自社の他事業場からの搬入量",null,null,null,null,null,null,null,"③","自ら直接埋立処分又は海洋投入処分する量",null,null,null,null,null,null,null,null,null,null,null,null,null,null,null,null,"※3","自ら中間処理後に自社の他事業場での処理量"]
[null,null,null,null,null,null,null,"ｔ",null,null,null,null,null,null,null,null,null,null,"ｔ",null,null,null,null,null,null,null,null,null,null,null,null,null,null,null,null,null,null,null,"ｔ",null,null,null,null,"（目的別内訳）"]
[null,null,null,null,null,null,null,null,null,null,null,null,null,null,{"$f":"+IF(X18=0,\"\",IF(X18-O18=X18,\"エラー！：⑥残さ物量があるのに、④自ら中間処理した量がゼロになっています\",\"\"))","v":""},null,null,null,null,null,null,null,null,null,null,null,null,null,null,null,null,null,null,null,null,null,null,null,null,null,null,null,null,"再生利用前委託量",null,null,"ｔ"]
[null,null,null,null,null,null,null,null,null,null,null,null,null,null,"④","自ら中間処理する量",null,null,null,null,null,null,null,"⑥","自ら中間処理後の残さ量",null,null,null,null,"ｂ残さ物の委託処理",null,null,"ｂ","自ら中間処理後の処理委託量",null,null,null,null,null,"ｂ-1　中間処理委託量",null,null,null,"最終処分前\n委託量",null,null,"ｔ"]
[null,null,null,null,null,null,null,null,null,null,null,null,null,null,null,null,null,null,"ｔ",null,null,null,null,{"$f":"+ROUND(AG9,1)+ROUND(AG12,1)+ROUND(AG15,1)+AG18","v":0},null,null,"ｔ",null,null,null,null,null,{"$f":"+ROUND(AN18,1)+ROUND(AN21,1)","v":0},null,null,null,"ｔ",null,null,{"$f":"+ROUND(AT16,1)+ROUND(AT17,1)+ROUND(AT18,1)","v":0},"ｔ",null,null,"下水等放流前委託量",null,null,"ｔ"]
[]
[null,"注）右上のフローには、令和６年度の目標量を記載してください。下の表には、令和５年度実績を記載してください。　なお、様式３をあわせて提出する場合には、先に様式３を入力し、データ反映・印刷ツールを使用するとこちらに数値が反映されます。",null,null,null,null,null,null,null,null,null,null,null,null,"⑤","④のうち熱回収を行う量",null,null,null,null,null,null,null,"⑦","自ら中間処理により減量する量",null,null,null,null,null,null,null,null,null,null,null,null,null,null,"ｂ-2　最終処分委託量"]
[null,null,null,null,null,null,null,null,null,null,null,null,null,null,null,null,null,null,"ｔ",null,null,null,null,{"$f":"+O18-X18","v":0},null,null,"ｔ",null,null,null,null,null,null,null,null,null,null,null,null,null,"ｔ"]
[null,null,null,null,null,null,null,null,null,null,null,null,null,null,{"$f":"+IF(O21=0,\"\",IF(O18<O21,\"エラー !：④の内数である⑤の量が④を超えています\",\"\"))","v":""}]
[null,"項　目",null,null,null,"令和５年度実績",null,null,null,null,null,null,null,null,"※２","自社の他事業場での処理量",null,null,null,null,null,null,null,null,null,null,null,null,null,null,null,null,null,null,null,null,null,null,null,null,null,null,null,"⑫","⑩のうち再生利用業者への処理委託量"]
[null,"①　排出量",null,null,null,0.8,null,"t",null,null,null,null,null,null,null,null,null,null,"ｔ",null,null,null,null,null,null,null,null,null,null,null,null,null,null,null,null,null,null,null,null,null,null,null,null,{"$f":"+ROUND(AT16,1)+ROUND(Z28,1)","v":0.8},null,null,"ｔ"]
[null,"②＋⑧　自ら再生利用を行った量",null,null,null,0,null,"t"]
[null,"⑤　自ら熱回収を行った量",null,null,null,0,null,"t",null,null,null,"Ｂ　直接委託処理",null,null,"Ｂ","直接処理委託量",null,null,null,null,null,null,null,null,null,null,null,null,null,null,null,null,null,null,null,null,"⑩","直接及び自ら中間処理後の処理委託量",null,null,null,null,null,"⑬","⑩のうち認定熱回収業者への処理委託量"]
[null,"⑦　自ら中間処理により減量した量",null,null,null,0,null,"t",null,null,null,null,null,null,{"$f":"+Q30+ROUND(Q33,1)","v":0.8},null,null,null,"ｔ",null,null,null,null,"（目的別内訳）",null,null,null,null,null,null,null,null,null,null,null,null,{"$f":"+AG18+O27","v":0.8},null,null,null,"ｔ",null,null,null,null,null,"ｔ"]
[null,"③＋⑨　自ら埋立処分又は海洋投入処分を行った量",null,null,null,0,null,"t",null,null,null,null,null,null,null,null,null,null,null,null,null,null,null,"再生利用前委託量",null,0.8,null,null,null,null,"ｔ",null,null,null,null,null,null,null,null,null,null,null,null,{"$f":"+IF(AR27=0,\"\",IF(AK27<(AR24+AR27+AR31),\"エラー !：⑩の内数である（⑫+⑬＋⑭）の量が⑩を超えています\",\"\"))","v":""}]
[null,"⑩　全処理委託量",null,null,null,0.8,null,"t",null,null,null,null,null,null,null,null,"B-1","中間処理委託量",null,null,null,null,null,"最終処分前委託量",null,null,null,null,null,null,"ｔ",null,null,null,null,null,"⑪","⑩のうち優良認定処理業者への処理委託量",null,null,null,null,null,"⑭","⑩のうち認定熱回収業者以外の熱回収を行う業者への処理委託量"]
[null,"⑪　優良認定処理業者への処理委託量",null,null,null,0,null,"t",null,null,null,null,null,null,null,null,{"$f":"+ROUND(Z28,1)+ROUND(Z29,1)+ROUND(Z30,1)","v":0.8},null,null,null,"ｔ",null,null,"下水等放流前委託量",null,null,null,null,null,null,"ｔ",null,null,null,null,null,null,null,null,null,"ｔ"]
[null,"⑫　再生利用業者への処理委託量",null,null,null,0.8,null,"t",null,null,null,null,null,null,null,null,null,null,null,null,null,null,null,null,null,"【産業廃棄物の種類　（ア～ト）】",null,null,null,null,null,null,null,null,null,null,{"$f":"+IF(AK30=0,\"\",IF(AK27<AK30,\"エラー !：⑩の内数である⑪の量が⑩を超えています\",\"\"))","v":""},null,null,null,null,null,null,null,null,null,"ｔ"]
[null,"⑬　認定熱回収業者への処理委託量",null,null,null,0,null,"t",null,null,null,null,null,null,null,null,"B-2","最終処分委託量",null,null,null,null,null,null,null,"ｱ.　燃え殻\nｲ.　汚泥\nｳ.　廃油\nｴ.　廃酸\nｵ.　廃アルカリ\nｶ.　廃ﾌﾟﾗｽﾁｯｸ類\nｷ.　紙くず",null,null,null,null,"ｸ.　木くず\nｹ.　繊維くず\nｺ.　動植物性残さ\nｻ.　動物系固形不要物\nｼ.　ゴムくず\nｽ.　金属くず\nｾ.　ｶﾞﾗｽ・ｺﾝｸﾘｰﾄ・陶磁器くず",null,null,null,null,null,"ｿ.　鉱さい\nﾀ.　がれき類\nﾁ.　動物のふん尿\nﾂ.　動物の死体\nﾃ.　ばいじん\nト.　混合廃棄物その他",null,null,null,null,null,null,{"$f":"+IF(AR31=0,\"\",IF(AK27<(AR24+AR27+AR31),\"エラー !：⑩の内数である（⑫+⑬＋⑭）の量が⑩を超えています\",\"\"))","v":""}]
[null,"⑭　認定熱回収業者以外の熱回収を行う業者への処理委託量",null,null,null,0,null,"t",null,null,null,null,null,null,null,null,null,null,null,null,"ｔ"]
[null,null,{"$f":"+IF(F30=0,\"\",IF(F29<F30,\"エラー !：上の表は、⑩の内数である⑪の量が⑩を超えています\",\"\"))","v":""}]
[null,null,{"$f":"+IF(F31=0,\"\",IF(F29<F31,\"エラー !：上の表は、⑩の内数である⑫の量が⑩を超えています\",\"\"))","v":""}]
[null,null,{"$f":"+IF(F32=0,\"\",IF(F29<F32,\"エラー !：上の表は、⑩の内数である⑬の量が⑩を超えています\",\"\"))","v":""}]
[null,null,{"$f":"+IF(F33=0,\"\",IF(F29<F33,\"エラー !：上の表は、⑩の内数である⑭の量が⑩を超えています\",\"\"))","v":""}]

{"sheet":"ｳ.廃油","index":3,"n_rows":37,"n_cols":47,"rows_kept":37,"cut":false,"hidden":false,"merged":[[1,1,2,6],[16,43,16,44],[7,33,7,38],[11,14,11,17],[2,40,3,42],[8,29,13,29],[8,32,8,37],[11,32,11,37],[2,26,2,28],[13,15,13,18],[2,43,2,44],[6,1,6,2],[7,2,7,9],[6,3,6,7],[8,5,8,7],[3,43,3,44],[15,14,15,26],[16,24,16,26],[16,15,16,18],[13,33,13,38],[4,30,4,46],[4,24,4,28],[6,17,6,20],[14,14,14,17],[10,33,10,38],[26,43,26,45],[30,43,30,45],[28,44,29,46],[28,43,29,43],[25,44,25,46],[26,14,26,17],[25,15,25,18],[25,37,25,40],[31,30,33,35],[30,36,30,41],[22,15,22,18],[17,32,17,35],[17,14,17,17],[17,23,17,25],[28,37,28,40],[29,36,29,39],[31,25,33,29],[26,36,26,39],[27,25,27,29],[28,25,28,29],[27,23,27,24],[28,23,28,24],[31,36,33,39],[29,23,29,24],[29,25,29,29],[31,1,31,4],[32,1,32,4],[31,17,31,20],[28,1,28,4],[29,1,29,4],[30,1,30,4],[32,5,32,6],[29,5,29,6],[28,5,28,6],[32,16,32,19],[28,17,28,20],[30,5,30,6],[25,11,32,11],[29,16,29,19],[27,1,27,4],[27,5,27,6],[31,5,31,6],[22,1,22,4],[23,1,23,4],[24,5,24,6],[25,5,25,6],[26,5,26,6],[25,1,25,4],[26,1,26,4],[24,1,24,4],[23,5,23,6],[22,5,22,7],[19,1,21,7],[19,24,19,26],[22,19,22,22],[21,14,21,20],[19,15,19,18],[20,14,20,17],[20,23,20,25],[15,43,15,44],[17,43,17,44],[10,11,23,11],[16,33,16,36],[23,43,23,45],[22,44,22,46],[16,19,16,22],[19,39,19,40],[16,29,20,29],[23,14,23,17],[14,32,14,37],[13,6,13,7],[11,5,11,6],[10,6,10,7],[10,15,10,18],[14,5,14,6],[16,39,16,40]]}
[null,null,null,null,null,null,null,null,null,null,null,null,null,null,null,null,null,"↓","注意：前年度の排出量のみでフロー図のデータ①がない場合にも、前年度データを該当欄に入力してください"]
[null,"産業廃棄物処理計画書"]
[null,null,null,null,null,null,null,null,null,null,null,null,null,null,null,null,null,null,null,null,null,null,null,null,null,null,null,null,null,null,null,null,null,null,null,null,null,null,null,null,"２－２",null,null,"法定",null,"自主"]
[null,null,null,null,null,null,null,null,null,null,null,null,null,null,null,null,null,null,null,null,null,null,null,null,null,null,null,null,null,null,null,null,null,null,null,null,null,null,null,null,null,null,null,{"$f":"+表紙!Q29","v":"〇"},null,{"$f":"+表紙!T29","v":""}]
[null,"別紙処理フロー",null,null,null,null,null,null,null,null,null,null,null,null,null,null,null,null,null,null,null,null,null,null,"事業場名称",null,null,null,null,"：",{"$f":"+表紙!F48","v":"横浜市各工事現場"}]
[null,"令和６年度発生する産業廃棄物ごとの目標量と処理計画"]
[null,"フローに記載した産業廃棄物の種類",null,"ウ.　廃油"]
[null,"※","本用紙は廃棄物の種類ごとに1枚の記載となります。異なる廃棄物の処理フローは別シートに記載してください。　　　　　　　　　　　　　　　　　　　　　　　　　　　　　　　　　　　　　　　　　　　　　　　　　　　　　　　　　　　　　　　　　　　　　",null,null,null,null,null,null,null,null,null,null,null,null,null,null,null,null,null,null,null,null,null,null,null,null,null,null,null,null,null,"⑧","自ら中間処理後に再生利用する量"]
[null,"（単位：t/年）",null,null,null,"有償物量",null,null,null,null,null,null,null,null,null,null,null,null,null,null,null,null,null,null,null,null,null,null,null,"ａ残さ物の自己処理",null,null,null,null,null,null,null,null,"ｔ"]
[]
[null,null,"不要物等発生量",null,null,"①","当該事業場における排出量",null,null,null,null,"Ａ　自己処理",null,null,"②","自ら直接再生利用する量",null,null,null,null,null,null,null,null,null,null,null,null,null,null,null,null,"⑨","自ら中間処理後に自ら埋立処分又は海洋投入処分する量"]
[null,null,null,null,null,{"$f":"+ROUND(O12,1)+ROUND(O15,1)+ROUND(O18,1)+ROUND(O24,1)+O27-ROUND(F15,1)","v":0},null,"ｔ",null,null,null,null,null,null,null,null,null,null,"ｔ",null,null,null,null,null,null,null,null,null,null,null,null,null,null,null,null,null,null,null,"ｔ"]
[]
[null,null,null,null,null,"※１","自社の他事業場からの搬入量",null,null,null,null,null,null,null,"③","自ら直接埋立処分又は海洋投入処分する量",null,null,null,null,null,null,null,null,null,null,null,null,null,null,null,null,"※3","自ら中間処理後に自社の他事業場での処理量"]
[null,null,null,null,null,null,null,"ｔ",null,null,null,null,null,null,null,null,null,null,"ｔ",null,null,null,null,null,null,null,null,null,null,null,null,null,null,null,null,null,null,null,"ｔ",null,null,null,null,"（目的別内訳）"]
[null,null,null,null,null,null,null,null,null,null,null,null,null,null,{"$f":"+IF(X18=0,\"\",IF(X18-O18=X18,\"エラー！：⑥残さ物量があるのに、④自ら中間処理した量がゼロになっています\",\"\"))","v":""},null,null,null,null,null,null,null,null,null,null,null,null,null,null,null,null,null,null,null,null,null,null,null,null,null,null,null,null,"再生利用前委託量",null,null,"ｔ"]
[null,null,null,null,null,null,null,null,null,null,null,null,null,null,"④","自ら中間処理する量",null,null,null,null,null,null,null,"⑥","自ら中間処理後の残さ量",null,null,null,null,"ｂ残さ物の委託処理",null,null,"ｂ","自ら中間処理後の処理委託量",null,null,null,null,null,"ｂ-1　中間処理委託量",null,null,null,"最終処分前\n委託量",null,null,"ｔ"]
[null,null,null,null,null,null,null,null,null,null,null,null,null,null,null,null,null,null,"ｔ",null,null,null,null,{"$f":"+ROUND(AG9,1)+ROUND(AG12,1)+ROUND(AG15,1)+AG18","v":0},null,null,"ｔ",null,null,null,null,null,{"$f":"+ROUND(AN18,1)+ROUND(AN21,1)","v":0},null,null,null,"ｔ",null,null,{"$f":"+ROUND(AT16,1)+ROUND(AT17,1)+ROUND(AT18,1)","v":0},"ｔ",null,null,"下水等放流前委託量",null,null,"ｔ"]
[]
[null,"注）右上のフローには、令和６年度の目標量を記載してください。下の表には、令和５年度実績を記載してください。　なお、様式３をあわせて提出する場合には、先に様式３を入力し、データ反映・印刷ツールを使用するとこちらに数値が反映されます。",null,null,null,null,null,null,null,null,null,null,null,null,"⑤","④のうち熱回収を行う量",null,null,null,null,null,null,null,"⑦","自ら中間処理により減量する量",null,null,null,null,null,null,null,null,null,null,null,null,null,null,"ｂ-2　最終処分委託量"]
[null,null,null,null,null,null,null,null,null,null,null,null,null,null,null,null,null,null,"ｔ",null,null,null,null,{"$f":"+O18-X18","v":0},null,null,"ｔ",null,null,null,null,null,null,null,null,null,null,null,null,null,"ｔ"]
[null,null,null,null,null,null,null,null,null,null,null,null,null,null,{"$f":"+IF(O21=0,\"\",IF(O18<O21,\"エラー !：④の内数である⑤の量が④を超えています\",\"\"))","v":""}]
[null,"項　目",null,null,null,"令和５年度実績",null,null,null,null,null,null,null,null,"※２","自社の他事業場での処理量",null,null,null,null,null,null,null,null,null,null,null,null,null,null,null,null,null,null,null,null,null,null,null,null,null,null,null,"⑫","⑩のうち再生利用業者への処理委託量"]
[null,"①　排出量",null,null,null,0,null,"t",null,null,null,null,null,null,null,null,null,null,"ｔ",null,null,null,null,null,null,null,null,null,null,null,null,null,null,null,null,null,null,null,null,null,null,null,null,{"$f":"+ROUND(AT16,1)+ROUND(Z28,1)","v":0},null,null,"ｔ"]
[null,"②＋⑧　自ら再生利用を行った量",null,null,null,0,null,"t"]
[null,"⑤　自ら熱回収を行った量",null,null,null,0,null,"t",null,null,null,"Ｂ　直接委託処理",null,null,"Ｂ","直接処理委託量",null,null,null,null,null,null,null,null,null,null,null,null,null,null,null,null,null,null,null,null,"⑩","直接及び自ら中間処理後の処理委託量",null,null,null,null,null,"⑬","⑩のうち認定熱回収業者への処理委託量"]
[null,"⑦　自ら中間処理により減量した量",null,null,null,0,null,"t",null,null,null,null,null,null,{"$f":"+Q30+ROUND(Q33,1)","v":0},null,null,null,"ｔ",null,null,null,null,"（目的別内訳）",null,null,null,null,null,null,null,null,null,null,null,null,{"$f":"+AG18+O27","v":0},null,null,null,"ｔ",null,null,null,null,null,"ｔ"]
[null,"③＋⑨　自ら埋立処分又は海洋投入処分を行った量",null,null,null,0,null,"t",null,null,null,null,null,null,null,null,null,null,null,null,null,null,null,"再生利用前委託量",null,null,null,null,null,null,"ｔ",null,null,null,null,null,null,null,null,null,null,null,null,{"$f":"+IF(AR27=0,\"\",IF(AK27<(AR24+AR27+AR31),\"エラー !：⑩の内数である（⑫+⑬＋⑭）の量が⑩を超えています\",\"\"))","v":""}]
[null,"⑩　全処理委託量",null,null,null,0,null,"t",null,null,null,null,null,null,null,null,"B-1","中間処理委託量",null,null,null,null,null,"最終処分前委託量",null,null,null,null,null,null,"ｔ",null,null,null,null,null,"⑪","⑩のうち優良認定処理業者への処理委託量",null,null,null,null,null,"⑭","⑩のうち認定熱回収業者以外の熱回収を行う業者への処理委託量"]
[null,"⑪　優良認定処理業者への処理委託量",null,null,null,0,null,"t",null,null,null,null,null,null,null,null,{"$f":"+ROUND(Z28,1)+ROUND(Z29,1)+ROUND(Z30,1)","v":0},null,null,null,"ｔ",null,null,"下水等放流前委託量",null,null,null,null,null,null,"ｔ",null,null,null,null,null,null,null,null,null,"ｔ"]
[null,"⑫　再生利用業者への処理委託量",null,null,null,0,null,"t",null,null,null,null,null,null,null,null,null,null,null,null,null,null,null,null,null,"【産業廃棄物の種類　（ア～ト）】",null,null,null,null,null,null,null,null,null,null,{"$f":"+IF(AK30=0,\"\",IF(AK27<AK30,\"エラー !：⑩の内数である⑪の量が⑩を超えています\",\"\"))","v":""},null,null,null,null,null,null,null,null,null,"ｔ"]
[null,"⑬　認定熱回収業者への処理委託量",null,null,null,0,null,"t",null,null,null,null,null,null,null,null,"B-2","最終処分委託量",null,null,null,null,null,null,null,"ｱ.　燃え殻\nｲ.　汚泥\nｳ.　廃油\nｴ.　廃酸\nｵ.　廃アルカリ\nｶ.　廃ﾌﾟﾗｽﾁｯｸ類\nｷ.　紙くず",null,null,null,null,"ｸ.　木くず\nｹ.　繊維くず\nｺ.　動植物性残さ\nｻ.　動物系固形不要物\nｼ.　ゴムくず\nｽ.　金属くず\nｾ.　ｶﾞﾗｽ・ｺﾝｸﾘｰﾄ・陶磁器くず",null,null,null,null,null,"ｿ.　鉱さい\nﾀ.　がれき類\nﾁ.　動物のふん尿\nﾂ.　動物の死体\nﾃ.　ばいじん\nト.　混合廃棄物その他",null,null,null,null,null,null,{"$f":"+IF(AR31=0,\"\",IF(AK27<(AR24+AR27+AR31),\"エラー !：⑩の内数である（⑫+⑬＋⑭）の量が⑩を超えています\",\"\"))","v":""}]
[null,"⑭　認定熱回収業者以外の熱回収を行う業者への処理委託量",null,null,null,0,null,"t",null,null,null,null,null,null,null,null,null,null,null,null,"ｔ"]
[null,null,{"$f":"+IF(F30=0,\"\",IF(F29<F30,\"エラー !：上の表は、⑩の内数である⑪の量が⑩を超えています\",\"\"))","v":""}]
[null,null,{"$f":"+IF(F31=0,\"\",IF(F29<F31,\"エラー !：上の表は、⑩の内数である⑫の量が⑩を超えています\",\"\"))","v":""}]
[null,null,{"$f":"+IF(F32=0,\"\",IF(F29<F32,\"エラー !：上の表は、⑩の内数である⑬の量が⑩を超えています\",\"\"))","v":""}]
[null,null,{"$f":"+IF(F33=0,\"\",IF(F29<F33,\"エラー !：上の表は、⑩の内数である⑭の量が⑩を超えています\",\"\"))","v":""}]

{"sheet":"ｴ.廃酸","index":4,"n_rows":37,"n_cols":47,"rows_kept":37,"cut":false,"hidden":false,"merged":[[32,16,32,19],[28,23,28,24],[2,26,2,28],[4,30,4,46],[2,40,3,42],[2,43,2,44],[3,43,3,44],[4,24,4,28],[16,33,16,36],[17,23,17,25],[31,17,31,20],[19,15,19,18],[7,33,7,38],[23,43,23,45],[31,36,33,39],[25,15,25,18],[30,36,30,41],[31,30,33,35],[28,17,28,20],[31,25,33,29],[8,29,13,29],[26,14,26,17],[26,36,26,39],[16,24,16,26],[31,1,31,4],[32,1,32,4],[25,11,32,11],[26,1,26,4],[27,1,27,4],[28,1,28,4],[31,5,31,6],[32,5,32,6],[30,1,30,4],[30,5,30,6],[29,5,29,6],[27,5,27,6],[28,5,28,6],[29,16,29,19],[29,1,29,4],[23,5,23,6],[24,5,24,6],[24,1,24,4],[26,5,26,6],[16,39,16,40],[23,14,23,17],[30,43,30,45],[25,1,25,4],[19,1,21,7],[16,43,16,44],[22,44,22,46],[25,37,25,40],[19,39,19,40],[15,43,15,44],[14,32,14,37],[28,37,28,40],[29,36,29,39],[26,43,26,45],[17,43,17,44],[27,23,27,24],[20,23,20,25],[15,14,15,26],[16,19,16,22],[19,24,19,26],[22,19,22,22],[16,29,20,29],[29,25,29,29],[17,32,17,35],[28,44,29,46],[28,43,29,43],[14,14,14,17],[20,14,20,17],[27,25,27,29],[28,25,28,29],[21,14,21,20],[29,23,29,24],[25,44,25,46],[1,1,2,6],[6,1,6,2],[22,1,22,4],[7,2,7,9],[23,1,23,4],[11,5,11,6],[6,3,6,7],[6,17,6,20],[8,5,8,7],[22,15,22,18],[16,15,16,18],[10,15,10,18],[11,14,11,17],[17,14,17,17],[10,11,23,11],[13,33,13,38],[8,32,8,37],[10,6,10,7],[13,6,13,7],[25,5,25,6],[22,5,22,7],[14,5,14,6],[11,32,11,37],[10,33,10,38],[13,15,13,18]]}
[null,null,null,null,null,null,null,null,null,null,null,null,null,null,null,null,null,"↓","注意：前年度の排出量のみでフロー図のデータ①がない場合にも、前年度データを該当欄に入力してください"]
[null,"産業廃棄物処理計画書"]
[null,null,null,null,null,null,null,null,null,null,null,null,null,null,null,null,null,null,null,null,null,null,null,null,null,null,null,null,null,null,null,null,null,null,null,null,null,null,null,null,"２－２",null,null,"法定",null,"自主"]
[null,null,null,null,null,null,null,null,null,null,null,null,null,null,null,null,null,null,null,null,null,null,null,null,null,null,null,null,null,null,null,null,null,null,null,null,null,null,null,null,null,null,null,{"$f":"+表紙!Q29","v":"〇"},null,{"$f":"+表紙!T29","v":""}]
[null,"別紙処理フロー",null,null,null,null,null,null,null,null,null,null,null,null,null,null,null,null,null,null,null,null,null,null,"事業場名称",null,null,null,null,"：",{"$f":"+表紙!F48","v":"横浜市各工事現場"}]
[null,"令和６年度発生する産業廃棄物ごとの目標量と処理計画"]
[null,"フローに記載した産業廃棄物の種類",null,"エ.　廃酸"]
[null,"※","本用紙は廃棄物の種類ごとに1枚の記載となります。異なる廃棄物の処理フローは別シートに記載してください。　　　　　　　　　　　　　　　　　　　　　　　　　　　　　　　　　　　　　　　　　　　　　　　　　　　　　　　　　　　　　　　　　　　　　",null,null,null,null,null,null,null,null,null,null,null,null,null,null,null,null,null,null,null,null,null,null,null,null,null,null,null,null,null,"⑧","自ら中間処理後に再生利用する量"]
[null,"（単位：t/年）",null,null,null,"有償物量",null,null,null,null,null,null,null,null,null,null,null,null,null,null,null,null,null,null,null,null,null,null,null,"ａ残さ物の自己処理",null,null,null,null,null,null,null,null,"ｔ"]
[]
[null,null,"不要物等発生量",null,null,"①","当該事業場における排出量",null,null,null,null,"Ａ　自己処理",null,null,"②","自ら直接再生利用する量",null,null,null,null,null,null,null,null,null,null,null,null,null,null,null,null,"⑨","自ら中間処理後に自ら埋立処分又は海洋投入処分する量"]
[null,null,null,null,null,{"$f":"+ROUND(O12,1)+ROUND(O15,1)+ROUND(O18,1)+ROUND(O24,1)+O27-ROUND(F15,1)","v":0},null,"ｔ",null,null,null,null,null,null,null,null,null,null,"ｔ",null,null,null,null,null,null,null,null,null,null,null,null,null,null,null,null,null,null,null,"ｔ"]
[]
[null,null,null,null,null,"※１","自社の他事業場からの搬入量",null,null,null,null,null,null,null,"③","自ら直接埋立処分又は海洋投入処分する量",null,null,null,null,null,null,null,null,null,null,null,null,null,null,null,null,"※3","自ら中間処理後に自社の他事業場での処理量"]
[null,null,null,null,null,null,null,"ｔ",null,null,null,null,null,null,null,null,null,null,"ｔ",null,null,null,null,null,null,null,null,null,null,null,null,null,null,null,null,null,null,null,"ｔ",null,null,null,null,"（目的別内訳）"]
[null,null,null,null,null,null,null,null,null,null,null,null,null,null,{"$f":"+IF(X18=0,\"\",IF(X18-O18=X18,\"エラー！：⑥残さ物量があるのに、④自ら中間処理した量がゼロになっています\",\"\"))","v":""},null,null,null,null,null,null,null,null,null,null,null,null,null,null,null,null,null,null,null,null,null,null,null,null,null,null,null,null,"再生利用前委託量",null,null,"ｔ"]
[null,null,null,null,null,null,null,null,null,null,null,null,null,null,"④","自ら中間処理する量",null,null,null,null,null,null,null,"⑥","自ら中間処理後の残さ量",null,null,null,null,"ｂ残さ物の委託処理",null,null,"ｂ","自ら中間処理後の処理委託量",null,null,null,null,null,"ｂ-1　中間処理委託量",null,null,null,"最終処分前\n委託量",null,null,"ｔ"]
[null,null,null,null,null,null,null,null,null,null,null,null,null,null,null,null,null,null,"ｔ",null,null,null,null,{"$f":"+ROUND(AG9,1)+ROUND(AG12,1)+ROUND(AG15,1)+AG18","v":0},null,null,"ｔ",null,null,null,null,null,{"$f":"+ROUND(AN18,1)+ROUND(AN21,1)","v":0},null,null,null,"ｔ",null,null,{"$f":"+ROUND(AT16,1)+ROUND(AT17,1)+ROUND(AT18,1)","v":0},"ｔ",null,null,"下水等放流前委託量",null,null,"ｔ"]
[]
[null,"注）右上のフローには、令和６年度の目標量を記載してください。下の表には、令和５年度実績を記載してください。　なお、様式３をあわせて提出する場合には、先に様式３を入力し、データ反映・印刷ツールを使用するとこちらに数値が反映されます。",null,null,null,null,null,null,null,null,null,null,null,null,"⑤","④のうち熱回収を行う量",null,null,null,null,null,null,null,"⑦","自ら中間処理により減量する量",null,null,null,null,null,null,null,null,null,null,null,null,null,null,"ｂ-2　最終処分委託量"]
[null,null,null,null,null,null,null,null,null,null,null,null,null,null,null,null,null,null,"ｔ",null,null,null,null,{"$f":"+O18-X18","v":0},null,null,"ｔ",null,null,null,null,null,null,null,null,null,null,null,null,null,"ｔ"]
[null,null,null,null,null,null,null,null,null,null,null,null,null,null,{"$f":"+IF(O21=0,\"\",IF(O18<O21,\"エラー !：④の内数である⑤の量が④を超えています\",\"\"))","v":""}]
[null,"項　目",null,null,null,"令和５年度実績",null,null,null,null,null,null,null,null,"※２","自社の他事業場での処理量",null,null,null,null,null,null,null,null,null,null,null,null,null,null,null,null,null,null,null,null,null,null,null,null,null,null,null,"⑫","⑩のうち再生利用業者への処理委託量"]
[null,"①　排出量",null,null,null,0,null,"t",null,null,null,null,null,null,null,null,null,null,"ｔ",null,null,null,null,null,null,null,null,null,null,null,null,null,null,null,null,null,null,null,null,null,null,null,null,{"$f":"+ROUND(AT16,1)+ROUND(Z28,1)","v":0},null,null,"ｔ"]
[null,"②＋⑧　自ら再生利用を行った量",null,null,null,0,null,"t"]
[null,"⑤　自ら熱回収を行った量",null,null,null,0,null,"t",null,null,null,"Ｂ　直接委託処理",null,null,"Ｂ","直接処理委託量",null,null,null,null,null,null,null,null,null,null,null,null,null,null,null,null,null,null,null,null,"⑩","直接及び自ら中間処理後の処理委託量",null,null,null,null,null,"⑬","⑩のうち認定熱回収業者への処理委託量"]
[null,"⑦　自ら中間処理により減量した量",null,null,null,0,null,"t",null,null,null,null,null,null,{"$f":"+Q30+ROUND(Q33,1)","v":0},null,null,null,"ｔ",null,null,null,null,"（目的別内訳）",null,null,null,null,null,null,null,null,null,null,null,null,{"$f":"+AG18+O27","v":0},null,null,null,"ｔ",null,null,null,null,null,"ｔ"]
[null,"③＋⑨　自ら埋立処分又は海洋投入処分を行った量",null,null,null,0,null,"t",null,null,null,null,null,null,null,null,null,null,null,null,null,null,null,"再生利用前委託量",null,null,null,null,null,null,"ｔ",null,null,null,null,null,null,null,null,null,null,null,null,{"$f":"+IF(AR27=0,\"\",IF(AK27<(AR24+AR27+AR31),\"エラー !：⑩の内数である（⑫+⑬＋⑭）の量が⑩を超えています\",\"\"))","v":""}]
[null,"⑩　全処理委託量",null,null,null,0,null,"t",null,null,null,null,null,null,null,null,"B-1","中間処理委託量",null,null,null,null,null,"最終処分前委託量",null,null,null,null,null,null,"ｔ",null,null,null,null,null,"⑪","⑩のうち優良認定処理業者への処理委託量",null,null,null,null,null,"⑭","⑩のうち認定熱回収業者以外の熱回収を行う業者への処理委託量"]
[null,"⑪　優良認定処理業者への処理委託量",null,null,null,0,null,"t",null,null,null,null,null,null,null,null,{"$f":"+ROUND(Z28,1)+ROUND(Z29,1)+ROUND(Z30,1)","v":0},null,null,null,"ｔ",null,null,"下水等放流前委託量",null,null,null,null,null,null,"ｔ",null,null,null,null,null,null,null,null,null,"ｔ"]
[null,"⑫　再生利用業者への処理委託量",null,null,null,0,null,"t",null,null,null,null,null,null,null,null,null,null,null,null,null,null,null,null,null,"【産業廃棄物の種類　（ア～ト）】",null,null,null,null,null,null,null,null,null,null,{"$f":"+IF(AK30=0,\"\",IF(AK27<AK30,\"エラー !：⑩の内数である⑪の量が⑩を超えています\",\"\"))","v":""},null,null,null,null,null,null,null,null,null,"ｔ"]
[null,"⑬　認定熱回収業者への処理委託量",null,null,null,0,null,"t",null,null,null,null,null,null,null,null,"B-2","最終処分委託量",null,null,null,null,null,null,null,"ｱ.　燃え殻\nｲ.　汚泥\nｳ.　廃油\nｴ.　廃酸\nｵ.　廃アルカリ\nｶ.　廃ﾌﾟﾗｽﾁｯｸ類\nｷ.　紙くず",null,null,null,null,"ｸ.　木くず\nｹ.　繊維くず\nｺ.　動植物性残さ\nｻ.　動物系固形不要物\nｼ.　ゴムくず\nｽ.　金属くず\nｾ.　ｶﾞﾗｽ・ｺﾝｸﾘｰﾄ・陶磁器くず",null,null,null,null,null,"ｿ.　鉱さい\nﾀ.　がれき類\nﾁ.　動物のふん尿\nﾂ.　動物の死体\nﾃ.　ばいじん\nト.　混合廃棄物その他",null,null,null,null,null,null,{"$f":"+IF(AR31=0,\"\",IF(AK27<(AR24+AR27+AR31),\"エラー !：⑩の内数である（⑫+⑬＋⑭）の量が⑩を超えています\",\"\"))","v":""}]
[null,"⑭　認定熱回収業者以外の熱回収を行う業者への処理委託量",null,null,null,0,null,"t",null,null,null,null,null,null,null,null,null,null,null,null,"ｔ"]
[null,null,{"$f":"+IF(F30=0,\"\",IF(F29<F30,\"エラー !：上の表は、⑩の内数である⑪の量が⑩を超えています\",\"\"))","v":""}]
[null,null,{"$f":"+IF(F31=0,\"\",IF(F29<F31,\"エラー !：上の表は、⑩の内数である⑫の量が⑩を超えています\",\"\"))","v":""}]
[null,null,{"$f":"+IF(F32=0,\"\",IF(F29<F32,\"エラー !：上の表は、⑩の内数である⑬の量が⑩を超えています\",\"\"))","v":""}]
[null,null,{"$f":"+IF(F33=0,\"\",IF(F29<F33,\"エラー !：上の表は、⑩の内数である⑭の量が⑩を超えています\",\"\"))","v":""}]

{"sheet":"ｵ.廃ｱﾙｶﾘ","index":5,"n_rows":37,"n_cols":47,"rows_kept":37,"cut":false,"hidden":false,"merged":[[1,1,2,6],[16,43,16,44],[7,33,7,38],[11,14,11,17],[2,40,3,42],[8,29,13,29],[8,32,8,37],[11,32,11,37],[2,26,2,28],[13,15,13,18],[2,43,2,44],[6,1,6,2],[7,2,7,9],[6,3,6,7],[8,5,8,7],[3,43,3,44],[15,14,15,26],[16,24,16,26],[16,15,16,18],[13,33,13,38],[4,30,4,46],[4,24,4,28],[6,17,6,20],[14,14,14,17],[10,33,10,38],[26,43,26,45],[30,43,30,45],[28,44,29,46],[28,43,29,43],[25,44,25,46],[26,14,26,17],[25,15,25,18],[25,37,25,40],[31,30,33,35],[30,36,30,41],[22,15,22,18],[17,32,17,35],[17,14,17,17],[17,23,17,25],[28,37,28,40],[29,36,29,39],[31,25,33,29],[26,36,26,39],[27,25,27,29],[28,25,28,29],[27,23,27,24],[28,23,28,24],[31,36,33,39],[29,23,29,24],[29,25,29,29],[31,1,31,4],[32,1,32,4],[31,17,31,20],[28,1,28,4],[29,1,29,4],[30,1,30,4],[32,5,32,6],[29,5,29,6],[28,5,28,6],[32,16,32,19],[28,17,28,20],[30,5,30,6],[25,11,32,11],[29,16,29,19],[27,1,27,4],[27,5,27,6],[31,5,31,6],[22,1,22,4],[23,1,23,4],[24,5,24,6],[25,5,25,6],[26,5,26,6],[25,1,25,4],[26,1,26,4],[24,1,24,4],[23,5,23,6],[22,5,22,7],[19,1,21,7],[19,24,19,26],[22,19,22,22],[21,14,21,20],[19,15,19,18],[20,14,20,17],[20,23,20,25],[15,43,15,44],[17,43,17,44],[10,11,23,11],[16,33,16,36],[23,43,23,45],[22,44,22,46],[16,19,16,22],[19,39,19,40],[16,29,20,29],[23,14,23,17],[14,32,14,37],[13,6,13,7],[11,5,11,6],[10,6,10,7],[10,15,10,18],[14,5,14,6],[16,39,16,40]]}
[null,null,null,null,null,null,null,null,null,null,null,null,null,null,null,null,null,"↓","注意：前年度の排出量のみでフロー図のデータ①がない場合にも、前年度データを該当欄に入力してください"]
[null,"産業廃棄物処理計画書"]
[null,null,null,null,null,null,null,null,null,null,null,null,null,null,null,null,null,null,null,null,null,null,null,null,null,null,null,null,null,null,null,null,null,null,null,null,null,null,null,null,"２－２",null,null,"法定",null,"自主"]
[null,null,null,null,null,null,null,null,null,null,null,null,null,null,null,null,null,null,null,null,null,null,null,null,null,null,null,null,null,null,null,null,null,null,null,null,null,null,null,null,null,null,null,{"$f":"+表紙!Q29","v":"〇"},null,{"$f":"+表紙!T29","v":""}]
[null,"別紙処理フロー",null,null,null,null,null,null,null,null,null,null,null,null,null,null,null,null,null,null,null,null,null,null,"事業場名称",null,null,null,null,"：",{"$f":"+表紙!F48","v":"横浜市各工事現場"}]
[null,"令和６年度発生する産業廃棄物ごとの目標量と処理計画"]
[null,"フローに記載した産業廃棄物の種類",null,"オ.　廃アルカリ"]
[null,"※","本用紙は廃棄物の種類ごとに1枚の記載となります。異なる廃棄物の処理フローは別シートに記載してください。　　　　　　　　　　　　　　　　　　　　　　　　　　　　　　　　　　　　　　　　　　　　　　　　　　　　　　　　　　　　　　　　　　　　　",null,null,null,null,null,null,null,null,null,null,null,null,null,null,null,null,null,null,null,null,null,null,null,null,null,null,null,null,null,"⑧","自ら中間処理後に再生利用する量"]
[null,"（単位：t/年）",null,null,null,"有償物量",null,null,null,null,null,null,null,null,null,null,null,null,null,null,null,null,null,null,null,null,null,null,null,"ａ残さ物の自己処理",null,null,null,null,null,null,null,null,"ｔ"]
[]
[null,null,"不要物等発生量",null,null,"①","当該事業場における排出量",null,null,null,null,"Ａ　自己処理",null,null,"②","自ら直接再生利用する量",null,null,null,null,null,null,null,null,null,null,null,null,null,null,null,null,"⑨","自ら中間処理後に自ら埋立処分又は海洋投入処分する量"]
[null,null,null,null,null,{"$f":"+ROUND(O12,1)+ROUND(O15,1)+ROUND(O18,1)+ROUND(O24,1)+O27-ROUND(F15,1)","v":0},null,"ｔ",null,null,null,null,null,null,null,null,null,null,"ｔ",null,null,null,null,null,null,null,null,null,null,null,null,null,null,null,null,null,null,null,"ｔ"]
[]
[null,null,null,null,null,"※１","自社の他事業場からの搬入量",null,null,null,null,null,null,null,"③","自ら直接埋立処分又は海洋投入処分する量",null,null,null,null,null,null,null,null,null,null,null,null,null,null,null,null,"※3","自ら中間処理後に自社の他事業場での処理量"]
[null,null,null,null,null,null,null,"ｔ",null,null,null,null,null,null,null,null,null,null,"ｔ",null,null,null,null,null,null,null,null,null,null,null,null,null,null,null,null,null,null,null,"ｔ",null,null,null,null,"（目的別内訳）"]
[null,null,null,null,null,null,null,null,null,null,null,null,null,null,{"$f":"+IF(X18=0,\"\",IF(X18-O18=X18,\"エラー！：⑥残さ物量があるのに、④自ら中間処理した量がゼロになっています\",\"\"))","v":""},null,null,null,null,null,null,null,null,null,null,null,null,null,null,null,null,null,null,null,null,null,null,null,null,null,null,null,null,"再生利用前委託量",null,null,"ｔ"]
[null,null,null,null,null,null,null,null,null,null,null,null,null,null,"④","自ら中間処理する量",null,null,null,null,null,null,null,"⑥","自ら中間処理後の残さ量",null,null,null,null,"ｂ残さ物の委託処理",null,null,"ｂ","自ら中間処理後の処理委託量",null,null,null,null,null,"ｂ-1　中間処理委託量",null,null,null,"最終処分前\n委託量",null,null,"ｔ"]
[null,null,null,null,null,null,null,null,null,null,null,null,null,null,null,null,null,null,"ｔ",null,null,null,null,{"$f":"+ROUND(AG9,1)+ROUND(AG12,1)+ROUND(AG15,1)+AG18","v":0},null,null,"ｔ",null,null,null,null,null,{"$f":"+ROUND(AN18,1)+ROUND(AN21,1)","v":0},null,null,null,"ｔ",null,null,{"$f":"+ROUND(AT16,1)+ROUND(AT17,1)+ROUND(AT18,1)","v":0},"ｔ",null,null,"下水等放流前委託量",null,null,"ｔ"]
[]
[null,"注）右上のフローには、令和６年度の目標量を記載してください。下の表には、令和５年度実績を記載してください。　なお、様式３をあわせて提出する場合には、先に様式３を入力し、データ反映・印刷ツールを使用するとこちらに数値が反映されます。",null,null,null,null,null,null,null,null,null,null,null,null,"⑤","④のうち熱回収を行う量",null,null,null,null,null,null,null,"⑦","自ら中間処理により減量する量",null,null,null,null,null,null,null,null,null,null,null,null,null,null,"ｂ-2　最終処分委託量"]
[null,null,null,null,null,null,null,null,null,null,null,null,null,null,null,null,null,null,"ｔ",null,null,null,null,{"$f":"+O18-X18","v":0},null,null,"ｔ",null,null,null,null,null,null,null,null,null,null,null,null,null,"ｔ"]
[null,null,null,null,null,null,null,null,null,null,null,null,null,null,{"$f":"+IF(O21=0,\"\",IF(O18<O21,\"エラー !：④の内数である⑤の量が④を超えています\",\"\"))","v":""}]
[null,"項　目",null,null,null,"令和５年度実績",null,null,null,null,null,null,null,null,"※２","自社の他事業場での処理量",null,null,null,null,null,null,null,null,null,null,null,null,null,null,null,null,null,null,null,null,null,null,null,null,null,null,null,"⑫","⑩のうち再生利用業者への処理委託量"]
[null,"①　排出量",null,null,null,0,null,"t",null,null,null,null,null,null,null,null,null,null,"ｔ",null,null,null,null,null,null,null,null,null,null,null,null,null,null,null,null,null,null,null,null,null,null,null,null,{"$f":"+ROUND(AT16,1)+ROUND(Z28,1)","v":0},null,null,"ｔ"]
[null,"②＋⑧　自ら再生利用を行った量",null,null,null,0,null,"t"]
[null,"⑤　自ら熱回収を行った量",null,null,null,0,null,"t",null,null,null,"Ｂ　直接委託処理",null,null,"Ｂ","直接処理委託量",null,null,null,null,null,null,null,null,null,null,null,null,null,null,null,null,null,null,null,null,"⑩","直接及び自ら中間処理後の処理委託量",null,null,null,null,null,"⑬","⑩のうち認定熱回収業者への処理委託量"]
[null,"⑦　自ら中間処理により減量した量",null,null,null,0,null,"t",null,null,null,null,null,null,{"$f":"+Q30+ROUND(Q33,1)","v":0},null,null,null,"ｔ",null,null,null,null,"（目的別内訳）",null,null,null,null,null,null,null,null,null,null,null,null,{"$f":"+AG18+O27","v":0},null,null,null,"ｔ",null,null,null,null,null,"ｔ"]
[null,"③＋⑨　自ら埋立処分又は海洋投入処分を行った量",null,null,null,0,null,"t",null,null,null,null,null,null,null,null,null,null,null,null,null,null,null,"再生利用前委託量",null,null,null,null,null,null,"ｔ",null,null,null,null,null,null,null,null,null,null,null,null,{"$f":"+IF(AR27=0,\"\",IF(AK27<(AR24+AR27+AR31),\"エラー !：⑩の内数である（⑫+⑬＋⑭）の量が⑩を超えています\",\"\"))","v":""}]
[null,"⑩　全処理委託量",null,null,null,0,null,"t",null,null,null,null,null,null,null,null,"B-1","中間処理委託量",null,null,null,null,null,"最終処分前委託量",null,null,null,null,null,null,"ｔ",null,null,null,null,null,"⑪","⑩のうち優良認定処理業者への処理委託量",null,null,null,null,null,"⑭","⑩のうち認定熱回収業者以外の熱回収を行う業者への処理委託量"]
[null,"⑪　優良認定処理業者への処理委託量",null,null,null,0,null,"t",null,null,null,null,null,null,null,null,{"$f":"+ROUND(Z28,1)+ROUND(Z29,1)+ROUND(Z30,1)","v":0},null,null,null,"ｔ",null,null,"下水等放流前委託量",null,null,null,null,null,null,"ｔ",null,null,null,null,null,null,null,null,null,"ｔ"]
[null,"⑫　再生利用業者への処理委託量",null,null,null,0,null,"t",null,null,null,null,null,null,null,null,null,null,null,null,null,null,null,null,null,"【産業廃棄物の種類　（ア～ト）】",null,null,null,null,null,null,null,null,null,null,{"$f":"+IF(AK30=0,\"\",IF(AK27<AK30,\"エラー !：⑩の内数である⑪の量が⑩を超えています\",\"\"))","v":""},null,null,null,null,null,null,null,null,null,"ｔ"]
[null,"⑬　認定熱回収業者への処理委託量",null,null,null,0,null,"t",null,null,null,null,null,null,null,null,"B-2","最終処分委託量",null,null,null,null,null,null,null,"ｱ.　燃え殻\nｲ.　汚泥\nｳ.　廃油\nｴ.　廃酸\nｵ.　廃アルカリ\nｶ.　廃ﾌﾟﾗｽﾁｯｸ類\nｷ.　紙くず",null,null,null,null,"ｸ.　木くず\nｹ.　繊維くず\nｺ.　動植物性残さ\nｻ.　動物系固形不要物\nｼ.　ゴムくず\nｽ.　金属くず\nｾ.　ｶﾞﾗｽ・ｺﾝｸﾘｰﾄ・陶磁器くず",null,null,null,null,null,"ｿ.　鉱さい\nﾀ.　がれき類\nﾁ.　動物のふん尿\nﾂ.　動物の死体\nﾃ.　ばいじん\nト.　混合廃棄物その他",null,null,null,null,null,null,{"$f":"+IF(AR31=0,\"\",IF(AK27<(AR24+AR27+AR31),\"エラー !：⑩の内数である（⑫+⑬＋⑭）の量が⑩を超えています\",\"\"))","v":""}]
[null,"⑭　認定熱回収業者以外の熱回収を行う業者への処理委託量",null,null,null,0,null,"t",null,null,null,null,null,null,null,null,null,null,null,null,"ｔ"]
[null,null,{"$f":"+IF(F30=0,\"\",IF(F29<F30,\"エラー !：上の表は、⑩の内数である⑪の量が⑩を超えています\",\"\"))","v":""}]
[null,null,{"$f":"+IF(F31=0,\"\",IF(F29<F31,\"エラー !：上の表は、⑩の内数である⑫の量が⑩を超えています\",\"\"))","v":""}]
[null,null,{"$f":"+IF(F32=0,\"\",IF(F29<F32,\"エラー !：上の表は、⑩の内数である⑬の量が⑩を超えています\",\"\"))","v":""}]
[null,null,{"$f":"+IF(F33=0,\"\",IF(F29<F33,\"エラー !：上の表は、⑩の内数である⑭の量が⑩を超えています\",\"\"))","v":""}]

{"sheet":"ｶ.廃ﾌﾟﾗ類","index":6,"n_rows":37,"n_cols":47,"rows_kept":37,"cut":false,"hidden":false,"merged":[[32,16,32,19],[28,23,28,24],[2,26,2,28],[4,30,4,46],[2,40,3,42],[2,43,2,44],[3,43,3,44],[4,24,4,28],[16,33,16,36],[17,23,17,25],[31,17,31,20],[19,15,19,18],[7,33,7,38],[23,43,23,45],[31,36,33,39],[25,15,25,18],[30,36,30,41],[31,30,33,35],[28,17,28,20],[31,25,33,29],[8,29,13,29],[26,14,26,17],[26,36,26,39],[16,24,16,26],[31,1,31,4],[32,1,32,4],[25,11,32,11],[26,1,26,4],[27,1,27,4],[28,1,28,4],[31,5,31,6],[32,5,32,6],[30,1,30,4],[30,5,30,6],[29,5,29,6],[27,5,27,6],[28,5,28,6],[29,16,29,19],[29,1,29,4],[23,5,23,6],[24,5,24,6],[24,1,24,4],[26,5,26,6],[16,39,16,40],[23,14,23,17],[30,43,30,45],[25,1,25,4],[19,1,21,7],[16,43,16,44],[22,44,22,46],[25,37,25,40],[19,39,19,40],[15,43,15,44],[14,32,14,37],[28,37,28,40],[29,36,29,39],[26,43,26,45],[17,43,17,44],[27,23,27,24],[20,23,20,25],[15,14,15,26],[16,19,16,22],[19,24,19,26],[22,19,22,22],[16,29,20,29],[29,25,29,29],[17,32,17,35],[28,44,29,46],[28,43,29,43],[14,14,14,17],[20,14,20,17],[27,25,27,29],[28,25,28,29],[21,14,21,20],[29,23,29,24],[25,44,25,46],[1,1,2,6],[6,1,6,2],[22,1,22,4],[7,2,7,9],[23,1,23,4],[11,5,11,6],[6,3,6,7],[6,17,6,20],[8,5,8,7],[22,15,22,18],[16,15,16,18],[10,15,10,18],[11,14,11,17],[17,14,17,17],[10,11,23,11],[13,33,13,38],[8,32,8,37],[10,6,10,7],[13,6,13,7],[25,5,25,6],[22,5,22,7],[14,5,14,6],[11,32,11,37],[10,33,10,38],[13,15,13,18]]}
[null,null,null,null,null,null,null,null,null,null,null,null,null,null,null,null,null,"↓","注意：前年度の排出量のみでフロー図のデータ①がない場合にも、前年度データを該当欄に入力してください"]
[null,"産業廃棄物処理計画書"]
[null,null,null,null,null,null,null,null,null,null,null,null,null,null,null,null,null,null,null,null,null,null,null,null,null,null,null,null,null,null,null,null,null,null,null,null,null,null,null,null,"２－２",null,null,"法定",null,"自主"]
[null,null,null,null,null,null,null,null,null,null,null,null,null,null,null,null,null,null,null,null,null,null,null,null,null,null,null,null,null,null,null,null,null,null,null,null,null,null,null,null,null,null,null,{"$f":"+表紙!Q29","v":"〇"},null,{"$f":"+表紙!T29","v":""}]
[null,"別紙処理フロー",null,null,null,null,null,null,null,null,null,null,null,null,null,null,null,null,null,null,null,null,null,null,"事業場名称",null,null,null,null,"：",{"$f":"+表紙!F48","v":"横浜市各工事現場"}]
[null,"令和６年度発生する産業廃棄物ごとの目標量と処理計画"]
[null,"フローに記載した産業廃棄物の種類",null,"カ.　廃ﾌﾟﾗｽﾁｯｸ類"]
[null,"※","本用紙は廃棄物の種類ごとに1枚の記載となります。異なる廃棄物の処理フローは別シートに記載してください。　　　　　　　　　　　　　　　　　　　　　　　　　　　　　　　　　　　　　　　　　　　　　　　　　　　　　　　　　　　　　　　　　　　　　",null,null,null,null,null,null,null,null,null,null,null,null,null,null,null,null,null,null,null,null,null,null,null,null,null,null,null,null,null,"⑧","自ら中間処理後に再生利用する量"]
[null,"（単位：t/年）",null,null,null,"有償物量",null,null,null,null,null,null,null,null,null,null,null,null,null,null,null,null,null,null,null,null,null,null,null,"ａ残さ物の自己処理",null,null,null,null,null,null,null,null,"ｔ"]
[]
[null,null,"不要物等発生量",null,null,"①","当該事業場における排出量",null,null,null,null,"Ａ　自己処理",null,null,"②","自ら直接再生利用する量",null,null,null,null,null,null,null,null,null,null,null,null,null,null,null,null,"⑨","自ら中間処理後に自ら埋立処分又は海洋投入処分する量"]
[null,null,null,null,null,{"$f":"+ROUND(O12,1)+ROUND(O15,1)+ROUND(O18,1)+ROUND(O24,1)+O27-ROUND(F15,1)","v":0},null,"ｔ",null,null,null,null,null,null,null,null,null,null,"ｔ",null,null,null,null,null,null,null,null,null,null,null,null,null,null,null,null,null,null,null,"ｔ"]
[]
[null,null,null,null,null,"※１","自社の他事業場からの搬入量",null,null,null,null,null,null,null,"③","自ら直接埋立処分又は海洋投入処分する量",null,null,null,null,null,null,null,null,null,null,null,null,null,null,null,null,"※3","自ら中間処理後に自社の他事業場での処理量"]
[null,null,null,null,null,null,null,"ｔ",null,null,null,null,null,null,null,null,null,null,"ｔ",null,null,null,null,null,null,null,null,null,null,null,null,null,null,null,null,null,null,null,"ｔ",null,null,null,null,"（目的別内訳）"]
[null,null,null,null,null,null,null,null,null,null,null,null,null,null,{"$f":"+IF(X18=0,\"\",IF(X18-O18=X18,\"エラー！：⑥残さ物量があるのに、④自ら中間処理した量がゼロになっています\",\"\"))","v":""},null,null,null,null,null,null,null,null,null,null,null,null,null,null,null,null,null,null,null,null,null,null,null,null,null,null,null,null,"再生利用前委託量",null,null,"ｔ"]
[null,null,null,null,null,null,null,null,null,null,null,null,null,null,"④","自ら中間処理する量",null,null,null,null,null,null,null,"⑥","自ら中間処理後の残さ量",null,null,null,null,"ｂ残さ物の委託処理",null,null,"ｂ","自ら中間処理後の処理委託量",null,null,null,null,null,"ｂ-1　中間処理委託量",null,null,null,"最終処分前\n委託量",null,null,"ｔ"]
[null,null,null,null,null,null,null,null,null,null,null,null,null,null,null,null,null,null,"ｔ",null,null,null,null,{"$f":"+ROUND(AG9,1)+ROUND(AG12,1)+ROUND(AG15,1)+AG18","v":0},null,null,"ｔ",null,null,null,null,null,{"$f":"+ROUND(AN18,1)+ROUND(AN21,1)","v":0},null,null,null,"ｔ",null,null,{"$f":"+ROUND(AT16,1)+ROUND(AT17,1)+ROUND(AT18,1)","v":0},"ｔ",null,null,"下水等放流前委託量",null,null,"ｔ"]
[]
[null,"注）右上のフローには、令和６年度の目標量を記載してください。下の表には、令和５年度実績を記載してください。　なお、様式３をあわせて提出する場合には、先に様式３を入力し、データ反映・印刷ツールを使用するとこちらに数値が反映されます。",null,null,null,null,null,null,null,null,null,null,null,null,"⑤","④のうち熱回収を行う量",null,null,null,null,null,null,null,"⑦","自ら中間処理により減量する量",null,null,null,null,null,null,null,null,null,null,null,null,null,null,"ｂ-2　最終処分委託量"]
[null,null,null,null,null,null,null,null,null,null,null,null,null,null,null,null,null,null,"ｔ",null,null,null,null,{"$f":"+O18-X18","v":0},null,null,"ｔ",null,null,null,null,null,null,null,null,null,null,null,null,null,"ｔ"]
[null,null,null,null,null,null,null,null,null,null,null,null,null,null,{"$f":"+IF(O21=0,\"\",IF(O18<O21,\"エラー !：④の内数である⑤の量が④を超えています\",\"\"))","v":""}]
[null,"項　目",null,null,null,"令和５年度実績",null,null,null,null,null,null,null,null,"※２","自社の他事業場での処理量",null,null,null,null,null,null,null,null,null,null,null,null,null,null,null,null,null,null,null,null,null,null,null,null,null,null,null,"⑫","⑩のうち再生利用業者への処理委託量"]
[null,"①　排出量",null,null,null,0,null,"t",null,null,null,null,null,null,null,null,null,null,"ｔ",null,null,null,null,null,null,null,null,null,null,null,null,null,null,null,null,null,null,null,null,null,null,null,null,{"$f":"+ROUND(AT16,1)+ROUND(Z28,1)","v":0},null,null,"ｔ"]
[null,"②＋⑧　自ら再生利用を行った量",null,null,null,0,null,"t"]
[null,"⑤　自ら熱回収を行った量",null,null,null,0,null,"t",null,null,null,"Ｂ　直接委託処理",null,null,"Ｂ","直接処理委託量",null,null,null,null,null,null,null,null,null,null,null,null,null,null,null,null,null,null,null,null,"⑩","直接及び自ら中間処理後の処理委託量",null,null,null,null,null,"⑬","⑩のうち認定熱回収業者への処理委託量"]
[null,"⑦　自ら中間処理により減量した量",null,null,null,0,null,"t",null,null,null,null,null,null,{"$f":"+Q30+ROUND(Q33,1)","v":0},null,null,null,"ｔ",null,null,null,null,"（目的別内訳）",null,null,null,null,null,null,null,null,null,null,null,null,{"$f":"+AG18+O27","v":0},null,null,null,"ｔ",null,null,null,null,null,"ｔ"]
[null,"③＋⑨　自ら埋立処分又は海洋投入処分を行った量",null,null,null,0,null,"t",null,null,null,null,null,null,null,null,null,null,null,null,null,null,null,"再生利用前委託量",null,null,null,null,null,null,"ｔ",null,null,null,null,null,null,null,null,null,null,null,null,{"$f":"+IF(AR27=0,\"\",IF(AK27<(AR24+AR27+AR31),\"エラー !：⑩の内数である（⑫+⑬＋⑭）の量が⑩を超えています\",\"\"))","v":""}]
[null,"⑩　全処理委託量",null,null,null,0,null,"t",null,null,null,null,null,null,null,null,"B-1","中間処理委託量",null,null,null,null,null,"最終処分前委託量",null,null,null,null,null,null,"ｔ",null,null,null,null,null,"⑪","⑩のうち優良認定処理業者への処理委託量",null,null,null,null,null,"⑭","⑩のうち認定熱回収業者以外の熱回収を行う業者への処理委託量"]
[null,"⑪　優良認定処理業者への処理委託量",null,null,null,0,null,"t",null,null,null,null,null,null,null,null,{"$f":"+ROUND(Z28,1)+ROUND(Z29,1)+ROUND(Z30,1)","v":0},null,null,null,"ｔ",null,null,"下水等放流前委託量",null,null,null,null,null,null,"ｔ",null,null,null,null,null,null,null,null,null,"ｔ"]
[null,"⑫　再生利用業者への処理委託量",null,null,null,0,null,"t",null,null,null,null,null,null,null,null,null,null,null,null,null,null,null,null,null,"【産業廃棄物の種類　（ア～ト）】",null,null,null,null,null,null,null,null,null,null,{"$f":"+IF(AK30=0,\"\",IF(AK27<AK30,\"エラー !：⑩の内数である⑪の量が⑩を超えています\",\"\"))","v":""},null,null,null,null,null,null,null,null,null,"ｔ"]
[null,"⑬　認定熱回収業者への処理委託量",null,null,null,0,null,"t",null,null,null,null,null,null,null,null,"B-2","最終処分委託量",null,null,null,null,null,null,null,"ｱ.　燃え殻\nｲ.　汚泥\nｳ.　廃油\nｴ.　廃酸\nｵ.　廃アルカリ\nｶ.　廃ﾌﾟﾗｽﾁｯｸ類\nｷ.　紙くず",null,null,null,null,"ｸ.　木くず\nｹ.　繊維くず\nｺ.　動植物性残さ\nｻ.　動物系固形不要物\nｼ.　ゴムくず\nｽ.　金属くず\nｾ.　ｶﾞﾗｽ・ｺﾝｸﾘｰﾄ・陶磁器くず",null,null,null,null,null,"ｿ.　鉱さい\nﾀ.　がれき類\nﾁ.　動物のふん尿\nﾂ.　動物の死体\nﾃ.　ばいじん\nト.　混合廃棄物その他",null,null,null,null,null,null,{"$f":"+IF(AR31=0,\"\",IF(AK27<(AR24+AR27+AR31),\"エラー !：⑩の内数である（⑫+⑬＋⑭）の量が⑩を超えています\",\"\"))","v":""}]
[null,"⑭　認定熱回収業者以外の熱回収を行う業者への処理委託量",null,null,null,0,null,"t",null,null,null,null,null,null,null,null,null,null,null,null,"ｔ"]
[null,null,{"$f":"+IF(F30=0,\"\",IF(F29<F30,\"エラー !：上の表は、⑩の内数である⑪の量が⑩を超えています\",\"\"))","v":""}]
[null,null,{"$f":"+IF(F31=0,\"\",IF(F29<F31,\"エラー !：上の表は、⑩の内数である⑫の量が⑩を超えています\",\"\"))","v":""}]
[null,null,{"$f":"+IF(F32=0,\"\",IF(F29<F32,\"エラー !：上の表は、⑩の内数である⑬の量が⑩を超えています\",\"\"))","v":""}]
[null,null,{"$f":"+IF(F33=0,\"\",IF(F29<F33,\"エラー !：上の表は、⑩の内数である⑭の量が⑩を超えています\",\"\"))","v":""}]

{"sheet":"ｷ.紙くず","index":7,"n_rows":37,"n_cols":47,"rows_kept":37,"cut":false,"hidden":false,"merged":[[26,43,26,45],[4,24,4,28],[11,32,11,37],[10,33,10,38],[2,40,3,42],[4,30,4,46],[2,43,2,44],[3,43,3,44],[2,26,2,28],[7,33,7,38],[8,32,8,37],[23,43,23,45],[22,44,22,46],[17,43,17,44],[25,44,25,46],[16,24,16,26],[15,43,15,44],[19,39,19,40],[17,32,17,35],[16,39,16,40],[16,33,16,36],[16,43,16,44],[13,33,13,38],[14,32,14,37],[10,11,23,11],[8,5,8,7],[6,11,7,26],[16,19,16,22],[26,1,26,4],[25,5,25,6],[22,5,22,7],[23,5,23,6],[25,11,32,11],[25,1,25,4],[25,15,25,18],[10,15,10,18],[11,14,11,17],[22,15,22,18],[17,14,17,17],[26,14,26,17],[19,15,19,18],[22,19,22,22],[23,14,23,17],[30,1,30,4],[26,5,26,6],[32,1,32,4],[31,1,31,4],[31,5,31,6],[1,1,2,6],[6,1,6,2],[10,6,10,7],[13,6,13,7],[24,1,24,4],[22,1,22,4],[6,3,6,7],[11,5,11,6],[14,5,14,6],[23,1,23,4],[24,5,24,6],[7,2,7,9],[19,1,21,7],[32,5,32,6],[28,5,28,6],[30,5,30,6],[27,5,27,6],[29,1,29,4],[29,5,29,6],[27,1,27,4],[28,1,28,4],[29,16,29,19],[29,36,29,39],[30,43,30,45],[28,44,29,46],[28,43,29,43],[29,25,29,29],[27,23,27,24],[31,36,33,39],[32,16,32,19],[31,25,33,29],[31,30,33,35],[30,36,30,41],[29,23,29,24],[31,17,31,20],[28,25,28,29],[26,36,26,39],[25,37,25,40],[27,25,27,29],[15,14,15,26],[17,23,17,25],[13,15,13,18],[28,23,28,24],[28,17,28,20],[21,14,21,20],[8,29,13,29],[16,29,20,29],[20,14,20,17],[20,23,20,25],[19,24,19,26],[16,15,16,18],[14,14,14,17],[28,37,28,40]]}
[null,null,null,null,null,null,null,null,null,null,null,null,null,null,null,null,null,"↓","注意：前年度の排出量のみでフロー図のデータ①がない場合にも、前年度データを該当欄に入力してください"]
[null,"産業廃棄物処理計画書"]
[null,null,null,null,null,null,null,null,null,null,null,null,null,null,null,null,null,null,null,null,null,null,null,null,null,null,null,null,null,null,null,null,null,null,null,null,null,null,null,null,"２－２",null,null,"法定",null,"自主"]
[null,null,null,null,null,null,null,null,null,null,null,null,null,null,null,null,null,null,null,null,null,null,null,null,null,null,null,null,null,null,null,null,null,null,null,null,null,null,null,null,null,null,null,{"$f":"+表紙!Q29","v":"〇"},null,{"$f":"+表紙!T29","v":""}]
[null,"別紙処理フロー",null,null,null,null,null,null,null,null,null,null,null,null,null,null,null,null,null,null,null,null,null,null,"事業場名称",null,null,null,null,"：",{"$f":"+表紙!F48","v":"横浜市各工事現場"}]
[null,"令和６年度発生する産業廃棄物ごとの目標量と処理計画"]
[null,"フローに記載した産業廃棄物の種類",null,"キ.　紙くず",null,null,null,null,null,null,null,"「紙くず」には業種指定があり、該当業種以外では一般廃棄物となり、報告対象外です。\n【該当業種】パルプ、紙又は紙加工品の製造業、新聞業（新聞巻取紙を使用して印刷発行を行うもの）、出版業（印刷出版を行うもの）、製本業、印刷物加工業、建設業（工作物の新築､改築､除去に伴って生じたもの）"]
[null,"※","本用紙は廃棄物の種類ごとに1枚の記載となります。異なる廃棄物の処理フローは別シートに記載してください。　　　　　　　　　　　　　　　　　　　　　　　　　　　　　　　　　　　　　　　　　　　　　　　　　　　　　　　　　　　　　　　　　　　　　",null,null,null,null,null,null,null,null,null,null,null,null,null,null,null,null,null,null,null,null,null,null,null,null,null,null,null,null,null,"⑧","自ら中間処理後に再生利用する量"]
[null,"（単位：t/年）",null,null,null,"有償物量",null,null,null,null,null,null,null,null,null,null,null,null,null,null,null,null,null,null,null,null,null,null,null,"ａ残さ物の自己処理",null,null,null,null,null,null,null,null,"ｔ"]
[]
[null,null,"不要物等発生量",null,null,"①","当該事業場における排出量",null,null,null,null,"Ａ　自己処理",null,null,"②","自ら直接再生利用する量",null,null,null,null,null,null,null,null,null,null,null,null,null,null,null,null,"⑨","自ら中間処理後に自ら埋立処分又は海洋投入処分する量"]
[null,null,null,null,null,{"$f":"+ROUND(O12,1)+ROUND(O15,1)+ROUND(O18,1)+ROUND(O24,1)+O27-ROUND(F15,1)","v":0},null,"ｔ",null,null,null,null,null,null,null,null,null,null,"ｔ",null,null,null,null,null,null,null,null,null,null,null,null,null,null,null,null,null,null,null,"ｔ"]
[]
[null,null,null,null,null,"※１","自社の他事業場からの搬入量",null,null,null,null,null,null,null,"③","自ら直接埋立処分又は海洋投入処分する量",null,null,null,null,null,null,null,null,null,null,null,null,null,null,null,null,"※3","自ら中間処理後に自社の他事業場での処理量"]
[null,null,null,null,null,null,null,"ｔ",null,null,null,null,null,null,null,null,null,null,"ｔ",null,null,null,null,null,null,null,null,null,null,null,null,null,null,null,null,null,null,null,"ｔ",null,null,null,null,"（目的別内訳）"]
[null,null,null,null,null,null,null,null,null,null,null,null,null,null,{"$f":"+IF(X18=0,\"\",IF(X18-O18=X18,\"エラー！：⑥残さ物量があるのに、④自ら中間処理した量がゼロになっています\",\"\"))","v":""},null,null,null,null,null,null,null,null,null,null,null,null,null,null,null,null,null,null,null,null,null,null,null,null,null,null,null,null,"再生利用前委託量",null,null,"ｔ"]
[null,null,null,null,null,null,null,null,null,null,null,null,null,null,"④","自ら中間処理する量",null,null,null,null,null,null,null,"⑥","自ら中間処理後の残さ量",null,null,null,null,"ｂ残さ物の委託処理",null,null,"ｂ","自ら中間処理後の処理委託量",null,null,null,null,null,"ｂ-1　中間処理委託量",null,null,null,"最終処分前\n委託量",null,null,"ｔ"]
[null,null,null,null,null,null,null,null,null,null,null,null,null,null,null,null,null,null,"ｔ",null,null,null,null,{"$f":"+ROUND(AG9,1)+ROUND(AG12,1)+ROUND(AG15,1)+AG18","v":0},null,null,"ｔ",null,null,null,null,null,{"$f":"+ROUND(AN18,1)+ROUND(AN21,1)","v":0},null,null,null,"ｔ",null,null,{"$f":"+ROUND(AT16,1)+ROUND(AT17,1)+ROUND(AT18,1)","v":0},"ｔ",null,null,"下水等放流前委託量",null,null,"ｔ"]
[]
[null,"注）右上のフローには、令和６年度の目標量を記載してください。下の表には、令和５年度実績を記載してください。　なお、様式３をあわせて提出する場合には、先に様式３を入力し、データ反映・印刷ツールを使用するとこちらに数値が反映されます。",null,null,null,null,null,null,null,null,null,null,null,null,"⑤","④のうち熱回収を行う量",null,null,null,null,null,null,null,"⑦","自ら中間処理により減量する量",null,null,null,null,null,null,null,null,null,null,null,null,null,null,"ｂ-2　最終処分委託量"]
[null,null,null,null,null,null,null,null,null,null,null,null,null,null,null,null,null,null,"ｔ",null,null,null,null,{"$f":"+O18-X18","v":0},null,null,"ｔ",null,null,null,null,null,null,null,null,null,null,null,null,null,"ｔ"]
[null,null,null,null,null,null,null,null,null,null,null,null,null,null,{"$f":"+IF(O21=0,\"\",IF(O18<O21,\"エラー !：④の内数である⑤の量が④を超えています\",\"\"))","v":""}]
[null,"項　目",null,null,null,"令和５年度実績",null,null,null,null,null,null,null,null,"※２","自社の他事業場での処理量",null,null,null,null,null,null,null,null,null,null,null,null,null,null,null,null,null,null,null,null,null,null,null,null,null,null,null,"⑫","⑩のうち再生利用業者への処理委託量"]
[null,"①　排出量",null,null,null,0,null,"t",null,null,null,null,null,null,null,null,null,null,"ｔ",null,null,null,null,null,null,null,null,null,null,null,null,null,null,null,null,null,null,null,null,null,null,null,null,{"$f":"+ROUND(AT16,1)+ROUND(Z28,1)","v":0},null,null,"ｔ"]
[null,"②＋⑧　自ら再生利用を行った量",null,null,null,0,null,"t"]
[null,"⑤　自ら熱回収を行った量",null,null,null,0,null,"t",null,null,null,"Ｂ　直接委託処理",null,null,"Ｂ","直接処理委託量",null,null,null,null,null,null,null,null,null,null,null,null,null,null,null,null,null,null,null,null,"⑩","直接及び自ら中間処理後の処理委託量",null,null,null,null,null,"⑬","⑩のうち認定熱回収業者への処理委託量"]
[null,"⑦　自ら中間処理により減量した量",null,null,null,0,null,"t",null,null,null,null,null,null,{"$f":"+Q30+ROUND(Q33,1)","v":0},null,null,null,"ｔ",null,null,null,null,"（目的別内訳）",null,null,null,null,null,null,null,null,null,null,null,null,{"$f":"+AG18+O27","v":0},null,null,null,"ｔ",null,null,null,null,null,"ｔ"]
[null,"③＋⑨　自ら埋立処分又は海洋投入処分を行った量",null,null,null,0,null,"t",null,null,null,null,null,null,null,null,null,null,null,null,null,null,null,"再生利用前委託量",null,null,null,null,null,null,"ｔ",null,null,null,null,null,null,null,null,null,null,null,null,{"$f":"+IF(AR27=0,\"\",IF(AK27<(AR24+AR27+AR31),\"エラー !：⑩の内数である（⑫+⑬＋⑭）の量が⑩を超えています\",\"\"))","v":""}]
[null,"⑩　全処理委託量",null,null,null,0,null,"t",null,null,null,null,null,null,null,null,"B-1","中間処理委託量",null,null,null,null,null,"最終処分前委託量",null,null,null,null,null,null,"ｔ",null,null,null,null,null,"⑪","⑩のうち優良認定処理業者への処理委託量",null,null,null,null,null,"⑭","⑩のうち認定熱回収業者以外の熱回収を行う業者への処理委託量"]
[null,"⑪　優良認定処理業者への処理委託量",null,null,null,0,null,"t",null,null,null,null,null,null,null,null,{"$f":"+ROUND(Z28,1)+ROUND(Z29,1)+ROUND(Z30,1)","v":0},null,null,null,"ｔ",null,null,"下水等放流前委託量",null,null,null,null,null,null,"ｔ",null,null,null,null,null,null,null,null,null,"ｔ"]
[null,"⑫　再生利用業者への処理委託量",null,null,null,0,null,"t",null,null,null,null,null,null,null,null,null,null,null,null,null,null,null,null,null,"【産業廃棄物の種類　（ア～ト）】",null,null,null,null,null,null,null,null,null,null,{"$f":"+IF(AK30=0,\"\",IF(AK27<AK30,\"エラー !：⑩の内数である⑪の量が⑩を超えています\",\"\"))","v":""},null,null,null,null,null,null,null,null,null,"ｔ"]
[null,"⑬　認定熱回収業者への処理委託量",null,null,null,0,null,"t",null,null,null,null,null,null,null,null,"B-2","最終処分委託量",null,null,null,null,null,null,null,"ｱ.　燃え殻\nｲ.　汚泥\nｳ.　廃油\nｴ.　廃酸\nｵ.　廃アルカリ\nｶ.　廃ﾌﾟﾗｽﾁｯｸ類\nｷ.　紙くず",null,null,null,null,"ｸ.　木くず\nｹ.　繊維くず\nｺ.　動植物性残さ\nｻ.　動物系固形不要物\nｼ.　ゴムくず\nｽ.　金属くず\nｾ.　ｶﾞﾗｽ・ｺﾝｸﾘｰﾄ・陶磁器くず",null,null,null,null,null,"ｿ.　鉱さい\nﾀ.　がれき類\nﾁ.　動物のふん尿\nﾂ.　動物の死体\nﾃ.　ばいじん\nト.　混合廃棄物その他",null,null,null,null,null,null,{"$f":"+IF(AR31=0,\"\",IF(AK27<(AR24+AR27+AR31),\"エラー !：⑩の内数である（⑫+⑬＋⑭）の量が⑩を超えています\",\"\"))","v":""}]
[null,"⑭　認定熱回収業者以外の熱回収を行う業者への処理委託量",null,null,null,0,null,"t",null,null,null,null,null,null,null,null,null,null,null,null,"ｔ"]
[null,null,{"$f":"+IF(F30=0,\"\",IF(F29<F30,\"エラー !：上の表は、⑩の内数である⑪の量が⑩を超えています\",\"\"))","v":""}]
[null,null,{"$f":"+IF(F31=0,\"\",IF(F29<F31,\"エラー !：上の表は、⑩の内数である⑫の量が⑩を超えています\",\"\"))","v":""}]
[null,null,{"$f":"+IF(F32=0,\"\",IF(F29<F32,\"エラー !：上の表は、⑩の内数である⑬の量が⑩を超えています\",\"\"))","v":""}]
[null,null,{"$f":"+IF(F33=0,\"\",IF(F29<F33,\"エラー !：上の表は、⑩の内数である⑭の量が⑩を超えています\",\"\"))","v":""}]

{"sheet":"ｸ.木くず","index":8,"n_rows":37,"n_cols":47,"rows_kept":37,"cut":false,"hidden":false,"merged":[[1,1,2,6],[2,40,3,42],[2,43,2,44],[10,6,10,7],[10,15,10,18],[2,26,2,28],[3,43,3,44],[4,24,4,28],[6,11,7,26],[10,11,23,11],[4,30,4,46],[17,23,17,25],[11,14,11,17],[16,29,20,29],[13,15,13,18],[8,29,13,29],[16,39,16,40],[14,32,14,37],[17,32,17,35],[16,15,16,18],[17,14,17,17],[8,5,8,7],[6,1,6,2],[23,5,23,6],[7,2,7,9],[11,5,11,6],[31,30,33,35],[25,15,25,18],[19,15,19,18],[20,14,20,17],[23,14,23,17],[19,24,19,26],[28,17,28,20],[27,25,27,29],[28,25,28,29],[29,25,29,29],[21,14,21,20],[22,19,22,22],[20,23,20,25],[7,33,7,38],[8,32,8,37],[11,32,11,37],[10,33,10,38],[27,5,27,6],[29,23,29,24],[28,23,28,24],[31,17,31,20],[29,16,29,19],[6,3,6,7],[13,6,13,7],[14,5,14,6],[26,43,26,45],[16,33,16,36],[17,43,17,44],[15,43,15,44],[16,43,16,44],[25,44,25,46],[23,43,23,45],[22,44,22,46],[26,36,26,39],[19,39,19,40],[22,15,22,18],[16,24,16,26],[14,14,14,17],[25,37,25,40],[24,5,24,6],[25,5,25,6],[15,14,15,26],[13,33,13,38],[26,14,26,17],[25,1,25,4],[16,19,16,22],[23,1,23,4],[24,1,24,4],[22,1,22,4],[19,1,21,7],[22,5,22,7],[26,1,26,4],[29,5,29,6],[28,1,28,4],[27,1,27,4],[26,5,26,6],[31,36,33,39],[30,43,30,45],[28,44,29,46],[28,43,29,43],[30,36,30,41],[28,37,28,40],[29,36,29,39],[32,1,32,4],[30,5,30,6],[30,1,30,4],[28,5,28,6],[31,1,31,4],[32,5,32,6],[29,1,29,4],[31,25,33,29],[31,5,31,6],[32,16,32,19],[25,11,32,11],[27,23,27,24]]}
[null,null,null,null,null,null,null,null,null,null,null,null,null,null,null,null,null,"↓","注意：前年度の排出量のみでフロー図のデータ①がない場合にも、前年度データを該当欄に入力してください"]
[null,"産業廃棄物処理計画書"]
[null,null,null,null,null,null,null,null,null,null,null,null,null,null,null,null,null,null,null,null,null,null,null,null,null,null,null,null,null,null,null,null,null,null,null,null,null,null,null,null,"２－２",null,null,"法定",null,"自主"]
[null,null,null,null,null,null,null,null,null,null,null,null,null,null,null,null,null,null,null,null,null,null,null,null,null,null,null,null,null,null,null,null,null,null,null,null,null,null,null,null,null,null,null,{"$f":"+表紙!Q29","v":"〇"},null,{"$f":"+表紙!T29","v":""}]
[null,"別紙処理フロー",null,null,null,null,null,null,null,null,null,null,null,null,null,null,null,null,null,null,null,null,null,null,"事業場名称",null,null,null,null,"：",{"$f":"+表紙!F48","v":"横浜市各工事現場"}]
[null,"令和６年度発生する産業廃棄物ごとの目標量と処理計画"]
[null,"フローに記載した産業廃棄物の種類",null,"ク.　木くず",null,null,null,null,null,null,null,"「木くず」には業種指定等があり、該当業種以外では一般廃棄物となり、報告対象外です。\n【該当業種】木材又は木製品の製造業（家具製造業を含む）、パルプ製造業、輸入木材の卸売業及び物品賃貸業に係るもの、建設業（工作物の新築､改築､除去に伴って生じたもの）。\n【全業種対象】貨物の流通のために使用したパレット（パレットへの貨物の積付けのために使用したこん包用の木材を含む。）"]
[null,"※","本用紙は廃棄物の種類ごとに1枚の記載となります。異なる廃棄物の処理フローは別シートに記載してください。　　　　　　　　　　　　　　　　　　　　　　　　　　　　　　　　　　　　　　　　　　　　　　　　　　　　　　　　　　　　　　　　　　　　　",null,null,null,null,null,null,null,null,null,null,null,null,null,null,null,null,null,null,null,null,null,null,null,null,null,null,null,null,null,"⑧","自ら中間処理後に再生利用する量"]
[null,"（単位：t/年）",null,null,null,"有償物量",null,null,null,null,null,null,null,null,null,null,null,null,null,null,null,null,null,null,null,null,null,null,null,"ａ残さ物の自己処理",null,null,null,null,null,null,null,null,"ｔ"]
[]
[null,null,"不要物等発生量",null,null,"①","当該事業場における排出量",null,null,null,null,"Ａ　自己処理",null,null,"②","自ら直接再生利用する量",null,null,null,null,null,null,null,null,null,null,null,null,null,null,null,null,"⑨","自ら中間処理後に自ら埋立処分又は海洋投入処分する量"]
[null,null,null,null,null,{"$f":"+ROUND(O12,1)+ROUND(O15,1)+ROUND(O18,1)+ROUND(O24,1)+O27-ROUND(F15,1)","v":0},null,"ｔ",null,null,null,null,null,null,null,null,null,null,"ｔ",null,null,null,null,null,null,null,null,null,null,null,null,null,null,null,null,null,null,null,"ｔ"]
[]
[null,null,null,null,null,"※１","自社の他事業場からの搬入量",null,null,null,null,null,null,null,"③","自ら直接埋立処分又は海洋投入処分する量",null,null,null,null,null,null,null,null,null,null,null,null,null,null,null,null,"※3","自ら中間処理後に自社の他事業場での処理量"]
[null,null,null,null,null,null,null,"ｔ",null,null,null,null,null,null,null,null,null,null,"ｔ",null,null,null,null,null,null,null,null,null,null,null,null,null,null,null,null,null,null,null,"ｔ",null,null,null,null,"（目的別内訳）"]
[null,null,null,null,null,null,null,null,null,null,null,null,null,null,{"$f":"+IF(X18=0,\"\",IF(X18-O18=X18,\"エラー！：⑥残さ物量があるのに、④自ら中間処理した量がゼロになっています\",\"\"))","v":""},null,null,null,null,null,null,null,null,null,null,null,null,null,null,null,null,null,null,null,null,null,null,null,null,null,null,null,null,"再生利用前委託量",null,null,"ｔ"]
[null,null,null,null,null,null,null,null,null,null,null,null,null,null,"④","自ら中間処理する量",null,null,null,null,null,null,null,"⑥","自ら中間処理後の残さ量",null,null,null,null,"ｂ残さ物の委託処理",null,null,"ｂ","自ら中間処理後の処理委託量",null,null,null,null,null,"ｂ-1　中間処理委託量",null,null,null,"最終処分前\n委託量",null,null,"ｔ"]
[null,null,null,null,null,null,null,null,null,null,null,null,null,null,null,null,null,null,"ｔ",null,null,null,null,{"$f":"+ROUND(AG9,1)+ROUND(AG12,1)+ROUND(AG15,1)+AG18","v":0},null,null,"ｔ",null,null,null,null,null,{"$f":"+ROUND(AN18,1)+ROUND(AN21,1)","v":0},null,null,null,"ｔ",null,null,{"$f":"+ROUND(AT16,1)+ROUND(AT17,1)+ROUND(AT18,1)","v":0},"ｔ",null,null,"下水等放流前委託量",null,null,"ｔ"]
[]
[null,"注）右上のフローには、令和６年度の目標量を記載してください。下の表には、令和５年度実績を記載してください。　なお、様式３をあわせて提出する場合には、先に様式３を入力し、データ反映・印刷ツールを使用するとこちらに数値が反映されます。",null,null,null,null,null,null,null,null,null,null,null,null,"⑤","④のうち熱回収を行う量",null,null,null,null,null,null,null,"⑦","自ら中間処理により減量する量",null,null,null,null,null,null,null,null,null,null,null,null,null,null,"ｂ-2　最終処分委託量"]
[null,null,null,null,null,null,null,null,null,null,null,null,null,null,null,null,null,null,"ｔ",null,null,null,null,{"$f":"+O18-X18","v":0},null,null,"ｔ",null,null,null,null,null,null,null,null,null,null,null,null,null,"ｔ"]
[null,null,null,null,null,null,null,null,null,null,null,null,null,null,{"$f":"+IF(O21=0,\"\",IF(O18<O21,\"エラー !：④の内数である⑤の量が④を超えています\",\"\"))","v":""}]
[null,"項　目",null,null,null,"令和５年度実績",null,null,null,null,null,null,null,null,"※２","自社の他事業場での処理量",null,null,null,null,null,null,null,null,null,null,null,null,null,null,null,null,null,null,null,null,null,null,null,null,null,null,null,"⑫","⑩のうち再生利用業者への処理委託量"]
[null,"①　排出量",null,null,null,0,null,"t",null,null,null,null,null,null,null,null,null,null,"ｔ",null,null,null,null,null,null,null,null,null,null,null,null,null,null,null,null,null,null,null,null,null,null,null,null,{"$f":"+ROUND(AT16,1)+ROUND(Z28,1)","v":0},null,null,"ｔ"]
[null,"②＋⑧　自ら再生利用を行った量",null,null,null,0,null,"t"]
[null,"⑤　自ら熱回収を行った量",null,null,null,0,null,"t",null,null,null,"Ｂ　直接委託処理",null,null,"Ｂ","直接処理委託量",null,null,null,null,null,null,null,null,null,null,null,null,null,null,null,null,null,null,null,null,"⑩","直接及び自ら中間処理後の処理委託量",null,null,null,null,null,"⑬","⑩のうち認定熱回収業者への処理委託量"]
[null,"⑦　自ら中間処理により減量した量",null,null,null,0,null,"t",null,null,null,null,null,null,{"$f":"+Q30+ROUND(Q33,1)","v":0},null,null,null,"ｔ",null,null,null,null,"（目的別内訳）",null,null,null,null,null,null,null,null,null,null,null,null,{"$f":"+AG18+O27","v":0},null,null,null,"ｔ",null,null,null,null,null,"ｔ"]
[null,"③＋⑨　自ら埋立処分又は海洋投入処分を行った量",null,null,null,0,null,"t",null,null,null,null,null,null,null,null,null,null,null,null,null,null,null,"再生利用前委託量",null,null,null,null,null,null,"ｔ",null,null,null,null,null,null,null,null,null,null,null,null,{"$f":"+IF(AR27=0,\"\",IF(AK27<(AR24+AR27+AR31),\"エラー !：⑩の内数である（⑫+⑬＋⑭）の量が⑩を超えています\",\"\"))","v":""}]
[null,"⑩　全処理委託量",null,null,null,0,null,"t",null,null,null,null,null,null,null,null,"B-1","中間処理委託量",null,null,null,null,null,"最終処分前委託量",null,null,null,null,null,null,"ｔ",null,null,null,null,null,"⑪","⑩のうち優良認定処理業者への処理委託量",null,null,null,null,null,"⑭","⑩のうち認定熱回収業者以外の熱回収を行う業者への処理委託量"]
[null,"⑪　優良認定処理業者への処理委託量",null,null,null,0,null,"t",null,null,null,null,null,null,null,null,{"$f":"+ROUND(Z28,1)+ROUND(Z29,1)+ROUND(Z30,1)","v":0},null,null,null,"ｔ",null,null,"下水等放流前委託量",null,null,null,null,null,null,"ｔ",null,null,null,null,null,null,null,null,null,"ｔ"]
[null,"⑫　再生利用業者への処理委託量",null,null,null,0,null,"t",null,null,null,null,null,null,null,null,null,null,null,null,null,null,null,null,null,"【産業廃棄物の種類　（ア～ト）】",null,null,null,null,null,null,null,null,null,null,{"$f":"+IF(AK30=0,\"\",IF(AK27<AK30,\"エラー !：⑩の内数である⑪の量が⑩を超えています\",\"\"))","v":""},null,null,null,null,null,null,null,null,null,"ｔ"]
[null,"⑬　認定熱回収業者への処理委託量",null,null,null,0,null,"t",null,null,null,null,null,null,null,null,"B-2","最終処分委託量",null,null,null,null,null,null,null,"ｱ.　燃え殻\nｲ.　汚泥\nｳ.　廃油\nｴ.　廃酸\nｵ.　廃アルカリ\nｶ.　廃ﾌﾟﾗｽﾁｯｸ類\nｷ.　紙くず",null,null,null,null,"ｸ.　木くず\nｹ.　繊維くず\nｺ.　動植物性残さ\nｻ.　動物系固形不要物\nｼ.　ゴムくず\nｽ.　金属くず\nｾ.　ｶﾞﾗｽ・ｺﾝｸﾘｰﾄ・陶磁器くず",null,null,null,null,null,"ｿ.　鉱さい\nﾀ.　がれき類\nﾁ.　動物のふん尿\nﾂ.　動物の死体\nﾃ.　ばいじん\nト.　混合廃棄物その他",null,null,null,null,null,null,{"$f":"+IF(AR31=0,\"\",IF(AK27<(AR24+AR27+AR31),\"エラー !：⑩の内数である（⑫+⑬＋⑭）の量が⑩を超えています\",\"\"))","v":""}]
[null,"⑭　認定熱回収業者以外の熱回収を行う業者への処理委託量",null,null,null,0,null,"t",null,null,null,null,null,null,null,null,null,null,null,null,"ｔ"]
[null,null,{"$f":"+IF(F30=0,\"\",IF(F29<F30,\"エラー !：上の表は、⑩の内数である⑪の量が⑩を超えています\",\"\"))","v":""}]
[null,null,{"$f":"+IF(F31=0,\"\",IF(F29<F31,\"エラー !：上の表は、⑩の内数である⑫の量が⑩を超えています\",\"\"))","v":""}]
[null,null,{"$f":"+IF(F32=0,\"\",IF(F29<F32,\"エラー !：上の表は、⑩の内数である⑬の量が⑩を超えています\",\"\"))","v":""}]
[null,null,{"$f":"+IF(F33=0,\"\",IF(F29<F33,\"エラー !：上の表は、⑩の内数である⑭の量が⑩を超えています\",\"\"))","v":""}]

{"sheet":"ｹ.繊維くず","index":9,"n_rows":37,"n_cols":47,"rows_kept":37,"cut":false,"hidden":false,"merged":[[26,43,26,45],[4,24,4,28],[11,32,11,37],[10,33,10,38],[2,40,3,42],[4,30,4,46],[2,43,2,44],[3,43,3,44],[2,26,2,28],[7,33,7,38],[8,32,8,37],[23,43,23,45],[22,44,22,46],[17,43,17,44],[25,44,25,46],[16,24,16,26],[15,43,15,44],[19,39,19,40],[17,32,17,35],[16,39,16,40],[16,33,16,36],[16,43,16,44],[13,33,13,38],[14,32,14,37],[10,11,23,11],[8,5,8,7],[6,11,7,26],[16,19,16,22],[26,1,26,4],[25,5,25,6],[22,5,22,7],[23,5,23,6],[25,11,32,11],[25,1,25,4],[25,15,25,18],[10,15,10,18],[11,14,11,17],[22,15,22,18],[17,14,17,17],[26,14,26,17],[19,15,19,18],[22,19,22,22],[23,14,23,17],[30,1,30,4],[26,5,26,6],[32,1,32,4],[31,1,31,4],[31,5,31,6],[1,1,2,6],[6,1,6,2],[10,6,10,7],[13,6,13,7],[24,1,24,4],[22,1,22,4],[6,3,6,7],[11,5,11,6],[14,5,14,6],[23,1,23,4],[24,5,24,6],[7,2,7,9],[19,1,21,7],[32,5,32,6],[28,5,28,6],[30,5,30,6],[27,5,27,6],[29,1,29,4],[29,5,29,6],[27,1,27,4],[28,1,28,4],[29,16,29,19],[29,36,29,39],[30,43,30,45],[28,44,29,46],[28,43,29,43],[29,25,29,29],[27,23,27,24],[31,36,33,39],[32,16,32,19],[31,25,33,29],[31,30,33,35],[30,36,30,41],[29,23,29,24],[31,17,31,20],[28,25,28,29],[26,36,26,39],[25,37,25,40],[27,25,27,29],[15,14,15,26],[17,23,17,25],[13,15,13,18],[28,23,28,24],[28,17,28,20],[21,14,21,20],[8,29,13,29],[16,29,20,29],[20,14,20,17],[20,23,20,25],[19,24,19,26],[16,15,16,18],[14,14,14,17],[28,37,28,40]]}
[null,null,null,null,null,null,null,null,null,null,null,null,null,null,null,null,null,"↓","注意：前年度の排出量のみでフロー図のデータ①がない場合にも、前年度データを該当欄に入力してください"]
[null,"産業廃棄物処理計画書"]
[null,null,null,null,null,null,null,null,null,null,null,null,null,null,null,null,null,null,null,null,null,null,null,null,null,null,null,null,null,null,null,null,null,null,null,null,null,null,null,null,"２－２",null,null,"法定",null,"自主"]
[null,null,null,null,null,null,null,null,null,null,null,null,null,null,null,null,null,null,null,null,null,null,null,null,null,null,null,null,null,null,null,null,null,null,null,null,null,null,null,null,null,null,null,{"$f":"+表紙!Q29","v":"〇"},null,{"$f":"+表紙!T29","v":""}]
[null,"別紙処理フロー",null,null,null,null,null,null,null,null,null,null,null,null,null,null,null,null,null,null,null,null,null,null,"事業場名称",null,null,null,null,"：",{"$f":"+表紙!F48","v":"横浜市各工事現場"}]
[null,"令和６年度発生する産業廃棄物ごとの目標量と処理計画"]
[null,"フローに記載した産業廃棄物の種類",null,"ケ.　繊維くず",null,null,null,null,null,null,null,"「繊維くず」には業種指定があり、該当業種以外では一般廃棄物となり、報告対象外です。\n【該当業種】繊維工業（衣服その他の繊維製品製造業を除く）、建設業（工作物の新築､改築､除去に伴って生じたもの）"]
[null,"※","本用紙は廃棄物の種類ごとに1枚の記載となります。異なる廃棄物の処理フローは別シートに記載してください。　　　　　　　　　　　　　　　　　　　　　　　　　　　　　　　　　　　　　　　　　　　　　　　　　　　　　　　　　　　　　　　　　　　　　",null,null,null,null,null,null,null,null,null,null,null,null,null,null,null,null,null,null,null,null,null,null,null,null,null,null,null,null,null,"⑧","自ら中間処理後に再生利用する量"]
[null,"（単位：t/年）",null,null,null,"有償物量",null,null,null,null,null,null,null,null,null,null,null,null,null,null,null,null,null,null,null,null,null,null,null,"ａ残さ物の自己処理",null,null,null,null,null,null,null,null,"ｔ"]
[]
[null,null,"不要物等発生量",null,null,"①","当該事業場における排出量",null,null,null,null,"Ａ　自己処理",null,null,"②","自ら直接再生利用する量",null,null,null,null,null,null,null,null,null,null,null,null,null,null,null,null,"⑨","自ら中間処理後に自ら埋立処分又は海洋投入処分する量"]
[null,null,null,null,null,{"$f":"+ROUND(O12,1)+ROUND(O15,1)+ROUND(O18,1)+ROUND(O24,1)+O27-ROUND(F15,1)","v":0},null,"ｔ",null,null,null,null,null,null,null,null,null,null,"ｔ",null,null,null,null,null,null,null,null,null,null,null,null,null,null,null,null,null,null,null,"ｔ"]
[]
[null,null,null,null,null,"※１","自社の他事業場からの搬入量",null,null,null,null,null,null,null,"③","自ら直接埋立処分又は海洋投入処分する量",null,null,null,null,null,null,null,null,null,null,null,null,null,null,null,null,"※3","自ら中間処理後に自社の他事業場での処理量"]
[null,null,null,null,null,null,null,"ｔ",null,null,null,null,null,null,null,null,null,null,"ｔ",null,null,null,null,null,null,null,null,null,null,null,null,null,null,null,null,null,null,null,"ｔ",null,null,null,null,"（目的別内訳）"]
[null,null,null,null,null,null,null,null,null,null,null,null,null,null,{"$f":"+IF(X18=0,\"\",IF(X18-O18=X18,\"エラー！：⑥残さ物量があるのに、④自ら中間処理した量がゼロになっています\",\"\"))","v":""},null,null,null,null,null,null,null,null,null,null,null,null,null,null,null,null,null,null,null,null,null,null,null,null,null,null,null,null,"再生利用前委託量",null,null,"ｔ"]
[null,null,null,null,null,null,null,null,null,null,null,null,null,null,"④","自ら中間処理する量",null,null,null,null,null,null,null,"⑥","自ら中間処理後の残さ量",null,null,null,null,"ｂ残さ物の委託処理",null,null,"ｂ","自ら中間処理後の処理委託量",null,null,null,null,null,"ｂ-1　中間処理委託量",null,null,null,"最終処分前\n委託量",null,null,"ｔ"]
[null,null,null,null,null,null,null,null,null,null,null,null,null,null,null,null,null,null,"ｔ",null,null,null,null,{"$f":"+ROUND(AG9,1)+ROUND(AG12,1)+ROUND(AG15,1)+AG18","v":0},null,null,"ｔ",null,null,null,null,null,{"$f":"+ROUND(AN18,1)+ROUND(AN21,1)","v":0},null,null,null,"ｔ",null,null,{"$f":"+ROUND(AT16,1)+ROUND(AT17,1)+ROUND(AT18,1)","v":0},"ｔ",null,null,"下水等放流前委託量",null,null,"ｔ"]
[]
[null,"注）右上のフローには、令和６年度の目標量を記載してください。下の表には、令和５年度実績を記載してください。　なお、様式３をあわせて提出する場合には、先に様式３を入力し、データ反映・印刷ツールを使用するとこちらに数値が反映されます。",null,null,null,null,null,null,null,null,null,null,null,null,"⑤","④のうち熱回収を行う量",null,null,null,null,null,null,null,"⑦","自ら中間処理により減量する量",null,null,null,null,null,null,null,null,null,null,null,null,null,null,"ｂ-2　最終処分委託量"]
[null,null,null,null,null,null,null,null,null,null,null,null,null,null,null,null,null,null,"ｔ",null,null,null,null,{"$f":"+O18-X18","v":0},null,null,"ｔ",null,null,null,null,null,null,null,null,null,null,null,null,null,"ｔ"]
[null,null,null,null,null,null,null,null,null,null,null,null,null,null,{"$f":"+IF(O21=0,\"\",IF(O18<O21,\"エラー !：④の内数である⑤の量が④を超えています\",\"\"))","v":""}]
[null,"項　目",null,null,null,"令和５年度実績",null,null,null,null,null,null,null,null,"※２","自社の他事業場での処理量",null,null,null,null,null,null,null,null,null,null,null,null,null,null,null,null,null,null,null,null,null,null,null,null,null,null,null,"⑫","⑩のうち再生利用業者への処理委託量"]
[null,"①　排出量",null,null,null,0,null,"t",null,null,null,null,null,null,null,null,null,null,"ｔ",null,null,null,null,null,null,null,null,null,null,null,null,null,null,null,null,null,null,null,null,null,null,null,null,{"$f":"+ROUND(AT16,1)+ROUND(Z28,1)","v":0},null,null,"ｔ"]
[null,"②＋⑧　自ら再生利用を行った量",null,null,null,0,null,"t"]
[null,"⑤　自ら熱回収を行った量",null,null,null,0,null,"t",null,null,null,"Ｂ　直接委託処理",null,null,"Ｂ","直接処理委託量",null,null,null,null,null,null,null,null,null,null,null,null,null,null,null,null,null,null,null,null,"⑩","直接及び自ら中間処理後の処理委託量",null,null,null,null,null,"⑬","⑩のうち認定熱回収業者への処理委託量"]
[null,"⑦　自ら中間処理により減量した量",null,null,null,0,null,"t",null,null,null,null,null,null,{"$f":"+Q30+ROUND(Q33,1)","v":0},null,null,null,"ｔ",null,null,null,null,"（目的別内訳）",null,null,null,null,null,null,null,null,null,null,null,null,{"$f":"+AG18+O27","v":0},null,null,null,"ｔ",null,null,null,null,null,"ｔ"]
[null,"③＋⑨　自ら埋立処分又は海洋投入処分を行った量",null,null,null,0,null,"t",null,null,null,null,null,null,null,null,null,null,null,null,null,null,null,"再生利用前委託量",null,null,null,null,null,null,"ｔ",null,null,null,null,null,null,null,null,null,null,null,null,{"$f":"+IF(AR27=0,\"\",IF(AK27<(AR24+AR27+AR31),\"エラー !：⑩の内数である（⑫+⑬＋⑭）の量が⑩を超えています\",\"\"))","v":""}]
[null,"⑩　全処理委託量",null,null,null,0,null,"t",null,null,null,null,null,null,null,null,"B-1","中間処理委託量",null,null,null,null,null,"最終処分前委託量",null,null,null,null,null,null,"ｔ",null,null,null,null,null,"⑪","⑩のうち優良認定処理業者への処理委託量",null,null,null,null,null,"⑭","⑩のうち認定熱回収業者以外の熱回収を行う業者への処理委託量"]
[null,"⑪　優良認定処理業者への処理委託量",null,null,null,0,null,"t",null,null,null,null,null,null,null,null,{"$f":"+ROUND(Z28,1)+ROUND(Z29,1)+ROUND(Z30,1)","v":0},null,null,null,"ｔ",null,null,"下水等放流前委託量",null,null,null,null,null,null,"ｔ",null,null,null,null,null,null,null,null,null,"ｔ"]
[null,"⑫　再生利用業者への処理委託量",null,null,null,0,null,"t",null,null,null,null,null,null,null,null,null,null,null,null,null,null,null,null,null,"【産業廃棄物の種類　（ア～ト）】",null,null,null,null,null,null,null,null,null,null,{"$f":"+IF(AK30=0,\"\",IF(AK27<AK30,\"エラー !：⑩の内数である⑪の量が⑩を超えています\",\"\"))","v":""},null,null,null,null,null,null,null,null,null,"ｔ"]
[null,"⑬　認定熱回収業者への処理委託量",null,null,null,0,null,"t",null,null,null,null,null,null,null,null,"B-2","最終処分委託量",null,null,null,null,null,null,null,"ｱ.　燃え殻\nｲ.　汚泥\nｳ.　廃油\nｴ.　廃酸\nｵ.　廃アルカリ\nｶ.　廃ﾌﾟﾗｽﾁｯｸ類\nｷ.　紙くず",null,null,null,null,"ｸ.　木くず\nｹ.　繊維くず\nｺ.　動植物性残さ\nｻ.　動物系固形不要物\nｼ.　ゴムくず\nｽ.　金属くず\nｾ.　ｶﾞﾗｽ・ｺﾝｸﾘｰﾄ・陶磁器くず",null,null,null,null,null,"ｿ.　鉱さい\nﾀ.　がれき類\nﾁ.　動物のふん尿\nﾂ.　動物の死体\nﾃ.　ばいじん\nト.　混合廃棄物その他",null,null,null,null,null,null,{"$f":"+IF(AR31=0,\"\",IF(AK27<(AR24+AR27+AR31),\"エラー !：⑩の内数である（⑫+⑬＋⑭）の量が⑩を超えています\",\"\"))","v":""}]
[null,"⑭　認定熱回収業者以外の熱回収を行う業者への処理委託量",null,null,null,0,null,"t",null,null,null,null,null,null,null,null,null,null,null,null,"ｔ"]
[null,null,{"$f":"+IF(F30=0,\"\",IF(F29<F30,\"エラー !：上の表は、⑩の内数である⑪の量が⑩を超えています\",\"\"))","v":""}]
[null,null,{"$f":"+IF(F31=0,\"\",IF(F29<F31,\"エラー !：上の表は、⑩の内数である⑫の量が⑩を超えています\",\"\"))","v":""}]
[null,null,{"$f":"+IF(F32=0,\"\",IF(F29<F32,\"エラー !：上の表は、⑩の内数である⑬の量が⑩を超えています\",\"\"))","v":""}]
[null,null,{"$f":"+IF(F33=0,\"\",IF(F29<F33,\"エラー !：上の表は、⑩の内数である⑭の量が⑩を超えています\",\"\"))","v":""}]

{"sheet":"ｺ.動植物性残さ","index":10,"n_rows":37,"n_cols":47,"rows_kept":37,"cut":false,"hidden":false,"merged":[[1,1,2,6],[2,40,3,42],[2,43,2,44],[10,6,10,7],[10,15,10,18],[2,26,2,28],[3,43,3,44],[4,24,4,28],[6,11,7,26],[10,11,23,11],[4,30,4,46],[17,23,17,25],[11,14,11,17],[16,29,20,29],[13,15,13,18],[8,29,13,29],[16,39,16,40],[14,32,14,37],[17,32,17,35],[16,15,16,18],[17,14,17,17],[8,5,8,7],[6,1,6,2],[23,5,23,6],[7,2,7,9],[11,5,11,6],[31,30,33,35],[25,15,25,18],[19,15,19,18],[20,14,20,17],[23,14,23,17],[19,24,19,26],[28,17,28,20],[27,25,27,29],[28,25,28,29],[29,25,29,29],[21,14,21,20],[22,19,22,22],[20,23,20,25],[7,33,7,38],[8,32,8,37],[11,32,11,37],[10,33,10,38],[27,5,27,6],[29,23,29,24],[28,23,28,24],[31,17,31,20],[29,16,29,19],[6,3,6,7],[13,6,13,7],[14,5,14,6],[26,43,26,45],[16,33,16,36],[17,43,17,44],[15,43,15,44],[16,43,16,44],[25,44,25,46],[23,43,23,45],[22,44,22,46],[26,36,26,39],[19,39,19,40],[22,15,22,18],[16,24,16,26],[14,14,14,17],[25,37,25,40],[24,5,24,6],[25,5,25,6],[15,14,15,26],[13,33,13,38],[26,14,26,17],[25,1,25,4],[16,19,16,22],[23,1,23,4],[24,1,24,4],[22,1,22,4],[19,1,21,7],[22,5,22,7],[26,1,26,4],[29,5,29,6],[28,1,28,4],[27,1,27,4],[26,5,26,6],[31,36,33,39],[30,43,30,45],[28,44,29,46],[28,43,29,43],[30,36,30,41],[28,37,28,40],[29,36,29,39],[32,1,32,4],[30,5,30,6],[30,1,30,4],[28,5,28,6],[31,1,31,4],[32,5,32,6],[29,1,29,4],[31,25,33,29],[31,5,31,6],[32,16,32,19],[25,11,32,11],[27,23,27,24]]}
[null,null,null,null,null,null,null,null,null,null,null,null,null,null,null,null,null,"↓","注意：前年度の排出量のみでフロー図のデータ①がない場合にも、前年度データを該当欄に入力してください"]
[null,"産業廃棄物処理計画書"]
[null,null,null,null,null,null,null,null,null,null,null,null,null,null,null,null,null,null,null,null,null,null,null,null,null,null,null,null,null,null,null,null,null,null,null,null,null,null,null,null,"２－２",null,null,"法定",null,"自主"]
[null,null,null,null,null,null,null,null,null,null,null,null,null,null,null,null,null,null,null,null,null,null,null,null,null,null,null,null,null,null,null,null,null,null,null,null,null,null,null,null,null,null,null,{"$f":"+表紙!Q29","v":"〇"},null,{"$f":"+表紙!T29","v":""}]
[null,"別紙処理フロー",null,null,null,null,null,null,null,null,null,null,null,null,null,null,null,null,null,null,null,null,null,null,"事業場名称",null,null,null,null,"：",{"$f":"+表紙!F48","v":"横浜市各工事現場"}]
[null,"令和６年度発生する産業廃棄物ごとの目標量と処理計画"]
[null,"フローに記載した産業廃棄物の種類",null,"コ.　動植物性残さ",null,null,null,null,null,null,null,"「動植物性残さ」には業種指定があり、該当業種以外では一般廃棄物となり、報告対象外です。\n【該当業種】食料品製造業、医薬品製造業、香料製造業において原料として使用した動物又は植物の固形状の不要物"]
[null,"※","本用紙は廃棄物の種類ごとに1枚の記載となります。異なる廃棄物の処理フローは別シートに記載してください。　　　　　　　　　　　　　　　　　　　　　　　　　　　　　　　　　　　　　　　　　　　　　　　　　　　　　　　　　　　　　　　　　　　　　",null,null,null,null,null,null,null,null,null,null,null,null,null,null,null,null,null,null,null,null,null,null,null,null,null,null,null,null,null,"⑧","自ら中間処理後に再生利用する量"]
[null,"（単位：t/年）",null,null,null,"有償物量",null,null,null,null,null,null,null,null,null,null,null,null,null,null,null,null,null,null,null,null,null,null,null,"ａ残さ物の自己処理",null,null,null,null,null,null,null,null,"ｔ"]
[]
[null,null,"不要物等発生量",null,null,"①","当該事業場における排出量",null,null,null,null,"Ａ　自己処理",null,null,"②","自ら直接再生利用する量",null,null,null,null,null,null,null,null,null,null,null,null,null,null,null,null,"⑨","自ら中間処理後に自ら埋立処分又は海洋投入処分する量"]
[null,null,null,null,null,{"$f":"+ROUND(O12,1)+ROUND(O15,1)+ROUND(O18,1)+ROUND(O24,1)+O27-ROUND(F15,1)","v":0},null,"ｔ",null,null,null,null,null,null,null,null,null,null,"ｔ",null,null,null,null,null,null,null,null,null,null,null,null,null,null,null,null,null,null,null,"ｔ"]
[]
[null,null,null,null,null,"※１","自社の他事業場からの搬入量",null,null,null,null,null,null,null,"③","自ら直接埋立処分又は海洋投入処分する量",null,null,null,null,null,null,null,null,null,null,null,null,null,null,null,null,"※3","自ら中間処理後に自社の他事業場での処理量"]
[null,null,null,null,null,null,null,"ｔ",null,null,null,null,null,null,null,null,null,null,"ｔ",null,null,null,null,null,null,null,null,null,null,null,null,null,null,null,null,null,null,null,"ｔ",null,null,null,null,"（目的別内訳）"]
[null,null,null,null,null,null,null,null,null,null,null,null,null,null,{"$f":"+IF(X18=0,\"\",IF(X18-O18=X18,\"エラー！：⑥残さ物量があるのに、④自ら中間処理した量がゼロになっています\",\"\"))","v":""},null,null,null,null,null,null,null,null,null,null,null,null,null,null,null,null,null,null,null,null,null,null,null,null,null,null,null,null,"再生利用前委託量",null,null,"ｔ"]
[null,null,null,null,null,null,null,null,null,null,null,null,null,null,"④","自ら中間処理する量",null,null,null,null,null,null,null,"⑥","自ら中間処理後の残さ量",null,null,null,null,"ｂ残さ物の委託処理",null,null,"ｂ","自ら中間処理後の処理委託量",null,null,null,null,null,"ｂ-1　中間処理委託量",null,null,null,"最終処分前\n委託量",null,null,"ｔ"]
[null,null,null,null,null,null,null,null,null,null,null,null,null,null,null,null,null,null,"ｔ",null,null,null,null,{"$f":"+ROUND(AG9,1)+ROUND(AG12,1)+ROUND(AG15,1)+AG18","v":0},null,null,"ｔ",null,null,null,null,null,{"$f":"+ROUND(AN18,1)+ROUND(AN21,1)","v":0},null,null,null,"ｔ",null,null,{"$f":"+ROUND(AT16,1)+ROUND(AT17,1)+ROUND(AT18,1)","v":0},"ｔ",null,null,"下水等放流前委託量",null,null,"ｔ"]
[]
[null,"注）右上のフローには、令和６年度の目標量を記載してください。下の表には、令和５年度実績を記載してください。　なお、様式３をあわせて提出する場合には、先に様式３を入力し、データ反映・印刷ツールを使用するとこちらに数値が反映されます。",null,null,null,null,null,null,null,null,null,null,null,null,"⑤","④のうち熱回収を行う量",null,null,null,null,null,null,null,"⑦","自ら中間処理により減量する量",null,null,null,null,null,null,null,null,null,null,null,null,null,null,"ｂ-2　最終処分委託量"]
[null,null,null,null,null,null,null,null,null,null,null,null,null,null,null,null,null,null,"ｔ",null,null,null,null,{"$f":"+O18-X18","v":0},null,null,"ｔ",null,null,null,null,null,null,null,null,null,null,null,null,null,"ｔ"]
[null,null,null,null,null,null,null,null,null,null,null,null,null,null,{"$f":"+IF(O21=0,\"\",IF(O18<O21,\"エラー !：④の内数である⑤の量が④を超えています\",\"\"))","v":""}]
[null,"項　目",null,null,null,"令和５年度実績",null,null,null,null,null,null,null,null,"※２","自社の他事業場での処理量",null,null,null,null,null,null,null,null,null,null,null,null,null,null,null,null,null,null,null,null,null,null,null,null,null,null,null,"⑫","⑩のうち再生利用業者への処理委託量"]
[null,"①　排出量",null,null,null,0,null,"t",null,null,null,null,null,null,null,null,null,null,"ｔ",null,null,null,null,null,null,null,null,null,null,null,null,null,null,null,null,null,null,null,null,null,null,null,null,{"$f":"+ROUND(AT16,1)+ROUND(Z28,1)","v":0},null,null,"ｔ"]
[null,"②＋⑧　自ら再生利用を行った量",null,null,null,0,null,"t"]
[null,"⑤　自ら熱回収を行った量",null,null,null,0,null,"t",null,null,null,"Ｂ　直接委託処理",null,null,"Ｂ","直接処理委託量",null,null,null,null,null,null,null,null,null,null,null,null,null,null,null,null,null,null,null,null,"⑩","直接及び自ら中間処理後の処理委託量",null,null,null,null,null,"⑬","⑩のうち認定熱回収業者への処理委託量"]
[null,"⑦　自ら中間処理により減量した量",null,null,null,0,null,"t",null,null,null,null,null,null,{"$f":"+Q30+ROUND(Q33,1)","v":0},null,null,null,"ｔ",null,null,null,null,"（目的別内訳）",null,null,null,null,null,null,null,null,null,null,null,null,{"$f":"+AG18+O27","v":0},null,null,null,"ｔ",null,null,null,null,null,"ｔ"]
[null,"③＋⑨　自ら埋立処分又は海洋投入処分を行った量",null,null,null,0,null,"t",null,null,null,null,null,null,null,null,null,null,null,null,null,null,null,"再生利用前委託量",null,null,null,null,null,null,"ｔ",null,null,null,null,null,null,null,null,null,null,null,null,{"$f":"+IF(AR27=0,\"\",IF(AK27<(AR24+AR27+AR31),\"エラー !：⑩の内数である（⑫+⑬＋⑭）の量が⑩を超えています\",\"\"))","v":""}]
[null,"⑩　全処理委託量",null,null,null,0,null,"t",null,null,null,null,null,null,null,null,"B-1","中間処理委託量",null,null,null,null,null,"最終処分前委託量",null,null,null,null,null,null,"ｔ",null,null,null,null,null,"⑪","⑩のうち優良認定処理業者への処理委託量",null,null,null,null,null,"⑭","⑩のうち認定熱回収業者以外の熱回収を行う業者への処理委託量"]
[null,"⑪　優良認定処理業者への処理委託量",null,null,null,0,null,"t",null,null,null,null,null,null,null,null,{"$f":"+ROUND(Z28,1)+ROUND(Z29,1)+ROUND(Z30,1)","v":0},null,null,null,"ｔ",null,null,"下水等放流前委託量",null,null,null,null,null,null,"ｔ",null,null,null,null,null,null,null,null,null,"ｔ"]
[null,"⑫　再生利用業者への処理委託量",null,null,null,0,null,"t",null,null,null,null,null,null,null,null,null,null,null,null,null,null,null,null,null,"【産業廃棄物の種類　（ア～ト）】",null,null,null,null,null,null,null,null,null,null,{"$f":"+IF(AK30=0,\"\",IF(AK27<AK30,\"エラー !：⑩の内数である⑪の量が⑩を超えています\",\"\"))","v":""},null,null,null,null,null,null,null,null,null,"ｔ"]
[null,"⑬　認定熱回収業者への処理委託量",null,null,null,0,null,"t",null,null,null,null,null,null,null,null,"B-2","最終処分委託量",null,null,null,null,null,null,null,"ｱ.　燃え殻\nｲ.　汚泥\nｳ.　廃油\nｴ.　廃酸\nｵ.　廃アルカリ\nｶ.　廃ﾌﾟﾗｽﾁｯｸ類\nｷ.　紙くず",null,null,null,null,"ｸ.　木くず\nｹ.　繊維くず\nｺ.　動植物性残さ\nｻ.　動物系固形不要物\nｼ.　ゴムくず\nｽ.　金属くず\nｾ.　ｶﾞﾗｽ・ｺﾝｸﾘｰﾄ・陶磁器くず",null,null,null,null,null,"ｿ.　鉱さい\nﾀ.　がれき類\nﾁ.　動物のふん尿\nﾂ.　動物の死体\nﾃ.　ばいじん\nト.　混合廃棄物その他",null,null,null,null,null,null,{"$f":"+IF(AR31=0,\"\",IF(AK27<(AR24+AR27+AR31),\"エラー !：⑩の内数である（⑫+⑬＋⑭）の量が⑩を超えています\",\"\"))","v":""}]
[null,"⑭　認定熱回収業者以外の熱回収を行う業者への処理委託量",null,null,null,0,null,"t",null,null,null,null,null,null,null,null,null,null,null,null,"ｔ"]
[null,null,{"$f":"+IF(F30=0,\"\",IF(F29<F30,\"エラー !：上の表は、⑩の内数である⑪の量が⑩を超えています\",\"\"))","v":""}]
[null,null,{"$f":"+IF(F31=0,\"\",IF(F29<F31,\"エラー !：上の表は、⑩の内数である⑫の量が⑩を超えています\",\"\"))","v":""}]
[null,null,{"$f":"+IF(F32=0,\"\",IF(F29<F32,\"エラー !：上の表は、⑩の内数である⑬の量が⑩を超えています\",\"\"))","v":""}]
[null,null,{"$f":"+IF(F33=0,\"\",IF(F29<F33,\"エラー !：上の表は、⑩の内数である⑭の量が⑩を超えています\",\"\"))","v":""}]

{"sheet":"ｻ.動物系固形不要物","index":11,"n_rows":37,"n_cols":47,"rows_kept":37,"cut":false,"hidden":false,"merged":[[26,43,26,45],[4,24,4,28],[11,32,11,37],[10,33,10,38],[2,40,3,42],[4,30,4,46],[2,43,2,44],[3,43,3,44],[2,26,2,28],[7,33,7,38],[8,32,8,37],[23,43,23,45],[22,44,22,46],[17,43,17,44],[25,44,25,46],[16,24,16,26],[15,43,15,44],[19,39,19,40],[17,32,17,35],[16,39,16,40],[16,33,16,36],[16,43,16,44],[13,33,13,38],[14,32,14,37],[10,11,23,11],[8,5,8,7],[6,11,7,26],[16,19,16,22],[26,1,26,4],[25,5,25,6],[22,5,22,7],[23,5,23,6],[25,11,32,11],[25,1,25,4],[25,15,25,18],[10,15,10,18],[11,14,11,17],[22,15,22,18],[17,14,17,17],[26,14,26,17],[19,15,19,18],[22,19,22,22],[23,14,23,17],[30,1,30,4],[26,5,26,6],[32,1,32,4],[31,1,31,4],[31,5,31,6],[1,1,2,6],[6,1,6,2],[10,6,10,7],[13,6,13,7],[24,1,24,4],[22,1,22,4],[6,3,6,7],[11,5,11,6],[14,5,14,6],[23,1,23,4],[24,5,24,6],[7,2,7,9],[19,1,21,7],[32,5,32,6],[28,5,28,6],[30,5,30,6],[27,5,27,6],[29,1,29,4],[29,5,29,6],[27,1,27,4],[28,1,28,4],[29,16,29,19],[29,36,29,39],[30,43,30,45],[28,44,29,46],[28,43,29,43],[29,25,29,29],[27,23,27,24],[31,36,33,39],[32,16,32,19],[31,25,33,29],[31,30,33,35],[30,36,30,41],[29,23,29,24],[31,17,31,20],[28,25,28,29],[26,36,26,39],[25,37,25,40],[27,25,27,29],[15,14,15,26],[17,23,17,25],[13,15,13,18],[28,23,28,24],[28,17,28,20],[21,14,21,20],[8,29,13,29],[16,29,20,29],[20,14,20,17],[20,23,20,25],[19,24,19,26],[16,15,16,18],[14,14,14,17],[28,37,28,40]]}
[null,null,null,null,null,null,null,null,null,null,null,null,null,null,null,null,null,"↓","注意：前年度の排出量のみでフロー図のデータ①がない場合にも、前年度データを該当欄に入力してください"]
[null,"産業廃棄物処理計画書"]
[null,null,null,null,null,null,null,null,null,null,null,null,null,null,null,null,null,null,null,null,null,null,null,null,null,null,null,null,null,null,null,null,null,null,null,null,null,null,null,null,"２－２",null,null,"法定",null,"自主"]
[null,null,null,null,null,null,null,null,null,null,null,null,null,null,null,null,null,null,null,null,null,null,null,null,null,null,null,null,null,null,null,null,null,null,null,null,null,null,null,null,null,null,null,{"$f":"+表紙!Q29","v":"〇"},null,{"$f":"+表紙!T29","v":""}]
[null,"別紙処理フロー",null,null,null,null,null,null,null,null,null,null,null,null,null,null,null,null,null,null,null,null,null,null,"事業場名称",null,null,null,null,"：",{"$f":"+表紙!F48","v":"横浜市各工事現場"}]
[null,"令和６年度発生する産業廃棄物ごとの目標量と処理計画"]
[null,"フローに記載した産業廃棄物の種類",null,"サ.　動物系固形不要物",null,null,null,null,null,null,null,"「動物系固形不要物」には業種指定があり、該当業種以外では一般廃棄物となり、報告対象外です。\n【該当業種】と畜場においてとさつし、又は解体した獣畜及び食鳥処理場において食鳥処理をした食鳥に係る固形状の不要物"]
[null,"※","本用紙は廃棄物の種類ごとに1枚の記載となります。異なる廃棄物の処理フローは別シートに記載してください。　　　　　　　　　　　　　　　　　　　　　　　　　　　　　　　　　　　　　　　　　　　　　　　　　　　　　　　　　　　　　　　　　　　　　",null,null,null,null,null,null,null,null,null,null,null,null,null,null,null,null,null,null,null,null,null,null,null,null,null,null,null,null,null,"⑧","自ら中間処理後に再生利用する量"]
[null,"（単位：t/年）",null,null,null,"有償物量",null,null,null,null,null,null,null,null,null,null,null,null,null,null,null,null,null,null,null,null,null,null,null,"ａ残さ物の自己処理",null,null,null,null,null,null,null,null,"ｔ"]
[]
[null,null,"不要物等発生量",null,null,"①","当該事業場における排出量",null,null,null,null,"Ａ　自己処理",null,null,"②","自ら直接再生利用する量",null,null,null,null,null,null,null,null,null,null,null,null,null,null,null,null,"⑨","自ら中間処理後に自ら埋立処分又は海洋投入処分する量"]
[null,null,null,null,null,{"$f":"+ROUND(O12,1)+ROUND(O15,1)+ROUND(O18,1)+ROUND(O24,1)+O27-ROUND(F15,1)","v":0},null,"ｔ",null,null,null,null,null,null,null,null,null,null,"ｔ",null,null,null,null,null,null,null,null,null,null,null,null,null,null,null,null,null,null,null,"ｔ"]
[]
[null,null,null,null,null,"※１","自社の他事業場からの搬入量",null,null,null,null,null,null,null,"③","自ら直接埋立処分又は海洋投入処分する量",null,null,null,null,null,null,null,null,null,null,null,null,null,null,null,null,"※3","自ら中間処理後に自社の他事業場での処理量"]
[null,null,null,null,null,null,null,"ｔ",null,null,null,null,null,null,null,null,null,null,"ｔ",null,null,null,null,null,null,null,null,null,null,null,null,null,null,null,null,null,null,null,"ｔ",null,null,null,null,"（目的別内訳）"]
[null,null,null,null,null,null,null,null,null,null,null,null,null,null,{"$f":"+IF(X18=0,\"\",IF(X18-O18=X18,\"エラー！：⑥残さ物量があるのに、④自ら中間処理した量がゼロになっています\",\"\"))","v":""},null,null,null,null,null,null,null,null,null,null,null,null,null,null,null,null,null,null,null,null,null,null,null,null,null,null,null,null,"再生利用前委託量",null,null,"ｔ"]
[null,null,null,null,null,null,null,null,null,null,null,null,null,null,"④","自ら中間処理する量",null,null,null,null,null,null,null,"⑥","自ら中間処理後の残さ量",null,null,null,null,"ｂ残さ物の委託処理",null,null,"ｂ","自ら中間処理後の処理委託量",null,null,null,null,null,"ｂ-1　中間処理委託量",null,null,null,"最終処分前\n委託量",null,null,"ｔ"]
[null,null,null,null,null,null,null,null,null,null,null,null,null,null,null,null,null,null,"ｔ",null,null,null,null,{"$f":"+ROUND(AG9,1)+ROUND(AG12,1)+ROUND(AG15,1)+AG18","v":0},null,null,"ｔ",null,null,null,null,null,{"$f":"+ROUND(AN18,1)+ROUND(AN21,1)","v":0},null,null,null,"ｔ",null,null,{"$f":"+ROUND(AT16,1)+ROUND(AT17,1)+ROUND(AT18,1)","v":0},"ｔ",null,null,"下水等放流前委託量",null,null,"ｔ"]
[]
[null,"注）右上のフローには、令和６年度の目標量を記載してください。下の表には、令和５年度実績を記載してください。　なお、様式３をあわせて提出する場合には、先に様式３を入力し、データ反映・印刷ツールを使用するとこちらに数値が反映されます。",null,null,null,null,null,null,null,null,null,null,null,null,"⑤","④のうち熱回収を行う量",null,null,null,null,null,null,null,"⑦","自ら中間処理により減量する量",null,null,null,null,null,null,null,null,null,null,null,null,null,null,"ｂ-2　最終処分委託量"]
[null,null,null,null,null,null,null,null,null,null,null,null,null,null,null,null,null,null,"ｔ",null,null,null,null,{"$f":"+O18-X18","v":0},null,null,"ｔ",null,null,null,null,null,null,null,null,null,null,null,null,null,"ｔ"]
[null,null,null,null,null,null,null,null,null,null,null,null,null,null,{"$f":"+IF(O21=0,\"\",IF(O18<O21,\"エラー !：④の内数である⑤の量が④を超えています\",\"\"))","v":""}]
[null,"項　目",null,null,null,"令和５年度実績",null,null,null,null,null,null,null,null,"※２","自社の他事業場での処理量",null,null,null,null,null,null,null,null,null,null,null,null,null,null,null,null,null,null,null,null,null,null,null,null,null,null,null,"⑫","⑩のうち再生利用業者への処理委託量"]
[null,"①　排出量",null,null,null,0,null,"t",null,null,null,null,null,null,null,null,null,null,"ｔ",null,null,null,null,null,null,null,null,null,null,null,null,null,null,null,null,null,null,null,null,null,null,null,null,{"$f":"+ROUND(AT16,1)+ROUND(Z28,1)","v":0},null,null,"ｔ"]
[null,"②＋⑧　自ら再生利用を行った量",null,null,null,0,null,"t"]
[null,"⑤　自ら熱回収を行った量",null,null,null,0,null,"t",null,null,null,"Ｂ　直接委託処理",null,null,"Ｂ","直接処理委託量",null,null,null,null,null,null,null,null,null,null,null,null,null,null,null,null,null,null,null,null,"⑩","直接及び自ら中間処理後の処理委託量",null,null,null,null,null,"⑬","⑩のうち認定熱回収業者への処理委託量"]
[null,"⑦　自ら中間処理により減量した量",null,null,null,0,null,"t",null,null,null,null,null,null,{"$f":"+Q30+ROUND(Q33,1)","v":0},null,null,null,"ｔ",null,null,null,null,"（目的別内訳）",null,null,null,null,null,null,null,null,null,null,null,null,{"$f":"+AG18+O27","v":0},null,null,null,"ｔ",null,null,null,null,null,"ｔ"]
[null,"③＋⑨　自ら埋立処分又は海洋投入処分を行った量",null,null,null,0,null,"t",null,null,null,null,null,null,null,null,null,null,null,null,null,null,null,"再生利用前委託量",null,null,null,null,null,null,"ｔ",null,null,null,null,null,null,null,null,null,null,null,null,{"$f":"+IF(AR27=0,\"\",IF(AK27<(AR24+AR27+AR31),\"エラー !：⑩の内数である（⑫+⑬＋⑭）の量が⑩を超えています\",\"\"))","v":""}]
[null,"⑩　全処理委託量",null,null,null,0,null,"t",null,null,null,null,null,null,null,null,"B-1","中間処理委託量",null,null,null,null,null,"最終処分前委託量",null,null,null,null,null,null,"ｔ",null,null,null,null,null,"⑪","⑩のうち優良認定処理業者への処理委託量",null,null,null,null,null,"⑭","⑩のうち認定熱回収業者以外の熱回収を行う業者への処理委託量"]
[null,"⑪　優良認定処理業者への処理委託量",null,null,null,0,null,"t",null,null,null,null,null,null,null,null,{"$f":"+ROUND(Z28,1)+ROUND(Z29,1)+ROUND(Z30,1)","v":0},null,null,null,"ｔ",null,null,"下水等放流前委託量",null,null,null,null,null,null,"ｔ",null,null,null,null,null,null,null,null,null,"ｔ"]
[null,"⑫　再生利用業者への処理委託量",null,null,null,0,null,"t",null,null,null,null,null,null,null,null,null,null,null,null,null,null,null,null,null,"【産業廃棄物の種類　（ア～ト）】",null,null,null,null,null,null,null,null,null,null,{"$f":"+IF(AK30=0,\"\",IF(AK27<AK30,\"エラー !：⑩の内数である⑪の量が⑩を超えています\",\"\"))","v":""},null,null,null,null,null,null,null,null,null,"ｔ"]
[null,"⑬　認定熱回収業者への処理委託量",null,null,null,0,null,"t",null,null,null,null,null,null,null,null,"B-2","最終処分委託量",null,null,null,null,null,null,null,"ｱ.　燃え殻\nｲ.　汚泥\nｳ.　廃油\nｴ.　廃酸\nｵ.　廃アルカリ\nｶ.　廃ﾌﾟﾗｽﾁｯｸ類\nｷ.　紙くず",null,null,null,null,"ｸ.　木くず\nｹ.　繊維くず\nｺ.　動植物性残さ\nｻ.　動物系固形不要物\nｼ.　ゴムくず\nｽ.　金属くず\nｾ.　ｶﾞﾗｽ・ｺﾝｸﾘｰﾄ・陶磁器くず",null,null,null,null,null,"ｿ.　鉱さい\nﾀ.　がれき類\nﾁ.　動物のふん尿\nﾂ.　動物の死体\nﾃ.　ばいじん\nト.　混合廃棄物その他",null,null,null,null,null,null,{"$f":"+IF(AR31=0,\"\",IF(AK27<(AR24+AR27+AR31),\"エラー !：⑩の内数である（⑫+⑬＋⑭）の量が⑩を超えています\",\"\"))","v":""}]
[null,"⑭　認定熱回収業者以外の熱回収を行う業者への処理委託量",null,null,null,0,null,"t",null,null,null,null,null,null,null,null,null,null,null,null,"ｔ"]
[null,null,{"$f":"+IF(F30=0,\"\",IF(F29<F30,\"エラー !：上の表は、⑩の内数である⑪の量が⑩を超えています\",\"\"))","v":""}]
[null,null,{"$f":"+IF(F31=0,\"\",IF(F29<F31,\"エラー !：上の表は、⑩の内数である⑫の量が⑩を超えています\",\"\"))","v":""}]
[null,null,{"$f":"+IF(F32=0,\"\",IF(F29<F32,\"エラー !：上の表は、⑩の内数である⑬の量が⑩を超えています\",\"\"))","v":""}]
[null,null,{"$f":"+IF(F33=0,\"\",IF(F29<F33,\"エラー !：上の表は、⑩の内数である⑭の量が⑩を超えています\",\"\"))","v":""}]

{"sheet":"ｼ.ｺﾞﾑくず","index":12,"n_rows":37,"n_cols":47,"rows_kept":37,"cut":false,"hidden":false,"merged":[[1,1,2,6],[16,43,16,44],[7,33,7,38],[11,14,11,17],[2,40,3,42],[8,29,13,29],[8,32,8,37],[11,32,11,37],[2,26,2,28],[13,15,13,18],[2,43,2,44],[6,1,6,2],[7,2,7,9],[6,3,6,7],[8,5,8,7],[3,43,3,44],[15,14,15,26],[16,24,16,26],[16,15,16,18],[13,33,13,38],[4,30,4,46],[4,24,4,28],[6,17,6,20],[14,14,14,17],[10,33,10,38],[26,43,26,45],[30,43,30,45],[28,44,29,46],[28,43,29,43],[25,44,25,46],[26,14,26,17],[25,15,25,18],[25,37,25,40],[31,30,33,35],[30,36,30,41],[22,15,22,18],[17,32,17,35],[17,14,17,17],[17,23,17,25],[28,37,28,40],[29,36,29,39],[31,25,33,29],[26,36,26,39],[27,25,27,29],[28,25,28,29],[27,23,27,24],[28,23,28,24],[31,36,33,39],[29,23,29,24],[29,25,29,29],[31,1,31,4],[32,1,32,4],[31,17,31,20],[28,1,28,4],[29,1,29,4],[30,1,30,4],[32,5,32,6],[29,5,29,6],[28,5,28,6],[32,16,32,19],[28,17,28,20],[30,5,30,6],[25,11,32,11],[29,16,29,19],[27,1,27,4],[27,5,27,6],[31,5,31,6],[22,1,22,4],[23,1,23,4],[24,5,24,6],[25,5,25,6],[26,5,26,6],[25,1,25,4],[26,1,26,4],[24,1,24,4],[23,5,23,6],[22,5,22,7],[19,1,21,7],[19,24,19,26],[22,19,22,22],[21,14,21,20],[19,15,19,18],[20,14,20,17],[20,23,20,25],[15,43,15,44],[17,43,17,44],[10,11,23,11],[16,33,16,36],[23,43,23,45],[22,44,22,46],[16,19,16,22],[19,39,19,40],[16,29,20,29],[23,14,23,17],[14,32,14,37],[13,6,13,7],[11,5,11,6],[10,6,10,7],[10,15,10,18],[14,5,14,6],[16,39,16,40]]}
[null,null,null,null,null,null,null,null,null,null,null,null,null,null,null,null,null,"↓","注意：前年度の排出量のみでフロー図のデータ①がない場合にも、前年度データを該当欄に入力してください"]
[null,"産業廃棄物処理計画書"]
[null,null,null,null,null,null,null,null,null,null,null,null,null,null,null,null,null,null,null,null,null,null,null,null,null,null,null,null,null,null,null,null,null,null,null,null,null,null,null,null,"２－２",null,null,"法定",null,"自主"]
[null,null,null,null,null,null,null,null,null,null,null,null,null,null,null,null,null,null,null,null,null,null,null,null,null,null,null,null,null,null,null,null,null,null,null,null,null,null,null,null,null,null,null,{"$f":"+表紙!Q29","v":"〇"},null,{"$f":"+表紙!T29","v":""}]
[null,"別紙処理フロー",null,null,null,null,null,null,null,null,null,null,null,null,null,null,null,null,null,null,null,null,null,null,"事業場名称",null,null,null,null,"：",{"$f":"+表紙!F48","v":"横浜市各工事現場"}]
[null,"令和６年度発生する産業廃棄物ごとの目標量と処理計画"]
[null,"フローに記載した産業廃棄物の種類",null,"シ.　ゴムくず"]
[null,"※","本用紙は廃棄物の種類ごとに1枚の記載となります。異なる廃棄物の処理フローは別シートに記載してください。　　　　　　　　　　　　　　　　　　　　　　　　　　　　　　　　　　　　　　　　　　　　　　　　　　　　　　　　　　　　　　　　　　　　　",null,null,null,null,null,null,null,null,null,null,null,null,null,null,null,null,null,null,null,null,null,null,null,null,null,null,null,null,null,"⑧","自ら中間処理後に再生利用する量"]
[null,"（単位：t/年）",null,null,null,"有償物量",null,null,null,null,null,null,null,null,null,null,null,null,null,null,null,null,null,null,null,null,null,null,null,"ａ残さ物の自己処理",null,null,null,null,null,null,null,null,"ｔ"]
[]
[null,null,"不要物等発生量",null,null,"①","当該事業場における排出量",null,null,null,null,"Ａ　自己処理",null,null,"②","自ら直接再生利用する量",null,null,null,null,null,null,null,null,null,null,null,null,null,null,null,null,"⑨","自ら中間処理後に自ら埋立処分又は海洋投入処分する量"]
[null,null,null,null,null,{"$f":"+ROUND(O12,1)+ROUND(O15,1)+ROUND(O18,1)+ROUND(O24,1)+O27-ROUND(F15,1)","v":0},null,"ｔ",null,null,null,null,null,null,null,null,null,null,"ｔ",null,null,null,null,null,null,null,null,null,null,null,null,null,null,null,null,null,null,null,"ｔ"]
[]
[null,null,null,null,null,"※１","自社の他事業場からの搬入量",null,null,null,null,null,null,null,"③","自ら直接埋立処分又は海洋投入処分する量",null,null,null,null,null,null,null,null,null,null,null,null,null,null,null,null,"※3","自ら中間処理後に自社の他事業場での処理量"]
[null,null,null,null,null,null,null,"ｔ",null,null,null,null,null,null,null,null,null,null,"ｔ",null,null,null,null,null,null,null,null,null,null,null,null,null,null,null,null,null,null,null,"ｔ",null,null,null,null,"（目的別内訳）"]
[null,null,null,null,null,null,null,null,null,null,null,null,null,null,{"$f":"+IF(X18=0,\"\",IF(X18-O18=X18,\"エラー！：⑥残さ物量があるのに、④自ら中間処理した量がゼロになっています\",\"\"))","v":""},null,null,null,null,null,null,null,null,null,null,null,null,null,null,null,null,null,null,null,null,null,null,null,null,null,null,null,null,"再生利用前委託量",null,null,"ｔ"]
[null,null,null,null,null,null,null,null,null,null,null,null,null,null,"④","自ら中間処理する量",null,null,null,null,null,null,null,"⑥","自ら中間処理後の残さ量",null,null,null,null,"ｂ残さ物の委託処理",null,null,"ｂ","自ら中間処理後の処理委託量",null,null,null,null,null,"ｂ-1　中間処理委託量",null,null,null,"最終処分前\n委託量",null,null,"ｔ"]
[null,null,null,null,null,null,null,null,null,null,null,null,null,null,null,null,null,null,"ｔ",null,null,null,null,{"$f":"+ROUND(AG9,1)+ROUND(AG12,1)+ROUND(AG15,1)+AG18","v":0},null,null,"ｔ",null,null,null,null,null,{"$f":"+ROUND(AN18,1)+ROUND(AN21,1)","v":0},null,null,null,"ｔ",null,null,{"$f":"+ROUND(AT16,1)+ROUND(AT17,1)+ROUND(AT18,1)","v":0},"ｔ",null,null,"下水等放流前委託量",null,null,"ｔ"]
[]
[null,"注）右上のフローには、令和６年度の目標量を記載してください。下の表には、令和５年度実績を記載してください。　なお、様式３をあわせて提出する場合には、先に様式３を入力し、データ反映・印刷ツールを使用するとこちらに数値が反映されます。",null,null,null,null,null,null,null,null,null,null,null,null,"⑤","④のうち熱回収を行う量",null,null,null,null,null,null,null,"⑦","自ら中間処理により減量する量",null,null,null,null,null,null,null,null,null,null,null,null,null,null,"ｂ-2　最終処分委託量"]
[null,null,null,null,null,null,null,null,null,null,null,null,null,null,null,null,null,null,"ｔ",null,null,null,null,{"$f":"+O18-X18","v":0},null,null,"ｔ",null,null,null,null,null,null,null,null,null,null,null,null,null,"ｔ"]
[null,null,null,null,null,null,null,null,null,null,null,null,null,null,{"$f":"+IF(O21=0,\"\",IF(O18<O21,\"エラー !：④の内数である⑤の量が④を超えています\",\"\"))","v":""}]
[null,"項　目",null,null,null,"令和５年度実績",null,null,null,null,null,null,null,null,"※２","自社の他事業場での処理量",null,null,null,null,null,null,null,null,null,null,null,null,null,null,null,null,null,null,null,null,null,null,null,null,null,null,null,"⑫","⑩のうち再生利用業者への処理委託量"]
[null,"①　排出量",null,null,null,0,null,"t",null,null,null,null,null,null,null,null,null,null,"ｔ",null,null,null,null,null,null,null,null,null,null,null,null,null,null,null,null,null,null,null,null,null,null,null,null,{"$f":"+ROUND(AT16,1)+ROUND(Z28,1)","v":0},null,null,"ｔ"]
[null,"②＋⑧　自ら再生利用を行った量",null,null,null,0,null,"t"]
[null,"⑤　自ら熱回収を行った量",null,null,null,0,null,"t",null,null,null,"Ｂ　直接委託処理",null,null,"Ｂ","直接処理委託量",null,null,null,null,null,null,null,null,null,null,null,null,null,null,null,null,null,null,null,null,"⑩","直接及び自ら中間処理後の処理委託量",null,null,null,null,null,"⑬","⑩のうち認定熱回収業者への処理委託量"]
[null,"⑦　自ら中間処理により減量した量",null,null,null,0,null,"t",null,null,null,null,null,null,{"$f":"+Q30+ROUND(Q33,1)","v":0},null,null,null,"ｔ",null,null,null,null,"（目的別内訳）",null,null,null,null,null,null,null,null,null,null,null,null,{"$f":"+AG18+O27","v":0},null,null,null,"ｔ",null,null,null,null,null,"ｔ"]
[null,"③＋⑨　自ら埋立処分又は海洋投入処分を行った量",null,null,null,0,null,"t",null,null,null,null,null,null,null,null,null,null,null,null,null,null,null,"再生利用前委託量",null,null,null,null,null,null,"ｔ",null,null,null,null,null,null,null,null,null,null,null,null,{"$f":"+IF(AR27=0,\"\",IF(AK27<(AR24+AR27+AR31),\"エラー !：⑩の内数である（⑫+⑬＋⑭）の量が⑩を超えています\",\"\"))","v":""}]
[null,"⑩　全処理委託量",null,null,null,0,null,"t",null,null,null,null,null,null,null,null,"B-1","中間処理委託量",null,null,null,null,null,"最終処分前委託量",null,null,null,null,null,null,"ｔ",null,null,null,null,null,"⑪","⑩のうち優良認定処理業者への処理委託量",null,null,null,null,null,"⑭","⑩のうち認定熱回収業者以外の熱回収を行う業者への処理委託量"]
[null,"⑪　優良認定処理業者への処理委託量",null,null,null,0,null,"t",null,null,null,null,null,null,null,null,{"$f":"+ROUND(Z28,1)+ROUND(Z29,1)+ROUND(Z30,1)","v":0},null,null,null,"ｔ",null,null,"下水等放流前委託量",null,null,null,null,null,null,"ｔ",null,null,null,null,null,null,null,null,null,"ｔ"]
[null,"⑫　再生利用業者への処理委託量",null,null,null,0,null,"t",null,null,null,null,null,null,null,null,null,null,null,null,null,null,null,null,null,"【産業廃棄物の種類　（ア～ト）】",null,null,null,null,null,null,null,null,null,null,{"$f":"+IF(AK30=0,\"\",IF(AK27<AK30,\"エラー !：⑩の内数である⑪の量が⑩を超えています\",\"\"))","v":""},null,null,null,null,null,null,null,null,null,"ｔ"]
[null,"⑬　認定熱回収業者への処理委託量",null,null,null,0,null,"t",null,null,null,null,null,null,null,null,"B-2","最終処分委託量",null,null,null,null,null,null,null,"ｱ.　燃え殻\nｲ.　汚泥\nｳ.　廃油\nｴ.　廃酸\nｵ.　廃アルカリ\nｶ.　廃ﾌﾟﾗｽﾁｯｸ類\nｷ.　紙くず",null,null,null,null,"ｸ.　木くず\nｹ.　繊維くず\nｺ.　動植物性残さ\nｻ.　動物系固形不要物\nｼ.　ゴムくず\nｽ.　金属くず\nｾ.　ｶﾞﾗｽ・ｺﾝｸﾘｰﾄ・陶磁器くず",null,null,null,null,null,"ｿ.　鉱さい\nﾀ.　がれき類\nﾁ.　動物のふん尿\nﾂ.　動物の死体\nﾃ.　ばいじん\nト.　混合廃棄物その他",null,null,null,null,null,null,{"$f":"+IF(AR31=0,\"\",IF(AK27<(AR24+AR27+AR31),\"エラー !：⑩の内数である（⑫+⑬＋⑭）の量が⑩を超えています\",\"\"))","v":""}]
[null,"⑭　認定熱回収業者以外の熱回収を行う業者への処理委託量",null,null,null,0,null,"t",null,null,null,null,null,null,null,null,null,null,null,null,"ｔ"]
[null,null,{"$f":"+IF(F30=0,\"\",IF(F29<F30,\"エラー !：上の表は、⑩の内数である⑪の量が⑩を超えています\",\"\"))","v":""}]
[null,null,{"$f":"+IF(F31=0,\"\",IF(F29<F31,\"エラー !：上の表は、⑩の内数である⑫の量が⑩を超えています\",\"\"))","v":""}]
[null,null,{"$f":"+IF(F32=0,\"\",IF(F29<F32,\"エラー !：上の表は、⑩の内数である⑬の量が⑩を超えています\",\"\"))","v":""}]
[null,null,{"$f":"+IF(F33=0,\"\",IF(F29<F33,\"エラー !：上の表は、⑩の内数である⑭の量が⑩を超えています\",\"\"))","v":""}]

{"sheet":"ｽ.金属くず","index":13,"n_rows":37,"n_cols":47,"rows_kept":37,"cut":false,"hidden":false,"merged":[[1,1,2,6],[16,43,16,44],[7,33,7,38],[11,14,11,17],[2,40,3,42],[8,29,13,29],[8,32,8,37],[11,32,11,37],[2,26,2,28],[13,15,13,18],[2,43,2,44],[6,1,6,2],[7,2,7,9],[6,3,6,7],[8,5,8,7],[3,43,3,44],[15,14,15,26],[16,24,16,26],[16,15,16,18],[13,33,13,38],[4,30,4,46],[4,24,4,28],[6,17,6,20],[14,14,14,17],[10,33,10,38],[26,43,26,45],[30,43,30,45],[28,44,29,46],[28,43,29,43],[25,44,25,46],[26,14,26,17],[25,15,25,18],[25,37,25,40],[31,30,33,35],[30,36,30,41],[22,15,22,18],[17,32,17,35],[17,14,17,17],[17,23,17,25],[28,37,28,40],[29,36,29,39],[31,25,33,29],[26,36,26,39],[27,25,27,29],[28,25,28,29],[27,23,27,24],[28,23,28,24],[31,36,33,39],[29,23,29,24],[29,25,29,29],[31,1,31,4],[32,1,32,4],[31,17,31,20],[28,1,28,4],[29,1,29,4],[30,1,30,4],[32,5,32,6],[29,5,29,6],[28,5,28,6],[32,16,32,19],[28,17,28,20],[30,5,30,6],[25,11,32,11],[29,16,29,19],[27,1,27,4],[27,5,27,6],[31,5,31,6],[22,1,22,4],[23,1,23,4],[24,5,24,6],[25,5,25,6],[26,5,26,6],[25,1,25,4],[26,1,26,4],[24,1,24,4],[23,5,23,6],[22,5,22,7],[19,1,21,7],[19,24,19,26],[22,19,22,22],[21,14,21,20],[19,15,19,18],[20,14,20,17],[20,23,20,25],[15,43,15,44],[17,43,17,44],[10,11,23,11],[16,33,16,36],[23,43,23,45],[22,44,22,46],[16,19,16,22],[19,39,19,40],[16,29,20,29],[23,14,23,17],[14,32,14,37],[13,6,13,7],[11,5,11,6],[10,6,10,7],[10,15,10,18],[14,5,14,6],[16,39,16,40]]}
[null,null,null,null,null,null,null,null,null,null,null,null,null,null,null,null,null,"↓","注意：前年度の排出量のみでフロー図のデータ①がない場合にも、前年度データを該当欄に入力してください"]
[null,"産業廃棄物処理計画書"]
[null,null,null,null,null,null,null,null,null,null,null,null,null,null,null,null,null,null,null,null,null,null,null,null,null,null,null,null,null,null,null,null,null,null,null,null,null,null,null,null,"２－２",null,null,"法定",null,"自主"]
[null,null,null,null,null,null,null,null,null,null,null,null,null,null,null,null,null,null,null,null,null,null,null,null,null,null,null,null,null,null,null,null,null,null,null,null,null,null,null,null,null,null,null,{"$f":"+表紙!Q29","v":"〇"},null,{"$f":"+表紙!T29","v":""}]
[null,"別紙処理フロー",null,null,null,null,null,null,null,null,null,null,null,null,null,null,null,null,null,null,null,null,null,null,"事業場名称",null,null,null,null,"：",{"$f":"+表紙!F48","v":"横浜市各工事現場"}]
[null,"令和６年度発生する産業廃棄物ごとの目標量と処理計画"]
[null,"フローに記載した産業廃棄物の種類",null,"ス.　金属くず"]
[null,"※","本用紙は廃棄物の種類ごとに1枚の記載となります。異なる廃棄物の処理フローは別シートに記載してください。　　　　　　　　　　　　　　　　　　　　　　　　　　　　　　　　　　　　　　　　　　　　　　　　　　　　　　　　　　　　　　　　　　　　　",null,null,null,null,null,null,null,null,null,null,null,null,null,null,null,null,null,null,null,null,null,null,null,null,null,null,null,null,null,"⑧","自ら中間処理後に再生利用する量"]
[null,"（単位：t/年）",null,null,null,"有償物量",null,null,null,null,null,null,null,null,null,null,null,null,null,null,null,null,null,null,null,null,null,null,null,"ａ残さ物の自己処理",null,null,null,null,null,null,null,null,"ｔ"]
[]
[null,null,"不要物等発生量",null,null,"①","当該事業場における排出量",null,null,null,null,"Ａ　自己処理",null,null,"②","自ら直接再生利用する量",null,null,null,null,null,null,null,null,null,null,null,null,null,null,null,null,"⑨","自ら中間処理後に自ら埋立処分又は海洋投入処分する量"]
[null,null,null,null,null,{"$f":"+ROUND(O12,1)+ROUND(O15,1)+ROUND(O18,1)+ROUND(O24,1)+O27-ROUND(F15,1)","v":0},null,"ｔ",null,null,null,null,null,null,null,null,null,null,"ｔ",null,null,null,null,null,null,null,null,null,null,null,null,null,null,null,null,null,null,null,"ｔ"]
[]
[null,null,null,null,null,"※１","自社の他事業場からの搬入量",null,null,null,null,null,null,null,"③","自ら直接埋立処分又は海洋投入処分する量",null,null,null,null,null,null,null,null,null,null,null,null,null,null,null,null,"※3","自ら中間処理後に自社の他事業場での処理量"]
[null,null,null,null,null,null,null,"ｔ",null,null,null,null,null,null,null,null,null,null,"ｔ",null,null,null,null,null,null,null,null,null,null,null,null,null,null,null,null,null,null,null,"ｔ",null,null,null,null,"（目的別内訳）"]
[null,null,null,null,null,null,null,null,null,null,null,null,null,null,{"$f":"+IF(X18=0,\"\",IF(X18-O18=X18,\"エラー！：⑥残さ物量があるのに、④自ら中間処理した量がゼロになっています\",\"\"))","v":""},null,null,null,null,null,null,null,null,null,null,null,null,null,null,null,null,null,null,null,null,null,null,null,null,null,null,null,null,"再生利用前委託量",null,null,"ｔ"]
[null,null,null,null,null,null,null,null,null,null,null,null,null,null,"④","自ら中間処理する量",null,null,null,null,null,null,null,"⑥","自ら中間処理後の残さ量",null,null,null,null,"ｂ残さ物の委託処理",null,null,"ｂ","自ら中間処理後の処理委託量",null,null,null,null,null,"ｂ-1　中間処理委託量",null,null,null,"最終処分前\n委託量",null,null,"ｔ"]
[null,null,null,null,null,null,null,null,null,null,null,null,null,null,null,null,null,null,"ｔ",null,null,null,null,{"$f":"+ROUND(AG9,1)+ROUND(AG12,1)+ROUND(AG15,1)+AG18","v":0},null,null,"ｔ",null,null,null,null,null,{"$f":"+ROUND(AN18,1)+ROUND(AN21,1)","v":0},null,null,null,"ｔ",null,null,{"$f":"+ROUND(AT16,1)+ROUND(AT17,1)+ROUND(AT18,1)","v":0},"ｔ",null,null,"下水等放流前委託量",null,null,"ｔ"]
[]
[null,"注）右上のフローには、令和６年度の目標量を記載してください。下の表には、令和５年度実績を記載してください。　なお、様式３をあわせて提出する場合には、先に様式３を入力し、データ反映・印刷ツールを使用するとこちらに数値が反映されます。",null,null,null,null,null,null,null,null,null,null,null,null,"⑤","④のうち熱回収を行う量",null,null,null,null,null,null,null,"⑦","自ら中間処理により減量する量",null,null,null,null,null,null,null,null,null,null,null,null,null,null,"ｂ-2　最終処分委託量"]
[null,null,null,null,null,null,null,null,null,null,null,null,null,null,null,null,null,null,"ｔ",null,null,null,null,{"$f":"+O18-X18","v":0},null,null,"ｔ",null,null,null,null,null,null,null,null,null,null,null,null,null,"ｔ"]
[null,null,null,null,null,null,null,null,null,null,null,null,null,null,{"$f":"+IF(O21=0,\"\",IF(O18<O21,\"エラー !：④の内数である⑤の量が④を超えています\",\"\"))","v":""}]
[null,"項　目",null,null,null,"令和５年度実績",null,null,null,null,null,null,null,null,"※２","自社の他事業場での処理量",null,null,null,null,null,null,null,null,null,null,null,null,null,null,null,null,null,null,null,null,null,null,null,null,null,null,null,"⑫","⑩のうち再生利用業者への処理委託量"]
[null,"①　排出量",null,null,null,0,null,"t",null,null,null,null,null,null,null,null,null,null,"ｔ",null,null,null,null,null,null,null,null,null,null,null,null,null,null,null,null,null,null,null,null,null,null,null,null,{"$f":"+ROUND(AT16,1)+ROUND(Z28,1)","v":0},null,null,"ｔ"]
[null,"②＋⑧　自ら再生利用を行った量",null,null,null,0,null,"t"]
[null,"⑤　自ら熱回収を行った量",null,null,null,0,null,"t",null,null,null,"Ｂ　直接委託処理",null,null,"Ｂ","直接処理委託量",null,null,null,null,null,null,null,null,null,null,null,null,null,null,null,null,null,null,null,null,"⑩","直接及び自ら中間処理後の処理委託量",null,null,null,null,null,"⑬","⑩のうち認定熱回収業者への処理委託量"]
[null,"⑦　自ら中間処理により減量した量",null,null,null,0,null,"t",null,null,null,null,null,null,{"$f":"+Q30+ROUND(Q33,1)","v":0},null,null,null,"ｔ",null,null,null,null,"（目的別内訳）",null,null,null,null,null,null,null,null,null,null,null,null,{"$f":"+AG18+O27","v":0},null,null,null,"ｔ",null,null,null,null,null,"ｔ"]
[null,"③＋⑨　自ら埋立処分又は海洋投入処分を行った量",null,null,null,0,null,"t",null,null,null,null,null,null,null,null,null,null,null,null,null,null,null,"再生利用前委託量",null,null,null,null,null,null,"ｔ",null,null,null,null,null,null,null,null,null,null,null,null,{"$f":"+IF(AR27=0,\"\",IF(AK27<(AR24+AR27+AR31),\"エラー !：⑩の内数である（⑫+⑬＋⑭）の量が⑩を超えています\",\"\"))","v":""}]
[null,"⑩　全処理委託量",null,null,null,0,null,"t",null,null,null,null,null,null,null,null,"B-1","中間処理委託量",null,null,null,null,null,"最終処分前委託量",null,null,null,null,null,null,"ｔ",null,null,null,null,null,"⑪","⑩のうち優良認定処理業者への処理委託量",null,null,null,null,null,"⑭","⑩のうち認定熱回収業者以外の熱回収を行う業者への処理委託量"]
[null,"⑪　優良認定処理業者への処理委託量",null,null,null,0,null,"t",null,null,null,null,null,null,null,null,{"$f":"+ROUND(Z28,1)+ROUND(Z29,1)+ROUND(Z30,1)","v":0},null,null,null,"ｔ",null,null,"下水等放流前委託量",null,null,null,null,null,null,"ｔ",null,null,null,null,null,null,null,null,null,"ｔ"]
[null,"⑫　再生利用業者への処理委託量",null,null,null,0,null,"t",null,null,null,null,null,null,null,null,null,null,null,null,null,null,null,null,null,"【産業廃棄物の種類　（ア～ト）】",null,null,null,null,null,null,null,null,null,null,{"$f":"+IF(AK30=0,\"\",IF(AK27<AK30,\"エラー !：⑩の内数である⑪の量が⑩を超えています\",\"\"))","v":""},null,null,null,null,null,null,null,null,null,"ｔ"]
[null,"⑬　認定熱回収業者への処理委託量",null,null,null,0,null,"t",null,null,null,null,null,null,null,null,"B-2","最終処分委託量",null,null,null,null,null,null,null,"ｱ.　燃え殻\nｲ.　汚泥\nｳ.　廃油\nｴ.　廃酸\nｵ.　廃アルカリ\nｶ.　廃ﾌﾟﾗｽﾁｯｸ類\nｷ.　紙くず",null,null,null,null,"ｸ.　木くず\nｹ.　繊維くず\nｺ.　動植物性残さ\nｻ.　動物系固形不要物\nｼ.　ゴムくず\nｽ.　金属くず\nｾ.　ｶﾞﾗｽ・ｺﾝｸﾘｰﾄ・陶磁器くず",null,null,null,null,null,"ｿ.　鉱さい\nﾀ.　がれき類\nﾁ.　動物のふん尿\nﾂ.　動物の死体\nﾃ.　ばいじん\nト.　混合廃棄物その他",null,null,null,null,null,null,{"$f":"+IF(AR31=0,\"\",IF(AK27<(AR24+AR27+AR31),\"エラー !：⑩の内数である（⑫+⑬＋⑭）の量が⑩を超えています\",\"\"))","v":""}]
[null,"⑭　認定熱回収業者以外の熱回収を行う業者への処理委託量",null,null,null,0,null,"t",null,null,null,null,null,null,null,null,null,null,null,null,"ｔ"]
[null,null,{"$f":"+IF(F30=0,\"\",IF(F29<F30,\"エラー !：上の表は、⑩の内数である⑪の量が⑩を超えています\",\"\"))","v":""}]
[null,null,{"$f":"+IF(F31=0,\"\",IF(F29<F31,\"エラー !：上の表は、⑩の内数である⑫の量が⑩を超えています\",\"\"))","v":""}]
[null,null,{"$f":"+IF(F32=0,\"\",IF(F29<F32,\"エラー !：上の表は、⑩の内数である⑬の量が⑩を超えています\",\"\"))","v":""}]
[null,null,{"$f":"+IF(F33=0,\"\",IF(F29<F33,\"エラー !：上の表は、⑩の内数である⑭の量が⑩を超えています\",\"\"))","v":""}]

{"sheet":"ｾ.ｶﾞﾗｽ･ｺﾝｸﾘ･陶磁器くず","index":14,"n_rows":37,"n_cols":47,"rows_kept":37,"cut":false,"hidden":false,"merged":[[32,16,32,19],[28,23,28,24],[2,26,2,28],[4,30,4,46],[2,40,3,42],[2,43,2,44],[3,43,3,44],[4,24,4,28],[16,33,16,36],[17,23,17,25],[31,17,31,20],[19,15,19,18],[7,33,7,38],[23,43,23,45],[31,36,33,39],[25,15,25,18],[30,36,30,41],[31,30,33,35],[28,17,28,20],[31,25,33,29],[8,29,13,29],[26,14,26,17],[26,36,26,39],[16,24,16,26],[31,1,31,4],[32,1,32,4],[25,11,32,11],[26,1,26,4],[27,1,27,4],[28,1,28,4],[31,5,31,6],[32,5,32,6],[30,1,30,4],[30,5,30,6],[29,5,29,6],[27,5,27,6],[28,5,28,6],[29,16,29,19],[29,1,29,4],[23,5,23,6],[24,5,24,6],[24,1,24,4],[26,5,26,6],[16,39,16,40],[23,14,23,17],[30,43,30,45],[25,1,25,4],[19,1,21,7],[16,43,16,44],[22,44,22,46],[25,37,25,40],[19,39,19,40],[15,43,15,44],[14,32,14,37],[28,37,28,40],[29,36,29,39],[26,43,26,45],[17,43,17,44],[27,23,27,24],[20,23,20,25],[15,14,15,26],[16,19,16,22],[19,24,19,26],[22,19,22,22],[16,29,20,29],[29,25,29,29],[17,32,17,35],[28,44,29,46],[28,43,29,43],[14,14,14,17],[20,14,20,17],[27,25,27,29],[28,25,28,29],[21,14,21,20],[29,23,29,24],[25,44,25,46],[1,1,2,6],[6,1,6,2],[22,1,22,4],[7,2,7,9],[23,1,23,4],[11,5,11,6],[6,3,6,7],[6,17,6,20],[8,5,8,7],[22,15,22,18],[16,15,16,18],[10,15,10,18],[11,14,11,17],[17,14,17,17],[10,11,23,11],[13,33,13,38],[8,32,8,37],[10,6,10,7],[13,6,13,7],[25,5,25,6],[22,5,22,7],[14,5,14,6],[11,32,11,37],[10,33,10,38],[13,15,13,18]]}
[null,null,null,null,null,null,null,null,null,null,null,null,null,null,null,null,null,"↓","注意：前年度の排出量のみでフロー図のデータ①がない場合にも、前年度データを該当欄に入力してください"]
[null,"産業廃棄物処理計画書"]
[null,null,null,null,null,null,null,null,null,null,null,null,null,null,null,null,null,null,null,null,null,null,null,null,null,null,null,null,null,null,null,null,null,null,null,null,null,null,null,null,"２－２",null,null,"法定",null,"自主"]
[null,null,null,null,null,null,null,null,null,null,null,null,null,null,null,null,null,null,null,null,null,null,null,null,null,null,null,null,null,null,null,null,null,null,null,null,null,null,null,null,null,null,null,{"$f":"+表紙!Q29","v":"〇"},null,{"$f":"+表紙!T29","v":""}]
[null,"別紙処理フロー",null,null,null,null,null,null,null,null,null,null,null,null,null,null,null,null,null,null,null,null,null,null,"事業場名称",null,null,null,null,"：",{"$f":"+表紙!F48","v":"横浜市各工事現場"}]
[null,"令和６年度発生する産業廃棄物ごとの目標量と処理計画"]
[null,"フローに記載した産業廃棄物の種類",null,"セ.　ｶﾞﾗｽ・ｺﾝｸﾘｰﾄ・陶磁器くず"]
[null,"※","本用紙は廃棄物の種類ごとに1枚の記載となります。異なる廃棄物の処理フローは別シートに記載してください。　　　　　　　　　　　　　　　　　　　　　　　　　　　　　　　　　　　　　　　　　　　　　　　　　　　　　　　　　　　　　　　　　　　　　",null,null,null,null,null,null,null,null,null,null,null,null,null,null,null,null,null,null,null,null,null,null,null,null,null,null,null,null,null,"⑧","自ら中間処理後に再生利用する量"]
[null,"（単位：t/年）",null,null,null,"有償物量",null,null,null,null,null,null,null,null,null,null,null,null,null,null,null,null,null,null,null,null,null,null,null,"ａ残さ物の自己処理",null,null,null,null,null,null,null,null,"ｔ"]
[]
[null,null,"不要物等発生量",null,null,"①","当該事業場における排出量",null,null,null,null,"Ａ　自己処理",null,null,"②","自ら直接再生利用する量",null,null,null,null,null,null,null,null,null,null,null,null,null,null,null,null,"⑨","自ら中間処理後に自ら埋立処分又は海洋投入処分する量"]
[null,null,null,null,null,{"$f":"+ROUND(O12,1)+ROUND(O15,1)+ROUND(O18,1)+ROUND(O24,1)+O27-ROUND(F15,1)","v":0},null,"ｔ",null,null,null,null,null,null,null,null,null,null,"ｔ",null,null,null,null,null,null,null,null,null,null,null,null,null,null,null,null,null,null,null,"ｔ"]
[]
[null,null,null,null,null,"※１","自社の他事業場からの搬入量",null,null,null,null,null,null,null,"③","自ら直接埋立処分又は海洋投入処分する量",null,null,null,null,null,null,null,null,null,null,null,null,null,null,null,null,"※3","自ら中間処理後に自社の他事業場での処理量"]
[null,null,null,null,null,null,null,"ｔ",null,null,null,null,null,null,null,null,null,null,"ｔ",null,null,null,null,null,null,null,null,null,null,null,null,null,null,null,null,null,null,null,"ｔ",null,null,null,null,"（目的別内訳）"]
[null,null,null,null,null,null,null,null,null,null,null,null,null,null,{"$f":"+IF(X18=0,\"\",IF(X18-O18=X18,\"エラー！：⑥残さ物量があるのに、④自ら中間処理した量がゼロになっています\",\"\"))","v":""},null,null,null,null,null,null,null,null,null,null,null,null,null,null,null,null,null,null,null,null,null,null,null,null,null,null,null,null,"再生利用前委託量",null,null,"ｔ"]
[null,null,null,null,null,null,null,null,null,null,null,null,null,null,"④","自ら中間処理する量",null,null,null,null,null,null,null,"⑥","自ら中間処理後の残さ量",null,null,null,null,"ｂ残さ物の委託処理",null,null,"ｂ","自ら中間処理後の処理委託量",null,null,null,null,null,"ｂ-1　中間処理委託量",null,null,null,"最終処分前\n委託量",null,null,"ｔ"]
[null,null,null,null,null,null,null,null,null,null,null,null,null,null,null,null,null,null,"ｔ",null,null,null,null,{"$f":"+ROUND(AG9,1)+ROUND(AG12,1)+ROUND(AG15,1)+AG18","v":0},null,null,"ｔ",null,null,null,null,null,{"$f":"+ROUND(AN18,1)+ROUND(AN21,1)","v":0},null,null,null,"ｔ",null,null,{"$f":"+ROUND(AT16,1)+ROUND(AT17,1)+ROUND(AT18,1)","v":0},"ｔ",null,null,"下水等放流前委託量",null,null,"ｔ"]
[]
[null,"注）右上のフローには、令和６年度の目標量を記載してください。下の表には、令和５年度実績を記載してください。　なお、様式３をあわせて提出する場合には、先に様式３を入力し、データ反映・印刷ツールを使用するとこちらに数値が反映されます。",null,null,null,null,null,null,null,null,null,null,null,null,"⑤","④のうち熱回収を行う量",null,null,null,null,null,null,null,"⑦","自ら中間処理により減量する量",null,null,null,null,null,null,null,null,null,null,null,null,null,null,"ｂ-2　最終処分委託量"]
[null,null,null,null,null,null,null,null,null,null,null,null,null,null,null,null,null,null,"ｔ",null,null,null,null,{"$f":"+O18-X18","v":0},null,null,"ｔ",null,null,null,null,null,null,null,null,null,null,null,null,null,"ｔ"]
[null,null,null,null,null,null,null,null,null,null,null,null,null,null,{"$f":"+IF(O21=0,\"\",IF(O18<O21,\"エラー !：④の内数である⑤の量が④を超えています\",\"\"))","v":""}]
[null,"項　目",null,null,null,"令和５年度実績",null,null,null,null,null,null,null,null,"※２","自社の他事業場での処理量",null,null,null,null,null,null,null,null,null,null,null,null,null,null,null,null,null,null,null,null,null,null,null,null,null,null,null,"⑫","⑩のうち再生利用業者への処理委託量"]
[null,"①　排出量",null,null,null,0,null,"t",null,null,null,null,null,null,null,null,null,null,"ｔ",null,null,null,null,null,null,null,null,null,null,null,null,null,null,null,null,null,null,null,null,null,null,null,null,{"$f":"+ROUND(AT16,1)+ROUND(Z28,1)","v":0},null,null,"ｔ"]
[null,"②＋⑧　自ら再生利用を行った量",null,null,null,0,null,"t"]
[null,"⑤　自ら熱回収を行った量",null,null,null,0,null,"t",null,null,null,"Ｂ　直接委託処理",null,null,"Ｂ","直接処理委託量",null,null,null,null,null,null,null,null,null,null,null,null,null,null,null,null,null,null,null,null,"⑩","直接及び自ら中間処理後の処理委託量",null,null,null,null,null,"⑬","⑩のうち認定熱回収業者への処理委託量"]
[null,"⑦　自ら中間処理により減量した量",null,null,null,0,null,"t",null,null,null,null,null,null,{"$f":"+Q30+ROUND(Q33,1)","v":0},null,null,null,"ｔ",null,null,null,null,"（目的別内訳）",null,null,null,null,null,null,null,null,null,null,null,null,{"$f":"+AG18+O27","v":0},null,null,null,"ｔ",null,null,null,null,null,"ｔ"]
[null,"③＋⑨　自ら埋立処分又は海洋投入処分を行った量",null,null,null,0,null,"t",null,null,null,null,null,null,null,null,null,null,null,null,null,null,null,"再生利用前委託量",null,null,null,null,null,null,"ｔ",null,null,null,null,null,null,null,null,null,null,null,null,{"$f":"+IF(AR27=0,\"\",IF(AK27<(AR24+AR27+AR31),\"エラー !：⑩の内数である（⑫+⑬＋⑭）の量が⑩を超えています\",\"\"))","v":""}]
[null,"⑩　全処理委託量",null,null,null,0,null,"t",null,null,null,null,null,null,null,null,"B-1","中間処理委託量",null,null,null,null,null,"最終処分前委託量",null,null,null,null,null,null,"ｔ",null,null,null,null,null,"⑪","⑩のうち優良認定処理業者への処理委託量",null,null,null,null,null,"⑭","⑩のうち認定熱回収業者以外の熱回収を行う業者への処理委託量"]
[null,"⑪　優良認定処理業者への処理委託量",null,null,null,0,null,"t",null,null,null,null,null,null,null,null,{"$f":"+ROUND(Z28,1)+ROUND(Z29,1)+ROUND(Z30,1)","v":0},null,null,null,"ｔ",null,null,"下水等放流前委託量",null,null,null,null,null,null,"ｔ",null,null,null,null,null,null,null,null,null,"ｔ"]
[null,"⑫　再生利用業者への処理委託量",null,null,null,0,null,"t",null,null,null,null,null,null,null,null,null,null,null,null,null,null,null,null,null,"【産業廃棄物の種類　（ア～ト）】",null,null,null,null,null,null,null,null,null,null,{"$f":"+IF(AK30=0,\"\",IF(AK27<AK30,\"エラー !：⑩の内数である⑪の量が⑩を超えています\",\"\"))","v":""},null,null,null,null,null,null,null,null,null,"ｔ"]
[null,"⑬　認定熱回収業者への処理委託量",null,null,null,0,null,"t",null,null,null,null,null,null,null,null,"B-2","最終処分委託量",null,null,null,null,null,null,null,"ｱ.　燃え殻\nｲ.　汚泥\nｳ.　廃油\nｴ.　廃酸\nｵ.　廃アルカリ\nｶ.　廃ﾌﾟﾗｽﾁｯｸ類\nｷ.　紙くず",null,null,null,null,"ｸ.　木くず\nｹ.　繊維くず\nｺ.　動植物性残さ\nｻ.　動物系固形不要物\nｼ.　ゴムくず\nｽ.　金属くず\nｾ.　ｶﾞﾗｽ・ｺﾝｸﾘｰﾄ・陶磁器くず",null,null,null,null,null,"ｿ.　鉱さい\nﾀ.　がれき類\nﾁ.　動物のふん尿\nﾂ.　動物の死体\nﾃ.　ばいじん\nト.　混合廃棄物その他",null,null,null,null,null,null,{"$f":"+IF(AR31=0,\"\",IF(AK27<(AR24+AR27+AR31),\"エラー !：⑩の内数である（⑫+⑬＋⑭）の量が⑩を超えています\",\"\"))","v":""}]
[null,"⑭　認定熱回収業者以外の熱回収を行う業者への処理委託量",null,null,null,0,null,"t",null,null,null,null,null,null,null,null,null,null,null,null,"ｔ"]
[null,null,{"$f":"+IF(F30=0,\"\",IF(F29<F30,\"エラー !：上の表は、⑩の内数である⑪の量が⑩を超えています\",\"\"))","v":""}]
[null,null,{"$f":"+IF(F31=0,\"\",IF(F29<F31,\"エラー !：上の表は、⑩の内数である⑫の量が⑩を超えています\",\"\"))","v":""}]
[null,null,{"$f":"+IF(F32=0,\"\",IF(F29<F32,\"エラー !：上の表は、⑩の内数である⑬の量が⑩を超えています\",\"\"))","v":""}]
[null,null,{"$f":"+IF(F33=0,\"\",IF(F29<F33,\"エラー !：上の表は、⑩の内数である⑭の量が⑩を超えています\",\"\"))","v":""}]

{"sheet":"ｿ.鉱さい","index":15,"n_rows":37,"n_cols":47,"rows_kept":37,"cut":false,"hidden":false,"merged":[[32,16,32,19],[28,23,28,24],[2,26,2,28],[4,30,4,46],[2,40,3,42],[2,43,2,44],[3,43,3,44],[4,24,4,28],[16,33,16,36],[17,23,17,25],[31,17,31,20],[19,15,19,18],[7,33,7,38],[23,43,23,45],[31,36,33,39],[25,15,25,18],[30,36,30,41],[31,30,33,35],[28,17,28,20],[31,25,33,29],[8,29,13,29],[26,14,26,17],[26,36,26,39],[16,24,16,26],[31,1,31,4],[32,1,32,4],[25,11,32,11],[26,1,26,4],[27,1,27,4],[28,1,28,4],[31,5,31,6],[32,5,32,6],[30,1,30,4],[30,5,30,6],[29,5,29,6],[27,5,27,6],[28,5,28,6],[29,16,29,19],[29,1,29,4],[23,5,23,6],[24,5,24,6],[24,1,24,4],[26,5,26,6],[16,39,16,40],[23,14,23,17],[30,43,30,45],[25,1,25,4],[19,1,21,7],[16,43,16,44],[22,44,22,46],[25,37,25,40],[19,39,19,40],[15,43,15,44],[14,32,14,37],[28,37,28,40],[29,36,29,39],[26,43,26,45],[17,43,17,44],[27,23,27,24],[20,23,20,25],[15,14,15,26],[16,19,16,22],[19,24,19,26],[22,19,22,22],[16,29,20,29],[29,25,29,29],[17,32,17,35],[28,44,29,46],[28,43,29,43],[14,14,14,17],[20,14,20,17],[27,25,27,29],[28,25,28,29],[21,14,21,20],[29,23,29,24],[25,44,25,46],[1,1,2,6],[6,1,6,2],[22,1,22,4],[7,2,7,9],[23,1,23,4],[11,5,11,6],[6,3,6,7],[6,17,6,20],[8,5,8,7],[22,15,22,18],[16,15,16,18],[10,15,10,18],[11,14,11,17],[17,14,17,17],[10,11,23,11],[13,33,13,38],[8,32,8,37],[10,6,10,7],[13,6,13,7],[25,5,25,6],[22,5,22,7],[14,5,14,6],[11,32,11,37],[10,33,10,38],[13,15,13,18]]}
[null,null,null,null,null,null,null,null,null,null,null,null,null,null,null,null,null,"↓","注意：前年度の排出量のみでフロー図のデータ①がない場合にも、前年度データを該当欄に入力してください"]
[null,"産業廃棄物処理計画書"]
[null,null,null,null,null,null,null,null,null,null,null,null,null,null,null,null,null,null,null,null,null,null,null,null,null,null,null,null,null,null,null,null,null,null,null,null,null,null,null,null,"２－２",null,null,"法定",null,"自主"]
[null,null,null,null,null,null,null,null,null,null,null,null,null,null,null,null,null,null,null,null,null,null,null,null,null,null,null,null,null,null,null,null,null,null,null,null,null,null,null,null,null,null,null,{"$f":"+表紙!Q29","v":"〇"},null,{"$f":"+表紙!T29","v":""}]
[null,"別紙処理フロー",null,null,null,null,null,null,null,null,null,null,null,null,null,null,null,null,null,null,null,null,null,null,"事業場名称",null,null,null,null,"：",{"$f":"+表紙!F48","v":"横浜市各工事現場"}]
[null,"令和６年度発生する産業廃棄物ごとの目標量と処理計画"]
[null,"フローに記載した産業廃棄物の種類",null,"ソ.　鉱さい"]
[null,"※","本用紙は廃棄物の種類ごとに1枚の記載となります。異なる廃棄物の処理フローは別シートに記載してください。　　　　　　　　　　　　　　　　　　　　　　　　　　　　　　　　　　　　　　　　　　　　　　　　　　　　　　　　　　　　　　　　　　　　　",null,null,null,null,null,null,null,null,null,null,null,null,null,null,null,null,null,null,null,null,null,null,null,null,null,null,null,null,null,"⑧","自ら中間処理後に再生利用する量"]
[null,"（単位：t/年）",null,null,null,"有償物量",null,null,null,null,null,null,null,null,null,null,null,null,null,null,null,null,null,null,null,null,null,null,null,"ａ残さ物の自己処理",null,null,null,null,null,null,null,null,"ｔ"]
[]
[null,null,"不要物等発生量",null,null,"①","当該事業場における排出量",null,null,null,null,"Ａ　自己処理",null,null,"②","自ら直接再生利用する量",null,null,null,null,null,null,null,null,null,null,null,null,null,null,null,null,"⑨","自ら中間処理後に自ら埋立処分又は海洋投入処分する量"]
[null,null,null,null,null,{"$f":"+ROUND(O12,1)+ROUND(O15,1)+ROUND(O18,1)+ROUND(O24,1)+O27-ROUND(F15,1)","v":0},null,"ｔ",null,null,null,null,null,null,null,null,null,null,"ｔ",null,null,null,null,null,null,null,null,null,null,null,null,null,null,null,null,null,null,null,"ｔ"]
[]
[null,null,null,null,null,"※１","自社の他事業場からの搬入量",null,null,null,null,null,null,null,"③","自ら直接埋立処分又は海洋投入処分する量",null,null,null,null,null,null,null,null,null,null,null,null,null,null,null,null,"※3","自ら中間処理後に自社の他事業場での処理量"]
[null,null,null,null,null,null,null,"ｔ",null,null,null,null,null,null,null,null,null,null,"ｔ",null,null,null,null,null,null,null,null,null,null,null,null,null,null,null,null,null,null,null,"ｔ",null,null,null,null,"（目的別内訳）"]
[null,null,null,null,null,null,null,null,null,null,null,null,null,null,{"$f":"+IF(X18=0,\"\",IF(X18-O18=X18,\"エラー！：⑥残さ物量があるのに、④自ら中間処理した量がゼロになっています\",\"\"))","v":""},null,null,null,null,null,null,null,null,null,null,null,null,null,null,null,null,null,null,null,null,null,null,null,null,null,null,null,null,"再生利用前委託量",null,null,"ｔ"]
[null,null,null,null,null,null,null,null,null,null,null,null,null,null,"④","自ら中間処理する量",null,null,null,null,null,null,null,"⑥","自ら中間処理後の残さ量",null,null,null,null,"ｂ残さ物の委託処理",null,null,"ｂ","自ら中間処理後の処理委託量",null,null,null,null,null,"ｂ-1　中間処理委託量",null,null,null,"最終処分前\n委託量",null,null,"ｔ"]
[null,null,null,null,null,null,null,null,null,null,null,null,null,null,null,null,null,null,"ｔ",null,null,null,null,{"$f":"+ROUND(AG9,1)+ROUND(AG12,1)+ROUND(AG15,1)+AG18","v":0},null,null,"ｔ",null,null,null,null,null,{"$f":"+ROUND(AN18,1)+ROUND(AN21,1)","v":0},null,null,null,"ｔ",null,null,{"$f":"+ROUND(AT16,1)+ROUND(AT17,1)+ROUND(AT18,1)","v":0},"ｔ",null,null,"下水等放流前委託量",null,null,"ｔ"]
[]
[null,"注）右上のフローには、令和６年度の目標量を記載してください。下の表には、令和５年度実績を記載してください。　なお、様式３をあわせて提出する場合には、先に様式３を入力し、データ反映・印刷ツールを使用するとこちらに数値が反映されます。",null,null,null,null,null,null,null,null,null,null,null,null,"⑤","④のうち熱回収を行う量",null,null,null,null,null,null,null,"⑦","自ら中間処理により減量する量",null,null,null,null,null,null,null,null,null,null,null,null,null,null,"ｂ-2　最終処分委託量"]
[null,null,null,null,null,null,null,null,null,null,null,null,null,null,null,null,null,null,"ｔ",null,null,null,null,{"$f":"+O18-X18","v":0},null,null,"ｔ",null,null,null,null,null,null,null,null,null,null,null,null,null,"ｔ"]
[null,null,null,null,null,null,null,null,null,null,null,null,null,null,{"$f":"+IF(O21=0,\"\",IF(O18<O21,\"エラー !：④の内数である⑤の量が④を超えています\",\"\"))","v":""}]
[null,"項　目",null,null,null,"令和５年度実績",null,null,null,null,null,null,null,null,"※２","自社の他事業場での処理量",null,null,null,null,null,null,null,null,null,null,null,null,null,null,null,null,null,null,null,null,null,null,null,null,null,null,null,"⑫","⑩のうち再生利用業者への処理委託量"]
[null,"①　排出量",null,null,null,0,null,"t",null,null,null,null,null,null,null,null,null,null,"ｔ",null,null,null,null,null,null,null,null,null,null,null,null,null,null,null,null,null,null,null,null,null,null,null,null,{"$f":"+ROUND(AT16,1)+ROUND(Z28,1)","v":0},null,null,"ｔ"]
[null,"②＋⑧　自ら再生利用を行った量",null,null,null,0,null,"t"]
[null,"⑤　自ら熱回収を行った量",null,null,null,0,null,"t",null,null,null,"Ｂ　直接委託処理",null,null,"Ｂ","直接処理委託量",null,null,null,null,null,null,null,null,null,null,null,null,null,null,null,null,null,null,null,null,"⑩","直接及び自ら中間処理後の処理委託量",null,null,null,null,null,"⑬","⑩のうち認定熱回収業者への処理委託量"]
[null,"⑦　自ら中間処理により減量した量",null,null,null,0,null,"t",null,null,null,null,null,null,{"$f":"+Q30+ROUND(Q33,1)","v":0},null,null,null,"ｔ",null,null,null,null,"（目的別内訳）",null,null,null,null,null,null,null,null,null,null,null,null,{"$f":"+AG18+O27","v":0},null,null,null,"ｔ",null,null,null,null,null,"ｔ"]
[null,"③＋⑨　自ら埋立処分又は海洋投入処分を行った量",null,null,null,0,null,"t",null,null,null,null,null,null,null,null,null,null,null,null,null,null,null,"再生利用前委託量",null,null,null,null,null,null,"ｔ",null,null,null,null,null,null,null,null,null,null,null,null,{"$f":"+IF(AR27=0,\"\",IF(AK27<(AR24+AR27+AR31),\"エラー !：⑩の内数である（⑫+⑬＋⑭）の量が⑩を超えています\",\"\"))","v":""}]
[null,"⑩　全処理委託量",null,null,null,0,null,"t",null,null,null,null,null,null,null,null,"B-1","中間処理委託量",null,null,null,null,null,"最終処分前委託量",null,null,null,null,null,null,"ｔ",null,null,null,null,null,"⑪","⑩のうち優良認定処理業者への処理委託量",null,null,null,null,null,"⑭","⑩のうち認定熱回収業者以外の熱回収を行う業者への処理委託量"]
[null,"⑪　優良認定処理業者への処理委託量",null,null,null,0,null,"t",null,null,null,null,null,null,null,null,{"$f":"+ROUND(Z28,1)+ROUND(Z29,1)+ROUND(Z30,1)","v":0},null,null,null,"ｔ",null,null,"下水等放流前委託量",null,null,null,null,null,null,"ｔ",null,null,null,null,null,null,null,null,null,"ｔ"]
[null,"⑫　再生利用業者への処理委託量",null,null,null,0,null,"t",null,null,null,null,null,null,null,null,null,null,null,null,null,null,null,null,null,"【産業廃棄物の種類　（ア～ト）】",null,null,null,null,null,null,null,null,null,null,{"$f":"+IF(AK30=0,\"\",IF(AK27<AK30,\"エラー !：⑩の内数である⑪の量が⑩を超えています\",\"\"))","v":""},null,null,null,null,null,null,null,null,null,"ｔ"]
[null,"⑬　認定熱回収業者への処理委託量",null,null,null,0,null,"t",null,null,null,null,null,null,null,null,"B-2","最終処分委託量",null,null,null,null,null,null,null,"ｱ.　燃え殻\nｲ.　汚泥\nｳ.　廃油\nｴ.　廃酸\nｵ.　廃アルカリ\nｶ.　廃ﾌﾟﾗｽﾁｯｸ類\nｷ.　紙くず",null,null,null,null,"ｸ.　木くず\nｹ.　繊維くず\nｺ.　動植物性残さ\nｻ.　動物系固形不要物\nｼ.　ゴムくず\nｽ.　金属くず\nｾ.　ｶﾞﾗｽ・ｺﾝｸﾘｰﾄ・陶磁器くず",null,null,null,null,null,"ｿ.　鉱さい\nﾀ.　がれき類\nﾁ.　動物のふん尿\nﾂ.　動物の死体\nﾃ.　ばいじん\nト.　混合廃棄物その他",null,null,null,null,null,null,{"$f":"+IF(AR31=0,\"\",IF(AK27<(AR24+AR27+AR31),\"エラー !：⑩の内数である（⑫+⑬＋⑭）の量が⑩を超えています\",\"\"))","v":""}]
[null,"⑭　認定熱回収業者以外の熱回収を行う業者への処理委託量",null,null,null,0,null,"t",null,null,null,null,null,null,null,null,null,null,null,null,"ｔ"]
[null,null,{"$f":"+IF(F30=0,\"\",IF(F29<F30,\"エラー !：上の表は、⑩の内数である⑪の量が⑩を超えています\",\"\"))","v":""}]
[null,null,{"$f":"+IF(F31=0,\"\",IF(F29<F31,\"エラー !：上の表は、⑩の内数である⑫の量が⑩を超えています\",\"\"))","v":""}]
[null,null,{"$f":"+IF(F32=0,\"\",IF(F29<F32,\"エラー !：上の表は、⑩の内数である⑬の量が⑩を超えています\",\"\"))","v":""}]
[null,null,{"$f":"+IF(F33=0,\"\",IF(F29<F33,\"エラー !：上の表は、⑩の内数である⑭の量が⑩を超えています\",\"\"))","v":""}]

{"sheet":"ﾀ.がれき類","index":16,"n_rows":37,"n_cols":47,"rows_kept":37,"cut":false,"hidden":false,"merged":[[32,16,32,19],[28,23,28,24],[2,26,2,28],[4,30,4,46],[2,40,3,42],[2,43,2,44],[3,43,3,44],[4,24,4,28],[16,33,16,36],[17,23,17,25],[31,17,31,20],[19,15,19,18],[7,33,7,38],[23,43,23,45],[31,36,33,39],[25,15,25,18],[30,36,30,41],[31,30,33,35],[28,17,28,20],[31,25,33,29],[8,29,13,29],[26,14,26,17],[26,36,26,39],[16,24,16,26],[31,1,31,4],[32,1,32,4],[25,11,32,11],[26,1,26,4],[27,1,27,4],[28,1,28,4],[31,5,31,6],[32,5,32,6],[30,1,30,4],[30,5,30,6],[29,5,29,6],[27,5,27,6],[28,5,28,6],[29,16,29,19],[29,1,29,4],[23,5,23,6],[24,5,24,6],[24,1,24,4],[26,5,26,6],[16,39,16,40],[23,14,23,17],[30,43,30,45],[25,1,25,4],[19,1,21,7],[16,43,16,44],[22,44,22,46],[25,37,25,40],[19,39,19,40],[15,43,15,44],[14,32,14,37],[28,37,28,40],[29,36,29,39],[26,43,26,45],[17,43,17,44],[27,23,27,24],[20,23,20,25],[15,14,15,26],[16,19,16,22],[19,24,19,26],[22,19,22,22],[16,29,20,29],[29,25,29,29],[17,32,17,35],[28,44,29,46],[28,43,29,43],[14,14,14,17],[20,14,20,17],[27,25,27,29],[28,25,28,29],[21,14,21,20],[29,23,29,24],[25,44,25,46],[1,1,2,6],[6,1,6,2],[22,1,22,4],[7,2,7,9],[23,1,23,4],[11,5,11,6],[6,3,6,7],[6,17,6,20],[8,5,8,7],[22,15,22,18],[16,15,16,18],[10,15,10,18],[11,14,11,17],[17,14,17,17],[10,11,23,11],[13,33,13,38],[8,32,8,37],[10,6,10,7],[13,6,13,7],[25,5,25,6],[22,5,22,7],[14,5,14,6],[11,32,11,37],[10,33,10,38],[13,15,13,18]]}
[null,null,null,null,null,null,null,null,null,null,null,null,null,null,null,null,null,"↓","注意：前年度の排出量のみでフロー図のデータ①がない場合にも、前年度データを該当欄に入力してください"]
[null,"産業廃棄物処理計画書"]
[null,null,null,null,null,null,null,null,null,null,null,null,null,null,null,null,null,null,null,null,null,null,null,null,null,null,null,null,null,null,null,null,null,null,null,null,null,null,null,null,"２－２",null,null,"法定",null,"自主"]
[null,null,null,null,null,null,null,null,null,null,null,null,null,null,null,null,null,null,null,null,null,null,null,null,null,null,null,null,null,null,null,null,null,null,null,null,null,null,null,null,null,null,null,{"$f":"+表紙!Q29","v":"〇"},null,{"$f":"+表紙!T29","v":""}]
[null,"別紙処理フロー",null,null,null,null,null,null,null,null,null,null,null,null,null,null,null,null,null,null,null,null,null,null,"事業場名称",null,null,null,null,"：",{"$f":"+表紙!F48","v":"横浜市各工事現場"}]
[null,"令和６年度発生する産業廃棄物ごとの目標量と処理計画"]
[null,"フローに記載した産業廃棄物の種類",null,"タ.　がれき類"]
[null,"※","本用紙は廃棄物の種類ごとに1枚の記載となります。異なる廃棄物の処理フローは別シートに記載してください。　　　　　　　　　　　　　　　　　　　　　　　　　　　　　　　　　　　　　　　　　　　　　　　　　　　　　　　　　　　　　　　　　　　　　",null,null,null,null,null,null,null,null,null,null,null,null,null,null,null,null,null,null,null,null,null,null,null,null,null,null,null,null,null,"⑧","自ら中間処理後に再生利用する量"]
[null,"（単位：t/年）",null,null,null,"有償物量",null,null,null,null,null,null,null,null,null,null,null,null,null,null,null,null,null,null,null,null,null,null,null,"ａ残さ物の自己処理",null,null,null,null,null,null,null,null,"ｔ"]
[]
[null,null,"不要物等発生量",null,null,"①","当該事業場における排出量",null,null,null,null,"Ａ　自己処理",null,null,"②","自ら直接再生利用する量",null,null,null,null,null,null,null,null,null,null,null,null,null,null,null,null,"⑨","自ら中間処理後に自ら埋立処分又は海洋投入処分する量"]
[null,null,null,null,null,{"$f":"+ROUND(O12,1)+ROUND(O15,1)+ROUND(O18,1)+ROUND(O24,1)+O27-ROUND(F15,1)","v":1000},null,"ｔ",null,null,null,null,null,null,null,null,null,null,"ｔ",null,null,null,null,null,null,null,null,null,null,null,null,null,null,null,null,null,null,null,"ｔ"]
[]
[null,null,null,null,null,"※１","自社の他事業場からの搬入量",null,null,null,null,null,null,null,"③","自ら直接埋立処分又は海洋投入処分する量",null,null,null,null,null,null,null,null,null,null,null,null,null,null,null,null,"※3","自ら中間処理後に自社の他事業場での処理量"]
[null,null,null,null,null,null,null,"ｔ",null,null,null,null,null,null,null,null,null,null,"ｔ",null,null,null,null,null,null,null,null,null,null,null,null,null,null,null,null,null,null,null,"ｔ",null,null,null,null,"（目的別内訳）"]
[null,null,null,null,null,null,null,null,null,null,null,null,null,null,{"$f":"+IF(X18=0,\"\",IF(X18-O18=X18,\"エラー！：⑥残さ物量があるのに、④自ら中間処理した量がゼロになっています\",\"\"))","v":""},null,null,null,null,null,null,null,null,null,null,null,null,null,null,null,null,null,null,null,null,null,null,null,null,null,null,null,null,"再生利用前委託量",null,null,"ｔ"]
[null,null,null,null,null,null,null,null,null,null,null,null,null,null,"④","自ら中間処理する量",null,null,null,null,null,null,null,"⑥","自ら中間処理後の残さ量",null,null,null,null,"ｂ残さ物の委託処理",null,null,"ｂ","自ら中間処理後の処理委託量",null,null,null,null,null,"ｂ-1　中間処理委託量",null,null,null,"最終処分前\n委託量",null,null,"ｔ"]
[null,null,null,null,null,null,null,null,null,null,null,null,null,null,null,null,null,null,"ｔ",null,null,null,null,{"$f":"+ROUND(AG9,1)+ROUND(AG12,1)+ROUND(AG15,1)+AG18","v":0},null,null,"ｔ",null,null,null,null,null,{"$f":"+ROUND(AN18,1)+ROUND(AN21,1)","v":0},null,null,null,"ｔ",null,null,{"$f":"+ROUND(AT16,1)+ROUND(AT17,1)+ROUND(AT18,1)","v":0},"ｔ",null,null,"下水等放流前委託量",null,null,"ｔ"]
[]
[null,"注）右上のフローには、令和６年度の目標量を記載してください。下の表には、令和５年度実績を記載してください。　なお、様式３をあわせて提出する場合には、先に様式３を入力し、データ反映・印刷ツールを使用するとこちらに数値が反映されます。",null,null,null,null,null,null,null,null,null,null,null,null,"⑤","④のうち熱回収を行う量",null,null,null,null,null,null,null,"⑦","自ら中間処理により減量する量",null,null,null,null,null,null,null,null,null,null,null,null,null,null,"ｂ-2　最終処分委託量"]
[null,null,null,null,null,null,null,null,null,null,null,null,null,null,null,null,null,null,"ｔ",null,null,null,null,{"$f":"+O18-X18","v":0},null,null,"ｔ",null,null,null,null,null,null,null,null,null,null,null,null,null,"ｔ"]
[null,null,null,null,null,null,null,null,null,null,null,null,null,null,{"$f":"+IF(O21=0,\"\",IF(O18<O21,\"エラー !：④の内数である⑤の量が④を超えています\",\"\"))","v":""}]
[null,"項　目",null,null,null,"令和５年度実績",null,null,null,null,null,null,null,null,"※２","自社の他事業場での処理量",null,null,null,null,null,null,null,null,null,null,null,null,null,null,null,null,null,null,null,null,null,null,null,null,null,null,null,"⑫","⑩のうち再生利用業者への処理委託量"]
[null,"①　排出量",null,null,null,1079.0999999999999,null,"t",null,null,null,null,null,null,null,null,null,null,"ｔ",null,null,null,null,null,null,null,null,null,null,null,null,null,null,null,null,null,null,null,null,null,null,null,null,{"$f":"+ROUND(AT16,1)+ROUND(Z28,1)","v":1000},null,null,"ｔ"]
[null,"②＋⑧　自ら再生利用を行った量",null,null,null,0,null,"t"]
[null,"⑤　自ら熱回収を行った量",null,null,null,0,null,"t",null,null,null,"Ｂ　直接委託処理",null,null,"Ｂ","直接処理委託量",null,null,null,null,null,null,null,null,null,null,null,null,null,null,null,null,null,null,null,null,"⑩","直接及び自ら中間処理後の処理委託量",null,null,null,null,null,"⑬","⑩のうち認定熱回収業者への処理委託量"]
[null,"⑦　自ら中間処理により減量した量",null,null,null,0,null,"t",null,null,null,null,null,null,{"$f":"+Q30+ROUND(Q33,1)","v":1000},null,null,null,"ｔ",null,null,null,null,"（目的別内訳）",null,null,null,null,null,null,null,null,null,null,null,null,{"$f":"+AG18+O27","v":1000},null,null,null,"ｔ",null,null,0,null,null,"ｔ"]
[null,"③＋⑨　自ら埋立処分又は海洋投入処分を行った量",null,null,null,0,null,"t",null,null,null,null,null,null,null,null,null,null,null,null,null,null,null,"再生利用前委託量",null,1000,null,null,null,null,"ｔ",null,null,null,null,null,null,null,null,null,null,null,null,{"$f":"+IF(AR27=0,\"\",IF(AK27<(AR24+AR27+AR31),\"エラー !：⑩の内数である（⑫+⑬＋⑭）の量が⑩を超えています\",\"\"))","v":""}]
[null,"⑩　全処理委託量",null,null,null,1079.0999999999999,null,"t",null,null,null,null,null,null,null,null,"B-1","中間処理委託量",null,null,null,null,null,"最終処分前委託量",null,null,null,null,null,null,"ｔ",null,null,null,null,null,"⑪","⑩のうち優良認定処理業者への処理委託量",null,null,null,null,null,"⑭","⑩のうち認定熱回収業者以外の熱回収を行う業者への処理委託量"]
[null,"⑪　優良認定処理業者への処理委託量",null,null,null,0,null,"t",null,null,null,null,null,null,null,null,{"$f":"+ROUND(Z28,1)+ROUND(Z29,1)+ROUND(Z30,1)","v":1000},null,null,null,"ｔ",null,null,"下水等放流前委託量",null,null,null,null,null,null,"ｔ",null,null,null,null,null,null,null,null,null,"ｔ"]
[null,"⑫　再生利用業者への処理委託量",null,null,null,0,null,"t",null,null,null,null,null,null,null,null,null,null,null,null,null,null,null,null,null,"【産業廃棄物の種類　（ア～ト）】",null,null,null,null,null,null,null,null,null,null,{"$f":"+IF(AK30=0,\"\",IF(AK27<AK30,\"エラー !：⑩の内数である⑪の量が⑩を超えています\",\"\"))","v":""},null,null,null,null,null,null,0,null,null,"ｔ"]
[null,"⑬　認定熱回収業者への処理委託量",null,null,null,0,null,"t",null,null,null,null,null,null,null,null,"B-2","最終処分委託量",null,null,null,null,null,null,null,"ｱ.　燃え殻\nｲ.　汚泥\nｳ.　廃油\nｴ.　廃酸\nｵ.　廃アルカリ\nｶ.　廃ﾌﾟﾗｽﾁｯｸ類\nｷ.　紙くず",null,null,null,null,"ｸ.　木くず\nｹ.　繊維くず\nｺ.　動植物性残さ\nｻ.　動物系固形不要物\nｼ.　ゴムくず\nｽ.　金属くず\nｾ.　ｶﾞﾗｽ・ｺﾝｸﾘｰﾄ・陶磁器くず",null,null,null,null,null,"ｿ.　鉱さい\nﾀ.　がれき類\nﾁ.　動物のふん尿\nﾂ.　動物の死体\nﾃ.　ばいじん\nト.　混合廃棄物その他",null,null,null,null,null,null,{"$f":"+IF(AR31=0,\"\",IF(AK27<(AR24+AR27+AR31),\"エラー !：⑩の内数である（⑫+⑬＋⑭）の量が⑩を超えています\",\"\"))","v":""}]
[null,"⑭　認定熱回収業者以外の熱回収を行う業者への処理委託量",null,null,null,0,null,"t",null,null,null,null,null,null,null,null,null,null,null,null,"ｔ"]
[null,null,{"$f":"+IF(F30=0,\"\",IF(F29<F30,\"エラー !：上の表は、⑩の内数である⑪の量が⑩を超えています\",\"\"))","v":""}]
[null,null,{"$f":"+IF(F31=0,\"\",IF(F29<F31,\"エラー !：上の表は、⑩の内数である⑫の量が⑩を超えています\",\"\"))","v":""}]
[null,null,{"$f":"+IF(F32=0,\"\",IF(F29<F32,\"エラー !：上の表は、⑩の内数である⑬の量が⑩を超えています\",\"\"))","v":""}]
[null,null,{"$f":"+IF(F33=0,\"\",IF(F29<F33,\"エラー !：上の表は、⑩の内数である⑭の量が⑩を超えています\",\"\"))","v":""}]

{"sheet":"ﾁ.動物のふん尿","index":17,"n_rows":37,"n_cols":47,"rows_kept":37,"cut":false,"hidden":false,"merged":[[31,5,31,6],[30,1,30,4],[27,1,27,4],[27,5,27,6],[31,1,31,4],[29,23,29,24],[30,5,30,6],[32,5,32,6],[29,25,29,29],[31,25,33,29],[28,23,28,24],[23,43,23,45],[22,44,22,46],[21,14,21,20],[16,15,16,18],[16,19,16,22],[10,11,23,11],[11,14,11,17],[19,24,19,26],[17,43,17,44],[16,43,16,44],[23,14,23,17],[20,14,20,17],[16,39,16,40],[20,23,20,25],[17,32,17,35],[16,33,16,36],[22,19,22,22],[22,15,22,18],[19,15,19,18],[2,43,2,44],[3,43,3,44],[4,30,4,46],[10,33,10,38],[13,33,13,38],[14,32,14,37],[2,40,3,42],[17,23,17,25],[16,24,16,26],[2,26,2,28],[15,14,15,26],[10,15,10,18],[14,14,14,17],[17,14,17,17],[15,43,15,44],[16,29,20,29],[19,39,19,40],[1,1,2,6],[6,1,6,2],[7,33,7,38],[8,32,8,37],[8,29,13,29],[11,32,11,37],[13,15,13,18],[4,24,4,28],[6,11,7,26],[7,2,7,9],[11,5,11,6],[10,6,10,7],[6,3,6,7],[13,6,13,7],[8,5,8,7],[14,5,14,6],[23,1,23,4],[19,1,21,7],[27,23,27,24],[24,5,24,6],[24,1,24,4],[25,11,32,11],[25,15,25,18],[29,16,29,19],[31,17,31,20],[28,17,28,20],[28,5,28,6],[32,16,32,19],[29,5,29,6],[28,1,28,4],[26,1,26,4],[22,1,22,4],[23,5,23,6],[25,5,25,6],[22,5,22,7],[26,5,26,6],[32,1,32,4],[29,1,29,4],[25,1,25,4],[25,44,25,46],[26,43,26,45],[28,37,28,40],[25,37,25,40],[27,25,27,29],[26,14,26,17],[31,36,33,39],[30,36,30,41],[30,43,30,45],[29,36,29,39],[28,44,29,46],[28,43,29,43],[31,30,33,35],[26,36,26,39],[28,25,28,29]]}
[null,null,null,null,null,null,null,null,null,null,null,null,null,null,null,null,null,"↓","注意：前年度の排出量のみでフロー図のデータ①がない場合にも、前年度データを該当欄に入力してください"]
[null,"産業廃棄物処理計画書"]
[null,null,null,null,null,null,null,null,null,null,null,null,null,null,null,null,null,null,null,null,null,null,null,null,null,null,null,null,null,null,null,null,null,null,null,null,null,null,null,null,"２－２",null,null,"法定",null,"自主"]
[null,null,null,null,null,null,null,null,null,null,null,null,null,null,null,null,null,null,null,null,null,null,null,null,null,null,null,null,null,null,null,null,null,null,null,null,null,null,null,null,null,null,null,{"$f":"+表紙!Q29","v":"〇"},null,{"$f":"+表紙!T29","v":""}]
[null,"別紙処理フロー",null,null,null,null,null,null,null,null,null,null,null,null,null,null,null,null,null,null,null,null,null,null,"事業場名称",null,null,null,null,"：",{"$f":"+表紙!F48","v":"横浜市各工事現場"}]
[null,"令和６年度発生する産業廃棄物ごとの目標量と処理計画"]
[null,"フローに記載した産業廃棄物の種類",null,"チ.　動物のふん尿",null,null,null,null,null,null,null,"「動物のふん尿」には業種指定があり、該当業種以外では一般廃棄物となり、報告対象外です。　\n【該当業種】畜産農業"]
[null,"※","本用紙は廃棄物の種類ごとに1枚の記載となります。異なる廃棄物の処理フローは別シートに記載してください。　　　　　　　　　　　　　　　　　　　　　　　　　　　　　　　　　　　　　　　　　　　　　　　　　　　　　　　　　　　　　　　　　　　　　",null,null,null,null,null,null,null,null,null,null,null,null,null,null,null,null,null,null,null,null,null,null,null,null,null,null,null,null,null,"⑧","自ら中間処理後に再生利用する量"]
[null,"（単位：t/年）",null,null,null,"有償物量",null,null,null,null,null,null,null,null,null,null,null,null,null,null,null,null,null,null,null,null,null,null,null,"ａ残さ物の自己処理",null,null,null,null,null,null,null,null,"ｔ"]
[]
[null,null,"不要物等発生量",null,null,"①","当該事業場における排出量",null,null,null,null,"Ａ　自己処理",null,null,"②","自ら直接再生利用する量",null,null,null,null,null,null,null,null,null,null,null,null,null,null,null,null,"⑨","自ら中間処理後に自ら埋立処分又は海洋投入処分する量"]
[null,null,null,null,null,{"$f":"+ROUND(O12,1)+ROUND(O15,1)+ROUND(O18,1)+ROUND(O24,1)+O27-ROUND(F15,1)","v":0},null,"ｔ",null,null,null,null,null,null,null,null,null,null,"ｔ",null,null,null,null,null,null,null,null,null,null,null,null,null,null,null,null,null,null,null,"ｔ"]
[]
[null,null,null,null,null,"※１","自社の他事業場からの搬入量",null,null,null,null,null,null,null,"③","自ら直接埋立処分又は海洋投入処分する量",null,null,null,null,null,null,null,null,null,null,null,null,null,null,null,null,"※3","自ら中間処理後に自社の他事業場での処理量"]
[null,null,null,null,null,null,null,"ｔ",null,null,null,null,null,null,null,null,null,null,"ｔ",null,null,null,null,null,null,null,null,null,null,null,null,null,null,null,null,null,null,null,"ｔ",null,null,null,null,"（目的別内訳）"]
[null,null,null,null,null,null,null,null,null,null,null,null,null,null,{"$f":"+IF(X18=0,\"\",IF(X18-O18=X18,\"エラー！：⑥残さ物量があるのに、④自ら中間処理した量がゼロになっています\",\"\"))","v":""},null,null,null,null,null,null,null,null,null,null,null,null,null,null,null,null,null,null,null,null,null,null,null,null,null,null,null,null,"再生利用前委託量",null,null,"ｔ"]
[null,null,null,null,null,null,null,null,null,null,null,null,null,null,"④","自ら中間処理する量",null,null,null,null,null,null,null,"⑥","自ら中間処理後の残さ量",null,null,null,null,"ｂ残さ物の委託処理",null,null,"ｂ","自ら中間処理後の処理委託量",null,null,null,null,null,"ｂ-1　中間処理委託量",null,null,null,"最終処分前\n委託量",null,null,"ｔ"]
[null,null,null,null,null,null,null,null,null,null,null,null,null,null,null,null,null,null,"ｔ",null,null,null,null,{"$f":"+ROUND(AG9,1)+ROUND(AG12,1)+ROUND(AG15,1)+AG18","v":0},null,null,"ｔ",null,null,null,null,null,{"$f":"+ROUND(AN18,1)+ROUND(AN21,1)","v":0},null,null,null,"ｔ",null,null,{"$f":"+ROUND(AT16,1)+ROUND(AT17,1)+ROUND(AT18,1)","v":0},"ｔ",null,null,"下水等放流前委託量",null,null,"ｔ"]
[]
[null,"注）右上のフローには、令和６年度の目標量を記載してください。下の表には、令和５年度実績を記載してください。　なお、様式３をあわせて提出する場合には、先に様式３を入力し、データ反映・印刷ツールを使用するとこちらに数値が反映されます。",null,null,null,null,null,null,null,null,null,null,null,null,"⑤","④のうち熱回収を行う量",null,null,null,null,null,null,null,"⑦","自ら中間処理により減量する量",null,null,null,null,null,null,null,null,null,null,null,null,null,null,"ｂ-2　最終処分委託量"]
[null,null,null,null,null,null,null,null,null,null,null,null,null,null,null,null,null,null,"ｔ",null,null,null,null,{"$f":"+O18-X18","v":0},null,null,"ｔ",null,null,null,null,null,null,null,null,null,null,null,null,null,"ｔ"]
[null,null,null,null,null,null,null,null,null,null,null,null,null,null,{"$f":"+IF(O21=0,\"\",IF(O18<O21,\"エラー !：④の内数である⑤の量が④を超えています\",\"\"))","v":""}]
[null,"項　目",null,null,null,"令和５年度実績",null,null,null,null,null,null,null,null,"※２","自社の他事業場での処理量",null,null,null,null,null,null,null,null,null,null,null,null,null,null,null,null,null,null,null,null,null,null,null,null,null,null,null,"⑫","⑩のうち再生利用業者への処理委託量"]
[null,"①　排出量",null,null,null,0,null,"t",null,null,null,null,null,null,null,null,null,null,"ｔ",null,null,null,null,null,null,null,null,null,null,null,null,null,null,null,null,null,null,null,null,null,null,null,null,{"$f":"+ROUND(AT16,1)+ROUND(Z28,1)","v":0},null,null,"ｔ"]
[null,"②＋⑧　自ら再生利用を行った量",null,null,null,0,null,"t"]
[null,"⑤　自ら熱回収を行った量",null,null,null,0,null,"t",null,null,null,"Ｂ　直接委託処理",null,null,"Ｂ","直接処理委託量",null,null,null,null,null,null,null,null,null,null,null,null,null,null,null,null,null,null,null,null,"⑩","直接及び自ら中間処理後の処理委託量",null,null,null,null,null,"⑬","⑩のうち認定熱回収業者への処理委託量"]
[null,"⑦　自ら中間処理により減量した量",null,null,null,0,null,"t",null,null,null,null,null,null,{"$f":"+Q30+ROUND(Q33,1)","v":0},null,null,null,"ｔ",null,null,null,null,"（目的別内訳）",null,null,null,null,null,null,null,null,null,null,null,null,{"$f":"+AG18+O27","v":0},null,null,null,"ｔ",null,null,null,null,null,"ｔ"]
[null,"③＋⑨　自ら埋立処分又は海洋投入処分を行った量",null,null,null,0,null,"t",null,null,null,null,null,null,null,null,null,null,null,null,null,null,null,"再生利用前委託量",null,null,null,null,null,null,"ｔ",null,null,null,null,null,null,null,null,null,null,null,null,{"$f":"+IF(AR27=0,\"\",IF(AK27<(AR24+AR27+AR31),\"エラー !：⑩の内数である（⑫+⑬＋⑭）の量が⑩を超えています\",\"\"))","v":""}]
[null,"⑩　全処理委託量",null,null,null,0,null,"t",null,null,null,null,null,null,null,null,"B-1","中間処理委託量",null,null,null,null,null,"最終処分前委託量",null,null,null,null,null,null,"ｔ",null,null,null,null,null,"⑪","⑩のうち優良認定処理業者への処理委託量",null,null,null,null,null,"⑭","⑩のうち認定熱回収業者以外の熱回収を行う業者への処理委託量"]
[null,"⑪　優良認定処理業者への処理委託量",null,null,null,0,null,"t",null,null,null,null,null,null,null,null,{"$f":"+ROUND(Z28,1)+ROUND(Z29,1)+ROUND(Z30,1)","v":0},null,null,null,"ｔ",null,null,"下水等放流前委託量",null,null,null,null,null,null,"ｔ",null,null,null,null,null,null,null,null,null,"ｔ"]
[null,"⑫　再生利用業者への処理委託量",null,null,null,0,null,"t",null,null,null,null,null,null,null,null,null,null,null,null,null,null,null,null,null,"【産業廃棄物の種類　（ア～ト）】",null,null,null,null,null,null,null,null,null,null,{"$f":"+IF(AK30=0,\"\",IF(AK27<AK30,\"エラー !：⑩の内数である⑪の量が⑩を超えています\",\"\"))","v":""},null,null,null,null,null,null,null,null,null,"ｔ"]
[null,"⑬　認定熱回収業者への処理委託量",null,null,null,0,null,"t",null,null,null,null,null,null,null,null,"B-2","最終処分委託量",null,null,null,null,null,null,null,"ｱ.　燃え殻\nｲ.　汚泥\nｳ.　廃油\nｴ.　廃酸\nｵ.　廃アルカリ\nｶ.　廃ﾌﾟﾗｽﾁｯｸ類\nｷ.　紙くず",null,null,null,null,"ｸ.　木くず\nｹ.　繊維くず\nｺ.　動植物性残さ\nｻ.　動物系固形不要物\nｼ.　ゴムくず\nｽ.　金属くず\nｾ.　ｶﾞﾗｽ・ｺﾝｸﾘｰﾄ・陶磁器くず",null,null,null,null,null,"ｿ.　鉱さい\nﾀ.　がれき類\nﾁ.　動物のふん尿\nﾂ.　動物の死体\nﾃ.　ばいじん\nト.　混合廃棄物その他",null,null,null,null,null,null,{"$f":"+IF(AR31=0,\"\",IF(AK27<(AR24+AR27+AR31),\"エラー !：⑩の内数である（⑫+⑬＋⑭）の量が⑩を超えています\",\"\"))","v":""}]
[null,"⑭　認定熱回収業者以外の熱回収を行う業者への処理委託量",null,null,null,0,null,"t",null,null,null,null,null,null,null,null,null,null,null,null,"ｔ"]
[null,null,{"$f":"+IF(F30=0,\"\",IF(F29<F30,\"エラー !：上の表は、⑩の内数である⑪の量が⑩を超えています\",\"\"))","v":""}]
[null,null,{"$f":"+IF(F31=0,\"\",IF(F29<F31,\"エラー !：上の表は、⑩の内数である⑫の量が⑩を超えています\",\"\"))","v":""}]
[null,null,{"$f":"+IF(F32=0,\"\",IF(F29<F32,\"エラー !：上の表は、⑩の内数である⑬の量が⑩を超えています\",\"\"))","v":""}]
[null,null,{"$f":"+IF(F33=0,\"\",IF(F29<F33,\"エラー !：上の表は、⑩の内数である⑭の量が⑩を超えています\",\"\"))","v":""}]

{"sheet":"ﾂ.動物の死体","index":18,"n_rows":37,"n_cols":47,"rows_kept":37,"cut":false,"hidden":false,"merged":[[26,43,26,45],[4,24,4,28],[11,32,11,37],[10,33,10,38],[2,40,3,42],[4,30,4,46],[2,43,2,44],[3,43,3,44],[2,26,2,28],[7,33,7,38],[8,32,8,37],[23,43,23,45],[22,44,22,46],[17,43,17,44],[25,44,25,46],[16,24,16,26],[15,43,15,44],[19,39,19,40],[17,32,17,35],[16,39,16,40],[16,33,16,36],[16,43,16,44],[13,33,13,38],[14,32,14,37],[10,11,23,11],[8,5,8,7],[6,11,7,26],[16,19,16,22],[26,1,26,4],[25,5,25,6],[22,5,22,7],[23,5,23,6],[25,11,32,11],[25,1,25,4],[25,15,25,18],[10,15,10,18],[11,14,11,17],[22,15,22,18],[17,14,17,17],[26,14,26,17],[19,15,19,18],[22,19,22,22],[23,14,23,17],[30,1,30,4],[26,5,26,6],[32,1,32,4],[31,1,31,4],[31,5,31,6],[1,1,2,6],[6,1,6,2],[10,6,10,7],[13,6,13,7],[24,1,24,4],[22,1,22,4],[6,3,6,7],[11,5,11,6],[14,5,14,6],[23,1,23,4],[24,5,24,6],[7,2,7,9],[19,1,21,7],[32,5,32,6],[28,5,28,6],[30,5,30,6],[27,5,27,6],[29,1,29,4],[29,5,29,6],[27,1,27,4],[28,1,28,4],[29,16,29,19],[29,36,29,39],[30,43,30,45],[28,44,29,46],[28,43,29,43],[29,25,29,29],[27,23,27,24],[31,36,33,39],[32,16,32,19],[31,25,33,29],[31,30,33,35],[30,36,30,41],[29,23,29,24],[31,17,31,20],[28,25,28,29],[26,36,26,39],[25,37,25,40],[27,25,27,29],[15,14,15,26],[17,23,17,25],[13,15,13,18],[28,23,28,24],[28,17,28,20],[21,14,21,20],[8,29,13,29],[16,29,20,29],[20,14,20,17],[20,23,20,25],[19,24,19,26],[16,15,16,18],[14,14,14,17],[28,37,28,40]]}
[null,null,null,null,null,null,null,null,null,null,null,null,null,null,null,null,null,"↓","注意：前年度の排出量のみでフロー図のデータ①がない場合にも、前年度データを該当欄に入力してください"]
[null,"産業廃棄物処理計画書"]
[null,null,null,null,null,null,null,null,null,null,null,null,null,null,null,null,null,null,null,null,null,null,null,null,null,null,null,null,null,null,null,null,null,null,null,null,null,null,null,null,"２－２",null,null,"法定",null,"自主"]
[null,null,null,null,null,null,null,null,null,null,null,null,null,null,null,null,null,null,null,null,null,null,null,null,null,null,null,null,null,null,null,null,null,null,null,null,null,null,null,null,null,null,null,{"$f":"+表紙!Q29","v":"〇"},null,{"$f":"+表紙!T29","v":""}]
[null,"別紙処理フロー",null,null,null,null,null,null,null,null,null,null,null,null,null,null,null,null,null,null,null,null,null,null,"事業場名称",null,null,null,null,"：",{"$f":"+表紙!F48","v":"横浜市各工事現場"}]
[null,"令和６年度発生する産業廃棄物ごとの目標量と処理計画"]
[null,"フローに記載した産業廃棄物の種類",null,"ツ.　動物の死体",null,null,null,null,null,null,null,"「動物の死体」には業種指定があり、該当業種以外では一般廃棄物となり、報告対象外です。\n【該当業種】畜産農業"]
[null,"※","本用紙は廃棄物の種類ごとに1枚の記載となります。異なる廃棄物の処理フローは別シートに記載してください。　　　　　　　　　　　　　　　　　　　　　　　　　　　　　　　　　　　　　　　　　　　　　　　　　　　　　　　　　　　　　　　　　　　　　",null,null,null,null,null,null,null,null,null,null,null,null,null,null,null,null,null,null,null,null,null,null,null,null,null,null,null,null,null,"⑧","自ら中間処理後に再生利用する量"]
[null,"（単位：t/年）",null,null,null,"有償物量",null,null,null,null,null,null,null,null,null,null,null,null,null,null,null,null,null,null,null,null,null,null,null,"ａ残さ物の自己処理",null,null,null,null,null,null,null,null,"ｔ"]
[]
[null,null,"不要物等発生量",null,null,"①","当該事業場における排出量",null,null,null,null,"Ａ　自己処理",null,null,"②","自ら直接再生利用する量",null,null,null,null,null,null,null,null,null,null,null,null,null,null,null,null,"⑨","自ら中間処理後に自ら埋立処分又は海洋投入処分する量"]
[null,null,null,null,null,{"$f":"+ROUND(O12,1)+ROUND(O15,1)+ROUND(O18,1)+ROUND(O24,1)+O27-ROUND(F15,1)","v":0},null,"ｔ",null,null,null,null,null,null,null,null,null,null,"ｔ",null,null,null,null,null,null,null,null,null,null,null,null,null,null,null,null,null,null,null,"ｔ"]
[]
[null,null,null,null,null,"※１","自社の他事業場からの搬入量",null,null,null,null,null,null,null,"③","自ら直接埋立処分又は海洋投入処分する量",null,null,null,null,null,null,null,null,null,null,null,null,null,null,null,null,"※3","自ら中間処理後に自社の他事業場での処理量"]
[null,null,null,null,null,null,null,"ｔ",null,null,null,null,null,null,null,null,null,null,"ｔ",null,null,null,null,null,null,null,null,null,null,null,null,null,null,null,null,null,null,null,"ｔ",null,null,null,null,"（目的別内訳）"]
[null,null,null,null,null,null,null,null,null,null,null,null,null,null,{"$f":"+IF(X18=0,\"\",IF(X18-O18=X18,\"エラー！：⑥残さ物量があるのに、④自ら中間処理した量がゼロになっています\",\"\"))","v":""},null,null,null,null,null,null,null,null,null,null,null,null,null,null,null,null,null,null,null,null,null,null,null,null,null,null,null,null,"再生利用前委託量",null,null,"ｔ"]
[null,null,null,null,null,null,null,null,null,null,null,null,null,null,"④","自ら中間処理する量",null,null,null,null,null,null,null,"⑥","自ら中間処理後の残さ量",null,null,null,null,"ｂ残さ物の委託処理",null,null,"ｂ","自ら中間処理後の処理委託量",null,null,null,null,null,"ｂ-1　中間処理委託量",null,null,null,"最終処分前\n委託量",null,null,"ｔ"]
[null,null,null,null,null,null,null,null,null,null,null,null,null,null,null,null,null,null,"ｔ",null,null,null,null,{"$f":"+ROUND(AG9,1)+ROUND(AG12,1)+ROUND(AG15,1)+AG18","v":0},null,null,"ｔ",null,null,null,null,null,{"$f":"+ROUND(AN18,1)+ROUND(AN21,1)","v":0},null,null,null,"ｔ",null,null,{"$f":"+ROUND(AT16,1)+ROUND(AT17,1)+ROUND(AT18,1)","v":0},"ｔ",null,null,"下水等放流前委託量",null,null,"ｔ"]
[]
[null,"注）右上のフローには、令和６年度の目標量を記載してください。下の表には、令和５年度実績を記載してください。　なお、様式３をあわせて提出する場合には、先に様式３を入力し、データ反映・印刷ツールを使用するとこちらに数値が反映されます。",null,null,null,null,null,null,null,null,null,null,null,null,"⑤","④のうち熱回収を行う量",null,null,null,null,null,null,null,"⑦","自ら中間処理により減量する量",null,null,null,null,null,null,null,null,null,null,null,null,null,null,"ｂ-2　最終処分委託量"]
[null,null,null,null,null,null,null,null,null,null,null,null,null,null,null,null,null,null,"ｔ",null,null,null,null,{"$f":"+O18-X18","v":0},null,null,"ｔ",null,null,null,null,null,null,null,null,null,null,null,null,null,"ｔ"]
[null,null,null,null,null,null,null,null,null,null,null,null,null,null,{"$f":"+IF(O21=0,\"\",IF(O18<O21,\"エラー !：④の内数である⑤の量が④を超えています\",\"\"))","v":""}]
[null,"項　目",null,null,null,"令和５年度実績",null,null,null,null,null,null,null,null,"※２","自社の他事業場での処理量",null,null,null,null,null,null,null,null,null,null,null,null,null,null,null,null,null,null,null,null,null,null,null,null,null,null,null,"⑫","⑩のうち再生利用業者への処理委託量"]
[null,"①　排出量",null,null,null,0,null,"t",null,null,null,null,null,null,null,null,null,null,"ｔ",null,null,null,null,null,null,null,null,null,null,null,null,null,null,null,null,null,null,null,null,null,null,null,null,{"$f":"+ROUND(AT16,1)+ROUND(Z28,1)","v":0},null,null,"ｔ"]
[null,"②＋⑧　自ら再生利用を行った量",null,null,null,0,null,"t"]
[null,"⑤　自ら熱回収を行った量",null,null,null,0,null,"t",null,null,null,"Ｂ　直接委託処理",null,null,"Ｂ","直接処理委託量",null,null,null,null,null,null,null,null,null,null,null,null,null,null,null,null,null,null,null,null,"⑩","直接及び自ら中間処理後の処理委託量",null,null,null,null,null,"⑬","⑩のうち認定熱回収業者への処理委託量"]
[null,"⑦　自ら中間処理により減量した量",null,null,null,0,null,"t",null,null,null,null,null,null,{"$f":"+Q30+ROUND(Q33,1)","v":0},null,null,null,"ｔ",null,null,null,null,"（目的別内訳）",null,null,null,null,null,null,null,null,null,null,null,null,{"$f":"+AG18+O27","v":0},null,null,null,"ｔ",null,null,null,null,null,"ｔ"]
[null,"③＋⑨　自ら埋立処分又は海洋投入処分を行った量",null,null,null,0,null,"t",null,null,null,null,null,null,null,null,null,null,null,null,null,null,null,"再生利用前委託量",null,null,null,null,null,null,"ｔ",null,null,null,null,null,null,null,null,null,null,null,null,{"$f":"+IF(AR27=0,\"\",IF(AK27<(AR24+AR27+AR31),\"エラー !：⑩の内数である（⑫+⑬＋⑭）の量が⑩を超えています\",\"\"))","v":""}]
[null,"⑩　全処理委託量",null,null,null,0,null,"t",null,null,null,null,null,null,null,null,"B-1","中間処理委託量",null,null,null,null,null,"最終処分前委託量",null,null,null,null,null,null,"ｔ",null,null,null,null,null,"⑪","⑩のうち優良認定処理業者への処理委託量",null,null,null,null,null,"⑭","⑩のうち認定熱回収業者以外の熱回収を行う業者への処理委託量"]
[null,"⑪　優良認定処理業者への処理委託量",null,null,null,0,null,"t",null,null,null,null,null,null,null,null,{"$f":"+ROUND(Z28,1)+ROUND(Z29,1)+ROUND(Z30,1)","v":0},null,null,null,"ｔ",null,null,"下水等放流前委託量",null,null,null,null,null,null,"ｔ",null,null,null,null,null,null,null,null,null,"ｔ"]
[null,"⑫　再生利用業者への処理委託量",null,null,null,0,null,"t",null,null,null,null,null,null,null,null,null,null,null,null,null,null,null,null,null,"【産業廃棄物の種類　（ア～ト）】",null,null,null,null,null,null,null,null,null,null,{"$f":"+IF(AK30=0,\"\",IF(AK27<AK30,\"エラー !：⑩の内数である⑪の量が⑩を超えています\",\"\"))","v":""},null,null,null,null,null,null,null,null,null,"ｔ"]
[null,"⑬　認定熱回収業者への処理委託量",null,null,null,0,null,"t",null,null,null,null,null,null,null,null,"B-2","最終処分委託量",null,null,null,null,null,null,null,"ｱ.　燃え殻\nｲ.　汚泥\nｳ.　廃油\nｴ.　廃酸\nｵ.　廃アルカリ\nｶ.　廃ﾌﾟﾗｽﾁｯｸ類\nｷ.　紙くず",null,null,null,null,"ｸ.　木くず\nｹ.　繊維くず\nｺ.　動植物性残さ\nｻ.　動物系固形不要物\nｼ.　ゴムくず\nｽ.　金属くず\nｾ.　ｶﾞﾗｽ・ｺﾝｸﾘｰﾄ・陶磁器くず",null,null,null,null,null,"ｿ.　鉱さい\nﾀ.　がれき類\nﾁ.　動物のふん尿\nﾂ.　動物の死体\nﾃ.　ばいじん\nト.　混合廃棄物その他",null,null,null,null,null,null,{"$f":"+IF(AR31=0,\"\",IF(AK27<(AR24+AR27+AR31),\"エラー !：⑩の内数である（⑫+⑬＋⑭）の量が⑩を超えています\",\"\"))","v":""}]
[null,"⑭　認定熱回収業者以外の熱回収を行う業者への処理委託量",null,null,null,0,null,"t",null,null,null,null,null,null,null,null,null,null,null,null,"ｔ"]
[null,null,{"$f":"+IF(F30=0,\"\",IF(F29<F30,\"エラー !：上の表は、⑩の内数である⑪の量が⑩を超えています\",\"\"))","v":""}]
[null,null,{"$f":"+IF(F31=0,\"\",IF(F29<F31,\"エラー !：上の表は、⑩の内数である⑫の量が⑩を超えています\",\"\"))","v":""}]
[null,null,{"$f":"+IF(F32=0,\"\",IF(F29<F32,\"エラー !：上の表は、⑩の内数である⑬の量が⑩を超えています\",\"\"))","v":""}]
[null,null,{"$f":"+IF(F33=0,\"\",IF(F29<F33,\"エラー !：上の表は、⑩の内数である⑭の量が⑩を超えています\",\"\"))","v":""}]

{"sheet":"ﾃ.ばいじん","index":19,"n_rows":37,"n_cols":47,"rows_kept":37,"cut":false,"hidden":false,"merged":[[1,1,2,6],[16,43,16,44],[7,33,7,38],[11,14,11,17],[2,40,3,42],[8,29,13,29],[8,32,8,37],[11,32,11,37],[2,26,2,28],[13,15,13,18],[2,43,2,44],[6,1,6,2],[7,2,7,9],[6,3,6,7],[8,5,8,7],[3,43,3,44],[15,14,15,26],[16,24,16,26],[16,15,16,18],[13,33,13,38],[4,30,4,46],[4,24,4,28],[6,17,6,20],[14,14,14,17],[10,33,10,38],[26,43,26,45],[30,43,30,45],[28,44,29,46],[28,43,29,43],[25,44,25,46],[26,14,26,17],[25,15,25,18],[25,37,25,40],[31,30,33,35],[30,36,30,41],[22,15,22,18],[17,32,17,35],[17,14,17,17],[17,23,17,25],[28,37,28,40],[29,36,29,39],[31,25,33,29],[26,36,26,39],[27,25,27,29],[28,25,28,29],[27,23,27,24],[28,23,28,24],[31,36,33,39],[29,23,29,24],[29,25,29,29],[31,1,31,4],[32,1,32,4],[31,17,31,20],[28,1,28,4],[29,1,29,4],[30,1,30,4],[32,5,32,6],[29,5,29,6],[28,5,28,6],[32,16,32,19],[28,17,28,20],[30,5,30,6],[25,11,32,11],[29,16,29,19],[27,1,27,4],[27,5,27,6],[31,5,31,6],[22,1,22,4],[23,1,23,4],[24,5,24,6],[25,5,25,6],[26,5,26,6],[25,1,25,4],[26,1,26,4],[24,1,24,4],[23,5,23,6],[22,5,22,7],[19,1,21,7],[19,24,19,26],[22,19,22,22],[21,14,21,20],[19,15,19,18],[20,14,20,17],[20,23,20,25],[15,43,15,44],[17,43,17,44],[10,11,23,11],[16,33,16,36],[23,43,23,45],[22,44,22,46],[16,19,16,22],[19,39,19,40],[16,29,20,29],[23,14,23,17],[14,32,14,37],[13,6,13,7],[11,5,11,6],[10,6,10,7],[10,15,10,18],[14,5,14,6],[16,39,16,40]]}
[null,null,null,null,null,null,null,null,null,null,null,null,null,null,null,null,null,"↓","注意：前年度の排出量のみでフロー図のデータ①がない場合にも、前年度データを該当欄に入力してください"]
[null,"産業廃棄物処理計画書"]
[null,null,null,null,null,null,null,null,null,null,null,null,null,null,null,null,null,null,null,null,null,null,null,null,null,null,null,null,null,null,null,null,null,null,null,null,null,null,null,null,"２－２",null,null,"法定",null,"自主"]
[null,null,null,null,null,null,null,null,null,null,null,null,null,null,null,null,null,null,null,null,null,null,null,null,null,null,null,null,null,null,null,null,null,null,null,null,null,null,null,null,null,null,null,{"$f":"+表紙!Q29","v":"〇"},null,{"$f":"+表紙!T29","v":""}]
[null,"別紙処理フロー",null,null,null,null,null,null,null,null,null,null,null,null,null,null,null,null,null,null,null,null,null,null,"事業場名称",null,null,null,null,"：",{"$f":"+表紙!F48","v":"横浜市各工事現場"}]
[null,"令和６年度発生する産業廃棄物ごとの目標量と処理計画"]
[null,"フローに記載した産業廃棄物の種類",null,"テ.　ばいじん"]
[null,"※","本用紙は廃棄物の種類ごとに1枚の記載となります。異なる廃棄物の処理フローは別シートに記載してください。　　　　　　　　　　　　　　　　　　　　　　　　　　　　　　　　　　　　　　　　　　　　　　　　　　　　　　　　　　　　　　　　　　　　　",null,null,null,null,null,null,null,null,null,null,null,null,null,null,null,null,null,null,null,null,null,null,null,null,null,null,null,null,null,"⑧","自ら中間処理後に再生利用する量"]
[null,"（単位：t/年）",null,null,null,"有償物量",null,null,null,null,null,null,null,null,null,null,null,null,null,null,null,null,null,null,null,null,null,null,null,"ａ残さ物の自己処理",null,null,null,null,null,null,null,null,"ｔ"]
[]
[null,null,"不要物等発生量",null,null,"①","当該事業場における排出量",null,null,null,null,"Ａ　自己処理",null,null,"②","自ら直接再生利用する量",null,null,null,null,null,null,null,null,null,null,null,null,null,null,null,null,"⑨","自ら中間処理後に自ら埋立処分又は海洋投入処分する量"]
[null,null,null,null,null,{"$f":"+ROUND(O12,1)+ROUND(O15,1)+ROUND(O18,1)+ROUND(O24,1)+O27-ROUND(F15,1)","v":0},null,"ｔ",null,null,null,null,null,null,null,null,null,null,"ｔ",null,null,null,null,null,null,null,null,null,null,null,null,null,null,null,null,null,null,null,"ｔ"]
[]
[null,null,null,null,null,"※１","自社の他事業場からの搬入量",null,null,null,null,null,null,null,"③","自ら直接埋立処分又は海洋投入処分する量",null,null,null,null,null,null,null,null,null,null,null,null,null,null,null,null,"※3","自ら中間処理後に自社の他事業場での処理量"]
[null,null,null,null,null,null,null,"ｔ",null,null,null,null,null,null,null,null,null,null,"ｔ",null,null,null,null,null,null,null,null,null,null,null,null,null,null,null,null,null,null,null,"ｔ",null,null,null,null,"（目的別内訳）"]
[null,null,null,null,null,null,null,null,null,null,null,null,null,null,{"$f":"+IF(X18=0,\"\",IF(X18-O18=X18,\"エラー！：⑥残さ物量があるのに、④自ら中間処理した量がゼロになっています\",\"\"))","v":""},null,null,null,null,null,null,null,null,null,null,null,null,null,null,null,null,null,null,null,null,null,null,null,null,null,null,null,null,"再生利用前委託量",null,null,"ｔ"]
[null,null,null,null,null,null,null,null,null,null,null,null,null,null,"④","自ら中間処理する量",null,null,null,null,null,null,null,"⑥","自ら中間処理後の残さ量",null,null,null,null,"ｂ残さ物の委託処理",null,null,"ｂ","自ら中間処理後の処理委託量",null,null,null,null,null,"ｂ-1　中間処理委託量",null,null,null,"最終処分前\n委託量",null,null,"ｔ"]
[null,null,null,null,null,null,null,null,null,null,null,null,null,null,null,null,null,null,"ｔ",null,null,null,null,{"$f":"+ROUND(AG9,1)+ROUND(AG12,1)+ROUND(AG15,1)+AG18","v":0},null,null,"ｔ",null,null,null,null,null,{"$f":"+ROUND(AN18,1)+ROUND(AN21,1)","v":0},null,null,null,"ｔ",null,null,{"$f":"+ROUND(AT16,1)+ROUND(AT17,1)+ROUND(AT18,1)","v":0},"ｔ",null,null,"下水等放流前委託量",null,null,"ｔ"]
[]
[null,"注）右上のフローには、令和６年度の目標量を記載してください。下の表には、令和５年度実績を記載してください。　なお、様式３をあわせて提出する場合には、先に様式３を入力し、データ反映・印刷ツールを使用するとこちらに数値が反映されます。",null,null,null,null,null,null,null,null,null,null,null,null,"⑤","④のうち熱回収を行う量",null,null,null,null,null,null,null,"⑦","自ら中間処理により減量する量",null,null,null,null,null,null,null,null,null,null,null,null,null,null,"ｂ-2　最終処分委託量"]
[null,null,null,null,null,null,null,null,null,null,null,null,null,null,null,null,null,null,"ｔ",null,null,null,null,{"$f":"+O18-X18","v":0},null,null,"ｔ",null,null,null,null,null,null,null,null,null,null,null,null,null,"ｔ"]
[null,null,null,null,null,null,null,null,null,null,null,null,null,null,{"$f":"+IF(O21=0,\"\",IF(O18<O21,\"エラー !：④の内数である⑤の量が④を超えています\",\"\"))","v":""}]
[null,"項　目",null,null,null,"令和５年度実績",null,null,null,null,null,null,null,null,"※２","自社の他事業場での処理量",null,null,null,null,null,null,null,null,null,null,null,null,null,null,null,null,null,null,null,null,null,null,null,null,null,null,null,"⑫","⑩のうち再生利用業者への処理委託量"]
[null,"①　排出量",null,null,null,0,null,"t",null,null,null,null,null,null,null,null,null,null,"ｔ",null,null,null,null,null,null,null,null,null,null,null,null,null,null,null,null,null,null,null,null,null,null,null,null,{"$f":"+ROUND(AT16,1)+ROUND(Z28,1)","v":0},null,null,"ｔ"]
[null,"②＋⑧　自ら再生利用を行った量",null,null,null,0,null,"t"]
[null,"⑤　自ら熱回収を行った量",null,null,null,0,null,"t",null,null,null,"Ｂ　直接委託処理",null,null,"Ｂ","直接処理委託量",null,null,null,null,null,null,null,null,null,null,null,null,null,null,null,null,null,null,null,null,"⑩","直接及び自ら中間処理後の処理委託量",null,null,null,null,null,"⑬","⑩のうち認定熱回収業者への処理委託量"]
[null,"⑦　自ら中間処理により減量した量",null,null,null,0,null,"t",null,null,null,null,null,null,{"$f":"+Q30+ROUND(Q33,1)","v":0},null,null,null,"ｔ",null,null,null,null,"（目的別内訳）",null,null,null,null,null,null,null,null,null,null,null,null,{"$f":"+AG18+O27","v":0},null,null,null,"ｔ",null,null,null,null,null,"ｔ"]
[null,"③＋⑨　自ら埋立処分又は海洋投入処分を行った量",null,null,null,0,null,"t",null,null,null,null,null,null,null,null,null,null,null,null,null,null,null,"再生利用前委託量",null,null,null,null,null,null,"ｔ",null,null,null,null,null,null,null,null,null,null,null,null,{"$f":"+IF(AR27=0,\"\",IF(AK27<(AR24+AR27+AR31),\"エラー !：⑩の内数である（⑫+⑬＋⑭）の量が⑩を超えています\",\"\"))","v":""}]
[null,"⑩　全処理委託量",null,null,null,0,null,"t",null,null,null,null,null,null,null,null,"B-1","中間処理委託量",null,null,null,null,null,"最終処分前委託量",null,null,null,null,null,null,"ｔ",null,null,null,null,null,"⑪","⑩のうち優良認定処理業者への処理委託量",null,null,null,null,null,"⑭","⑩のうち認定熱回収業者以外の熱回収を行う業者への処理委託量"]
[null,"⑪　優良認定処理業者への処理委託量",null,null,null,0,null,"t",null,null,null,null,null,null,null,null,{"$f":"+ROUND(Z28,1)+ROUND(Z29,1)+ROUND(Z30,1)","v":0},null,null,null,"ｔ",null,null,"下水等放流前委託量",null,null,null,null,null,null,"ｔ",null,null,null,null,null,null,null,null,null,"ｔ"]
[null,"⑫　再生利用業者への処理委託量",null,null,null,0,null,"t",null,null,null,null,null,null,null,null,null,null,null,null,null,null,null,null,null,"【産業廃棄物の種類　（ア～ト）】",null,null,null,null,null,null,null,null,null,null,{"$f":"+IF(AK30=0,\"\",IF(AK27<AK30,\"エラー !：⑩の内数である⑪の量が⑩を超えています\",\"\"))","v":""},null,null,null,null,null,null,null,null,null,"ｔ"]
[null,"⑬　認定熱回収業者への処理委託量",null,null,null,0,null,"t",null,null,null,null,null,null,null,null,"B-2","最終処分委託量",null,null,null,null,null,null,null,"ｱ.　燃え殻\nｲ.　汚泥\nｳ.　廃油\nｴ.　廃酸\nｵ.　廃アルカリ\nｶ.　廃ﾌﾟﾗｽﾁｯｸ類\nｷ.　紙くず",null,null,null,null,"ｸ.　木くず\nｹ.　繊維くず\nｺ.　動植物性残さ\nｻ.　動物系固形不要物\nｼ.　ゴムくず\nｽ.　金属くず\nｾ.　ｶﾞﾗｽ・ｺﾝｸﾘｰﾄ・陶磁器くず",null,null,null,null,null,"ｿ.　鉱さい\nﾀ.　がれき類\nﾁ.　動物のふん尿\nﾂ.　動物の死体\nﾃ.　ばいじん\nト.　混合廃棄物その他",null,null,null,null,null,null,{"$f":"+IF(AR31=0,\"\",IF(AK27<(AR24+AR27+AR31),\"エラー !：⑩の内数である（⑫+⑬＋⑭）の量が⑩を超えています\",\"\"))","v":""}]
[null,"⑭　認定熱回収業者以外の熱回収を行う業者への処理委託量",null,null,null,0,null,"t",null,null,null,null,null,null,null,null,null,null,null,null,"ｔ"]
[null,null,{"$f":"+IF(F30=0,\"\",IF(F29<F30,\"エラー !：上の表は、⑩の内数である⑪の量が⑩を超えています\",\"\"))","v":""}]
[null,null,{"$f":"+IF(F31=0,\"\",IF(F29<F31,\"エラー !：上の表は、⑩の内数である⑫の量が⑩を超えています\",\"\"))","v":""}]
[null,null,{"$f":"+IF(F32=0,\"\",IF(F29<F32,\"エラー !：上の表は、⑩の内数である⑬の量が⑩を超えています\",\"\"))","v":""}]
[null,null,{"$f":"+IF(F33=0,\"\",IF(F29<F33,\"エラー !：上の表は、⑩の内数である⑭の量が⑩を超えています\",\"\"))","v":""}]

{"sheet":"ﾄ.混合廃棄物その他","index":20,"n_rows":37,"n_cols":47,"rows_kept":37,"cut":false,"hidden":false,"merged":[[32,16,32,19],[28,23,28,24],[2,26,2,28],[4,30,4,46],[2,40,3,42],[2,43,2,44],[3,43,3,44],[4,24,4,28],[16,33,16,36],[17,23,17,25],[31,17,31,20],[19,15,19,18],[7,33,7,38],[23,43,23,45],[31,36,33,39],[25,15,25,18],[30,36,30,41],[31,30,33,35],[28,17,28,20],[31,25,33,29],[8,29,13,29],[26,14,26,17],[26,36,26,39],[16,24,16,26],[31,1,31,4],[32,1,32,4],[25,11,32,11],[26,1,26,4],[27,1,27,4],[28,1,28,4],[31,5,31,6],[32,5,32,6],[30,1,30,4],[30,5,30,6],[29,5,29,6],[27,5,27,6],[28,5,28,6],[29,16,29,19],[29,1,29,4],[23,5,23,6],[24,5,24,6],[24,1,24,4],[26,5,26,6],[16,39,16,40],[23,14,23,17],[30,43,30,45],[25,1,25,4],[19,1,21,7],[16,43,16,44],[22,44,22,46],[25,37,25,40],[19,39,19,40],[15,43,15,44],[14,32,14,37],[28,37,28,40],[29,36,29,39],[26,43,26,45],[17,43,17,44],[27,23,27,24],[20,23,20,25],[15,14,15,26],[16,19,16,22],[19,24,19,26],[22,19,22,22],[16,29,20,29],[29,25,29,29],[17,32,17,35],[28,44,29,46],[28,43,29,43],[14,14,14,17],[20,14,20,17],[27,25,27,29],[28,25,28,29],[21,14,21,20],[29,23,29,24],[25,44,25,46],[1,1,2,6],[6,1,6,2],[22,1,22,4],[7,2,7,9],[23,1,23,4],[11,5,11,6],[6,3,6,7],[6,17,6,20],[8,5,8,7],[22,15,22,18],[16,15,16,18],[10,15,10,18],[11,14,11,17],[17,14,17,17],[10,11,23,11],[13,33,13,38],[8,32,8,37],[10,6,10,7],[13,6,13,7],[25,5,25,6],[22,5,22,7],[14,5,14,6],[11,32,11,37],[10,33,10,38],[13,15,13,18]]}
[null,null,null,null,null,null,null,null,null,null,null,null,null,null,null,null,null,"↓","注意：前年度の排出量のみでフロー図のデータ①がない場合にも、前年度データを該当欄に入力してください"]
[null,"産業廃棄物処理計画書"]
[null,null,null,null,null,null,null,null,null,null,null,null,null,null,null,null,null,null,null,null,null,null,null,null,null,null,null,null,null,null,null,null,null,null,null,null,null,null,null,null,"２－２",null,null,"法定",null,"自主"]
[null,null,null,null,null,null,null,null,null,null,null,null,null,null,null,null,null,null,null,null,null,null,null,null,null,null,null,null,null,null,null,null,null,null,null,null,null,null,null,null,null,null,null,{"$f":"+表紙!Q29","v":"〇"},null,{"$f":"+表紙!T29","v":""}]
[null,"別紙処理フロー",null,null,null,null,null,null,null,null,null,null,null,null,null,null,null,null,null,null,null,null,null,null,"事業場名称",null,null,null,null,"：",{"$f":"+表紙!F48","v":"横浜市各工事現場"}]
[null,"令和６年度発生する産業廃棄物ごとの目標量と処理計画"]
[null,"フローに記載した産業廃棄物の種類",null,"ト.　混合廃棄物その他"]
[null,"※","本用紙は廃棄物の種類ごとに1枚の記載となります。異なる廃棄物の処理フローは別シートに記載してください。　　　　　　　　　　　　　　　　　　　　　　　　　　　　　　　　　　　　　　　　　　　　　　　　　　　　　　　　　　　　　　　　　　　　　",null,null,null,null,null,null,null,null,null,null,null,null,null,null,null,null,null,null,null,null,null,null,null,null,null,null,null,null,null,"⑧","自ら中間処理後に再生利用する量"]
[null,"（単位：t/年）",null,null,null,"有償物量",null,null,null,null,null,null,null,null,null,null,null,null,null,null,null,null,null,null,null,null,null,null,null,"ａ残さ物の自己処理",null,null,null,null,null,null,null,null,"ｔ"]
[]
[null,null,"不要物等発生量",null,null,"①","当該事業場における排出量",null,null,null,null,"Ａ　自己処理",null,null,"②","自ら直接再生利用する量",null,null,null,null,null,null,null,null,null,null,null,null,null,null,null,null,"⑨","自ら中間処理後に自ら埋立処分又は海洋投入処分する量"]
[null,null,null,null,null,{"$f":"+ROUND(O12,1)+ROUND(O15,1)+ROUND(O18,1)+ROUND(O24,1)+O27-ROUND(F15,1)","v":9},null,"ｔ",null,null,null,null,null,null,null,null,null,null,"ｔ",null,null,null,null,null,null,null,null,null,null,null,null,null,null,null,null,null,null,null,"ｔ"]
[]
[null,null,null,null,null,"※１","自社の他事業場からの搬入量",null,null,null,null,null,null,null,"③","自ら直接埋立処分又は海洋投入処分する量",null,null,null,null,null,null,null,null,null,null,null,null,null,null,null,null,"※3","自ら中間処理後に自社の他事業場での処理量"]
[null,null,null,null,null,null,null,"ｔ",null,null,null,null,null,null,null,null,null,null,"ｔ",null,null,null,null,null,null,null,null,null,null,null,null,null,null,null,null,null,null,null,"ｔ",null,null,null,null,"（目的別内訳）"]
[null,null,null,null,null,null,null,null,null,null,null,null,null,null,{"$f":"+IF(X18=0,\"\",IF(X18-O18=X18,\"エラー！：⑥残さ物量があるのに、④自ら中間処理した量がゼロになっています\",\"\"))","v":""},null,null,null,null,null,null,null,null,null,null,null,null,null,null,null,null,null,null,null,null,null,null,null,null,null,null,null,null,"再生利用前委託量",null,null,"ｔ"]
[null,null,null,null,null,null,null,null,null,null,null,null,null,null,"④","自ら中間処理する量",null,null,null,null,null,null,null,"⑥","自ら中間処理後の残さ量",null,null,null,null,"ｂ残さ物の委託処理",null,null,"ｂ","自ら中間処理後の処理委託量",null,null,null,null,null,"ｂ-1　中間処理委託量",null,null,null,"最終処分前\n委託量",null,null,"ｔ"]
[null,null,null,null,null,null,null,null,null,null,null,null,null,null,null,null,null,null,"ｔ",null,null,null,null,{"$f":"+ROUND(AG9,1)+ROUND(AG12,1)+ROUND(AG15,1)+AG18","v":0},null,null,"ｔ",null,null,null,null,null,{"$f":"+ROUND(AN18,1)+ROUND(AN21,1)","v":0},null,null,null,"ｔ",null,null,{"$f":"+ROUND(AT16,1)+ROUND(AT17,1)+ROUND(AT18,1)","v":0},"ｔ",null,null,"下水等放流前委託量",null,null,"ｔ"]
[]
[null,"注）右上のフローには、令和６年度の目標量を記載してください。下の表には、令和５年度実績を記載してください。　なお、様式３をあわせて提出する場合には、先に様式３を入力し、データ反映・印刷ツールを使用するとこちらに数値が反映されます。",null,null,null,null,null,null,null,null,null,null,null,null,"⑤","④のうち熱回収を行う量",null,null,null,null,null,null,null,"⑦","自ら中間処理により減量する量",null,null,null,null,null,null,null,null,null,null,null,null,null,null,"ｂ-2　最終処分委託量"]
[null,null,null,null,null,null,null,null,null,null,null,null,null,null,null,null,null,null,"ｔ",null,null,null,null,{"$f":"+O18-X18","v":0},null,null,"ｔ",null,null,null,null,null,null,null,null,null,null,null,null,null,"ｔ"]
[null,null,null,null,null,null,null,null,null,null,null,null,null,null,{"$f":"+IF(O21=0,\"\",IF(O18<O21,\"エラー !：④の内数である⑤の量が④を超えています\",\"\"))","v":""}]
[null,"項　目",null,null,null,"令和５年度実績",null,null,null,null,null,null,null,null,"※２","自社の他事業場での処理量",null,null,null,null,null,null,null,null,null,null,null,null,null,null,null,null,null,null,null,null,null,null,null,null,null,null,null,"⑫","⑩のうち再生利用業者への処理委託量"]
[null,"①　排出量",null,null,null,9,null,"t",null,null,null,null,null,null,null,null,null,null,"ｔ",null,null,null,null,null,null,null,null,null,null,null,null,null,null,null,null,null,null,null,null,null,null,null,null,{"$f":"+ROUND(AT16,1)+ROUND(Z28,1)","v":9},null,null,"ｔ"]
[null,"②＋⑧　自ら再生利用を行った量",null,null,null,0,null,"t"]
[null,"⑤　自ら熱回収を行った量",null,null,null,0,null,"t",null,null,null,"Ｂ　直接委託処理",null,null,"Ｂ","直接処理委託量",null,null,null,null,null,null,null,null,null,null,null,null,null,null,null,null,null,null,null,null,"⑩","直接及び自ら中間処理後の処理委託量",null,null,null,null,null,"⑬","⑩のうち認定熱回収業者への処理委託量"]
[null,"⑦　自ら中間処理により減量した量",null,null,null,0,null,"t",null,null,null,null,null,null,{"$f":"+Q30+ROUND(Q33,1)","v":9},null,null,null,"ｔ",null,null,null,null,"（目的別内訳）",null,null,null,null,null,null,null,null,null,null,null,null,{"$f":"+AG18+O27","v":9},null,null,null,"ｔ",null,null,null,null,null,"ｔ"]
[null,"③＋⑨　自ら埋立処分又は海洋投入処分を行った量",null,null,null,0,null,"t",null,null,null,null,null,null,null,null,null,null,null,null,null,null,null,"再生利用前委託量",null,9,null,null,null,null,"ｔ",null,null,null,null,null,null,null,null,null,null,null,null,{"$f":"+IF(AR27=0,\"\",IF(AK27<(AR24+AR27+AR31),\"エラー !：⑩の内数である（⑫+⑬＋⑭）の量が⑩を超えています\",\"\"))","v":""}]
[null,"⑩　全処理委託量",null,null,null,9,null,"t",null,null,null,null,null,null,null,null,"B-1","中間処理委託量",null,null,null,null,null,"最終処分前委託量",null,null,null,null,null,null,"ｔ",null,null,null,null,null,"⑪","⑩のうち優良認定処理業者への処理委託量",null,null,null,null,null,"⑭","⑩のうち認定熱回収業者以外の熱回収を行う業者への処理委託量"]
[null,"⑪　優良認定処理業者への処理委託量",null,null,null,0,null,"t",null,null,null,null,null,null,null,null,{"$f":"+ROUND(Z28,1)+ROUND(Z29,1)+ROUND(Z30,1)","v":9},null,null,null,"ｔ",null,null,"下水等放流前委託量",null,null,null,null,null,null,"ｔ",null,null,null,null,null,null,null,null,null,"ｔ"]
[null,"⑫　再生利用業者への処理委託量",null,null,null,9,null,"t",null,null,null,null,null,null,null,null,null,null,null,null,null,null,null,null,null,"【産業廃棄物の種類　（ア～ト）】",null,null,null,null,null,null,null,null,null,null,{"$f":"+IF(AK30=0,\"\",IF(AK27<AK30,\"エラー !：⑩の内数である⑪の量が⑩を超えています\",\"\"))","v":""},null,null,null,null,null,null,null,null,null,"ｔ"]
[null,"⑬　認定熱回収業者への処理委託量",null,null,null,0,null,"t",null,null,null,null,null,null,null,null,"B-2","最終処分委託量",null,null,null,null,null,null,null,"ｱ.　燃え殻\nｲ.　汚泥\nｳ.　廃油\nｴ.　廃酸\nｵ.　廃アルカリ\nｶ.　廃ﾌﾟﾗｽﾁｯｸ類\nｷ.　紙くず",null,null,null,null,"ｸ.　木くず\nｹ.　繊維くず\nｺ.　動植物性残さ\nｻ.　動物系固形不要物\nｼ.　ゴムくず\nｽ.　金属くず\nｾ.　ｶﾞﾗｽ・ｺﾝｸﾘｰﾄ・陶磁器くず",null,null,null,null,null,"ｿ.　鉱さい\nﾀ.　がれき類\nﾁ.　動物のふん尿\nﾂ.　動物の死体\nﾃ.　ばいじん\nト.　混合廃棄物その他",null,null,null,null,null,null,{"$f":"+IF(AR31=0,\"\",IF(AK27<(AR24+AR27+AR31),\"エラー !：⑩の内数である（⑫+⑬＋⑭）の量が⑩を超えています\",\"\"))","v":""}]
[null,"⑭　認定熱回収業者以外の熱回収を行う業者への処理委託量",null,null,null,0,null,"t",null,null,null,null,null,null,null,null,null,null,null,null,"ｔ"]
[null,null,{"$f":"+IF(F30=0,\"\",IF(F29<F30,\"エラー !：上の表は、⑩の内数である⑪の量が⑩を超えています\",\"\"))","v":""}]
[null,null,{"$f":"+IF(F31=0,\"\",IF(F29<F31,\"エラー !：上の表は、⑩の内数である⑫の量が⑩を超えています\",\"\"))","v":""}]
[null,null,{"$f":"+IF(F32=0,\"\",IF(F29<F32,\"エラー !：上の表は、⑩の内数である⑬の量が⑩を超えています\",\"\"))","v":""}]
[null,null,{"$f":"+IF(F33=0,\"\",IF(F29<F33,\"エラー !：上の表は、⑩の内数である⑭の量が⑩を超えています\",\"\"))","v":""}]

{"sheet":"別紙","index":21,"n_rows":55,"n_cols":27,"rows_kept":55,"cut":false,"hidden":false,"merged":[[36,2,41,2],[30,4,30,5],[17,3,17,5],[16,2,16,5],[25,2,30,2],[22,4,22,5],[24,4,24,5],[11,2,11,5],[12,2,12,5],[13,2,13,5],[14,2,14,5],[15,2,15,5],[46,4,46,5],[42,3,42,5],[36,4,36,5],[18,3,18,5],[19,3,19,5],[20,4,20,5],[44,4,44,5],[45,4,45,5],[27,3,29,3],[25,4,25,5],[43,4,43,5],[26,4,26,5],[21,4,21,5],[9,2,9,5],[10,2,10,5],[2,1,3,5],[5,21,5,25],[8,2,8,5],[5,12,5,13],[3,24,4,24],[5,15,5,20]]}
[null,null,"このページは、印刷用のページですので、一切入力できません。入力は各廃棄物のフローシート「ア.燃え殻～ト.混合廃棄物その他」にしてください。"]
[null,null,null,null,"は訂正が必要ですので、該当の処理フローを訂正してください。"]
[null,"産業廃棄物処理計画書"]
[null,null,null,null,null,null,null,null,null,null,null,null,null,null,null,null,null,null,null,null,null,null,null,null,"２－１","法定","自主"]
[null,null,null,null,null,null,null,null,null,null,null,null,null,null,null,null,null,null,null,null,null,null,null,null,null,{"$f":"+表紙!Q29","v":"〇"},{"$f":"+表紙!T29","v":""}]
[null,"別紙一括表",null,null,null,null,null,null,null,null,null,null,null,null,"事業場名称：",{"$f":"+表紙!F48","v":"横浜市各工事現場"},null,null,null,null,null,null,null,null,null,null,"（単位：トン）"]
[null,null,null,null,null,null,"ア","イ","ウ","エ","オ","カ","キ","ク","ケ","コ","サ","シ","ス","セ","ソ","タ","チ","ツ","テ","ト"]
[null,null,null,null,null,null,"燃え殻","汚泥","廃油","廃酸","廃アルカリ","廃\nﾌﾟﾗｽﾁｯｸ","紙くず","木くず","繊維くず","動植物性\n残さ","動物系\n固形不要物","ゴムくず","金属くず","ｶﾞﾗｽ・ｺﾝｸﾘｰﾄ・陶磁器くず","鉱さい","がれき類","動物の\nふん尿","動物の\n死体","ばいじん","混合廃棄物\nその他","合計"]
[null,null,"①　排出量",null,null,null,{"$f":"IF(OR(ｱ.燃え殻!F24>0,ｱ.燃え殻!F24<0),ｱ.燃え殻!F24,IF(G$19>0,\"0\",0))","v":0},{"$f":"IF(OR(ｲ.汚泥!F24>0,ｲ.汚泥!F24<0),ｲ.汚泥!F24,IF(H$19>0,\"0\",0))","v":0.8},{"$f":"IF(OR(ｳ.廃油!F24>0,ｳ.廃油!F24<0),ｳ.廃油!F24,IF(I$19>0,\"0\",0))","v":0},{"$f":"IF(OR(ｴ.廃酸!$F24>0,ｴ.廃酸!$F24<0),ｴ.廃酸!F24,IF(J$19>0,\"0\",0))","v":0},{"$f":"IF(OR(ｵ.廃ｱﾙｶﾘ!$F24>0,ｵ.廃ｱﾙｶﾘ!$F24<0),ｵ.廃ｱﾙｶﾘ!F24,IF(K$19>0,\"0\",0))","v":0},{"$f":"IF(OR(ｶ.廃ﾌﾟﾗ類!F24>0,ｶ.廃ﾌﾟﾗ類!F24<0),ｶ.廃ﾌﾟﾗ類!F24,IF(L$19>0,\"0\",0))","v":0},{"$f":"IF(OR(ｷ.紙くず!F24>0,ｷ.紙くず!F24<0),ｷ.紙くず!F24,IF(M$19>0,\"0\",0))","v":0},{"$f":"IF(OR(ｸ.木くず!F24>0,ｸ.木くず!F24<0),ｸ.木くず!F24,IF(N$19>0,\"0\",0))","v":0},{"$f":"IF(OR(ｹ.繊維くず!F24>0,ｹ.繊維くず!F24<0),ｹ.繊維くず!F24,IF(O$19>0,\"0\",0))","v":0},{"$f":"IF(OR(ｺ.動植物性残さ!F24>0,ｺ.動植物性残さ!F24<0),ｺ.動植物性残さ!F24,IF(P$19>0,\"0\",0))","v":0},{"$f":"IF(OR(ｻ.動物系固形不要物!F24>0,ｻ.動物系固形不要物!F24<0),ｻ.動物系固形不要物!F24,IF(Q$19>0,\"0\",0))","v":0},{"$f":"IF(OR(ｼ.ｺﾞﾑくず!F24>0,ｼ.ｺﾞﾑくず!F24<0),ｼ.ｺﾞﾑくず!F24,IF(R$19>0,\"0\",0))","v":0},{"$f":"IF(OR(ｽ.金属くず!F24>0,ｽ.金属くず!F24<0),ｽ.金属くず!F24,IF(S$19>0,\"0\",0))","v":0},{"$f":"IF(OR(ｾ.ｶﾞﾗｽ･ｺﾝｸﾘ･陶磁器くず!F24>0,ｾ.ｶﾞﾗｽ･ｺﾝｸﾘ･陶磁器くず!F24<0),ｾ.ｶﾞﾗｽ･ｺﾝｸﾘ･陶磁器くず!F24,IF(T$19>0,\"0\",0))","v":0},{"$f":"IF(OR(ｿ.鉱さい!F24>0,ｿ.鉱さい!F24<0),ｿ.鉱さい!F24,IF(U$19>0,\"0\",0))","v":0},{"$f":"IF(OR(ﾀ.がれき類!F24>0,ﾀ.がれき類!F24<0),ﾀ.がれき類!F24,IF(V$19>0,\"0\",0))","v":1079.0999999999999},{"$f":"IF(OR(ﾁ.動物のふん尿!F24>0,ﾁ.動物のふん尿!F24<0),ﾁ.動物のふん尿!F24,IF(W$19>0,\"0\",0))","v":0},{"$f":"IF(OR(ﾂ.動物の死体!F24>0,ﾂ.動物の死体!F24<0),ﾂ.動物の死体!F24,IF(X$19>0,\"0\",0))","v":0},{"$f":"IF(OR(ﾃ.ばいじん!F24>0,ﾃ.ばいじん!F24<0),ﾃ.ばいじん!F24,IF(Y$19>0,\"0\",0))","v":0},{"$f":"IF(OR(ﾄ.混合廃棄物その他!F24>0,ﾄ.混合廃棄物その他!F24<0),ﾄ.混合廃棄物その他!F24,IF(Z$19>0,\"0\",0))","v":9},{"$f":"IF(SUM(G9:Z9)>0,SUM(G9:Z9),IF(AA$19>0,\"0\",0))","v":1088.8999999999999}]
[null,"令","②＋⑧　自ら再生利用を行った量",null,null,null,{"$f":"IF(OR(ｱ.燃え殻!F25>0,ｱ.燃え殻!F25<0),ｱ.燃え殻!F25,IF(G$19>0,\"0\",0))","v":0},{"$f":"IF(OR(ｲ.汚泥!F25>0,ｲ.汚泥!F25<0),ｲ.汚泥!F25,IF(H$19>0,\"0\",0))","v":"0"},{"$f":"IF(OR(ｳ.廃油!F25>0,ｳ.廃油!F25<0),ｳ.廃油!F25,IF(I$19>0,\"0\",0))","v":0},{"$f":"IF(OR(ｴ.廃酸!$F25>0,ｴ.廃酸!$F25<0),ｴ.廃酸!F25,IF(J$19>0,\"0\",0))","v":0},{"$f":"IF(OR(ｵ.廃ｱﾙｶﾘ!$F25>0,ｵ.廃ｱﾙｶﾘ!$F25<0),ｵ.廃ｱﾙｶﾘ!F25,IF(K$19>0,\"0\",0))","v":0},{"$f":"IF(OR(ｶ.廃ﾌﾟﾗ類!F25>0,ｶ.廃ﾌﾟﾗ類!F25<0),ｶ.廃ﾌﾟﾗ類!F25,IF(L$19>0,\"0\",0))","v":0},{"$f":"IF(OR(ｷ.紙くず!F25>0,ｷ.紙くず!F25<0),ｷ.紙くず!F25,IF(M$19>0,\"0\",0))","v":0},{"$f":"IF(OR(ｸ.木くず!F25>0,ｸ.木くず!F25<0),ｸ.木くず!F25,IF(N$19>0,\"0\",0))","v":0},{"$f":"IF(OR(ｹ.繊維くず!F25>0,ｹ.繊維くず!F25<0),ｹ.繊維くず!F25,IF(O$19>0,\"0\",0))","v":0},{"$f":"IF(OR(ｺ.動植物性残さ!F25>0,ｺ.動植物性残さ!F25<0),ｺ.動植物性残さ!F25,IF(P$19>0,\"0\",0))","v":0},{"$f":"IF(OR(ｻ.動物系固形不要物!F25>0,ｻ.動物系固形不要物!F25<0),ｻ.動物系固形不要物!F25,IF(Q$19>0,\"0\",0))","v":0},{"$f":"IF(OR(ｼ.ｺﾞﾑくず!F25>0,ｼ.ｺﾞﾑくず!F25<0),ｼ.ｺﾞﾑくず!F25,IF(R$19>0,\"0\",0))","v":0},{"$f":"IF(OR(ｽ.金属くず!F25>0,ｽ.金属くず!F25<0),ｽ.金属くず!F25,IF(S$19>0,\"0\",0))","v":0},{"$f":"IF(OR(ｾ.ｶﾞﾗｽ･ｺﾝｸﾘ･陶磁器くず!F25>0,ｾ.ｶﾞﾗｽ･ｺﾝｸﾘ･陶磁器くず!F25<0),ｾ.ｶﾞﾗｽ･ｺﾝｸﾘ･陶磁器くず!F25,IF(T$19>0,\"0\",0))","v":0},{"$f":"IF(OR(ｿ.鉱さい!F25>0,ｿ.鉱さい!F25<0),ｿ.鉱さい!F25,IF(U$19>0,\"0\",0))","v":0},{"$f":"IF(OR(ﾀ.がれき類!F25>0,ﾀ.がれき類!F25<0),ﾀ.がれき類!F25,IF(V$19>0,\"0\",0))","v":"0"},{"$f":"IF(OR(ﾁ.動物のふん尿!F25>0,ﾁ.動物のふん尿!F25<0),ﾁ.動物のふん尿!F25,IF(W$19>0,\"0\",0))","v":0},{"$f":"IF(OR(ﾂ.動物の死体!F25>0,ﾂ.動物の死体!F25<0),ﾂ.動物の死体!F25,IF(X$19>0,\"0\",0))","v":0},{"$f":"IF(OR(ﾃ.ばいじん!F25>0,ﾃ.ばいじん!F25<0),ﾃ.ばいじん!F25,IF(Y$19>0,\"0\",0))","v":0},{"$f":"IF(OR(ﾄ.混合廃棄物その他!F25>0,ﾄ.混合廃棄物その他!F25<0),ﾄ.混合廃棄物その他!F25,IF(Z$19>0,\"0\",0))","v":"0"},{"$f":"IF(SUM(G10:Z10)>0,SUM(G10:Z10),IF(AA$19>0,\"0\",0))","v":"0"}]
[null,"和","⑤　自ら熱回収を行った量",null,null,null,{"$f":"IF(OR(ｱ.燃え殻!F26>0,ｱ.燃え殻!F26<0),ｱ.燃え殻!F26,IF(G$19>0,\"0\",0))","v":0},{"$f":"IF(OR(ｲ.汚泥!F26>0,ｲ.汚泥!F26<0),ｲ.汚泥!F26,IF(H$19>0,\"0\",0))","v":"0"},{"$f":"IF(OR(ｳ.廃油!F26>0,ｳ.廃油!F26<0),ｳ.廃油!F26,IF(I$19>0,\"0\",0))","v":0},{"$f":"IF(OR(ｴ.廃酸!$F26>0,ｴ.廃酸!$F26<0),ｴ.廃酸!F26,IF(J$19>0,\"0\",0))","v":0},{"$f":"IF(OR(ｵ.廃ｱﾙｶﾘ!$F26>0,ｵ.廃ｱﾙｶﾘ!$F26<0),ｵ.廃ｱﾙｶﾘ!F26,IF(K$19>0,\"0\",0))","v":0},{"$f":"IF(OR(ｶ.廃ﾌﾟﾗ類!F26>0,ｶ.廃ﾌﾟﾗ類!F26<0),ｶ.廃ﾌﾟﾗ類!F26,IF(L$19>0,\"0\",0))","v":0},{"$f":"IF(OR(ｷ.紙くず!F26>0,ｷ.紙くず!F26<0),ｷ.紙くず!F26,IF(M$19>0,\"0\",0))","v":0},{"$f":"IF(OR(ｸ.木くず!F26>0,ｸ.木くず!F26<0),ｸ.木くず!F26,IF(N$19>0,\"0\",0))","v":0},{"$f":"IF(OR(ｹ.繊維くず!F26>0,ｹ.繊維くず!F26<0),ｹ.繊維くず!F26,IF(O$19>0,\"0\",0))","v":0},{"$f":"IF(OR(ｺ.動植物性残さ!F26>0,ｺ.動植物性残さ!F26<0),ｺ.動植物性残さ!F26,IF(P$19>0,\"0\",0))","v":0},{"$f":"IF(OR(ｻ.動物系固形不要物!F26>0,ｻ.動物系固形不要物!F26<0),ｻ.動物系固形不要物!F26,IF(Q$19>0,\"0\",0))","v":0},{"$f":"IF(OR(ｼ.ｺﾞﾑくず!F26>0,ｼ.ｺﾞﾑくず!F26<0),ｼ.ｺﾞﾑくず!F26,IF(R$19>0,\"0\",0))","v":0},{"$f":"IF(OR(ｽ.金属くず!F26>0,ｽ.金属くず!F26<0),ｽ.金属くず!F26,IF(S$19>0,\"0\",0))","v":0},{"$f":"IF(OR(ｾ.ｶﾞﾗｽ･ｺﾝｸﾘ･陶磁器くず!F26>0,ｾ.ｶﾞﾗｽ･ｺﾝｸﾘ･陶磁器くず!F26<0),ｾ.ｶﾞﾗｽ･ｺﾝｸﾘ･陶磁器くず!F26,IF(T$19>0,\"0\",0))","v":0},{"$f":"IF(OR(ｿ.鉱さい!F26>0,ｿ.鉱さい!F26<0),ｿ.鉱さい!F26,IF(U$19>0,\"0\",0))","v":0},{"$f":"IF(OR(ﾀ.がれき類!F26>0,ﾀ.がれき類!F26<0),ﾀ.がれき類!F26,IF(V$19>0,\"0\",0))","v":"0"},{"$f":"IF(OR(ﾁ.動物のふん尿!F26>0,ﾁ.動物のふん尿!F26<0),ﾁ.動物のふん尿!F26,IF(W$19>0,\"0\",0))","v":0},{"$f":"IF(OR(ﾂ.動物の死体!F26>0,ﾂ.動物の死体!F26<0),ﾂ.動物の死体!F26,IF(X$19>0,\"0\",0))","v":0},{"$f":"IF(OR(ﾃ.ばいじん!F26>0,ﾃ.ばいじん!F26<0),ﾃ.ばいじん!F26,IF(Y$19>0,\"0\",0))","v":0},{"$f":"IF(OR(ﾄ.混合廃棄物その他!F26>0,ﾄ.混合廃棄物その他!F26<0),ﾄ.混合廃棄物その他!F26,IF(Z$19>0,\"0\",0))","v":"0"},"0"]
[null,5,"⑦　自ら中間処理により減量した量",null,null,null,{"$f":"IF(OR(ｱ.燃え殻!F27>0,ｱ.燃え殻!F27<0),ｱ.燃え殻!F27,IF(G$19>0,\"0\",0))","v":0},{"$f":"IF(OR(ｲ.汚泥!F27>0,ｲ.汚泥!F27<0),ｲ.汚泥!F27,IF(H$19>0,\"0\",0))","v":"0"},{"$f":"IF(OR(ｳ.廃油!F27>0,ｳ.廃油!F27<0),ｳ.廃油!F27,IF(I$19>0,\"0\",0))","v":0},{"$f":"IF(OR(ｴ.廃酸!$F27>0,ｴ.廃酸!$F27<0),ｴ.廃酸!F27,IF(J$19>0,\"0\",0))","v":0},{"$f":"IF(OR(ｵ.廃ｱﾙｶﾘ!$F27>0,ｵ.廃ｱﾙｶﾘ!$F27<0),ｵ.廃ｱﾙｶﾘ!F27,IF(K$19>0,\"0\",0))","v":0},{"$f":"IF(OR(ｶ.廃ﾌﾟﾗ類!F27>0,ｶ.廃ﾌﾟﾗ類!F27<0),ｶ.廃ﾌﾟﾗ類!F27,IF(L$19>0,\"0\",0))","v":0},{"$f":"IF(OR(ｷ.紙くず!F27>0,ｷ.紙くず!F27<0),ｷ.紙くず!F27,IF(M$19>0,\"0\",0))","v":0},{"$f":"IF(OR(ｸ.木くず!F27>0,ｸ.木くず!F27<0),ｸ.木くず!F27,IF(N$19>0,\"0\",0))","v":0},{"$f":"IF(OR(ｹ.繊維くず!F27>0,ｹ.繊維くず!F27<0),ｹ.繊維くず!F27,IF(O$19>0,\"0\",0))","v":0},{"$f":"IF(OR(ｺ.動植物性残さ!F27>0,ｺ.動植物性残さ!F27<0),ｺ.動植物性残さ!F27,IF(P$19>0,\"0\",0))","v":0},{"$f":"IF(OR(ｻ.動物系固形不要物!F27>0,ｻ.動物系固形不要物!F27<0),ｻ.動物系固形不要物!F27,IF(Q$19>0,\"0\",0))","v":0},{"$f":"IF(OR(ｼ.ｺﾞﾑくず!F27>0,ｼ.ｺﾞﾑくず!F27<0),ｼ.ｺﾞﾑくず!F27,IF(R$19>0,\"0\",0))","v":0},{"$f":"IF(OR(ｽ.金属くず!F27>0,ｽ.金属くず!F27<0),ｽ.金属くず!F27,IF(S$19>0,\"0\",0))","v":0},{"$f":"IF(OR(ｾ.ｶﾞﾗｽ･ｺﾝｸﾘ･陶磁器くず!F27>0,ｾ.ｶﾞﾗｽ･ｺﾝｸﾘ･陶磁器くず!F27<0),ｾ.ｶﾞﾗｽ･ｺﾝｸﾘ･陶磁器くず!F27,IF(T$19>0,\"0\",0))","v":0},{"$f":"IF(OR(ｿ.鉱さい!F27>0,ｿ.鉱さい!F27<0),ｿ.鉱さい!F27,IF(U$19>0,\"0\",0))","v":0},{"$f":"IF(OR(ﾀ.がれき類!F27>0,ﾀ.がれき類!F27<0),ﾀ.がれき類!F27,IF(V$19>0,\"0\",0))","v":"0"},{"$f":"IF(OR(ﾁ.動物のふん尿!F27>0,ﾁ.動物のふん尿!F27<0),ﾁ.動物のふん尿!F27,IF(W$19>0,\"0\",0))","v":0},{"$f":"IF(OR(ﾂ.動物の死体!F27>0,ﾂ.動物の死体!F27<0),ﾂ.動物の死体!F27,IF(X$19>0,\"0\",0))","v":0},{"$f":"IF(OR(ﾃ.ばいじん!F27>0,ﾃ.ばいじん!F27<0),ﾃ.ばいじん!F27,IF(Y$19>0,\"0\",0))","v":0},{"$f":"IF(OR(ﾄ.混合廃棄物その他!F27>0,ﾄ.混合廃棄物その他!F27<0),ﾄ.混合廃棄物その他!F27,IF(Z$19>0,\"0\",0))","v":"0"},"0"]
[null,"年","③＋⑨　自ら埋立処分又は海洋投入処分を行った量",null,null,null,{"$f":"IF(OR(ｱ.燃え殻!F28>0,ｱ.燃え殻!F28<0),ｱ.燃え殻!F28,IF(G$19>0,\"0\",0))","v":0},{"$f":"IF(OR(ｲ.汚泥!F28>0,ｲ.汚泥!F28<0),ｲ.汚泥!F28,IF(H$19>0,\"0\",0))","v":"0"},{"$f":"IF(OR(ｳ.廃油!F28>0,ｳ.廃油!F28<0),ｳ.廃油!F28,IF(I$19>0,\"0\",0))","v":0},{"$f":"IF(OR(ｴ.廃酸!$F28>0,ｴ.廃酸!$F28<0),ｴ.廃酸!F28,IF(J$19>0,\"0\",0))","v":0},{"$f":"IF(OR(ｵ.廃ｱﾙｶﾘ!$F28>0,ｵ.廃ｱﾙｶﾘ!$F28<0),ｵ.廃ｱﾙｶﾘ!F28,IF(K$19>0,\"0\",0))","v":0},{"$f":"IF(OR(ｶ.廃ﾌﾟﾗ類!F28>0,ｶ.廃ﾌﾟﾗ類!F28<0),ｶ.廃ﾌﾟﾗ類!F28,IF(L$19>0,\"0\",0))","v":0},{"$f":"IF(OR(ｷ.紙くず!F28>0,ｷ.紙くず!F28<0),ｷ.紙くず!F28,IF(M$19>0,\"0\",0))","v":0},{"$f":"IF(OR(ｸ.木くず!F28>0,ｸ.木くず!F28<0),ｸ.木くず!F28,IF(N$19>0,\"0\",0))","v":0},{"$f":"IF(OR(ｹ.繊維くず!F28>0,ｹ.繊維くず!F28<0),ｹ.繊維くず!F28,IF(O$19>0,\"0\",0))","v":0},{"$f":"IF(OR(ｺ.動植物性残さ!F28>0,ｺ.動植物性残さ!F28<0),ｺ.動植物性残さ!F28,IF(P$19>0,\"0\",0))","v":0},{"$f":"IF(OR(ｻ.動物系固形不要物!F28>0,ｻ.動物系固形不要物!F28<0),ｻ.動物系固形不要物!F28,IF(Q$19>0,\"0\",0))","v":0},{"$f":"IF(OR(ｼ.ｺﾞﾑくず!F28>0,ｼ.ｺﾞﾑくず!F28<0),ｼ.ｺﾞﾑくず!F28,IF(R$19>0,\"0\",0))","v":0},{"$f":"IF(OR(ｽ.金属くず!F28>0,ｽ.金属くず!F28<0),ｽ.金属くず!F28,IF(S$19>0,\"0\",0))","v":0},{"$f":"IF(OR(ｾ.ｶﾞﾗｽ･ｺﾝｸﾘ･陶磁器くず!F28>0,ｾ.ｶﾞﾗｽ･ｺﾝｸﾘ･陶磁器くず!F28<0),ｾ.ｶﾞﾗｽ･ｺﾝｸﾘ･陶磁器くず!F28,IF(T$19>0,\"0\",0))","v":0},{"$f":"IF(OR(ｿ.鉱さい!F28>0,ｿ.鉱さい!F28<0),ｿ.鉱さい!F28,IF(U$19>0,\"0\",0))","v":0},{"$f":"IF(OR(ﾀ.がれき類!F28>0,ﾀ.がれき類!F28<0),ﾀ.がれき類!F28,IF(V$19>0,\"0\",0))","v":"0"},{"$f":"IF(OR(ﾁ.動物のふん尿!F28>0,ﾁ.動物のふん尿!F28<0),ﾁ.動物のふん尿!F28,IF(W$19>0,\"0\",0))","v":0},{"$f":"IF(OR(ﾂ.動物の死体!F28>0,ﾂ.動物の死体!F28<0),ﾂ.動物の死体!F28,IF(X$19>0,\"0\",0))","v":0},{"$f":"IF(OR(ﾃ.ばいじん!F28>0,ﾃ.ばいじん!F28<0),ﾃ.ばいじん!F28,IF(Y$19>0,\"0\",0))","v":0},{"$f":"IF(OR(ﾄ.混合廃棄物その他!F28>0,ﾄ.混合廃棄物その他!F28<0),ﾄ.混合廃棄物その他!F28,IF(Z$19>0,\"0\",0))","v":"0"},"0"]
[null,"度","⑩　全処理委託量",null,null,null,{"$f":"IF(OR(ｱ.燃え殻!F29>0,ｱ.燃え殻!F29<0),ｱ.燃え殻!F29,IF(G$19>0,\"0\",0))","v":0},{"$f":"IF(OR(ｲ.汚泥!F29>0,ｲ.汚泥!F29<0),ｲ.汚泥!F29,IF(H$19>0,\"0\",0))","v":0.8},{"$f":"IF(OR(ｳ.廃油!F29>0,ｳ.廃油!F29<0),ｳ.廃油!F29,IF(I$19>0,\"0\",0))","v":0},{"$f":"IF(OR(ｴ.廃酸!$F29>0,ｴ.廃酸!$F29<0),ｴ.廃酸!F29,IF(J$19>0,\"0\",0))","v":0},{"$f":"IF(OR(ｵ.廃ｱﾙｶﾘ!$F29>0,ｵ.廃ｱﾙｶﾘ!$F29<0),ｵ.廃ｱﾙｶﾘ!F29,IF(K$19>0,\"0\",0))","v":0},{"$f":"IF(OR(ｶ.廃ﾌﾟﾗ類!F29>0,ｶ.廃ﾌﾟﾗ類!F29<0),ｶ.廃ﾌﾟﾗ類!F29,IF(L$19>0,\"0\",0))","v":0},{"$f":"IF(OR(ｷ.紙くず!F29>0,ｷ.紙くず!F29<0),ｷ.紙くず!F29,IF(M$19>0,\"0\",0))","v":0},{"$f":"IF(OR(ｸ.木くず!F29>0,ｸ.木くず!F29<0),ｸ.木くず!F29,IF(N$19>0,\"0\",0))","v":0},{"$f":"IF(OR(ｹ.繊維くず!F29>0,ｹ.繊維くず!F29<0),ｹ.繊維くず!F29,IF(O$19>0,\"0\",0))","v":0},{"$f":"IF(OR(ｺ.動植物性残さ!F29>0,ｺ.動植物性残さ!F29<0),ｺ.動植物性残さ!F29,IF(P$19>0,\"0\",0))","v":0},{"$f":"IF(OR(ｻ.動物系固形不要物!F29>0,ｻ.動物系固形不要物!F29<0),ｻ.動物系固形不要物!F29,IF(Q$19>0,\"0\",0))","v":0},{"$f":"IF(OR(ｼ.ｺﾞﾑくず!F29>0,ｼ.ｺﾞﾑくず!F29<0),ｼ.ｺﾞﾑくず!F29,IF(R$19>0,\"0\",0))","v":0},{"$f":"IF(OR(ｽ.金属くず!F29>0,ｽ.金属くず!F29<0),ｽ.金属くず!F29,IF(S$19>0,\"0\",0))","v":0},{"$f":"IF(OR(ｾ.ｶﾞﾗｽ･ｺﾝｸﾘ･陶磁器くず!F29>0,ｾ.ｶﾞﾗｽ･ｺﾝｸﾘ･陶磁器くず!F29<0),ｾ.ｶﾞﾗｽ･ｺﾝｸﾘ･陶磁器くず!F29,IF(T$19>0,\"0\",0))","v":0},{"$f":"IF(OR(ｿ.鉱さい!F29>0,ｿ.鉱さい!F29<0),ｿ.鉱さい!F29,IF(U$19>0,\"0\",0))","v":0},{"$f":"IF(OR(ﾀ.がれき類!F29>0,ﾀ.がれき類!F29<0),ﾀ.がれき類!F29,IF(V$19>0,\"0\",0))","v":1079.0999999999999},{"$f":"IF(OR(ﾁ.動物のふん尿!F29>0,ﾁ.動物のふん尿!F29<0),ﾁ.動物のふん尿!F29,IF(W$19>0,\"0\",0))","v":0},{"$f":"IF(OR(ﾂ.動物の死体!F29>0,ﾂ.動物の死体!F29<0),ﾂ.動物の死体!F29,IF(X$19>0,\"0\",0))","v":0},{"$f":"IF(OR(ﾃ.ばいじん!F29>0,ﾃ.ばいじん!F29<0),ﾃ.ばいじん!F29,IF(Y$19>0,\"0\",0))","v":0},{"$f":"IF(OR(ﾄ.混合廃棄物その他!F29>0,ﾄ.混合廃棄物その他!F29<0),ﾄ.混合廃棄物その他!F29,IF(Z$19>0,\"0\",0))","v":9},1088.8999999999999]
[null,"実","⑪　優良認定処理業者への処理委託量",null,null,null,{"$f":"IF(OR(ｱ.燃え殻!F30>0,ｱ.燃え殻!F30<0),ｱ.燃え殻!F30,IF(G$19>0,\"0\",0))","v":0},{"$f":"IF(OR(ｲ.汚泥!F30>0,ｲ.汚泥!F30<0),ｲ.汚泥!F30,IF(H$19>0,\"0\",0))","v":"0"},{"$f":"IF(OR(ｳ.廃油!F30>0,ｳ.廃油!F30<0),ｳ.廃油!F30,IF(I$19>0,\"0\",0))","v":0},{"$f":"IF(OR(ｴ.廃酸!$F30>0,ｴ.廃酸!$F30<0),ｴ.廃酸!F30,IF(J$19>0,\"0\",0))","v":0},{"$f":"IF(OR(ｵ.廃ｱﾙｶﾘ!$F30>0,ｵ.廃ｱﾙｶﾘ!$F30<0),ｵ.廃ｱﾙｶﾘ!F30,IF(K$19>0,\"0\",0))","v":0},{"$f":"IF(OR(ｶ.廃ﾌﾟﾗ類!F30>0,ｶ.廃ﾌﾟﾗ類!F30<0),ｶ.廃ﾌﾟﾗ類!F30,IF(L$19>0,\"0\",0))","v":0},{"$f":"IF(OR(ｷ.紙くず!F30>0,ｷ.紙くず!F30<0),ｷ.紙くず!F30,IF(M$19>0,\"0\",0))","v":0},{"$f":"IF(OR(ｸ.木くず!F30>0,ｸ.木くず!F30<0),ｸ.木くず!F30,IF(N$19>0,\"0\",0))","v":0},{"$f":"IF(OR(ｹ.繊維くず!F30>0,ｹ.繊維くず!F30<0),ｹ.繊維くず!F30,IF(O$19>0,\"0\",0))","v":0},{"$f":"IF(OR(ｺ.動植物性残さ!F30>0,ｺ.動植物性残さ!F30<0),ｺ.動植物性残さ!F30,IF(P$19>0,\"0\",0))","v":0},{"$f":"IF(OR(ｻ.動物系固形不要物!F30>0,ｻ.動物系固形不要物!F30<0),ｻ.動物系固形不要物!F30,IF(Q$19>0,\"0\",0))","v":0},{"$f":"IF(OR(ｼ.ｺﾞﾑくず!F30>0,ｼ.ｺﾞﾑくず!F30<0),ｼ.ｺﾞﾑくず!F30,IF(R$19>0,\"0\",0))","v":0},{"$f":"IF(OR(ｽ.金属くず!F30>0,ｽ.金属くず!F30<0),ｽ.金属くず!F30,IF(S$19>0,\"0\",0))","v":0},{"$f":"IF(OR(ｾ.ｶﾞﾗｽ･ｺﾝｸﾘ･陶磁器くず!F30>0,ｾ.ｶﾞﾗｽ･ｺﾝｸﾘ･陶磁器くず!F30<0),ｾ.ｶﾞﾗｽ･ｺﾝｸﾘ･陶磁器くず!F30,IF(T$19>0,\"0\",0))","v":0},{"$f":"IF(OR(ｿ.鉱さい!F30>0,ｿ.鉱さい!F30<0),ｿ.鉱さい!F30,IF(U$19>0,\"0\",0))","v":0},{"$f":"IF(OR(ﾀ.がれき類!F30>0,ﾀ.がれき類!F30<0),ﾀ.がれき類!F30,IF(V$19>0,\"0\",0))","v":"0"},{"$f":"IF(OR(ﾁ.動物のふん尿!F30>0,ﾁ.動物のふん尿!F30<0),ﾁ.動物のふん尿!F30,IF(W$19>0,\"0\",0))","v":0},{"$f":"IF(OR(ﾂ.動物の死体!F30>0,ﾂ.動物の死体!F30<0),ﾂ.動物の死体!F30,IF(X$19>0,\"0\",0))","v":0},{"$f":"IF(OR(ﾃ.ばいじん!F30>0,ﾃ.ばいじん!F30<0),ﾃ.ばいじん!F30,IF(Y$19>0,\"0\",0))","v":0},{"$f":"IF(OR(ﾄ.混合廃棄物その他!F30>0,ﾄ.混合廃棄物その他!F30<0),ﾄ.混合廃棄物その他!F30,IF(Z$19>0,\"0\",0))","v":"0"},"0"]
[null,"績","⑫　再生利用業者への処理委託量",null,null,null,{"$f":"IF(OR(ｱ.燃え殻!F31>0,ｱ.燃え殻!F31<0),ｱ.燃え殻!F31,IF(G$19>0,\"0\",0))","v":0},{"$f":"IF(OR(ｲ.汚泥!F31>0,ｲ.汚泥!F31<0),ｲ.汚泥!F31,IF(H$19>0,\"0\",0))","v":0.8},{"$f":"IF(OR(ｳ.廃油!F31>0,ｳ.廃油!F31<0),ｳ.廃油!F31,IF(I$19>0,\"0\",0))","v":0},{"$f":"IF(OR(ｴ.廃酸!$F31>0,ｴ.廃酸!$F31<0),ｴ.廃酸!F31,IF(J$19>0,\"0\",0))","v":0},{"$f":"IF(OR(ｵ.廃ｱﾙｶﾘ!$F31>0,ｵ.廃ｱﾙｶﾘ!$F31<0),ｵ.廃ｱﾙｶﾘ!F31,IF(K$19>0,\"0\",0))","v":0},{"$f":"IF(OR(ｶ.廃ﾌﾟﾗ類!F31>0,ｶ.廃ﾌﾟﾗ類!F31<0),ｶ.廃ﾌﾟﾗ類!F31,IF(L$19>0,\"0\",0))","v":0},{"$f":"IF(OR(ｷ.紙くず!F31>0,ｷ.紙くず!F31<0),ｷ.紙くず!F31,IF(M$19>0,\"0\",0))","v":0},{"$f":"IF(OR(ｸ.木くず!F31>0,ｸ.木くず!F31<0),ｸ.木くず!F31,IF(N$19>0,\"0\",0))","v":0},{"$f":"IF(OR(ｹ.繊維くず!F31>0,ｹ.繊維くず!F31<0),ｹ.繊維くず!F31,IF(O$19>0,\"0\",0))","v":0},{"$f":"IF(OR(ｺ.動植物性残さ!F31>0,ｺ.動植物性残さ!F31<0),ｺ.動植物性残さ!F31,IF(P$19>0,\"0\",0))","v":0},{"$f":"IF(OR(ｻ.動物系固形不要物!F31>0,ｻ.動物系固形不要物!F31<0),ｻ.動物系固形不要物!F31,IF(Q$19>0,\"0\",0))","v":0},{"$f":"IF(OR(ｼ.ｺﾞﾑくず!F31>0,ｼ.ｺﾞﾑくず!F31<0),ｼ.ｺﾞﾑくず!F31,IF(R$19>0,\"0\",0))","v":0},{"$f":"IF(OR(ｽ.金属くず!F31>0,ｽ.金属くず!F31<0),ｽ.金属くず!F31,IF(S$19>0,\"0\",0))","v":0},{"$f":"IF(OR(ｾ.ｶﾞﾗｽ･ｺﾝｸﾘ･陶磁器くず!F31>0,ｾ.ｶﾞﾗｽ･ｺﾝｸﾘ･陶磁器くず!F31<0),ｾ.ｶﾞﾗｽ･ｺﾝｸﾘ･陶磁器くず!F31,IF(T$19>0,\"0\",0))","v":0},{"$f":"IF(OR(ｿ.鉱さい!F31>0,ｿ.鉱さい!F31<0),ｿ.鉱さい!F31,IF(U$19>0,\"0\",0))","v":0},{"$f":"IF(OR(ﾀ.がれき類!F31>0,ﾀ.がれき類!F31<0),ﾀ.がれき類!F31,IF(V$19>0,\"0\",0))","v":"0"},{"$f":"IF(OR(ﾁ.動物のふん尿!F31>0,ﾁ.動物のふん尿!F31<0),ﾁ.動物のふん尿!F31,IF(W$19>0,\"0\",0))","v":0},{"$f":"IF(OR(ﾂ.動物の死体!F31>0,ﾂ.動物の死体!F31<0),ﾂ.動物の死体!F31,IF(X$19>0,\"0\",0))","v":0},{"$f":"IF(OR(ﾃ.ばいじん!F31>0,ﾃ.ばいじん!F31<0),ﾃ.ばいじん!F31,IF(Y$19>0,\"0\",0))","v":0},{"$f":"IF(OR(ﾄ.混合廃棄物その他!F31>0,ﾄ.混合廃棄物その他!F31<0),ﾄ.混合廃棄物その他!F31,IF(Z$19>0,\"0\",0))","v":9},9.8000000000000007]
[null,null,"⑬　認定熱回収業者への処理委託量",null,null,null,{"$f":"IF(OR(ｱ.燃え殻!F32>0,ｱ.燃え殻!F32<0),ｱ.燃え殻!F32,IF(G$19>0,\"0\",0))","v":0},{"$f":"IF(OR(ｲ.汚泥!F32>0,ｲ.汚泥!F32<0),ｲ.汚泥!F32,IF(H$19>0,\"0\",0))","v":"0"},{"$f":"IF(OR(ｳ.廃油!F32>0,ｳ.廃油!F32<0),ｳ.廃油!F32,IF(I$19>0,\"0\",0))","v":0},{"$f":"IF(OR(ｴ.廃酸!$F32>0,ｴ.廃酸!$F32<0),ｴ.廃酸!F32,IF(J$19>0,\"0\",0))","v":0},{"$f":"IF(OR(ｵ.廃ｱﾙｶﾘ!$F32>0,ｵ.廃ｱﾙｶﾘ!$F32<0),ｵ.廃ｱﾙｶﾘ!F32,IF(K$19>0,\"0\",0))","v":0},{"$f":"IF(OR(ｶ.廃ﾌﾟﾗ類!F32>0,ｶ.廃ﾌﾟﾗ類!F32<0),ｶ.廃ﾌﾟﾗ類!F32,IF(L$19>0,\"0\",0))","v":0},{"$f":"IF(OR(ｷ.紙くず!F32>0,ｷ.紙くず!F32<0),ｷ.紙くず!F32,IF(M$19>0,\"0\",0))","v":0},{"$f":"IF(OR(ｸ.木くず!F32>0,ｸ.木くず!F32<0),ｸ.木くず!F32,IF(N$19>0,\"0\",0))","v":0},{"$f":"IF(OR(ｹ.繊維くず!F32>0,ｹ.繊維くず!F32<0),ｹ.繊維くず!F32,IF(O$19>0,\"0\",0))","v":0},{"$f":"IF(OR(ｺ.動植物性残さ!F32>0,ｺ.動植物性残さ!F32<0),ｺ.動植物性残さ!F32,IF(P$19>0,\"0\",0))","v":0},{"$f":"IF(OR(ｻ.動物系固形不要物!F32>0,ｻ.動物系固形不要物!F32<0),ｻ.動物系固形不要物!F32,IF(Q$19>0,\"0\",0))","v":0},{"$f":"IF(OR(ｼ.ｺﾞﾑくず!F32>0,ｼ.ｺﾞﾑくず!F32<0),ｼ.ｺﾞﾑくず!F32,IF(R$19>0,\"0\",0))","v":0},{"$f":"IF(OR(ｽ.金属くず!F32>0,ｽ.金属くず!F32<0),ｽ.金属くず!F32,IF(S$19>0,\"0\",0))","v":0},{"$f":"IF(OR(ｾ.ｶﾞﾗｽ･ｺﾝｸﾘ･陶磁器くず!F32>0,ｾ.ｶﾞﾗｽ･ｺﾝｸﾘ･陶磁器くず!F32<0),ｾ.ｶﾞﾗｽ･ｺﾝｸﾘ･陶磁器くず!F32,IF(T$19>0,\"0\",0))","v":0},{"$f":"IF(OR(ｿ.鉱さい!F32>0,ｿ.鉱さい!F32<0),ｿ.鉱さい!F32,IF(U$19>0,\"0\",0))","v":0},{"$f":"IF(OR(ﾀ.がれき類!F32>0,ﾀ.がれき類!F32<0),ﾀ.がれき類!F32,IF(V$19>0,\"0\",0))","v":"0"},{"$f":"IF(OR(ﾁ.動物のふん尿!F32>0,ﾁ.動物のふん尿!F32<0),ﾁ.動物のふん尿!F32,IF(W$19>0,\"0\",0))","v":0},{"$f":"IF(OR(ﾂ.動物の死体!F32>0,ﾂ.動物の死体!F32<0),ﾂ.動物の死体!F32,IF(X$19>0,\"0\",0))","v":0},{"$f":"IF(OR(ﾃ.ばいじん!F32>0,ﾃ.ばいじん!F32<0),ﾃ.ばいじん!F32,IF(Y$19>0,\"0\",0))","v":0},{"$f":"IF(OR(ﾄ.混合廃棄物その他!F32>0,ﾄ.混合廃棄物その他!F32<0),ﾄ.混合廃棄物その他!F32,IF(Z$19>0,\"0\",0))","v":"0"},"0"]
[null,null,"⑭","認定熱回収業者以外の熱回収を行う業者への処理委託量",null,null,{"$f":"IF(OR(ｱ.燃え殻!F33>0,ｱ.燃え殻!F33<0),ｱ.燃え殻!F33,IF(G$19>0,\"0\",0))","v":0},{"$f":"IF(OR(ｲ.汚泥!F33>0,ｲ.汚泥!F33<0),ｲ.汚泥!F33,IF(H$19>0,\"0\",0))","v":"0"},{"$f":"IF(OR(ｳ.廃油!F33>0,ｳ.廃油!F33<0),ｳ.廃油!F33,IF(I$19>0,\"0\",0))","v":0},{"$f":"IF(OR(ｴ.廃酸!$F33>0,ｴ.廃酸!$F33<0),ｴ.廃酸!F33,IF(J$19>0,\"0\",0))","v":0},{"$f":"IF(OR(ｵ.廃ｱﾙｶﾘ!$F33>0,ｵ.廃ｱﾙｶﾘ!$F33<0),ｵ.廃ｱﾙｶﾘ!F33,IF(K$19>0,\"0\",0))","v":0},{"$f":"IF(OR(ｶ.廃ﾌﾟﾗ類!F33>0,ｶ.廃ﾌﾟﾗ類!F33<0),ｶ.廃ﾌﾟﾗ類!F33,IF(L$19>0,\"0\",0))","v":0},{"$f":"IF(OR(ｷ.紙くず!F33>0,ｷ.紙くず!F33<0),ｷ.紙くず!F33,IF(M$19>0,\"0\",0))","v":0},{"$f":"IF(OR(ｸ.木くず!F33>0,ｸ.木くず!F33<0),ｸ.木くず!F33,IF(N$19>0,\"0\",0))","v":0},{"$f":"IF(OR(ｹ.繊維くず!F33>0,ｹ.繊維くず!F33<0),ｹ.繊維くず!F33,IF(O$19>0,\"0\",0))","v":0},{"$f":"IF(OR(ｺ.動植物性残さ!F33>0,ｺ.動植物性残さ!F33<0),ｺ.動植物性残さ!F33,IF(P$19>0,\"0\",0))","v":0},{"$f":"IF(OR(ｻ.動物系固形不要物!F33>0,ｻ.動物系固形不要物!F33<0),ｻ.動物系固形不要物!F33,IF(Q$19>0,\"0\",0))","v":0},{"$f":"IF(OR(ｼ.ｺﾞﾑくず!F33>0,ｼ.ｺﾞﾑくず!F33<0),ｼ.ｺﾞﾑくず!F33,IF(R$19>0,\"0\",0))","v":0},{"$f":"IF(OR(ｽ.金属くず!F33>0,ｽ.金属くず!F33<0),ｽ.金属くず!F33,IF(S$19>0,\"0\",0))","v":0},{"$f":"IF(OR(ｾ.ｶﾞﾗｽ･ｺﾝｸﾘ･陶磁器くず!F33>0,ｾ.ｶﾞﾗｽ･ｺﾝｸﾘ･陶磁器くず!F33<0),ｾ.ｶﾞﾗｽ･ｺﾝｸﾘ･陶磁器くず!F33,IF(T$19>0,\"0\",0))","v":0},{"$f":"IF(OR(ｿ.鉱さい!F33>0,ｿ.鉱さい!F33<0),ｿ.鉱さい!F33,IF(U$19>0,\"0\",0))","v":0},{"$f":"IF(OR(ﾀ.がれき類!F33>0,ﾀ.がれき類!F33<0),ﾀ.がれき類!F33,IF(V$19>0,\"0\",0))","v":"0"},{"$f":"IF(OR(ﾁ.動物のふん尿!F33>0,ﾁ.動物のふん尿!F33<0),ﾁ.動物のふん尿!F33,IF(W$19>0,\"0\",0))","v":0},{"$f":"IF(OR(ﾂ.動物の死体!F33>0,ﾂ.動物の死体!F33<0),ﾂ.動物の死体!F33,IF(X$19>0,\"0\",0))","v":0},{"$f":"IF(OR(ﾃ.ばいじん!F33>0,ﾃ.ばいじん!F33<0),ﾃ.ばいじん!F33,IF(Y$19>0,\"0\",0))","v":0},{"$f":"IF(OR(ﾄ.混合廃棄物その他!F33>0,ﾄ.混合廃棄物その他!F33<0),ﾄ.混合廃棄物その他!F33,IF(Z$19>0,\"0\",0))","v":"0"},"0"]
[null,null,"①","当該事業場における排出量",null,null,{"$f":"+G37+G25+G23+G22+G21-G20","v":0},{"$f":"+H37+H25+H23+H22+H21-H20","v":0.8},0,0,0,0,0,0,0,0,0,0,0,0,0,1000,0,0,0,9,{"$f":"SUM(G19:Z19)","v":1009.8}]
[null,null,"※１","自社の他事業場からの搬入量",null,null,{"$f":"+ｱ.燃え殻!$F$15","v":0},{"$f":"+ｲ.汚泥!$F$15","v":0},{"$f":"+ｳ.廃油!$F$15","v":0},{"$f":"+ｴ.廃酸!$F$15","v":0},{"$f":"+ｵ.廃ｱﾙｶﾘ!$F$15","v":0},{"$f":"+ｶ.廃ﾌﾟﾗ類!$F$15","v":0},{"$f":"+ｷ.紙くず!$F$15","v":0},{"$f":"+ｸ.木くず!$F$15","v":0},{"$f":"+ｹ.繊維くず!$F$15","v":0},{"$f":"+ｺ.動植物性残さ!$F$15","v":0},{"$f":"+ｻ.動物系固形不要物!$F$15","v":0},{"$f":"+ｼ.ｺﾞﾑくず!$F$15","v":0},{"$f":"+ｽ.金属くず!$F$15","v":0},{"$f":"+ｾ.ｶﾞﾗｽ･ｺﾝｸﾘ･陶磁器くず!$F$15","v":0},{"$f":"+ｿ.鉱さい!$F$15","v":0},{"$f":"+ﾀ.がれき類!$F$15","v":0},{"$f":"+ﾁ.動物のふん尿!$F$15","v":0},{"$f":"+ﾂ.動物の死体!$F$15","v":0},{"$f":"+ﾃ.ばいじん!$F$15","v":0},{"$f":"+ﾄ.混合廃棄物その他!$F$15","v":0},0]
[null,null,null,"②","自ら直接再生利用する量",null,{"$f":"+ｱ.燃え殻!$O$12","v":0},{"$f":"+ｲ.汚泥!$O$12","v":0},{"$f":"+ｳ.廃油!$O$12","v":0},{"$f":"+ｴ.廃酸!$O$12","v":0},{"$f":"+ｵ.廃ｱﾙｶﾘ!$O$12","v":0},{"$f":"+ｶ.廃ﾌﾟﾗ類!$O$12","v":0},{"$f":"+ｷ.紙くず!$O$12","v":0},{"$f":"+ｸ.木くず!$O$12","v":0},{"$f":"+ｹ.繊維くず!$O$12","v":0},{"$f":"+ｺ.動植物性残さ!$O$12","v":0},{"$f":"+ｻ.動物系固形不要物!$O$12","v":0},{"$f":"+ｼ.ｺﾞﾑくず!$O$12","v":0},{"$f":"+ｽ.金属くず!$O$12","v":0},{"$f":"+ｾ.ｶﾞﾗｽ･ｺﾝｸﾘ･陶磁器くず!$O$12","v":0},{"$f":"+ｿ.鉱さい!$O$12","v":0},{"$f":"+ﾀ.がれき類!$O$12","v":0},{"$f":"+ﾁ.動物のふん尿!$O$12","v":0},{"$f":"+ﾂ.動物の死体!$O$12","v":0},{"$f":"+ﾃ.ばいじん!$O$12","v":0},{"$f":"+ﾄ.混合廃棄物その他!$O$12","v":0},0]
[null,null,null,"③","自ら直接埋立処分又は海洋投入処分する量",null,{"$f":"+ｱ.燃え殻!$O$15","v":0},{"$f":"+ｲ.汚泥!$O$15","v":0},{"$f":"+ｳ.廃油!$O$15","v":0},{"$f":"+ｴ.廃酸!$O$15","v":0},{"$f":"+ｵ.廃ｱﾙｶﾘ!$O$15","v":0},{"$f":"+ｶ.廃ﾌﾟﾗ類!$O$15","v":0},{"$f":"+ｷ.紙くず!$O$15","v":0},{"$f":"+ｸ.木くず!$O$15","v":0},{"$f":"+ｹ.繊維くず!$O$15","v":0},{"$f":"+ｺ.動植物性残さ!$O$15","v":0},{"$f":"+ｻ.動物系固形不要物!$O$15","v":0},{"$f":"+ｼ.ｺﾞﾑくず!$O$15","v":0},{"$f":"+ｽ.金属くず!$O$15","v":0},{"$f":"+ｾ.ｶﾞﾗｽ･ｺﾝｸﾘ･陶磁器くず!$O$15","v":0},{"$f":"+ｿ.鉱さい!$O$15","v":0},{"$f":"+ﾀ.がれき類!$O$15","v":0},{"$f":"+ﾁ.動物のふん尿!$O$15","v":0},{"$f":"+ﾂ.動物の死体!$O$15","v":0},{"$f":"+ﾃ.ばいじん!$O$15","v":0},{"$f":"+ﾄ.混合廃棄物その他!$O$15","v":0},0]
[null,null,null,"④","自ら中間処理する量",null,{"$f":"+ｱ.燃え殻!$O$18","v":0},{"$f":"+ｲ.汚泥!$O$18","v":0},{"$f":"+ｳ.廃油!$O$18","v":0},{"$f":"+ｴ.廃酸!$O$18","v":0},{"$f":"+ｵ.廃ｱﾙｶﾘ!$O$18","v":0},{"$f":"+ｶ.廃ﾌﾟﾗ類!$O$18","v":0},{"$f":"+ｷ.紙くず!$O$18","v":0},{"$f":"+ｸ.木くず!$O$18","v":0},{"$f":"+ｹ.繊維くず!$O$18","v":0},{"$f":"+ｺ.動植物性残さ!$O$18","v":0},{"$f":"+ｻ.動物系固形不要物!$O$18","v":0},{"$f":"+ｼ.ｺﾞﾑくず!$O$18","v":0},{"$f":"+ｽ.金属くず!$O$18","v":0},{"$f":"+ｾ.ｶﾞﾗｽ･ｺﾝｸﾘ･陶磁器くず!$O$18","v":0},{"$f":"+ｿ.鉱さい!$O$18","v":0},{"$f":"+ﾀ.がれき類!$O$18","v":0},{"$f":"+ﾁ.動物のふん尿!$O$18","v":0},{"$f":"+ﾂ.動物の死体!$O$18","v":0},{"$f":"+ﾃ.ばいじん!$O$18","v":0},{"$f":"+ﾄ.混合廃棄物その他!$O$18","v":0},0]
[null,null,null,null,"⑤","④のうち熱回収を行う量",{"$f":"+ｱ.燃え殻!$O$21","v":0},{"$f":"+ｲ.汚泥!$O$21","v":0},{"$f":"+ｳ.廃油!$O$21","v":0},{"$f":"+ｴ.廃酸!$O$21","v":0},{"$f":"+ｵ.廃ｱﾙｶﾘ!$O$21","v":0},{"$f":"+ｶ.廃ﾌﾟﾗ類!$O$21","v":0},{"$f":"+ｷ.紙くず!$O$21","v":0},{"$f":"+ｸ.木くず!$O$21","v":0},{"$f":"+ｹ.繊維くず!$O$21","v":0},{"$f":"+ｺ.動植物性残さ!$O$21","v":0},{"$f":"+ｻ.動物系固形不要物!$O$21","v":0},{"$f":"+ｼ.ｺﾞﾑくず!$O$21","v":0},{"$f":"+ｽ.金属くず!$O$21","v":0},{"$f":"+ｾ.ｶﾞﾗｽ･ｺﾝｸﾘ･陶磁器くず!$O$21","v":0},{"$f":"+ｿ.鉱さい!$O$21","v":0},{"$f":"+ﾀ.がれき類!$O$21","v":0},{"$f":"+ﾁ.動物のふん尿!$O$21","v":0},{"$f":"+ﾂ.動物の死体!$O$21","v":0},{"$f":"+ﾃ.ばいじん!$O$21","v":0},{"$f":"+ﾄ.混合廃棄物その他!$O$21","v":0},0]
[null,null,null,"※２","自社の他事業場での処理量",null,{"$f":"+ｱ.燃え殻!$O$24","v":0},{"$f":"+ｲ.汚泥!$O$24","v":0},{"$f":"+ｳ.廃油!$O$24","v":0},{"$f":"+ｴ.廃酸!$O$24","v":0},{"$f":"+ｵ.廃ｱﾙｶﾘ!$O$24","v":0},{"$f":"+ｶ.廃ﾌﾟﾗ類!$O$24","v":0},{"$f":"+ｷ.紙くず!$O$24","v":0},{"$f":"+ｸ.木くず!$O$24","v":0},{"$f":"+ｹ.繊維くず!$O$24","v":0},{"$f":"+ｺ.動植物性残さ!$O$24","v":0},{"$f":"+ｻ.動物系固形不要物!$O$24","v":0},{"$f":"+ｼ.ｺﾞﾑくず!$O$24","v":0},{"$f":"+ｽ.金属くず!$O$24","v":0},{"$f":"+ｾ.ｶﾞﾗｽ･ｺﾝｸﾘ･陶磁器くず!$O$24","v":0},{"$f":"+ｿ.鉱さい!$O$24","v":0},{"$f":"+ﾀ.がれき類!$O$24","v":0},{"$f":"+ﾁ.動物のふん尿!$O$24","v":0},{"$f":"+ﾂ.動物の死体!$O$24","v":0},{"$f":"+ﾃ.ばいじん!$O$24","v":0},{"$f":"+ﾄ.混合廃棄物その他!$O$24","v":0},0]
[null,null,"Ａ自己処理","⑥","自ら中間処理後の残さ量",null,{"$f":"+G28+G29+G30+G31","v":0},{"$f":"+H28+H29+H30+H31","v":0},0,0,0,0,0,0,0,0,0,0,0,0,0,0,0,0,0,0,{"$f":"SUM(G26:Z26)","v":0}]
[null,null,null,"⑦","自ら中間処理により減量する量",null,{"$f":"+G23-G26","v":0},0,0,0,0,0,0,0,0,0,0,0,0,0,0,0,0,0,0,0,0]
[null,null,null,"ａ残さ物の自己処理","⑧","自ら中間処理後に再生利用する量",{"$f":"+ｱ.燃え殻!$AG$9","v":0},{"$f":"+ｲ.汚泥!$AG$9","v":0},{"$f":"+ｳ.廃油!$AG$9","v":0},{"$f":"+ｴ.廃酸!$AG$9","v":0},{"$f":"+ｵ.廃ｱﾙｶﾘ!$AG$9","v":0},{"$f":"+ｶ.廃ﾌﾟﾗ類!$AG$9","v":0},{"$f":"+ｷ.紙くず!$AG$9","v":0},{"$f":"+ｸ.木くず!$AG$9","v":0},{"$f":"+ｹ.繊維くず!$AG$9","v":0},{"$f":"+ｺ.動植物性残さ!$AG$9","v":0},{"$f":"+ｻ.動物系固形不要物!$AG$9","v":0},{"$f":"+ｼ.ｺﾞﾑくず!$AG$9","v":0},{"$f":"+ｽ.金属くず!$AG$9","v":0},{"$f":"+ｾ.ｶﾞﾗｽ･ｺﾝｸﾘ･陶磁器くず!$AG$9","v":0},{"$f":"+ｿ.鉱さい!$AG$9","v":0},{"$f":"+ﾀ.がれき類!$AG$9","v":0},{"$f":"+ﾁ.動物のふん尿!$AG$9","v":0},{"$f":"+ﾂ.動物の死体!$AG$9","v":0},{"$f":"+ﾃ.ばいじん!$AG$9","v":0},{"$f":"+ﾄ.混合廃棄物その他!$AG$9","v":0},{"$f":"SUM(G28:Z28)","v":0}]
[null,null,null,null,"⑨","自ら中間処理後に自ら埋立処分又は海洋投入処分する量",{"$f":"+ｱ.燃え殻!$AG$12","v":0},{"$f":"+ｲ.汚泥!$AG$12","v":0},{"$f":"+ｳ.廃油!$AG$12","v":0},{"$f":"+ｴ.廃酸!$AG$12","v":0},{"$f":"+ｵ.廃ｱﾙｶﾘ!$AG$12","v":0},{"$f":"+ｶ.廃ﾌﾟﾗ類!$AG$12","v":0},{"$f":"+ｷ.紙くず!$AG$12","v":0},{"$f":"+ｸ.木くず!$AG$12","v":0},{"$f":"+ｹ.繊維くず!$AG$12","v":0},{"$f":"+ｺ.動植物性残さ!$AG$12","v":0},{"$f":"+ｻ.動物系固形不要物!$AG$12","v":0},{"$f":"+ｼ.ｺﾞﾑくず!$AG$12","v":0},{"$f":"+ｽ.金属くず!$AG$12","v":0},{"$f":"+ｾ.ｶﾞﾗｽ･ｺﾝｸﾘ･陶磁器くず!$AG$12","v":0},{"$f":"+ｿ.鉱さい!$AG$12","v":0},{"$f":"+ﾀ.がれき類!$AG$12","v":0},{"$f":"+ﾁ.動物のふん尿!$AG$12","v":0},{"$f":"+ﾂ.動物の死体!$AG$12","v":0},{"$f":"+ﾃ.ばいじん!$AG$12","v":0},{"$f":"+ﾄ.混合廃棄物その他!$AG$12","v":0},{"$f":"SUM(G29:Z29)","v":0}]
[null,"令",null,null,"※３","自ら中間処理後に自社の他事業場での処理量",{"$f":"+ｱ.燃え殻!$AG$15","v":0},{"$f":"+ｲ.汚泥!$AG$15","v":0},{"$f":"+ｳ.廃油!$AG$15","v":0},{"$f":"+ｴ.廃酸!$AG$15","v":0},{"$f":"+ｵ.廃ｱﾙｶﾘ!$AG$15","v":0},{"$f":"+ｶ.廃ﾌﾟﾗ類!$AG$15","v":0},{"$f":"+ｷ.紙くず!$AG$15","v":0},{"$f":"+ｸ.木くず!$AG$15","v":0},{"$f":"+ｹ.繊維くず!$AG$15","v":0},{"$f":"+ｺ.動植物性残さ!$AG$15","v":0},{"$f":"+ｻ.動物系固形不要物!$AG$15","v":0},{"$f":"+ｼ.ｺﾞﾑくず!$AG$15","v":0},{"$f":"+ｽ.金属くず!$AG$15","v":0},{"$f":"+ｾ.ｶﾞﾗｽ･ｺﾝｸﾘ･陶磁器くず!$AG$15","v":0},{"$f":"+ｿ.鉱さい!$AG$15","v":0},{"$f":"+ﾀ.がれき類!$AG$15","v":0},{"$f":"+ﾁ.動物のふん尿!$AG$15","v":0},{"$f":"+ﾂ.動物の死体!$AG$15","v":0},{"$f":"+ﾃ.ばいじん!$AG$15","v":0},{"$f":"+ﾄ.混合廃棄物その他!$AG$15","v":0},{"$f":"SUM(G30:Z30)","v":0}]
[null,"和",null,"ｂ","自ら中間処理後の処理委託量",null,{"$f":"+G32+G36","v":0},0,0,0,0,0,0,0,0,0,0,0,0,0,0,0,0,0,0,0,0]
[null,6,null,null,"ｂ-1　中間処理委託量",null,{"$f":"SUM(G33:G35)","v":0},0,0,0,0,0,0,0,0,0,0,0,0,0,0,0,0,0,0,0,0]
[null,"年",null,null,null,"再生利用前委託量",{"$f":"+ｱ.燃え殻!$AT$16","v":0},{"$f":"+ｲ.汚泥!$AT$16","v":0},{"$f":"+ｳ.廃油!$AT$16","v":0},{"$f":"+ｴ.廃酸!$AT$16","v":0},{"$f":"+ｵ.廃ｱﾙｶﾘ!$AT$16","v":0},{"$f":"+ｶ.廃ﾌﾟﾗ類!$AT$16","v":0},{"$f":"+ｷ.紙くず!$AT$16","v":0},{"$f":"+ｸ.木くず!$AT$16","v":0},{"$f":"+ｹ.繊維くず!$AT$16","v":0},{"$f":"+ｺ.動植物性残さ!$AT$16","v":0},{"$f":"+ｻ.動物系固形不要物!$AT$16","v":0},{"$f":"+ｼ.ｺﾞﾑくず!$AT$16","v":0},{"$f":"+ｽ.金属くず!$AT$16","v":0},{"$f":"+ｾ.ｶﾞﾗｽ･ｺﾝｸﾘ･陶磁器くず!$AT$16","v":0},{"$f":"+ｿ.鉱さい!$AT$16","v":0},{"$f":"+ﾀ.がれき類!$AT$16","v":0},{"$f":"+ﾁ.動物のふん尿!$AT$16","v":0},{"$f":"+ﾂ.動物の死体!$AT$16","v":0},{"$f":"+ﾃ.ばいじん!$AT$16","v":0},{"$f":"+ﾄ.混合廃棄物その他!$AT$16","v":0},0]
[null,"度",null,null,null,"最終処分前委託量",{"$f":"+ｱ.燃え殻!$AT$17","v":0},{"$f":"+ｲ.汚泥!$AT$17","v":0},{"$f":"+ｳ.廃油!$AT$17","v":0},{"$f":"+ｴ.廃酸!$AT$17","v":0},{"$f":"+ｵ.廃ｱﾙｶﾘ!$AT$17","v":0},{"$f":"+ｶ.廃ﾌﾟﾗ類!$AT$17","v":0},{"$f":"+ｷ.紙くず!$AT$17","v":0},{"$f":"+ｸ.木くず!$AT$17","v":0},{"$f":"+ｹ.繊維くず!$AT$17","v":0},{"$f":"+ｺ.動植物性残さ!$AT$17","v":0},{"$f":"+ｻ.動物系固形不要物!$AT$17","v":0},{"$f":"+ｼ.ｺﾞﾑくず!$AT$17","v":0},{"$f":"+ｽ.金属くず!$AT$17","v":0},{"$f":"+ｾ.ｶﾞﾗｽ･ｺﾝｸﾘ･陶磁器くず!$AT$17","v":0},{"$f":"+ｿ.鉱さい!$AT$17","v":0},{"$f":"+ﾀ.がれき類!$AT$17","v":0},{"$f":"+ﾁ.動物のふん尿!$AT$17","v":0},{"$f":"+ﾂ.動物の死体!$AT$17","v":0},{"$f":"+ﾃ.ばいじん!$AT$17","v":0},{"$f":"+ﾄ.混合廃棄物その他!$AT$17","v":0},0]
[null,"目",null,null,null,"下水等放流前委託量",{"$f":"+ｱ.燃え殻!$AT$18","v":0},{"$f":"+ｲ.汚泥!$AT$18","v":0},{"$f":"+ｳ.廃油!$AT$18","v":0},{"$f":"+ｴ.廃酸!$AT$18","v":0},{"$f":"+ｵ.廃ｱﾙｶﾘ!$AT$18","v":0},{"$f":"+ｶ.廃ﾌﾟﾗ類!$AT$18","v":0},{"$f":"+ｷ.紙くず!$AT$18","v":0},{"$f":"+ｸ.木くず!$AT$18","v":0},{"$f":"+ｹ.繊維くず!$AT$18","v":0},{"$f":"+ｺ.動植物性残さ!$AT$18","v":0},{"$f":"+ｻ.動物系固形不要物!$AT$18","v":0},{"$f":"+ｼ.ｺﾞﾑくず!$AT$18","v":0},{"$f":"+ｽ.金属くず!$AT$18","v":0},{"$f":"+ｾ.ｶﾞﾗｽ･ｺﾝｸﾘ･陶磁器くず!$AT$18","v":0},{"$f":"+ｿ.鉱さい!$AT$18","v":0},{"$f":"+ﾀ.がれき類!$AT$18","v":0},{"$f":"+ﾁ.動物のふん尿!$AT$18","v":0},{"$f":"+ﾂ.動物の死体!$AT$18","v":0},{"$f":"+ﾃ.ばいじん!$AT$18","v":0},{"$f":"+ﾄ.混合廃棄物その他!$AT$18","v":0},0]
[null,"標",null,null,"ｂ-2　最終処分委託量",null,{"$f":"+ｱ.燃え殻!$AN$21","v":0},{"$f":"+ｲ.汚泥!$AN$21","v":0},{"$f":"+ｳ.廃油!$AN$21","v":0},{"$f":"+ｴ.廃酸!$AN$21","v":0},{"$f":"+ｵ.廃ｱﾙｶﾘ!$AN$21","v":0},{"$f":"+ｶ.廃ﾌﾟﾗ類!$AN$21","v":0},{"$f":"+ｷ.紙くず!$AN$21","v":0},{"$f":"+ｸ.木くず!$AN$21","v":0},{"$f":"+ｹ.繊維くず!$AN$21","v":0},{"$f":"+ｺ.動植物性残さ!$AN$21","v":0},{"$f":"+ｻ.動物系固形不要物!$AN$21","v":0},{"$f":"+ｼ.ｺﾞﾑくず!$AN$21","v":0},{"$f":"+ｽ.金属くず!$AN$21","v":0},{"$f":"+ｾ.ｶﾞﾗｽ･ｺﾝｸﾘ･陶磁器くず!$AN$21","v":0},{"$f":"+ｿ.鉱さい!$AN$21","v":0},{"$f":"+ﾀ.がれき類!$AN$21","v":0},{"$f":"+ﾁ.動物のふん尿!$AN$21","v":0},{"$f":"+ﾂ.動物の死体!$AN$21","v":0},{"$f":"+ﾃ.ばいじん!$AN$21","v":0},{"$f":"+ﾄ.混合廃棄物その他!$AN$21","v":0},{"$f":"SUM(G36:Z36)","v":0}]
[null,null,"Ｂ直接委託処理","Ｂ","直接処理委託量",null,{"$f":"+G38+G42","v":0},0.8,0,0,0,0,0,0,0,0,0,0,0,0,0,1000,0,0,0,9,1009.8]
[null,null,null,null,"Ｂ-1　中間処理委託量",null,{"$f":"SUM(G39:G41)","v":0},0.8,0,0,0,0,0,0,0,0,0,0,0,0,0,1000,0,0,0,9,1009.8]
[null,null,null,null,null,"再生利用前委託量",{"$f":"+ｱ.燃え殻!$Z$28","v":0},{"$f":"+ｲ.汚泥!$Z$28","v":0.8},{"$f":"+ｳ.廃油!$Z$28","v":0},{"$f":"+ｴ.廃酸!$Z$28","v":0},{"$f":"+ｵ.廃ｱﾙｶﾘ!$Z$28","v":0},{"$f":"+ｶ.廃ﾌﾟﾗ類!$Z$28","v":0},{"$f":"+ｷ.紙くず!$Z$28","v":0},{"$f":"+ｸ.木くず!$Z$28","v":0},{"$f":"+ｹ.繊維くず!$Z$28","v":0},{"$f":"+ｺ.動植物性残さ!$Z$28","v":0},{"$f":"+ｻ.動物系固形不要物!$Z$28","v":0},{"$f":"+ｼ.ｺﾞﾑくず!$Z$28","v":0},{"$f":"+ｽ.金属くず!$Z$28","v":0},{"$f":"+ｾ.ｶﾞﾗｽ･ｺﾝｸﾘ･陶磁器くず!$Z$28","v":0},{"$f":"+ｿ.鉱さい!$Z$28","v":0},{"$f":"+ﾀ.がれき類!$Z$28","v":1000},{"$f":"+ﾁ.動物のふん尿!$Z$28","v":0},{"$f":"+ﾂ.動物の死体!$Z$28","v":0},{"$f":"+ﾃ.ばいじん!$Z$28","v":0},{"$f":"+ﾄ.混合廃棄物その他!$Z$28","v":9},1009.8]
[null,null,null,null,null,"最終処分前委託量",{"$f":"+ｱ.燃え殻!$Z$29","v":0},{"$f":"+ｲ.汚泥!$Z$29","v":0},{"$f":"+ｳ.廃油!$Z$29","v":0},{"$f":"+ｴ.廃酸!$Z$29","v":0},{"$f":"+ｵ.廃ｱﾙｶﾘ!$Z$29","v":0},{"$f":"+ｶ.廃ﾌﾟﾗ類!$Z$29","v":0},{"$f":"+ｷ.紙くず!$Z$29","v":0},{"$f":"+ｸ.木くず!$Z$29","v":0},{"$f":"+ｹ.繊維くず!$Z$29","v":0},{"$f":"+ｺ.動植物性残さ!$Z$29","v":0},{"$f":"+ｻ.動物系固形不要物!$Z$29","v":0},{"$f":"+ｼ.ｺﾞﾑくず!$Z$29","v":0},{"$f":"+ｽ.金属くず!$Z$29","v":0},{"$f":"+ｾ.ｶﾞﾗｽ･ｺﾝｸﾘ･陶磁器くず!$Z$29","v":0},{"$f":"+ｿ.鉱さい!$Z$29","v":0},{"$f":"+ﾀ.がれき類!$Z$29","v":0},{"$f":"+ﾁ.動物のふん尿!$Z$29","v":0},{"$f":"+ﾂ.動物の死体!$Z$29","v":0},{"$f":"+ﾃ.ばいじん!$Z$29","v":0},{"$f":"+ﾄ.混合廃棄物その他!$Z$29","v":0},0]
[null,null,null,null,null,"下水等放流前委託量",{"$f":"+ｱ.燃え殻!$Z$30","v":0},{"$f":"+ｲ.汚泥!$Z$30","v":0},{"$f":"+ｳ.廃油!$Z$30","v":0},{"$f":"+ｴ.廃酸!$Z$30","v":0},{"$f":"+ｵ.廃ｱﾙｶﾘ!$Z$30","v":0},{"$f":"+ｶ.廃ﾌﾟﾗ類!$Z$30","v":0},{"$f":"+ｷ.紙くず!$Z$30","v":0},{"$f":"+ｸ.木くず!$Z$30","v":0},{"$f":"+ｹ.繊維くず!$Z$30","v":0},{"$f":"+ｺ.動植物性残さ!$Z$30","v":0},{"$f":"+ｻ.動物系固形不要物!$Z$30","v":0},{"$f":"+ｼ.ｺﾞﾑくず!$Z$30","v":0},{"$f":"+ｽ.金属くず!$Z$30","v":0},{"$f":"+ｾ.ｶﾞﾗｽ･ｺﾝｸﾘ･陶磁器くず!$Z$30","v":0},{"$f":"+ｿ.鉱さい!$Z$30","v":0},{"$f":"+ﾀ.がれき類!$Z$30","v":0},{"$f":"+ﾁ.動物のふん尿!$Z$30","v":0},{"$f":"+ﾂ.動物の死体!$Z$30","v":0},{"$f":"+ﾃ.ばいじん!$Z$30","v":0},{"$f":"+ﾄ.混合廃棄物その他!$Z$30","v":0},0]
[null,null,null,null,"Ｂ-2　最終処分委託量",null,{"$f":"+ｱ.燃え殻!$Q$33","v":0},{"$f":"+ｲ.汚泥!$Q$33","v":0},{"$f":"+ｳ.廃油!$Q$33","v":0},{"$f":"+ｴ.廃酸!$Q$33","v":0},{"$f":"+ｵ.廃ｱﾙｶﾘ!$Q$33","v":0},{"$f":"+ｶ.廃ﾌﾟﾗ類!$Q$33","v":0},{"$f":"+ｷ.紙くず!$Q$33","v":0},{"$f":"+ｸ.木くず!$Q$33","v":0},{"$f":"+ｹ.繊維くず!$Q$33","v":0},{"$f":"+ｺ.動植物性残さ!$Q$33","v":0},{"$f":"+ｻ.動物系固形不要物!$Q$33","v":0},{"$f":"+ｼ.ｺﾞﾑくず!$Q$33","v":0},{"$f":"+ｽ.金属くず!$Q$33","v":0},{"$f":"+ｾ.ｶﾞﾗｽ･ｺﾝｸﾘ･陶磁器くず!$Q$33","v":0},{"$f":"+ｿ.鉱さい!$Q$33","v":0},{"$f":"+ﾀ.がれき類!$Q$33","v":0},{"$f":"+ﾁ.動物のふん尿!$Q$33","v":0},{"$f":"+ﾂ.動物の死体!$Q$33","v":0},{"$f":"+ﾃ.ばいじん!$Q$33","v":0},{"$f":"+ﾄ.混合廃棄物その他!$Q$33","v":0},{"$f":"SUM(G42:Z42)","v":0}]
[null,null,"⑩","直接及び自ら中間処理後の処理委託量",null,null,{"$f":"+ｱ.燃え殻!$AK$27","v":0},{"$f":"+ｲ.汚泥!$AK$27","v":0.8},{"$f":"+ｳ.廃油!$AK$27","v":0},{"$f":"+ｴ.廃酸!$AK$27","v":0},{"$f":"+ｵ.廃ｱﾙｶﾘ!$AK$27","v":0},{"$f":"+ｶ.廃ﾌﾟﾗ類!$AK$27","v":0},{"$f":"+ｷ.紙くず!$AK$27","v":0},{"$f":"+ｸ.木くず!$AK$27","v":0},{"$f":"+ｹ.繊維くず!$AK$27","v":0},{"$f":"+ｺ.動植物性残さ!$AK$27","v":0},{"$f":"+ｻ.動物系固形不要物!$AK$27","v":0},{"$f":"+ｼ.ｺﾞﾑくず!$AK$27","v":0},{"$f":"+ｽ.金属くず!$AK$27","v":0},{"$f":"+ｾ.ｶﾞﾗｽ･ｺﾝｸﾘ･陶磁器くず!$AK$27","v":0},{"$f":"+ｿ.鉱さい!$AK$27","v":0},{"$f":"+ﾀ.がれき類!$AK$27","v":1000},{"$f":"+ﾁ.動物のふん尿!$AK$27","v":0},{"$f":"+ﾂ.動物の死体!$AK$27","v":0},{"$f":"+ﾃ.ばいじん!$AK$27","v":0},{"$f":"+ﾄ.混合廃棄物その他!$AK$27","v":9},1009.8]
[null,null,null,"⑪","⑩のうち優良認定処理業者への処理委託量",null,{"$f":"+ｱ.燃え殻!$AK$30","v":0},{"$f":"+ｲ.汚泥!$AK$30","v":0},{"$f":"+ｳ.廃油!$AK$30","v":0},{"$f":"+ｴ.廃酸!$AK$30","v":0},{"$f":"+ｵ.廃ｱﾙｶﾘ!$AK$30","v":0},{"$f":"+ｶ.廃ﾌﾟﾗ類!$AK$30","v":0},{"$f":"+ｷ.紙くず!$AK$30","v":0},{"$f":"+ｸ.木くず!$AK$30","v":0},{"$f":"+ｹ.繊維くず!$AK$30","v":0},{"$f":"+ｺ.動植物性残さ!$AK$30","v":0},{"$f":"+ｻ.動物系固形不要物!$AK$30","v":0},{"$f":"+ｼ.ｺﾞﾑくず!$AK$30","v":0},{"$f":"+ｽ.金属くず!$AK$30","v":0},{"$f":"+ｾ.ｶﾞﾗｽ･ｺﾝｸﾘ･陶磁器くず!$AK$30","v":0},{"$f":"+ｿ.鉱さい!$AK$30","v":0},{"$f":"+ﾀ.がれき類!$AK$30","v":0},{"$f":"+ﾁ.動物のふん尿!$AK$30","v":0},{"$f":"+ﾂ.動物の死体!$AK$30","v":0},{"$f":"+ﾃ.ばいじん!$AK$30","v":0},{"$f":"+ﾄ.混合廃棄物その他!$AK$30","v":0},0]
[null,null,null,"⑫","⑩のうち再生利用業者への処理委託量",null,{"$f":"+ｱ.燃え殻!$AR$24","v":0},{"$f":"+ｲ.汚泥!$AR$24","v":0.8},{"$f":"+ｳ.廃油!$AR$24","v":0},{"$f":"+ｴ.廃酸!$AR$24","v":0},{"$f":"+ｵ.廃ｱﾙｶﾘ!$AR$24","v":0},{"$f":"+ｶ.廃ﾌﾟﾗ類!$AR$24","v":0},{"$f":"+ｷ.紙くず!$AR$24","v":0},{"$f":"+ｸ.木くず!$AR$24","v":0},{"$f":"+ｹ.繊維くず!$AR$24","v":0},{"$f":"+ｺ.動植物性残さ!$AR$24","v":0},{"$f":"+ｻ.動物系固形不要物!$AR$24","v":0},{"$f":"+ｼ.ｺﾞﾑくず!$AR$24","v":0},{"$f":"+ｽ.金属くず!$AR$24","v":0},{"$f":"+ｾ.ｶﾞﾗｽ･ｺﾝｸﾘ･陶磁器くず!$AR$24","v":0},{"$f":"+ｿ.鉱さい!$AR$24","v":0},{"$f":"+ﾀ.がれき類!$AR$24","v":1000},{"$f":"+ﾁ.動物のふん尿!$AR$24","v":0},{"$f":"+ﾂ.動物の死体!$AR$24","v":0},{"$f":"+ﾃ.ばいじん!$AR$24","v":0},{"$f":"+ﾄ.混合廃棄物その他!$AR$24","v":9},1009.8]
[null,null,null,"⑬","⑩のうち認定熱回収業者への処理委託量",null,{"$f":"+ｱ.燃え殻!$AR$27","v":0},{"$f":"+ｲ.汚泥!$AR$27","v":0},{"$f":"+ｳ.廃油!$AR$27","v":0},{"$f":"+ｴ.廃酸!$AR$27","v":0},{"$f":"+ｵ.廃ｱﾙｶﾘ!$AR$27","v":0},{"$f":"+ｶ.廃ﾌﾟﾗ類!$AR$27","v":0},{"$f":"+ｷ.紙くず!$AR$27","v":0},{"$f":"+ｸ.木くず!$AR$27","v":0},{"$f":"+ｹ.繊維くず!$AR$27","v":0},{"$f":"+ｺ.動植物性残さ!$AR$27","v":0},{"$f":"+ｻ.動物系固形不要物!$AR$27","v":0},{"$f":"+ｼ.ｺﾞﾑくず!$AR$27","v":0},{"$f":"+ｽ.金属くず!$AR$27","v":0},{"$f":"+ｾ.ｶﾞﾗｽ･ｺﾝｸﾘ･陶磁器くず!$AR$27","v":0},{"$f":"+ｿ.鉱さい!$AR$27","v":0},{"$f":"+ﾀ.がれき類!$AR$27","v":0},{"$f":"+ﾁ.動物のふん尿!$AR$27","v":0},{"$f":"+ﾂ.動物の死体!$AR$27","v":0},{"$f":"+ﾃ.ばいじん!$AR$27","v":0},{"$f":"+ﾄ.混合廃棄物その他!$AR$27","v":0},0]
[null,null,null,"⑭","⑩のうち認定熱回収業者以外の熱回収を行う業者への処理委託量",null,{"$f":"+ｱ.燃え殻!$AR$31","v":0},{"$f":"+ｲ.汚泥!$AR$31","v":0},{"$f":"+ｳ.廃油!$AR$31","v":0},{"$f":"+ｴ.廃酸!$AR$31","v":0},{"$f":"+ｵ.廃ｱﾙｶﾘ!$AR$31","v":0},{"$f":"+ｶ.廃ﾌﾟﾗ類!$AR$31","v":0},{"$f":"+ｷ.紙くず!$AR$31","v":0},{"$f":"+ｸ.木くず!$AR$31","v":0},{"$f":"+ｹ.繊維くず!$AR$31","v":0},{"$f":"+ｺ.動植物性残さ!$AR$31","v":0},{"$f":"+ｻ.動物系固形不要物!$AR$31","v":0},{"$f":"+ｼ.ｺﾞﾑくず!$AR$31","v":0},{"$f":"+ｽ.金属くず!$AR$31","v":0},{"$f":"+ｾ.ｶﾞﾗｽ･ｺﾝｸﾘ･陶磁器くず!$AR$31","v":0},{"$f":"+ｿ.鉱さい!$AR$31","v":0},{"$f":"+ﾀ.がれき類!$AR$31","v":0},{"$f":"+ﾁ.動物のふん尿!$AR$31","v":0},{"$f":"+ﾂ.動物の死体!$AR$31","v":0},{"$f":"+ﾃ.ばいじん!$AR$31","v":0},{"$f":"+ﾄ.混合廃棄物その他!$AR$31","v":0},0]
[null,null,null,null,null,null,"※この一括表には、産業廃棄物の種類ごとの処理フローに入力した量が表示されます。"]
[]
[null,null,null,null,null,null,{"$f":"IF(ｱ.燃え殻!$O$16=\"エラー！：⑥残さ物量があるのに、④自ら中間処理した量がゼロになっています\",1,0)","v":0},{"$f":"IF(ｲ.汚泥!$O$16=\"エラー！：⑥残さ物量があるのに、④自ら中間処理した量がゼロになっています\",1,0)","v":0},{"$f":"IF(ｳ.廃油!$O$16=\"エラー！：⑥残さ物量があるのに、④自ら中間処理した量がゼロになっています\",1,0)","v":0},{"$f":"IF(ｴ.廃酸!$O$16=\"エラー！：⑥残さ物量があるのに、④自ら中間処理した量がゼロになっています\",1,0)","v":0},{"$f":"IF(ｵ.廃ｱﾙｶﾘ!$O$16=\"エラー！：⑥残さ物量があるのに、④自ら中間処理した量がゼロになっています\",1,0)","v":0},{"$f":"IF(ｶ.廃ﾌﾟﾗ類!$O$16=\"エラー！：⑥残さ物量があるのに、④自ら中間処理した量がゼロになっています\",1,0)","v":0},{"$f":"IF(ｷ.紙くず!$O$16=\"エラー！：⑥残さ物量があるのに、④自ら中間処理した量がゼロになっています\",1,0)","v":0},{"$f":"IF(ｸ.木くず!$O$16=\"エラー！：⑥残さ物量があるのに、④自ら中間処理した量がゼロになっています\",1,0)","v":0},{"$f":"IF(ｹ.繊維くず!$O$16=\"エラー！：⑥残さ物量があるのに、④自ら中間処理した量がゼロになっています\",1,0)","v":0},{"$f":"IF(ｺ.動植物性残さ!$O$16=\"エラー！：⑥残さ物量があるのに、④自ら中間処理した量がゼロになっています\",1,0)","v":0},{"$f":"IF(ｻ.動物系固形不要物!$O$16=\"エラー！：⑥残さ物量があるのに、④自ら中間処理した量がゼロになっています\",1,0)","v":0},{"$f":"IF(ｼ.ｺﾞﾑくず!$O$16=\"エラー！：⑥残さ物量があるのに、④自ら中間処理した量がゼロになっています\",1,0)","v":0},{"$f":"IF(ｽ.金属くず!$O$16=\"エラー！：⑥残さ物量があるのに、④自ら中間処理した量がゼロになっています\",1,0)","v":0},{"$f":"IF(ｾ.ｶﾞﾗｽ･ｺﾝｸﾘ･陶磁器くず!$O$16=\"エラー！：⑥残さ物量があるのに、④自ら中間処理した量がゼロになっています\",1,0)","v":0},{"$f":"IF(ｿ.鉱さい!$O$16=\"エラー！：⑥残さ物量があるのに、④自ら中間処理した量がゼロになっています\",1,0)","v":0},{"$f":"IF(ﾀ.がれき類!$O$16=\"エラー！：⑥残さ物量があるのに、④自ら中間処理した量がゼロになっています\",1,0)","v":0},{"$f":"IF(ﾁ.動物のふん尿!$O$16=\"エラー！：⑥残さ物量があるのに、④自ら中間処理した量がゼロになっています\",1,0)","v":0},{"$f":"IF(ﾂ.動物の死体!$O$16=\"エラー！：⑥残さ物量があるのに、④自ら中間処理した量がゼロになっています\",1,0)","v":0},{"$f":"IF(ﾃ.ばいじん!$O$16=\"エラー！：⑥残さ物量があるのに、④自ら中間処理した量がゼロになっています\",1,0)","v":0},{"$f":"IF(ﾄ.混合廃棄物その他!$O$16=\"エラー！：⑥残さ物量があるのに、④自ら中間処理した量がゼロになっています\",1,0)","v":0}]
[null,null,null,null,null,null,{"$f":"IF(ｱ.燃え殻!$O$22=\"エラー !：④の内数である⑤の量が④を超えています\",1,0)","v":0},{"$f":"IF(ｲ.汚泥!$O$22=\"エラー !：④の内数である⑤の量が④を超えています\",1,0)","v":0},{"$f":"IF(ｳ.廃油!$O$22=\"エラー !：④の内数である⑤の量が④を超えています\",1,0)","v":0},{"$f":"IF(ｴ.廃酸!$O$22=\"エラー !：④の内数である⑤の量が④を超えています\",1,0)","v":0},{"$f":"IF(ｵ.廃ｱﾙｶﾘ!$O$22=\"エラー !：④の内数である⑤の量が④を超えています\",1,0)","v":0},{"$f":"IF(ｶ.廃ﾌﾟﾗ類!$O$22=\"エラー !：④の内数である⑤の量が④を超えています\",1,0)","v":0},{"$f":"IF(ｷ.紙くず!$O$22=\"エラー !：④の内数である⑤の量が④を超えています\",1,0)","v":0},{"$f":"IF(ｸ.木くず!$O$22=\"エラー !：④の内数である⑤の量が④を超えています\",1,0)","v":0},{"$f":"IF(ｹ.繊維くず!$O$22=\"エラー !：④の内数である⑤の量が④を超えています\",1,0)","v":0},{"$f":"IF(ｺ.動植物性残さ!$O$22=\"エラー !：④の内数である⑤の量が④を超えています\",1,0)","v":0},{"$f":"IF(ｻ.動物系固形不要物!$O$22=\"エラー !：④の内数である⑤の量が④を超えています\",1,0)","v":0},{"$f":"IF(ｼ.ｺﾞﾑくず!$O$22=\"エラー !：④の内数である⑤の量が④を超えています\",1,0)","v":0},{"$f":"IF(ｽ.金属くず!$O$22=\"エラー !：④の内数である⑤の量が④を超えています\",1,0)","v":0},{"$f":"IF(ｾ.ｶﾞﾗｽ･ｺﾝｸﾘ･陶磁器くず!$O$22=\"エラー !：④の内数である⑤の量が④を超えています\",1,0)","v":0},{"$f":"IF(ｿ.鉱さい!$O$22=\"エラー !：④の内数である⑤の量が④を超えています\",1,0)","v":0},{"$f":"IF(ﾀ.がれき類!$O$22=\"エラー !：④の内数である⑤の量が④を超えています\",1,0)","v":0},{"$f":"IF(ﾁ.動物のふん尿!$O$22=\"エラー !：④の内数である⑤の量が④を超えています\",1,0)","v":0},{"$f":"IF(ﾂ.動物の死体!$O$22=\"エラー !：④の内数である⑤の量が④を超えています\",1,0)","v":0},{"$f":"IF(ﾃ.ばいじん!$O$22=\"エラー !：④の内数である⑤の量が④を超えています\",1,0)","v":0},{"$f":"IF(ﾄ.混合廃棄物その他!$O$22=\"エラー !：④の内数である⑤の量が④を超えています\",1,0)","v":0}]
[null,null,null,null,null,null,{"$f":"IF(ｱ.燃え殻!$AK$31=\"エラー !：⑩の内数である⑪の量が⑩を超えています\",1,0)","v":0},{"$f":"IF(ｲ.汚泥!$AK$31=\"エラー !：⑩の内数である⑪の量が⑩を超えています\",1,0)","v":0},{"$f":"IF(ｳ.廃油!$AK$31=\"エラー !：⑩の内数である⑪の量が⑩を超えています\",1,0)","v":0},{"$f":"IF(ｴ.廃酸!$AK$31=\"エラー !：⑩の内数である⑪の量が⑩を超えています\",1,0)","v":0},{"$f":"IF(ｵ.廃ｱﾙｶﾘ!$AK$31=\"エラー !：⑩の内数である⑪の量が⑩を超えています\",1,0)","v":0},{"$f":"IF(ｶ.廃ﾌﾟﾗ類!$AK$31=\"エラー !：⑩の内数である⑪の量が⑩を超えています\",1,0)","v":0},{"$f":"IF(ｷ.紙くず!$AK$31=\"エラー !：⑩の内数である⑪の量が⑩を超えています\",1,0)","v":0},{"$f":"IF(ｸ.木くず!$AK$31=\"エラー !：⑩の内数である⑪の量が⑩を超えています\",1,0)","v":0},{"$f":"IF(ｹ.繊維くず!$AK$31=\"エラー !：⑩の内数である⑪の量が⑩を超えています\",1,0)","v":0},{"$f":"IF(ｺ.動植物性残さ!$AK$31=\"エラー !：⑩の内数である⑪の量が⑩を超えています\",1,0)","v":0},{"$f":"IF(ｻ.動物系固形不要物!$AK$31=\"エラー !：⑩の内数である⑪の量が⑩を超えています\",1,0)","v":0},{"$f":"IF(ｼ.ｺﾞﾑくず!$AK$31=\"エラー !：⑩の内数である⑪の量が⑩を超えています\",1,0)","v":0},{"$f":"IF(ｽ.金属くず!$AK$31=\"エラー !：⑩の内数である⑪の量が⑩を超えています\",1,0)","v":0},{"$f":"IF(ｾ.ｶﾞﾗｽ･ｺﾝｸﾘ･陶磁器くず!$AK$31=\"エラー !：⑩の内数である⑪の量が⑩を超えています\",1,0)","v":0},{"$f":"IF(ｿ.鉱さい!$AK$31=\"エラー !：⑩の内数である⑪の量が⑩を超えています\",1,0)","v":0},{"$f":"IF(ﾀ.がれき類!$AK$31=\"エラー !：⑩の内数である⑪の量が⑩を超えています\",1,0)","v":0},{"$f":"IF(ﾁ.動物のふん尿!$AK$31=\"エラー !：⑩の内数である⑪の量が⑩を超えています\",1,0)","v":0},{"$f":"IF(ﾂ.動物の死体!$AK$31=\"エラー !：⑩の内数である⑪の量が⑩を超えています\",1,0)","v":0},{"$f":"IF(ﾃ.ばいじん!$AK$31=\"エラー !：⑩の内数である⑪の量が⑩を超えています\",1,0)","v":0},{"$f":"IF(ﾄ.混合廃棄物その他!$AK$31=\"エラー !：⑩の内数である⑪の量が⑩を超えています\",1,0)","v":0}]
[null,null,null,null,null,null,{"$f":"IF(ｱ.燃え殻!$AR$28=\"エラー !：⑩の内数である（⑫+⑬＋⑭）の量が⑩を超えています\",1,0)","v":0},{"$f":"IF(ｲ.汚泥!$AR$28=\"エラー !：⑩の内数である（⑫+⑬＋⑭）の量が⑩を超えています\",1,0)","v":0},{"$f":"IF(ｳ.廃油!$AR$28=\"エラー !：⑩の内数である（⑫+⑬＋⑭）の量が⑩を超えています\",1,0)","v":0},{"$f":"IF(ｴ.廃酸!$AR$28=\"エラー !：⑩の内数である（⑫+⑬＋⑭）の量が⑩を超えています\",1,0)","v":0},{"$f":"IF(ｵ.廃ｱﾙｶﾘ!$AR$28=\"エラー !：⑩の内数である（⑫+⑬＋⑭）の量が⑩を超えています\",1,0)","v":0},{"$f":"IF(ｶ.廃ﾌﾟﾗ類!$AR$28=\"エラー !：⑩の内数である（⑫+⑬＋⑭）の量が⑩を超えています\",1,0)","v":0},{"$f":"IF(ｷ.紙くず!$AR$28=\"エラー !：⑩の内数である（⑫+⑬＋⑭）の量が⑩を超えています\",1,0)","v":0},{"$f":"IF(ｸ.木くず!$AR$28=\"エラー !：⑩の内数である（⑫+⑬＋⑭）の量が⑩を超えています\",1,0)","v":0},{"$f":"IF(ｹ.繊維くず!$AR$28=\"エラー !：⑩の内数である（⑫+⑬＋⑭）の量が⑩を超えています\",1,0)","v":0},{"$f":"IF(ｺ.動植物性残さ!$AR$28=\"エラー !：⑩の内数である（⑫+⑬＋⑭）の量が⑩を超えています\",1,0)","v":0},{"$f":"IF(ｻ.動物系固形不要物!$AR$28=\"エラー !：⑩の内数である（⑫+⑬＋⑭）の量が⑩を超えています\",1,0)","v":0},{"$f":"IF(ｼ.ｺﾞﾑくず!$AR$28=\"エラー !：⑩の内数である（⑫+⑬＋⑭）の量が⑩を超えています\",1,0)","v":0},{"$f":"IF(ｽ.金属くず!$AR$28=\"エラー !：⑩の内数である（⑫+⑬＋⑭）の量が⑩を超えています\",1,0)","v":0},{"$f":"IF(ｾ.ｶﾞﾗｽ･ｺﾝｸﾘ･陶磁器くず!$AR$28=\"エラー !：⑩の内数である（⑫+⑬＋⑭）の量が⑩を超えています\",1,0)","v":0},{"$f":"IF(ｿ.鉱さい!$AR$28=\"エラー !：⑩の内数である（⑫+⑬＋⑭）の量が⑩を超えています\",1,0)","v":0},{"$f":"IF(ﾀ.がれき類!$AR$28=\"エラー !：⑩の内数である（⑫+⑬＋⑭）の量が⑩を超えています\",1,0)","v":0},{"$f":"IF(ﾁ.動物のふん尿!$AR$28=\"エラー !：⑩の内数である（⑫+⑬＋⑭）の量が⑩を超えています\",1,0)","v":0},{"$f":"IF(ﾂ.動物の死体!$AR$28=\"エラー !：⑩の内数である（⑫+⑬＋⑭）の量が⑩を超えています\",1,0)","v":0},{"$f":"IF(ﾃ.ばいじん!$AR$28=\"エラー !：⑩の内数である（⑫+⑬＋⑭）の量が⑩を超えています\",1,0)","v":0},{"$f":"IF(ﾄ.混合廃棄物その他!$AR$28=\"エラー !：⑩の内数である（⑫+⑬＋⑭）の量が⑩を超えています\",1,0)","v":0}]
[null,null,null,null,null,null,{"$f":"IF(ｱ.燃え殻!$AR$32=\"エラー !：⑩の内数である（⑫+⑬＋⑭）の量が⑩を超えています\",1,0)","v":0},{"$f":"IF(ｲ.汚泥!$AR$32=\"エラー !：⑩の内数である（⑫+⑬＋⑭）の量が⑩を超えています\",1,0)","v":0},{"$f":"IF(ｳ.廃油!$AR$32=\"エラー !：⑩の内数である（⑫+⑬＋⑭）の量が⑩を超えています\",1,0)","v":0},{"$f":"IF(ｴ.廃酸!$AR$32=\"エラー !：⑩の内数である（⑫+⑬＋⑭）の量が⑩を超えています\",1,0)","v":0},{"$f":"IF(ｵ.廃ｱﾙｶﾘ!$AR$32=\"エラー !：⑩の内数である（⑫+⑬＋⑭）の量が⑩を超えています\",1,0)","v":0},{"$f":"IF(ｶ.廃ﾌﾟﾗ類!$AR$32=\"エラー !：⑩の内数である（⑫+⑬＋⑭）の量が⑩を超えています\",1,0)","v":0},{"$f":"IF(ｷ.紙くず!$AR$32=\"エラー !：⑩の内数である（⑫+⑬＋⑭）の量が⑩を超えています\",1,0)","v":0},{"$f":"IF(ｸ.木くず!$AR$32=\"エラー !：⑩の内数である（⑫+⑬＋⑭）の量が⑩を超えています\",1,0)","v":0},{"$f":"IF(ｹ.繊維くず!$AR$32=\"エラー !：⑩の内数である（⑫+⑬＋⑭）の量が⑩を超えています\",1,0)","v":0},{"$f":"IF(ｺ.動植物性残さ!$AR$32=\"エラー !：⑩の内数である（⑫+⑬＋⑭）の量が⑩を超えています\",1,0)","v":0},{"$f":"IF(ｻ.動物系固形不要物!$AR$32=\"エラー !：⑩の内数である（⑫+⑬＋⑭）の量が⑩を超えています\",1,0)","v":0},{"$f":"IF(ｼ.ｺﾞﾑくず!$AR$32=\"エラー !：⑩の内数である（⑫+⑬＋⑭）の量が⑩を超えています\",1,0)","v":0},{"$f":"IF(ｽ.金属くず!$AR$32=\"エラー !：⑩の内数である（⑫+⑬＋⑭）の量が⑩を超えています\",1,0)","v":0},{"$f":"IF(ｾ.ｶﾞﾗｽ･ｺﾝｸﾘ･陶磁器くず!$AR$32=\"エラー !：⑩の内数である（⑫+⑬＋⑭）の量が⑩を超えています\",1,0)","v":0},{"$f":"IF(ｿ.鉱さい!$AR$32=\"エラー !：⑩の内数である（⑫+⑬＋⑭）の量が⑩を超えています\",1,0)","v":0},{"$f":"IF(ﾀ.がれき類!$AR$32=\"エラー !：⑩の内数である（⑫+⑬＋⑭）の量が⑩を超えています\",1,0)","v":0},{"$f":"IF(ﾁ.動物のふん尿!$AR$32=\"エラー !：⑩の内数である（⑫+⑬＋⑭）の量が⑩を超えています\",1,0)","v":0},{"$f":"IF(ﾂ.動物の死体!$AR$32=\"エラー !：⑩の内数である（⑫+⑬＋⑭）の量が⑩を超えています\",1,0)","v":0},{"$f":"IF(ﾃ.ばいじん!$AR$32=\"エラー !：⑩の内数である（⑫+⑬＋⑭）の量が⑩を超えています\",1,0)","v":0},{"$f":"IF(ﾄ.混合廃棄物その他!$AR$32=\"エラー !：⑩の内数である（⑫+⑬＋⑭）の量が⑩を超えています\",1,0)","v":0}]
[null,null,null,null,null,null,{"$f":"IF(G9=\"0\",+G19+G20,+G9+G19+G20)","v":0},{"$f":"IF(H9=\"0\",+H19+H20,+H9+H19+H20)","v":1.6},0,0,0,0,0,0,0,0,0,0,0,0,0,2079.1,0,0,0,18,{"$f":"+AA9+AA19+AA20","v":2098.6999999999998}]

{"sheet":"印刷用表紙","index":22,"n_rows":235,"n_cols":20,"rows_kept":235,"cut":false,"hidden":false,"merged":[[30,13,30,17],[18,14,18,19],[31,5,31,8],[31,9,31,12],[23,15,23,20],[24,15,24,20],[29,5,29,10],[29,13,29,20],[32,3,33,4],[33,9,33,12],[23,5,24,14],[32,9,32,12],[33,13,33,17],[30,5,30,8],[30,9,30,12],[32,13,32,17],[25,2,26,4],[31,13,31,17],[27,2,27,4],[23,2,24,4],[25,16,25,20],[27,5,27,20],[26,13,26,20],[25,5,26,12],[3,15,4,15],[10,15,10,19],[21,2,21,20],[3,16,3,18],[4,16,4,18],[5,2,5,20],[7,2,8,20],[15,11,15,19],[16,11,16,19],[12,2,12,5],[119,4,129,4],[108,3,118,3],[35,5,35,20],[84,5,92,20],[78,2,84,2],[78,3,92,3],[106,2,106,20],[109,5,109,9],[36,5,36,20],[64,16,65,20],[80,10,80,14],[79,16,80,20],[69,5,77,20],[67,18,67,19],[79,10,79,12],[63,3,77,3],[63,4,77,4],[64,10,64,12],[65,10,65,14],[38,4,41,4],[42,3,46,4],[109,10,109,14],[32,5,32,8],[37,5,47,20],[49,2,49,20],[52,3,61,20],[33,5,33,8],[94,4,99,4],[100,3,105,3],[78,4,92,4],[63,2,69,2],[94,3,99,3],[132,5,132,9],[133,5,133,9],[132,10,132,14],[133,10,133,14],[82,18,82,19],[158,5,158,9],[158,10,158,14],[158,16,158,20],[120,5,120,9],[120,10,120,14],[198,2,198,20],[185,6,185,9],[186,6,186,9],[200,10,200,14],[201,10,201,14],[202,10,202,14],[95,5,99,20],[119,3,129,3],[144,10,144,14],[145,10,145,14],[132,16,132,20],[133,16,133,20],[100,4,105,4],[108,4,118,4],[101,5,105,20],[111,5,118,20],[122,5,129,20],[135,5,142,20],[131,3,142,3],[131,4,142,4],[144,5,144,9],[145,5,145,9],[120,16,120,20],[109,16,109,20],[183,16,187,20],[169,3,180,3],[169,4,180,4],[182,3,197,3],[182,4,197,4],[170,5,170,9],[170,10,170,14],[170,16,170,20],[183,10,183,14],[172,5,180,20],[157,4,168,4],[155,2,155,20],[143,3,154,3],[143,4,154,4],[144,16,144,20],[145,16,145,20],[147,5,154,20],[160,5,168,20],[199,3,214,3],[157,3,168,3],[187,6,187,9],[203,6,203,9],[204,6,204,9],[184,10,184,14],[185,10,185,14],[189,5,197,20],[186,10,186,14],[187,10,187,14],[183,5,183,9],[184,6,184,9],[203,10,203,14],[204,10,204,14],[200,5,200,9],[201,6,201,9],[232,3,232,20],[233,3,233,20],[221,2,221,20],[206,5,214,20],[224,3,224,20],[225,3,225,20],[229,4,229,20],[230,4,230,20],[231,3,231,20],[215,2,215,4],[199,4,214,4],[202,6,202,9],[200,16,204,20]]}
[null,null,"このページは、印刷用ページですので、入力できません。入力はシート「表紙」にしてください。"]
[]
[]
[14,null,null,null,null,null,null,null,null,null,null,null,null,null,null,"２","法定",null,null,"自主"]
[{"$f":"+#REF!","v":{"$error":"#REF!"}},null,"様式第二号の八（第八条の四の五関係）",null,null,null,null,null,null,null,null,null,null,null,null,null,{"$f":"+表紙!Q29","v":"〇"},null,null,{"$f":"+表紙!T29","v":""}]
[null,null,"（第１面）"]
[]
[null,null,"産業廃棄物処理計画書"]
[]
[]
[null,null,null,null,null,null,null,null,null,null,null,null,null,null,null,{"$f":"+表紙!P35","v":"令和    6年    6月    24日"}]
[]
[null,null,{"$f":"+表紙!C37","v":"横浜市長"},null,null,null,"殿"]
[]
[3,null,null,null,null,null,null,null,null,"提出者"]
[null,null,null,null,null,null,null,null,null,"　住　所",null,{"$f":"+表紙!L40","v":"神奈川県大和市中央林間6-10-7"}]
[null,null,null,null,null,null,null,null,null,"　氏　名",null,{"$f":"+表紙!L41","v":"中井エンジニアリング株式会社　所長　大野　勝文"}]
[null,null,null,null,null,null,null,null,null,null,null,"（法人にあっては、名称及び代表者の氏名）"]
[null,null,null,null,null,null,null,null,null,null,null,null,"電話番号",null,{"$f":"IF(+表紙!O43=\"\",\"\",+表紙!O43)","v":" (046)275-8681"}]
[]
[]
[4,null,"　廃棄物の処理及び清掃に関する法律第12条第９項の規定に基づき、産業廃棄物の減量その他その処理に関する計画を作成したので、提出します。"]
[]
[null,null,"事業場の名称",null,null,{"$f":"+表紙!F48","v":"横浜市各工事現場"},null,null,null,null,null,null,null,null,null,"自主管理事業登録番号"]
[null,null,null,null,null,null,null,null,null,null,null,null,null,null,null,{"$f":"表紙!P49","v":"新規"}]
[null,null,"事業場の所在地",null,null,{"$f":"+表紙!F50","v":"市内各所"},null,null,null,null,null,null,null,"ＴＥＬ（連絡先）：",null,null,{"$f":"IF(+表紙!Q50=\"\",\"\",+表紙!Q50)","v":"048-949-7155"}]
[null,null,null,null,null,null,null,null,null,null,null,null,null,{"$f":"IF(+表紙!N51=\"\",\"\",+表紙!N51)","v":""}]
[null,null,"計画期間",null,null,{"$f":"+表紙!F52","v":"令和 ６ 年 ４ 月 １ 日 ～ 令和 ７ 年 ３ 月 31 日（ １ 年間）"}]
[null,null,"当該事業場に関する事項"]
[null,null,null,"①","事業の種類",{"$f":"+表紙!F54","v":"Ｄ－建設業"},null,null,null,null,null,"(具体的には）",null,{"$f":"IF(COUNTA(表紙!N54)=1,+表紙!N54,\"\")","v":"総合工事業"}]
[null,null,null,"②","事業の規模","製造業",null,null,null,"製造品出荷額",null,null,null,{"$f":"IF(+表紙!N55=\"\",\"\",+表紙!N55)","v":""},null,null,null,null,{"$f":"+表紙!S55","v":"百万円"}]
[null,null,null,null,null,"建設業",null,null,null,"エリア内元請完成工事高",null,null,null,{"$f":"IF(+表紙!N56=\"\",\"\",+表紙!N56)","v":590},null,null,null,null,{"$f":"+表紙!S56","v":"百万円"}]
[null,null,null,"※　前年度実績を記入、医療機関は前年度末時点の病床数を記入。",null,"医療機関",null,null,null,"病床数",null,null,null,{"$f":"IF(+表紙!N57=\"\",\"\",+表紙!N57)","v":""},null,null,null,null,{"$f":"+表紙!S57","v":"床"}]
[null,null,null,null,null,{"$f":"+表紙!F58","v":"その他の業種"},{"$f":"+表紙!G58","v":0},null,{"$f":"+表紙!I58","v":0},{"$f":"+表紙!J58","v":"売上高"},null,{"$f":"+表紙!L58","v":0},{"$f":"+表紙!M58","v":0},{"$f":"IF(+表紙!N58=\"\",\"\",+表紙!N58)","v":""},null,null,null,null,{"$f":"+表紙!S58","v":"百万円"}]
[null,null,null,null,null,"（上記項目に該当しない場合にはこちらに記載をしてください。）"]
[null,null,null,null,null,{"$f":"IF(+表紙!F60=\"\",\"\",+表紙!F60)","v":""}]
[null,null,null,"③","従業員数",{"$f":"IF(+表紙!F61=\"\",\"\",+表紙!F61)","v":441}]
[]
[null,null,null,"④","産業廃棄物の一連の処理の工程"]
[]
[]
[]
[null,null,null,"※　産業廃棄物の種類ごとに記入"]
[]
[]
[]
[]
[]
[]
[null,null,"（第２面）"]
[null,null,"産業廃棄物の処理に係る管理体制に関する事項"]
[null,null,null,"（管理体制図）"]
[]
[]
[]
[]
[]
[]
[]
[]
[]
[]
[null,null,"産業廃棄物の排出の抑制に関する事項"]
[null,null,null,"①","現状","【前年度（令和 ５ 年度）実績】"]
[5,null,null,null,null,"産業廃棄物の種類数",null,null,null,null,{"$f":"+表紙!K89","v":3},null,null,"種類",null,null,"*　種類ごとの前年度排出量は、別紙のとおり。"]
[6,null,null,null,null,"①　排出量",null,null,null,null,{"$f":"+表紙!K90","v":1088.8999999999999},null,null,null,null,"ｔ"]
[]
[]
[null,null,null,null,null,"（これまでに実施した取組）"]
[null,null,null,null,null,{"$f":"IF(COUNTA(表紙!F94)=1,+表紙!F94,\"\")","v":"・非開削工法の推進\n・堀削幅　本復旧範囲の縮小"}]
[]
[]
[]
[]
[]
[]
[]
[]
[null,null,null,"②","計画","【（令和 ６ 年度）目標】"]
[7,null,null,null,null,"産業廃棄物の種類数",null,null,null,null,{"$f":"+表紙!K104","v":3},null,null,"種類",null,null,"*　種類ごとの本年度排出目標量は、別紙のとおり。"]
[8,null,null,null,null,"①　排出量",null,null,null,null,{"$f":"+表紙!K105","v":1009.8},null,null,null,null,"ｔ"]
[]
[9]
[null,null,null,null,null,"（今後実施する予定の取組）"]
[null,null,null,null,null,{"$f":"IF(COUNTA(表紙!F109)=1,+表紙!F109,\"\")","v":"上記の項目に加え、下記取り組みを実施予定\n・本復旧範囲の縮小\n　　　　　　（幅員5ｍ以上の現場において全面復旧範囲の見直し）"}]
[]
[]
[]
[]
[]
[]
[]
[]
[null,null,"産業廃棄物の分別に関する事項"]
[null,null,null,"①","現状","（分別している産業廃棄物の種類及び分別に関する取組）"]
[null,null,null,null,null,{"$f":"IF(COUNTA(表紙!F120)=1,+表紙!F120,\"\")","v":"・再生利用しやすいようにアスファルト・コンクリート等と木くず等を分別"}]
[]
[]
[]
[]
[null,null,null,"②","計画","（今後分別する予定の産業廃棄物の種類及び分別に関する取組）"]
[null,null,null,null,null,{"$f":"IF(COUNTA(表紙!F126)=1,+表紙!F126,\"\")","v":"現状維持"}]
[]
[]
[]
[]
[null,null,"（第３面）"]
[null,null,"自ら行う産業廃棄物の再生利用に関する事項"]
[null,null,null,"①","現状","【前年度（令和 ５ 年度）実績】"]
[null,null,null,null,null,"②＋⑧　自ら再生利用を行った産業廃棄物の量",null,null,null,null,{"$f":"+表紙!K134","v":"0"},null,null,null,null,"ｔ","*　種類ごとの前年度自ら再生利用量は、別紙のとおり。"]
[null,null,null,null,null,"（これまでに実施した取組）"]
[null,null,null,null,null,{"$f":"IF(COUNTA(表紙!F136)=1,+表紙!F136,\"\")","v":""}]
[]
[]
[]
[]
[]
[]
[]
[null,null,null,"②","計画","【（令和 ６ 年度）目標】"]
[null,null,null,null,null,"②＋⑧　自ら再生利用を行う産業廃棄物の量",null,null,null,null,{"$f":"+表紙!K145","v":0},null,null,null,null,"ｔ","*　種類ごとの本年度自ら再生利用量は、別紙のとおり。"]
[null,null,null,null,null,"（今後実施する予定の取組）"]
[null,null,null,null,null,{"$f":"IF(COUNTA(表紙!F147)=1,+表紙!F147,\"\")","v":""}]
[]
[]
[]
[]
[]
[]
[]
[null,null,"自ら行う産業廃棄物の中間処理に関する事項"]
[null,null,null,"①","現状","【前年度（令和 ５ 年度）実績】"]
[null,null,null,null,null,"⑤　自ら熱回収を行った産業廃棄物の量",null,null,null,null,{"$f":"+表紙!K157","v":"0"},null,null,null,null,"ｔ","*　種類ごとの前年度自ら熱回収を行った量は、別紙のとおり。"]
[null,null,null,null,null,"⑦　自ら中間処理により減量した産業廃棄物の量",null,null,null,null,{"$f":"+表紙!K158","v":"0"},null,null,null,null,"ｔ","*　種類ごとの前年度自ら中間処理により減量した量は、別紙のとおり。"]
[null,null,null,null,null,"（これまでに実施した取組）"]
[null,null,null,null,null,{"$f":"IF(COUNTA(表紙!F160)=1,+表紙!F160,\"\")","v":""}]
[]
[]
[]
[]
[]
[]
[]
[null,null,null,"②","計画","【（令和 ６ 年度）目標】"]
[null,null,null,null,null,"⑤　自ら熱回収を行う産業廃棄物の量",null,null,null,null,{"$f":"+表紙!K169","v":0},null,null,null,null,"ｔ","*　種類ごとの本年度自ら熱回収を行う量は、別紙のとおり。"]
[null,null,null,null,null,"⑦　自ら中間処理により減量する産業廃棄物の量",null,null,null,null,{"$f":"+表紙!K170","v":0},null,null,null,null,"ｔ","*　種類ごとの本年度自ら中間処理により減量する量は、別紙のとおり。"]
[null,null,null,null,null,"（今後実施する予定の取組）"]
[null,null,null,null,null,{"$f":"IF(COUNTA(表紙!F172)=1,+表紙!F172,\"\")","v":""}]
[]
[]
[]
[]
[]
[]
[]
[null,null,"（第４面）"]
[null,null,"自ら行う産業廃棄物の埋立処分又は海洋投入処分に関する事項"]
[null,null,null,"①","現状","【前年度（令和 ５ 年度）実績】"]
[null,null,null,null,null,"③＋⑨　自ら埋立処分又は海洋投入処分を行った産業廃棄物の量",null,null,null,null,{"$f":"+表紙!K183","v":"0"},null,null,null,null,"ｔ","*　種類ごとの前年度自ら埋立処分又は海洋投入処分を行った量は、別紙のとおり。"]
[null,null,null,null,null,"（これまでに実施した取組）"]
[null,null,null,null,null,{"$f":"IF(COUNTA(表紙!F185)=1,+表紙!F185,\"\")","v":""}]
[]
[]
[]
[]
[]
[]
[]
[]
[null,null,null,"②","計画","【（令和 ６ 年度）目標】"]
[null,null,null,null,null,"③＋⑨　自ら埋立処分又は海洋投入処分を行う産業廃棄物の量",null,null,null,null,{"$f":"+表紙!K195","v":0},null,null,null,null,"ｔ","*　種類ごとの本年度自ら埋立処分又は海洋投入処分を行う量は、別紙のとおり。"]
[null,null,null,null,null,"（今後実施する予定の取組）"]
[null,null,null,null,null,{"$f":"IF(COUNTA(表紙!F197)=1,+表紙!F197,\"\")","v":""}]
[]
[]
[]
[]
[]
[]
[]
[]
[null,null,"産業廃棄物の処理の委託に関する事項"]
[null,null,null,"①","現状","【前年度（令和 ５ 年度）実績】"]
[null,null,null,null,null,"⑩　全処理委託量",null,null,null,null,{"$f":"+表紙!K208","v":1088.8999999999999},null,null,null,null,"ｔ","*　種類ごとの前年度処理委託量は、別紙のとおり。"]
[null,null,null,null,null,null,"⑪　優良認定処理業者への処理委託量",null,null,null,{"$f":"+表紙!K209","v":"0"},null,null,null,null,"ｔ"]
[null,null,null,null,null,null,"⑫　再生利用業者への処理委託量",null,null,null,{"$f":"+表紙!K210","v":9.8000000000000007},null,null,null,null,"ｔ"]
[null,null,null,null,null,null,"⑬　認定熱回収業者への処理委託量",null,null,null,{"$f":"+表紙!K211","v":"0"},null,null,null,null,"ｔ"]
[null,null,null,null,null,null,"⑭　認定熱回収業者以外の熱回収を行う業者への処理委託量",null,null,null,{"$f":"+表紙!K212","v":"0"},null,null,null,null,"ｔ"]
[null,null,null,null,null,"（これまでに実施した取組）"]
[null,null,null,null,null,{"$f":"IF(COUNTA(表紙!F214)=1,+表紙!F214,\"\")","v":""}]
[]
[]
[]
[]
[]
[]
[]
[]
[null,null,"（第５面）"]
[null,null,null,"②","計画","【（令和 ６ 年度）目標】"]
[null,null,null,null,null,"⑩　全処理委託量",null,null,null,null,{"$f":"+表紙!K225","v":1009.8},null,null,null,null,"ｔ","*　種類ごとの本年度処理委託量は、別紙のとおり。"]
[null,null,null,null,null,null,"⑪　優良認定処理業者への処理委託量",null,null,null,{"$f":"+表紙!K226","v":0},null,null,null,null,"ｔ"]
[null,null,null,null,null,null,"⑫　再生利用業者への処理委託量",null,null,null,{"$f":"+表紙!K227","v":1009.8},null,null,null,null,"ｔ"]
[null,null,null,null,null,null,"⑬　認定熱回収業者への処理委託量",null,null,null,{"$f":"+表紙!K228","v":0},null,null,null,null,"ｔ"]
[null,null,null,null,null,null,"⑭　認定熱回収業者以外の熱回収を行う業者への処理委託量",null,null,null,{"$f":"+表紙!K229","v":0},null,null,null,null,"ｔ"]
[null,null,null,null,null,"（今後実施する予定の取組）"]
[null,null,null,null,null,{"$f":"IF(COUNTA(表紙!F231)=1,+表紙!F231,\"\")","v":""}]
[]
[]
[]
[]
[]
[]
[]
[]
[null,null,"※　事務処理欄"]
[]
[]
[]
[]
[]
[null,null,"（第６面）"]
[null,null,"備考"]
[11]
[null,null,1,"　この様式は、前年度（令和５年度）の産業廃棄物の発生量が1,000トン以上の事業場ごとに１枚作成し、提出してください。"]
[null,null,null,"　また、前年度（令和５年度）の産業廃棄物の発生量が1,000トン未満の事業場にあっては、神奈川県・横浜市・川崎市・相模原市・横須賀市が推進する廃棄物自主管理事業へ参加するにあたり、事業場ごとに１枚作成し、提出してください。"]
[null,null,2,"　当該年度（令和６年度）の６月30日までに提出してください。"]
[null,null,3,"　「当該事業場において現に行っている事業に関する事項」の欄は、以下に従って記入してください。"]
[null,null,null,"(1)","　①欄には、日本標準産業分類（中分類）の区分を記入してください。"]
[null,null,null,"(2)","　②欄には、製造業の場合における製造品出荷額（前年度実績）、建設業の場合における元請完成工事高（前年度実績）、医療機関の場合における病床数（前年度末時点）等の業種に応じ事業規模が分かるような前年度の実績を記入してください。"]
[null,null,null,"(3)","　④欄には、当該事業場において生ずる産業廃棄物についての発生から最終処分が終了するまでの一連の処理の工程（当該処理を委託する場合は、委託の内容を含む。）を記入してください。"]
[null,null,4,"　「自ら行う産業廃棄物の中間処理に関する事項」の欄には、産業廃棄物の種類ごとに、自ら中間処理を行うに際して熱回収を行った場合における熱回収を行った産業廃棄物の量と、自ら中間処理を行うことによって減量した量について、前年度の実績、目標及び取組を記入してください。"]
[null,null,5,"　「産業廃棄物の処理の委託に関する事項」の欄には、産業廃棄物の種類ごとに、全処理委託量を記入するほか、その内数として、優良認定処理業者（廃棄物の処理及び清掃に関する法律施行令第６条の11第２号に該当する者）への処理委託量、処理業者への再生利用委託量、認定熱回収施設設置者（廃棄物の処理及び清掃に関する法律第15条の３の３第１項の認定を受けた者）である処理業者への焼却処理委託量及び認定熱回収施設設置者以外の熱回収を行っている処理業者への焼却処理委託量について、前年度実績、目標及び取組を記入してください。"]
[null,null,6,"　それぞれの欄に記入すべき事項の全てを記入することができないときは、当該欄に「別紙のとおり」と記入し、当該欄に記入すべき内容を記入した別紙を添付してください。また、それぞれの欄に記入すべき事項がないときは、「―」を記入してください。"]
[null,null,7,"　第５面の※欄には、何も記入しないでください。"]

{"sheet":"業種限定","index":23,"n_rows":14,"n_cols":3,"rows_kept":14,"cut":false,"hidden":false,"merged":[[3,1,3,2],[13,1,13,2]]}
[]
[null,"＜業種限定がある産業廃棄物一覧＞"]
[]
[null,"　本事業の報告対象となる廃棄物は、産業廃棄物と特別管理産業廃棄物です。一部の産業廃棄物は業種が限定されています。下表に示す種類は、業種が限定された産業廃棄物です。同じ種類であっても限定業種以外の事業場から発生したものは一般廃棄物になるため、本事業での報告対象にはなりませんので、ご注意ください。"]
[]
[null,"産業廃棄物の種類","限定業種"]
[null,"　紙 く ず","①　建設業に係るもの（工作物の新築、改築又は除去に伴って生じたものに限る。）\n②　パルプ、紙又は紙加工品の製造業に係るもの\n③　新聞業に係るもの（新聞巻取紙を使用して印刷発行を行うものに限る。）\n④　出版業に係るもの（印刷出版を行うものに限る。）\n⑤　製本業及び印刷物加工業に係るもの\n⑥　ポリ塩化ビフェニル(ＰＣＢ)が塗布され、又は染み込んだもの"]
[null,"　木 く ず","①　建設業に係るもの（工作物の新築、改築又は除去に伴って生じたものに限る。）\n②　木材又は木製品の製造業（家具の製造業を含む。）に係るもの\n③　パルプ製造業に係るもの\n④　輸入木材の卸売業に係るもの\n⑤　物品賃貸業に係るもの\n⑥　貨物の流通のために使用したパレットに係るもの（パレットへの貨物の積付けのために使用したこん包用の木材を含む。）\n⑦　ＰＣＢが染み込んだもの"]
[null," 繊維くず","①　建設業に係るもの（工作物の新築、改築又は除去に伴って生じたものに限る。）\n②　繊維工業（衣服その他の繊維製品製造業を除く。）に係るものであって木綿くず、羊毛くず等の天然繊維\n③　ＰＣＢが染み込んだもの"]
[null," 動植物性残さ","　食料品製造業、飲料・たばこ・飼料製造業（たばこ製造業を除く。）、医薬品製造業又は香料製造業において原料として使用した動物又は植物に係る固形状の不要物（あめかす、のりかす、醸造かす、発酵かす、魚及び獣のあら等）"]
[null," 動物系固形不要物","　と畜場において処分した獣畜、食鳥処理場において処理した食鳥に係る固形状の不要物"]
[null," 動物のふん尿","　畜産農業に係るものであって畜舎廃水を含む。"]
[null," 動物の死体","　畜産農業に係るものに限る。"]
[null,"※　「木くず」は、政令改正に伴い、平成20年4月1日から限定業種に「物品賃貸業」が加わり、全業種を対象とした「貨物の流通のために使用したパレットに係る木くず」も加わりました。"]